Workbook

Sheet selite
A1: VM/KAO/vs
A3: KUNTAKONSERNIN TALOUDEN SUUNNITTELUKEHIKKO
A4: Kuntakonsernin talouden tulevan kehityksen arvioinnin suunnitteluun
A6: Kehikon käyttötarkoitus:
A7: Vuorovaikutteinen kuntakonsernin talouden suunnittelun apuväline. Kehikon avulla voidaan suunnitella konsernin talouden
A8: kehitystä pidemmällä aikavälillä. Tarkastelun kohteena ovat konsernin tuloslaskelma, rahoituslaskelmasta rahavarat, antolainat ja
A9: investoinnit sekä taseesta lainat ja kertynyt yli-/alijäämä. Pohjatietoina kehikossa ovat 2 viimeksi
A10: valmistunutta tilinpäätöstä.
A12: Tulevan kehityksen osalta tuloslaskelman erien kasvuolettamukset pohjautuvat lähtökohtaisesti
A13: uusimman kuntatalousohjelman mukaisiin makroennusteisiin.
A14: Käyttäjä voi kuitenkin itse muokata em. muutosolettamuksia sekä muita tuloslaskelman eriä.
A15: Myös tuloveroprosenttia, investointeja ja antolainasaamisten määrää voidaan muuttaa.
A16: Rahoituslaskelman ja taseen erät pohjautuvat jäljempänä selostettuihin olettamuksiin
A17: (pl. taseen kertynyt yli-/alijäämä = ed. tilikausien yli-/alijäämä + tilikauden yli-/alijäämä).
A19: Käyttäjä voi muokata vaaleansinisellä pohjalla olevia kohtia (soluja).
A21: Kehikon laskentapohja:
A22: Asukasluku:
A23: Kunnan asukaslukuina käytetään lähtökohtaisesti viimeisintä väestötietoa (31.12.20XX). Tulevien vuosien
A24: osalta asukaslukutiedot perustuvat Tilastokeskuksen viimeisimpään väestöennusteeseen (TK, 20XX).
A25: Tuloveroprosentti:
A26: Tuloveroprosentti perustuu viimeksi vahvistettuun tietoon.
A27: Tulevien vuosien tuloveroprosentti on lähtökohtaisesti sama kuin edellisvuonna, mutta sitä voidaan muuttaa tarpeen mukaan. Kehikko
A28: laskee kaavalla veroprosentin muutoksen vaikutuksen kunnallisveron tuottoon (edellisvuoden
A29: veroprosenttiyksikön tuoton perusteella).
A30: Tuloslaskelma:
A31: Tuloslaskelman pohjana ovat tilinpäätökset kahdelta viimeiseltä vuodelta.
A32: Tuloslaskelman keskeisten erien tulevien vuosien muutokset perustuvat lähtökohtaisesti kuntatalousohjelmaan.
A34: Em. keskeiset tuloslaskelman erät ovat seuraavat:
B35: 1) toimintatuotot,
B36: 2) toimintamenot,
B37: 3) kunnallisverot (pl. veroprosentin noston vaikutus),
B38: 4) yhteisöverot,
B39: 5) kiinteistöverot ja
B40: 6) valtionosuudet.
A41: Em. erien muutosolettamuksia voi muokata haluamikseen syöttämällä taulukkoon uudet muutosprosentit.
A43: Verotuloissa on käytetty tietoina emokunnan verotuloja, koska Valtiokonttorin talousraportoinnissa ei raportoida erikseen konsernin verotuloja
A44: verolajeittain. VK:lle raportoidut konsernin verotulot voivat poiketa hieman emokunnan raportoimista verotuloista.
A46: Korkokulujen kehitys perustuu edellisvuoden lainamäärään ja valittuun korkokantaan. Korkoprosentti (keskim.)
A47: voidaan siis valita halutun mukaiseksi. Korkoprosentti ei vaikuta korkotuottoihin, vaan sen perustuu ed. vuoden määrään.
A49: Muiden tuloslaskelman erien on oletettu edellisvuoden mukaisesti, mutta käyttäjä voi muokata niitä haluamikseen.
A50: Rahoituslaskelma ja tase:
A51: Kehikossa tuloslaskelma "päätyy" taseen kertyneeseen yli-/alijäämään, jolloin voidaan tarkastella esim. milloin kunnan mahdollinen
A52: taseen alijäämä tulisi katetuksi valituilla tuloslaskelman kasvuoletuksilla (vrt. kuntalaki ja alijäämän kattamisvelvollisuus).
A54: Investoinnit ja niihin liittyvät rahoitusosuudet sekä pysyvien vastaavien luovutustulot ovat lähtökohtaisesti viimeksi toteutuneen
A55: tilinpäätöksen mukaiset, mutta ne ovat myös muutettavissa.
A57: Kehikossa ns. nettorahoitustarve katetaan joko lainanlisäyksellä tai/ja rahavaroilla. Käyttäjä voi valita prosenttiosuuden,
A58: jolla rahavaroja käytetään nettorahoitustarpeen kattamiseen. Mikäli rahavaroja ei ole, tarve katetaan kokonaisuudessaan lainanlisäyksellä.
A59: Nettorahoitustarve voi olla myös positiivinen, jolloin "ylijäämä" lisää vastaavasti rahavaroja.
A61: Nettorahoitustarve muodostuu seuraavista eristä = Vuosikate + satunnaiset erät (netto) - tilikauden verot + tulorahoituksen korjauserät
A62: + investoinnit (netto) + antolainasaamisten muutokset (netto) + lainanlyhennykset.
A63: Nettorahoitustarve voi olla myös positiivinen, jolloin "ylijäämä" kasvattaa vastaavasti rahavaroja.
A65: Lainamäärää lyhennetään valitun keskimääräisen lyhennysajan (kuoletusaika) mukaan eli jos keskimääräinen lainanmaksuaika
A66: on esimerkiksi 8 vuotta, niin vuosittainen lainanlyhennys on 1/8 (12,5 %) edellisvuoden lainamäärästä. Lainanlyhennys
A67: tehdään aina, vaikka bruttorahoitustarve olisi negatiivinen.

Sheet KEHIKKO
A1: VM/KAO/vs | H1: VALITSE KUNTA: | L1: 2025-09-29
A2: KUNTAKONSERNIN TALOUDEN SUUNNITTELUKEHIKKO | J2: Kunnat vuoden 2024 kuntajaolla
A3: Muokkaa vaaleansinisellä olevia kohtia.
A4: =INDEX(pohjatiedot!$B$3:$B$296,KEHIKKO!$A$5) -> KOKO MAA (Manner-Suomi)
A5: 95 | B5: TP 2023 | C5: TP 2024 | D5: 2025 | E5: 2026 | F5: 2027 | G5: 2028 | H5: 2029 | I5: 2030 | J5: 2031 | K5: 2032 | L5: 2033 | M5: 2034
A6: TULOSLASKELMA | B6: 1000 | C6: 1000 | D6: 1000 | E6: 1000 | F6: 1000 | G6: 1000 | H6: 1000 | I6: 1000 | J6: 1000 | K6: 1000 | L6: 1000 | M6: 1000
A8: Asukasluku 31.12. | B8: =VLOOKUP($A$4,pohjatiedot!$B$3:$CE$296,2) -> 5573310 | C8: =VLOOKUP($A$4,pohjatiedot!$B$3:$CE$296,41) -> 5605317 | D8: =VLOOKUP($A$4,väestöennuste!$A$7:$N$302,5) -> 5634755.099 | E8: =VLOOKUP($A$4,väestöennuste!$A$7:$N$302,6) -> 5659124.582 | F8: =VLOOKUP($A$4,väestöennuste!$A$7:$N$302,7) -> 5683205.115 | G8: =VLOOKUP($A$4,väestöennuste!$A$7:$N$302,8) -> 5706993.65 | H8: =VLOOKUP($A$4,väestöennuste!$A$7:$N$302,9) -> 5730436.021 | I8: =VLOOKUP($A$4,väestöennuste!$A$7:$N$302,10) -> 5753520.828 | J8: =VLOOKUP($A$4,väestöennuste!$A$7:$N$302,11) -> 5776185.37 | K8: =VLOOKUP($A$4,väestöennuste!$A$7:$N$302,12) -> 5798417.936 | L8: =VLOOKUP($A$4,väestöennuste!$A$7:$N$302,13) -> 5820261.765 | M8: =VLOOKUP($A$4,väestöennuste!$A$7:$N$302,14) -> 5841671.38 | O8: Väestöennuste TK 9/2024; toteumakorjattu 2024 tiedoilla
A9: Veroprosentti | B9: =VLOOKUP($A$4,pohjatiedot!$B$3:$CE$296,3) -> 7.33 | C9: =VLOOKUP($A$4,pohjatiedot!$B$3:$CE$296,42) -> 7.466141249 | D9: =VLOOKUP($A$4,pohjatiedot!$B$3:$CH$296,82) -> 7.52942733 | E9: =D9 -> 7.52942733 | F9: =E9 -> 7.52942733 | G9: =F9 -> 7.52942733 | H9: =G9 -> 7.52942733 | I9: =H9 -> 7.52942733 | J9: =I9 -> 7.52942733 | K9: =J9 -> 7.52942733 | L9: =K9 -> 7.52942733 | M9: =L9 -> 7.52942733
A10: vero-% yksikön tuotto | B10: =B16/B9 -> 1394164.335 | C10: =C16/C9 -> 1323762.712 | D10: =D16/D9 -> 1335173.885 | E10: =E16/E9 -> 1415716.173 | F10: 1466717.457 | G10: 1532290.537 | H10: 1595479.142 | I10: 1635366.12 | J10: 1676250.273 | K10: 1718156.53 | L10: 1761110.443 | M10: 1805138.204
A11: → noston vaikutus | D11: =(D9-C9)*C10 -> 83775.75387 | E11: =(E9-D9)*D10 -> 0 | F11: =(F9-E9)*E10 -> 0 | G11: =(G9-F9)*F10 -> 0 | H11: 0 | I11: 0 | J11: 0 | K11: 0 | L11: 0 | M11: 0
A12: Toimintatuotot | B12: =VLOOKUP($A$4,pohjatiedot!$B$3:$CE$296,6) -> 16919176.56 | C12: =VLOOKUP($A$4,pohjatiedot!$B$3:$CE$296,45) -> 16601235.46 | D12: =C12*(1+D72/100) -> 16357250.88 | E12: =D12*(1+E72/100) -> 16248610.49 | F12: =E12*(1+F72/100) -> 16577231.18 | G12: =F12*(1+G72/100) -> 16850729.75 | H12: =G12*(1+H72/100) -> 17003097.21 | I12: 17173128.18 | J12: 17344859.46 | K12: 17518308.06 | L12: 17693491.14 | M12: 17870426.05 | O12: Näiden erien muutos-
A13: Toimintakulut | B13: =VLOOKUP($A$4,pohjatiedot!$B$3:$CE$296,7) -> 29260015.11 | C13: =VLOOKUP($A$4,pohjatiedot!$B$3:$CE$296,46) -> 29026603.9 | D13: =C13*(1+D73/100) -> 30434594.99 | E13: 31335317.08 | F13: =E13*(1+F73/100) -> 32186177.11 | G13: =F13*(1+G73/100) -> 32967762.92 | H13: 33575262.82 | I13: 34246768.07 | J13: 34931703.43 | K13: 35630337.5 | L13: 36342944.25 | M13: 37069803.14 | O13: prosentit syötetään
A14: Osuus osakk.yht. voitoista/tappioista | B14: =VLOOKUP($A$4,pohjatiedot!$B$3:$CE$296,8) -> 66903.97212 | C14: =VLOOKUP($A$4,pohjatiedot!$B$3:$CE$296,47) -> 90620.79527 | D14: =C14 -> 90620.79527 | E14: =D14 -> 90620.79527 | F14: =E14 -> 90620.79527 | G14: 90620.79527 | H14: 90620.79527 | I14: 90620.79527 | J14: 90620.79527 | K14: 90620.79527 | L14: 90620.79527 | M14: 90620.79527 | O14: alla olevaan taulukkoon
A15: Toimintakate | B15: =B12-B13+B14 -> -12273934.58 | C15: =C12-C13+C14 -> -12334747.65 | D15: =D12-D13+D14 -> -13986723.31 | E15: =E12-E13+E14 -> -14996085.8 | F15: -15518325.13 | G15: -16026412.37 | H15: -16481544.81 | I15: -16983019.09 | J15: -17496223.17 | K15: -18021408.65 | L15: -18558832.32 | M15: -19108756.29
A16: Kunnallisverot | B16: =VLOOKUP($A$4,pohjatiedot!$B$3:$CE$296,9) -> 10219224.57 | C16: =VLOOKUP($A$4,pohjatiedot!$B$3:$CE$296,48) -> 9883399.386 | D16: =(C16+D11)*(1+D75/100) -> 10053094.74 | E16: =(D16+E11)*(1+E75/100) -> 10659532.04 | F16: =(E16+F11)*(1+F75/100) -> 11043542.51 | G16: =(F16+G11)*(1+G75/100) -> 11537270.25 | H16: 12013044.25 | I16: 12313370.36 | J16: 12621204.62 | K16: 12936734.73 | L16: 13260153.1 | M16: 13591656.93
A17: Yhteisöverot | B17: =VLOOKUP($A$4,pohjatiedot!$B$3:$CE$296,10) -> 2052377.409 | C17: =VLOOKUP($A$4,pohjatiedot!$B$3:$CE$296,49) -> 1755313.462 | D17: =C17*(1+D76/100) -> 1625463.09 | E17: =D17*(1+E76/100) -> 1726744.235 | F17: =E17*(1+F76/100) -> 1826039.476 | G17: 1900510.906 | H17: 1967038.717 | I17: 2016214.685 | J17: 2066620.053 | K17: 2118285.554 | L17: 2171242.693 | M17: 2225523.76
A18: Kiinteistöverot | B18: =VLOOKUP($A$4,pohjatiedot!$B$3:$CE$296,11) -> 2182937.772 | C18: =VLOOKUP($A$4,pohjatiedot!$B$3:$CE$296,50) -> 2329363.822 | D18: =C18*(1+D77/100) -> 2347332.09 | E18: =D18*(1+E77/100) -> 2374278.504 | F18: =E18*(1+F77/100) -> 2423181.256 | G18: 2506016.53 | H18: 2572883.558 | I18: 2637205.647 | J18: 2703135.788 | K18: 2770714.182 | L18: 2839982.037 | M18: 2910981.588
A19: Verotulot | B19: =VLOOKUP($A$4,pohjatiedot!$B$3:$CE$296,12) -> 14454539.58 | C19: =VLOOKUP($A$4,pohjatiedot!$B$3:$CE$296,51) -> 13857804.9 | D19: =SUM(D16:D18) -> 14025889.92 | E19: 14760554.78 | F19: 15292763.24 | G19: 15943797.68 | H19: 16552966.53 | I19: 16966790.69 | J19: 17390960.46 | K19: 17825734.47 | L19: 18271377.83 | M19: 18728162.28
A20: Valtionosuudet | B20: =VLOOKUP($A$4,pohjatiedot!$B$3:$CE$296,13) -> 4916190.831 | C20: =VLOOKUP($A$4,pohjatiedot!$B$3:$CE$296,52) -> 4761715.409 | D20: =C20*(1+D78/100) -> 5662256.863 | E20: =D20*(1+E78/100) -> 5869483.124 | F20: =E20*(1+F78/100) -> 5801982.983 | G20: =F20*(1+G78/100) -> 6288114.524 | H20: =G20*(1+H78/100) -> 6501930.145 | I20: 6599459.097 | J20: 6698450.984 | K20: 6798927.748 | L20: 6900911.665 | M20: 7004425.34
A22: Korkotuotot | B22: =VLOOKUP($A$4,pohjatiedot!$B$3:$CE$296,14) -> 195304.223 | C22: =VLOOKUP($A$4,pohjatiedot!$B$3:$CE$296,53) -> 261124.4381 | D22: =C22 -> 261124.4381 | E22: =D22 -> 261124.4381 | F22: 261124.4381 | G22: 261124.4381 | H22: 261124.4381 | I22: 261124.4381 | J22: 261124.4381 | K22: 261124.4381 | L22: 261124.4381 | M22: 261124.4381
A23: Korkokulut | B23: =VLOOKUP($A$4,pohjatiedot!$B$3:$CE$296,15) -> 827885.8903 | C23: =VLOOKUP($A$4,pohjatiedot!$B$3:$CE$296,54) -> 993890.558 | D23: =($H$81/100)*C63 -> 1016545.349 | E23: =($H$81/100)*D63 -> 1059430.854 | F23: 1108269.859 | G23: 1156888.432 | H23: 1192840.554 | I23: 1220374.708 | J23: 1248212.34 | K23: 1275979.098 | L23: 1303859.656 | M23: 1331758.138
A24: Muut rahoitustuotot | B24: =VLOOKUP($A$4,pohjatiedot!$B$3:$CE$296,16) -> 408926.2933 | C24: =VLOOKUP($A$4,pohjatiedot!$B$3:$CE$296,55) -> 373451.4365 | D24: =C24 -> 373451.4365 | E24: =D24 -> 373451.4365 | F24: 373451.4365 | G24: 373451.4365 | H24: 373451.4365 | I24: 373451.4365 | J24: 373451.4365 | K24: 373451.4365 | L24: 373451.4365 | M24: 373451.4365
A25: Muut rahoituskulut | B25: =VLOOKUP($A$4,pohjatiedot!$B$3:$CE$296,17) -> 104195.5915 | C25: =VLOOKUP($A$4,pohjatiedot!$B$3:$CE$296,56) -> 65995.38445 | D25: =C25 -> 65995.38445 | E25: =D25 -> 65995.38445 | F25: 65995.38445 | G25: 65995.38445 | H25: 65995.38445 | I25: 65995.38445 | J25: 65995.38445 | K25: 65995.38445 | L25: 65995.38445 | M25: 65995.38445
A26: VUOSIKATE | B26: =VLOOKUP($A$4,pohjatiedot!$B$3:$CE$296,18) -> 6696673.917 | C26: =VLOOKUP($A$4,pohjatiedot!$B$3:$CE$296,57) -> 5859462.59 | D26: =D15+D19+D20+D22-D23+D24-D25 -> 5253458.608 | E26: =E15+E19+E20+E22-E23+E24-E25 -> 5143101.745 | F26: 5036731.723 | G26: 5617191.893 | H26: 5949091.799 | I26: 5931436.476 | J26: 5913556.418 | K26: 5895854.963 | L26: 5878178.013 | M26: 5860653.678
A27: €/asukas | B27: =1000*B26/B8 -> 1201.561355 | C27: =1000*C26/C8 -> 1045.340092 | D27: =1000*D26/D8 -> 932.3313109 | E27: =1000*E26/E8 -> 908.8157843 | F27: 886.2484497 | G27: 984.2646124 | H27: 1038.156918 | I27: 1030.922917 | J27: 1023.782313 | K27: 1016.804071 | L27: 1009.950798 | M27: 1003.249464
A28: Poistot ja arvonalent. | B28: =VLOOKUP($A$4,pohjatiedot!$B$3:$CE$296,20) -> 4586979.275 | C28: =VLOOKUP($A$4,pohjatiedot!$B$3:$CE$296,59) -> 4622384.996 | D28: =C28*$O$28 -> 4645496.921 | E28: =D28*$O$28 -> 4668724.406 | F28: 4692068.028 | G28: 4715528.368 | H28: 4739106.01 | I28: 4762801.54 | J28: 4786615.548 | K28: 4810548.625 | L28: 4834601.368 | M28: 4858774.375 | O28: 1.005 | P28: kasvuoletus
A29: Satunnaiset erät, netto | B29: =VLOOKUP($A$4,pohjatiedot!$B$3:$CE$296,21) -> -3875.05721 | C29: =VLOOKUP($A$4,pohjatiedot!$B$3:$CE$296,60) -> 261761.3807 | D29: 0 | E29: 0 | F29: 0 | G29: 0 | H29: 0 | I29: 0 | J29: 0 | K29: 0 | L29: 0 | M29: 0
A31: Tilikauden tulos | B31: =VLOOKUP($A$4,pohjatiedot!$B$3:$CE$296,23) -> 2105819.585 | C31: =VLOOKUP($A$4,pohjatiedot!$B$3:$CE$296,62) -> 1367975.077 | D31: =D26-D28+D29-D30 -> 607961.687 | E31: =E26-E28+E29-E30 -> 474377.3393 | F31: =F26-F28+F29-F30 -> 344663.6949 | G31: 901663.5251 | H31: 1209985.79 | I31: 1168634.936 | J31: 1126940.871 | K31: 1085306.337 | L31: 1043576.644 | M31: 1001879.303
A32: Tilinpäätössiirrot | B32: =VLOOKUP($A$4,pohjatiedot!$B$3:$CE$296,24) -> -36090.31982 | C32: =VLOOKUP($A$4,pohjatiedot!$B$3:$CE$296,63) -> -24637.52629 | D32: =C32 -> -24637.52629 | E32: -24637.52629 | F32: -24637.52629 | G32: -24637.52629 | H32: -24637.52629 | I32: -24637.52629 | J32: -24637.52629 | K32: -24637.52629 | L32: -24637.52629 | M32: -24637.52629
A33: Tilikauden verot | B33: =VLOOKUP($A$4,pohjatiedot!$B$3:$CE$296,25) -> 107491.2585 | C33: =VLOOKUP($A$4,pohjatiedot!$B$3:$CE$296,64) -> 186496.0189 | D33: =C33 -> 186496.0189 | E33: 186496.0189 | F33: 186496.0189 | G33: 186496.0189 | H33: 186496.0189 | I33: 186496.0189 | J33: 186496.0189 | K33: 186496.0189 | L33: 186496.0189 | M33: 186496.0189
A34: Laskennalliset verot | B34: =VLOOKUP($A$4,pohjatiedot!$B$3:$CE$296,26) -> -38025.8439 | C34: =VLOOKUP($A$4,pohjatiedot!$B$3:$CE$296,65) -> -32300.44856 | D34: -32300.44856 | E34: -32300.44856 | F34: -32300.44856 | G34: -32300.44856 | H34: -32300.44856 | I34: -32300.44856 | J34: -32300.44856 | K34: -32300.44856 | L34: -32300.44856 | M34: -32300.44856
A35: Vähemmistöosuudet | B35: =VLOOKUP($A$4,pohjatiedot!$B$3:$CE$296,27) -> -12460.72113 | C35: =VLOOKUP($A$4,pohjatiedot!$B$3:$CE$296,66) -> -25863.71638 | D35: -25863.71638 | E35: -25863.71638 | F35: -25863.71638 | G35: -25863.71638 | H35: -25863.71638 | I35: -25863.71638 | J35: -25863.71638 | K35: -25863.71638 | L35: -25863.71638 | M35: -25863.71638
A36: Tilikauden yli-/alijäämä | B36: =VLOOKUP($A$4,pohjatiedot!$B$3:$CE$296,28) -> 1911786.441 | C36: =VLOOKUP($A$4,pohjatiedot!$B$3:$CE$296,67) -> 1191925.376 | D36: =D31+D32+D33+D34 -> 737519.731 | E36: =E31+E32+E33+E34 -> 603935.3833 | F36: 474221.7389 | G36: 1031221.569 | H36: 1339543.834 | I36: 1298192.98 | J36: 1256498.915 | K36: 1214864.381 | L36: 1173134.688 | M36: 1131437.347
A37: TASEESTA
A38: Kertynyt yli-/alijäämä | B38: =VLOOKUP($A$4,pohjatiedot!$B$3:$CE$296,30) -> 19702940.47 | C38: =VLOOKUP($A$4,pohjatiedot!$B$3:$CE$296,69) -> 20814859.09 | D38: =C38+D36 -> 21552378.82 | E38: 22156314.2 | F38: 22630535.94 | G38: 23661757.51 | H38: 25001301.34 | I38: 26299494.32 | J38: 27555993.24 | K38: 28770857.62 | L38: 29943992.31 | M38: 31075429.66
A39: €/asukas | B39: =1000*B38/B8 -> 3535.231392 | C39: =1000*C38/C8 -> 3713.413369 | D39: 3824.900717 | E39: 3915.148692 | F39: 3982.002318 | G39: 4146.098447 | H39: 4362.896864 | I39: 4571.026178 | J39: 4770.621349 | K39: 4961.846134 | L39: 5144.784465 | M39: 5319.612767
A41: RAHOITUSLASKELMAN JA TASEEN TIETOJA (sisältäen nettorahoitustarpeen ja sen vajeen kattamisoletukset)
A42: Vuosikate | B42: =B26 -> 6696673.917 | C42: =C26 -> 5859462.59 | D42: =D26 -> 5253458.608 | E42: =E26 -> 5143101.745 | F42: 5036731.723 | G42: 5617191.893 | H42: 5949091.799 | I42: 5931436.476 | J42: 5913556.418 | K42: 5895854.963 | L42: 5878178.013 | M42: 5860653.678
A43: Satunnaiset erät, netto | B43: =B29 -> -3875.05721 | C43: =C29 -> 261761.3807 | D43: =D29-D30 -> 0 | E43: 0 | F43: 0 | G43: 0 | H43: 0 | I43: 0 | J43: 0 | K43: 0 | L43: 0 | M43: 0
A44: Tilikauden verot | B44: =B33 -> 107491.2585 | C44: =C33 -> 186496.0189 | D44: =C44 -> 186496.0189 | E44: =D44 -> 186496.0189 | F44: 186496.0189 | G44: 186496.0189 | H44: 186496.0189 | I44: 186496.0189 | J44: 186496.0189 | K44: 186496.0189 | L44: 186496.0189 | M44: 186496.0189
A45: Tulorahoituksen korjauserät | B45: =VLOOKUP($A$4,pohjatiedot!$B$3:$CW$296,90) -> -380007.7983 | C45: =VLOOKUP($A$4,pohjatiedot!$B$3:$CU$296,96) -> -480145.6367 | D45: =C45 -> -480145.6367 | E45: =D45 -> -480145.6367 | F45: =E45 -> -480145.6367 | G45: -480145.6367 | H45: -480145.6367 | I45: -480145.6367 | J45: -480145.6367 | K45: -480145.6367 | L45: -480145.6367 | M45: -480145.6367
A46: = 1. Toiminnan rahavirta | B46: =B42+B43-B44+B45 -> 6205299.803 | C46: =C42+C43-C44+C45 -> 5454582.315 | D46: =D42+D43-D44+D45 -> 4586816.953 | E46: =E42+E43-E44+E45 -> 4476460.089 | F46: 4370090.067 | G46: 4950550.237 | H46: 5282450.144 | I46: 5264794.82 | J46: 5246914.763 | K46: 5229213.307 | L46: 5211536.357 | M46: 5194012.023
A47: Investointimenot | B47: =VLOOKUP($A$4,pohjatiedot!$B$3:$CV$296,91) -> -7896284.909 | C47: =VLOOKUP($A$4,pohjatiedot!$B$3:$CV$296,97) -> -8514544.863 | D47: =AVERAGE(B47:C47) -> -8205414.886 | E47: =AVERAGE(C47:D47) -> -8359979.875 | F47: -8282697.38 | G47: -8321338.627 | H47: -8302018.004 | I47: -8311678.316 | J47: -8306848.16 | K47: -8309263.238 | L47: -8308055.699 | M47: -8308659.468 | O47: oletuksena 2 viimeisimmän vuoden keskiarvo -> syötä oma arvio | T47: Arvo negatiivisena
A48: Rahoitusosuudet investointeihin | B48: =VLOOKUP($A$4,pohjatiedot!$B$3:$CV$296,92) -> 161977.6939 | C48: =VLOOKUP($A$4,pohjatiedot!$B$3:$CV$296,98) -> 152263.6017 | D48: =AVERAGE(B48:C48) -> 157120.6478 | E48: 154692.1247 | F48: 155906.3863 | G48: 155299.2555 | H48: 155602.8209 | I48: 155451.0382 | J48: 155526.9295 | K48: 155488.9839 | L48: 155507.9567 | M48: 155498.4703 | O48: oletuksena 2 viimeisimmän vuoden keskiarvo -> syötä oma arvio
A49: Inv.hyödykkeiden luovutustulot | B49: =VLOOKUP($A$4,pohjatiedot!$B$3:$CV$296,93) -> 1032857.185 | C49: =VLOOKUP($A$4,pohjatiedot!$B$3:$CV$296,99) -> 948557.6652 | D49: 990707.4249 | E49: 969632.5451 | F49: 980169.985 | G49: 974901.265 | H49: 977535.625 | I49: 976218.445 | J49: 976877.035 | K49: 976547.74 | L49: 976712.3875 | M49: 976630.0638 | O49: oletuksena 2 viimeisimmän vuoden keskiarvo -> syötä oma arvio
A50: = 2. Nettoinvestoinnit | B50: =B49+B48+B47 -> -6701450.031 | C50: =C49+C48+C47 -> -7413723.596 | D50: =D49+D48+D47 -> -7057586.813 | E50: =E49+E48+E47 -> -7235655.205 | F50: -7146621.009 | G50: -7191138.107 | H50: -7168879.558 | I50: -7180008.832 | J50: -7174444.195 | K50: -7177226.514 | L50: -7175835.355 | M50: -7176530.934
A51: €/asukas | B51: =1000*B50/B8 -> -1202.418317 | C51: -1322.62343 | D51: -1252.509948 | E51: -1278.582067 | F51: -1257.498342 | G51: -1260.057142 | H51: -1251.018166 | I51: -1247.933056 | J51: -1242.073053 | K51: -1237.790479 | L51: -1232.905949 | M51: -1228.506444
A52: Vuosikate-nettoinv. | B52: =B26+B50 -> -4776.11422 | C52: -1554261.006 | D52: -1804128.205 | E52: -2092553.46 | F52: -2109889.286 | G52: -1573946.214 | H52: -1219787.759 | I52: -1248572.357 | J52: -1260887.777 | K52: -1281371.551 | L52: -1297657.342 | M52: -1315877.256
A53: €/asukas | B53: =1000*B52/B8 -> -0.8569618808 | C53: -277.2833376 | D53: -320.1786366 | E53: -369.7662827 | F53: -371.2498922 | G53: -275.7925294 | H53: -212.8612472 | I53: -217.0101394 | J53: -218.2907397 | K53: -220.9864079 | L53: -222.9551512 | M53: -225.2569805
A54: = 3. Toim. ja inv. rahavirta
A55: (1. Tulorahoitus+ 2.Nettoinv.) | B55: =B46+B50 -> -496150.2282 | C55: =C46+C50 -> -1959141.281 | D55: =D46+D50 -> -2470769.861 | E55: =E46+E50 -> -2759195.115 | F55: -2776530.942 | G55: -2240587.869 | H55: -1886429.414 | I55: -1915214.012 | J55: -1927529.432 | K55: -1948013.207 | L55: -1964298.997 | M55: -1982518.912
A56: 4. Nettorahoitustarve
A57: (= 3. Toim. ja inv.rahav. + antolainasaam.
A58: muutokset - lainanlyh.) | D58: =D55-D61+D59 -> -7553496.608 | E58: =E55-E61+E59 -> -8056349.388 | F58: -8317880.236 | G58: -8025030.029 | H58: -7850632.182 | I58: -8017087.554 | J58: -8168591.132 | K58: -8327908.696 | L58: -8483597.279 | M58: -8641309.602
A59: Antolainauksen muutokset | B59: =VLOOKUP($A$4,pohjatiedot!$B$3:$CW$296,94) -> 26766.09815 | C59: =VLOOKUP($A$4,pohjatiedot!$B$3:$CW$296,100) -> 15822.53948 | D59: 0 | E59: =D59 -> 0 | F59: 0 | G59: 0 | H59: 0 | I59: 0 | J59: 0 | K59: 0 | L59: 0 | M59: 0 | O59: Positiivinen arvo=nettovähennys.Oletuksena nolla -> syötä oma arvio
A60: Lainamäärän muutos; | C60: =C63-B63 -> 1826948.05 | D60: =D62-D61 -> 1715420.2 | E60: =E62-E61 -> 1953560.177 | F60: 1944742.918 | G60: 1438084.867 | H60: 1101366.196 | I60: 1113505.257 | J60: 1110670.319 | K60: 1115222.337 | L60: 1115939.27 | M60: 1314720.633
A61: Lainanlyhennykset | D61: =IF(C63>0,(C63*(1/$H$80)),IF(C63=0,0)) -> 5082726.747 | E61: =IF(D63>0,(D63*(1/$H$80)),IF(D63=0,0)) -> 5297154.272 | F61: 5541349.295 | G61: 5784442.159 | H61: 5964202.768 | I61: 6101873.542 | J61: 6241061.699 | K61: 6379895.489 | L61: 6519298.281 | M61: 6658790.69
A62: Lainanlisäystarve | D62: =-(D58+(C65-D65)) -> 6798146.947 | E62: =-(E58+(D65-E65)) -> 7250714.449 | F62: 7486092.213 | G62: 7222527.026 | H62: 7065568.964 | I62: 7215378.799 | J62: 7351732.018 | K62: 7495117.826 | L62: 7635237.551 | M62: 7973511.323
A63: Lainakanta | B63: =VLOOKUP($A$4,pohjatiedot!$B$3:$CE$296,38) -> 38834865.93 | C63: =VLOOKUP($A$4,pohjatiedot!$B$3:$CE$296,77) -> 40661813.98 | D63: =C63-D61+D62 -> 42377234.18 | E63: =D63-E61+E62 -> 44330794.36 | F63: 46275537.27 | G63: 47713622.14 | H63: 48814988.34 | I63: 49928493.59 | J63: 51039163.91 | K63: 52154386.25 | L63: 53270325.52 | M63: 54585046.15
A64: €/asukas | B64: =1000*B63/B8 -> 6968.007509 | C64: 7254.150654 | D64: =1000*D63/D8 -> 7520.687844 | E64: 7833.507412 | F64: 8142.506972 | G64: 8360.55287 | H64: 8518.546959 | I64: 8677.902641 | J64: 8836.136766 | K64: 8994.589011 | L64: 9152.56524 | M64: 9344.080247
A65: Rahavarat | B65: =VLOOKUP($A$4,pohjatiedot!$B$3:$CE$296,36) -> 8188603.326 | C65: =VLOOKUP($A$4,pohjatiedot!$B$3:$CE$296,75) -> 7947855.589 | D65: =IF(D58>0,(C65+D58),IF(C65+(D58*$H$82)<0,0,IF(C65+(D58*$H$82)>0,C65+(D58*$H$82)))) -> 7192505.929 | E65: =IF(E58>0,(D65+E58),IF(D65+(E58*$H$82)<0,0,IF(D65+(E58*$H$82)>0,D65+(E58*$H$82)))) -> 6386870.99 | F65: 5555082.966 | G65: 4752579.963 | H65: 3967516.745 | I65: 3165807.99 | J65: 2348948.877 | K65: 1516158.007 | L65: 667798.2791 | M65: 0
A66: €/asukas | B66: =1000*B65/B8 -> 1469.253159 | C66: 1417.913668 | D66: 1276.454043 | E66: 1128.596994 | F66: 977.4560047 | G66: 832.7641933 | H66: 692.3586148 | I66: 550.2383817 | J66: 406.6609235 | K66: 261.4778762 | L66: 114.7368119 | M66: 0
A67: Nettovelka (rahat-lainat) | B67: =B65-B63 -> -30646262.6 | C67: =C65-C63 -> -32713958.39 | D67: -35184728.25 | E67: -37943923.37 | F67: -40720454.31 | G67: -42961042.18 | H67: -44847471.59 | I67: -46762685.6 | J67: -48690215.04 | K67: -50638228.24 | L67: -52602527.24 | M67: -54585046.15
A68: €/asukas | B68: =1000*B67/B8 -> -5498.754349 | C68: -5836.236985 | D68: -6244.233801 | E68: -6704.910418 | F68: -7165.050967 | G68: -7527.788677 | H68: -7826.188344 | I68: -8127.66426 | J68: -8429.475842 | K68: -8733.111135 | L68: -9037.828428 | M68: -9344.080247
A70: TULOSLASKELMAN ERIEN KASVUPROSENTIT: | O70: Syötä muutos-
A71: Muutos ed. vuodesta, %: | C71: 2023/2024 | D71: SYÖTÄ HALUAMASI KASVUPROSENTIT! | I71: Syötä oma arvio: | O71: prosentit (muuta oletusarvoja tarpeen mukaan):
A72: Toimintatuotot | C72: =((C12/B12)-1)*100 -> -1.879176003 | D72: -1.469677207 | E72: -0.6641726954 | F72: 2.022454123 | G72: 1.649844668 | H72: 0.9042187885 | I72: 1 | J72: =I72 -> 1 | K72: 1 | L72: 1 | M72: 1 | O72: KTO syksy2025 koko maan muutos 2029 saakka -> syötä oma tarkempi arvio!
A73: Toimintakulut | C73: =((C13/B13)-1)*100 -> -0.7977139145 | D73: 4.850691781 | E73: 2.959533683 | F73: 2.715338812 | G73: 2.428327552 | H73: 1.8427089 | I73: 2 | J73: 2 | K73: 2 | L73: 2 | M73: 2 | O73: KTO syksy2025 koko maan muutos 2029 saakka -> syötä oma tarkempi arvio!
A74: Toimintakate | C74: =((C15/B15)-1)*100 -> 0.4954651696 | D74: =((D15/C15)-1)*100 -> 13.39286145 | E74: =((E15/D15)-1)*100 -> 7.216575758 | F74: 3.482504307 | G74: 3.274111334 | H74: 2.839889717 | I74: 3.042641269 | J74: 3.021865999 | K74: 3.001707676 | L74: 2.982140186 | M74: 2.963138867 | O74: ÄLÄ MUUTA! Muodostuu toimintatuotoista ja -kuluista
A75: Kunnallisverot | C75: =((C16/B16)-1)*100 -> -3.286210086 | D75: 0.8620255725 | E75: 6.032344479 | F75: 3.60250772 | G75: 4.470736994 | H75: 4.123800467 | I75: 2.5 | J75: 2.5 | K75: 2.5 | L75: 2.5 | M75: 2.5 | O75: KTO syksy 2025 koko maan muutos 2029 saakka -> syötä arvio tästä eteenpäin
A76: Yhteisöverot | C76: =((C17/B17)-1)*100 -> -14.47413844 | D76: -7.397560319 | E76: 6.230910202 | F76: 5.750431282 | G76: 4.078303426 | H76: 3.500522466 | I76: 2.5 | J76: 2.5 | K76: 2.5 | L76: 2.5 | M76: 2.5 | O76: KTO syksy 2025 koko maan muutos 2029 saakka -> syötä arvio tästä eteenpäin
A77: Kiinteistöverot | C77: =((C18/B18)-1)*100 -> 6.707751901 | D77: 0.7713809278 | E77: 1.147959184 | F77: 2.059688945 | G77: 3.4184514 | H77: 2.668259658 | I77: 2.5 | J77: 2.5 | K77: 2.5 | L77: 2.5 | M77: 2.5 | O77: KTO syksy 2025 koko maan muutos 2029 saakka -> syötä arvio tästä eteenpäin
A78: Valtionosuudet (pl. hark.var.) | C78: =((C20/B20)-1)*100 -> -3.14217708 | D78: 18.91212256 | E78: 3.659782058 | F78: -1.150018495 | G78: 8.378713663 | H78: 3.400313729 | I78: 1.5 | J78: 1.5 | K78: 1.5 | L78: 1.5 | M78: 1.5 | O78: KTO syksy 2025 koko maan muutos 2029 saakka -> syötä arvio tästä eteenpäin
A79: TAUSTAMUUTTUJAT:
A80: VALITSE KESKIMÄÄR. LAINANLYHENNYSAIKA (VUODET): | H80: 8 | I80: Esim. lainanlyhennysaika 8 vuotta, jolloin vuosilyhennys = 1/8 eli 12,5 % * lainamäärä
A81: VALITSE KESKIMÄÄR. KORKOKANTA (KORKOPROSENTTI): | H81: 2.5 | I81: Vaikutus korkomenoihin, ei korkotuloihin
A82: MIKÄ OSUUS (%) NETTORAHOITUSTARPEESTA KATETAAN RAHAVAROILLA? | H82: 0.1 | I82: Syötä prosenttiosuus, joka katetaan rahavaroista.
B88: =B5 -> TP 2023 | C88: =C5 -> TP 2024 | D88: =D5 -> 2025 | E88: 2026 | F88: 2027 | G88: 2028 | H88: 2029 | I88: 2030 | J88: 2031 | K88: 2032 | L88: 2033 | M88: 2034
A89: Vuosikate | B89: =B27 -> 1201.561355 | C89: =C27 -> 1045.340092 | D89: =D27 -> 932.3313109 | E89: 908.8157843 | F89: 886.2484497 | G89: 984.2646124 | H89: 1038.156918 | I89: 1030.922917 | J89: 1023.782313 | K89: 1016.804071 | L89: 1009.950798 | M89: 1003.249464
A90: Poistot ja arvonalent. | B90: =1000*B28/B8 -> 823.0260428 | C90: =1000*C28/C8 -> 824.6429232 | D90: =1000*D28/D8 -> 824.4363489 | E90: 824.9905685 | F90: 825.6024431 | G90: 826.2718792 | H90: 827.0061812 | I90: 827.8064305 | J90: 828.6810829 | K90: 829.6312336 | L90: 830.6501603 | M90: 831.7438725
A91: Nettoinvestoinnit | B91: =-1000*B50/B8 -> 1202.418317 | C91: 1322.62343 | D91: =-1000*D50/D8 -> 1252.509948 | E91: 1278.582067 | F91: 1257.498342 | G91: 1260.057142 | H91: 1251.018166 | I91: 1247.933056 | J91: 1242.073053 | K91: 1237.790479 | L91: 1232.905949 | M91: 1228.506444
B118: =B5 -> TP 2023 | C118: =C5 -> TP 2024 | D118: =D5 -> 2025 | E118: 2026 | F118: 2027 | G118: 2028 | H118: 2029 | I118: 2030 | J118: 2031 | K118: 2032 | L118: 2033 | M118: 2034
A119: Rahavarat | B119: =B66 -> 1469.253159 | C119: 1417.913668 | D119: =D66 -> 1276.454043 | E119: 1128.596994 | F119: 977.4560047 | G119: 832.7641933 | H119: 692.3586148 | I119: 550.2383817 | J119: 406.6609235 | K119: 261.4778762 | L119: 114.7368119 | M119: 0
A120: Lainakanta | B120: =B64 -> 6968.007509 | C120: =C64 -> 7254.150654 | D120: =D64 -> 7520.687844 | E120: 7833.507412 | F120: 8142.506972 | G120: 8360.55287 | H120: 8518.546959 | I120: 8677.902641 | J120: 8836.136766 | K120: 8994.589011 | L120: 9152.56524 | M120: 9344.080247
A121: Nettovelka | B121: =B120-B119 -> 5498.754349 | C121: =C120-C119 -> 5836.236985 | D121: 6244.233801 | E121: 6704.910418 | F121: 7165.050967 | G121: 7527.788677 | H121: 7826.188344 | I121: 8127.66426 | J121: 8429.475842 | K121: 8733.111135 | L121: 9037.828428 | M121: 9344.080247
B148: =B118 -> TP 2023 | C148: =C118 -> TP 2024 | D148: 2025 | E148: 2026 | F148: 2027 | G148: 2028 | H148: 2029 | I148: 2030 | J148: 2031 | K148: 2032 | L148: 2033 | M148: 2034
A149: Tilikauden yli-/alijäämä | B149: =(1000*B36)/B8 -> 343.0253191 | C149: =(1000*C36)/C8 -> 212.6419213 | D149: 130.8876283 | E149: 106.7188705 | F149: 83.44265767 | G149: 180.6943607 | H149: 233.7594956 | I149: 225.6345321 | J149: 217.5309195 | K149: 209.5165259 | L149: 201.5604685 | M149: 193.6838404
A150: Taseen kertynyt yli-/alijäämä | B150: =B39 -> 3535.231392 | C150: =C39 -> 3713.413369 | D150: 3824.900717 | E150: 3915.148692 | F150: 3982.002318 | G150: 4146.098447 | H150: 4362.896864 | I150: 4571.026178 | J150: 4770.621349 | K150: 4961.846134 | L150: 5144.784465 | M150: 5319.612767

Sheet pohjatiedot
C1: 202 | D1: 3 | E1: 4 | F1: 5 | G1: 6 | H1: 7 | I1: 8 | J1: 9 | K1: 10 | L1: 11 | M1: 12 | N1: 13 | O1: 14 | P1: 15 | Q1: 16 | R1: 17 | S1: 18 | T1: 19 | U1: 20 | V1: 21 | W1: 22 | X1: 23 | Y1: 24 | Z1: 25 | AA1: 26 | AB1: 27 | AC1: 28 | AD1: 29 | AE1: 30 | AF1: 31 | AG1: 32 | AH1: 33 | AI1: 34 | AJ1: 35 | AK1: 36 | AL1: 37 | AM1: 38 | AN1: 39 | AO1: 40 | AP1: 2024 | AQ1: 42 | AR1: 43 | AS1: 44 | AT1: 45 | AU1: 46 | AV1: 47 | AW1: 48 | AX1: 49 | AY1: 50 | AZ1: 51 | BA1: 52 | BB1: 53 | BC1: 54 | BD1: 55 | BE1: 56 | BF1: 57 | BG1: 58 | BH1: 59 | BI1: 60 | BJ1: 61 | BK1: 62 | BL1: 63 | BM1: 64 | BN1: 65 | BO1: 66 | BP1: 67 | BQ1: 68 | BR1: 69 | BS1: 70 | BT1: 71 | BU1: 72 | BV1: 73 | BW1: 74 | BX1: 75 | BY1: 76 | BZ1: 77 | CA1: 78 | CB1: 79 | CC1: 80 | CD1: 81 | CE1: vero-% | CF1: 83 | CG1: 84 | CH1: 85 | CI1: 86 | CJ1: 87 | CK1: 88 | CL1: 89 | CM1: 2023 | CN1: 91 | CO1: 92 | CP1: 93 | CQ1: 94 | CR1: 95 | CS1: 2024 | CT1: 97 | CU1: 98 | CV1: 99 | CW1: 100
A2: Kunta nro. | B2: Kunta | C2: Asukasluku | D2: Veroprosentti | G2: Toimintatuotot | H2: Toimintakulut | I2: Osuus osakkuusyhteisöjen voitoista/tappioista | J2: Kunnallisverot | K2: Yhteisöverot | L2: Kiinteistöverot | M2: Verotulot | N2: Valtionosuudet | O2: Korkotuotot | P2: Korkokulut | Q2: Muut rahoitustuotot | R2: Muut rahoituskulut | S2: VUOSIKATE | U2: Poistot ja arvonalent. | V2: Satunnaiset erät, netto | X2: Tlikauden tulos | Y2: Tilinpäätössiirrot | Z2: Tilikauden verot | AA2: Lask. verot | AB2: Vähemmintösiirrot | AC2: Tlikauden yli-/alijäämä | AE2: Kertynyt yli-/alijäämä | AH2: Nettoinv. | AI2: Vuosikate-nettoinv. | AK2: Rahavarat | AM2: Lainakanta | AP2: Asukasluku | AQ2: Veroprosentti | AT2: Toimintatuotot | AU2: Toimintakulut | AV2: Osuus osakkuusyhteisöjen voitoista/tappioista | AW2: Kunnallisverot | AX2: Yhteisöverot | AY2: Kiinteistöverot | AZ2: Verotulot | BA2: Valtionosuudet | BB2: Korkotuotot | BC2: Korkokulut | BD2: Muut rahoitustuotot | BE2: Muut rahoituskulut | BF2: VUOSIKATE | BH2: Poistot ja arvonalent. | BI2: Satunnaiset erät | BK2: Tlikauden tulos | BL2: Tilinpäätössiirrot | BM2: Tilikauden verot | BN2: Lask. verot | BO2: Vähemmistöosuudet | BP2: Tlikauden yli-/alijäämä | BR2: Kertynyt yli-/alijäämä | BU2: Nettoinv. | BV2: Vuosikate-nettoinv. | BX2: Rahavarat | BZ2: Lainakanta | CB2: Saamiset | CE2: 2025 | CM2: Tulorah.korjauserät | CN2: Investointimenot | CO2: Rahoitusos. inv.menoihin | CP2: Inv.hyödyk. luovutustulot | CQ2: Antolainauksen muutokset | CR2: Kotikuntakorv+elatustuen palautus, netto | CS2: Tulorah.korjauserät | CT2: Investointimenot | CU2: Rahoitusos. inv.menoihin | CV2: Inv.hyödyk. luovutustulot | CW2: antolainauksen muutokset
A3: 20 | B3: Akaa | C3: 16405 | D3: 9.36 | G3: 9398.52146 | H3: 52115.26068 | I3: 123.40158 | J3: 33084.79279 | K3: 1980.5847 | L3: 3880.72512 | M3: 38946.10261 | N3: 12622.80838 | O3: 519.646 | P3: 2288.60752 | Q3: 321.63056 | R3: 55.10593 | S3: 7473.13646 | U3: 6919.10133 | V3: 0 | X3: 554.03513 | Y3: 0.2212 | Z3: 0.40961 | AA3: -3.94 | AB3: 28.33539 | AC3: 578.24211 | AE3: -3425.12198 | AK3: 179.45281 | AM3: 97654.05581 | AP3: 16387 | AQ3: 9.9 | AT3: 10099.19094 | AU3: 50274.35952 | AV3: 172.57348 | AW3: 34690.17404 | AX3: 1683.82363 | AY3: 4059.31354 | AZ3: 40347.03206 | BA3: 8990.36926 | BB3: 614.70398 | BC3: 3075.82985 | BD3: 321.54705 | BE3: 43.08752 | BF3: 7152.13988 | BH3: 8138.98039 | BI3: 0 | BK3: -986.84051 | BL3: 0.2212 | BM3: 0.33514 | BN3: -33.228 | BO3: -5.80562 | BP3: -1025.8205 | BR3: -4185.26393 | BX3: 9554.09375 | BZ3: 104990.4946 | CE3: 9.9 | CM3: -119.79577 | CN3: -14064.54349 | CO3: 13.2425 | CP3: 164.53006 | CQ3: 420 | CS3: -385.69087 | CT3: -4553.434 | CU3: 166.06842 | CV3: 469.97508 | CW3: 0
A4: 5 | B4: Alajärvi | C4: 9113 | D4: 9.11 | G4: 20092.25541 | H4: 47311.96146 | I4: 132.46234 | J4: 13866.59931 | K4: 2299.96384 | L4: 2454.07861 | M4: 18620.64176 | N4: 17437.39241 | O4: 45.40315 | P4: 524.75119 | Q4: 204.5805 | R4: 21.58046 | S4: 8674.44246 | U4: 5022.6077 | V4: 0 | X4: 3651.83476 | Y4: 0 | Z4: 33.71389 | AA4: 2.8704 | AB4: 8.8975 | AC4: 3629.88877 | AE4: 13315.98142 | AK4: 8314.08886 | AM4: 30309.26426 | AP4: 9078 | AQ4: 9.1 | AT4: 20550.88577 | AU4: 47574.34508 | AV4: 139.81838 | AW4: 13800.59759 | AX4: 2274.80657 | AY4: 3522.22022 | AZ4: 19597.62438 | BA4: 16159.89157 | BB4: 60.44818 | BC4: 679.12434 | BD4: 171.85151 | BE4: 42.96246 | BF4: 8384.08791 | BH4: 5123.07613 | BI4: 0 | BK4: 3261.01178 | BL4: 0 | BM4: 93.26646 | BN4: 3.13473 | BO4: -8.39972 | BP4: 3209.11356 | BR4: 16957.82328 | BX4: 8734.65144 | BZ4: 26146.76879 | CE4: 9.1 | CM4: -193.74162 | CN4: -3050.91334 | CO4: 7.85639 | CP4: 110.55451 | CQ4: 48.2172 | CS4: -381.76373 | CT4: -4130.55126 | CU4: 121.19658 | CV4: 9.55311 | CW4: 6.8957
A5: 9 | B5: Alavieska | C5: 2437 | D5: 9.36 | G5: 3988.91765 | H5: 11747.9106 | I5: 12.06624 | J5: 3888.28253 | K5: 256.39553 | L5: 786.91356 | M5: 4931.59162 | N5: 4520.22015 | O5: 30.93572 | P5: 243.79505 | Q5: 246.1826 | R5: 59.81006 | S5: 1670.52621 | U5: 1247.41443 | V5: -10.54 | X5: 412.57178 | Y5: 1.29386 | Z5: 3.58458 | AA5: 0 | AB5: 0 | AC5: 410.28106 | AE5: 5893.37953 | AK5: 5316.22705 | AM5: 9042.18649 | AP5: 2410 | AQ5: 9.3 | AT5: 2908.76997 | AU5: 10510.11701 | AV5: 8.98973 | AW5: 3807.34207 | AX5: 227.81795 | AY5: 831.61473 | AZ5: 4857.36064 | BA5: 4529.96615 | BB5: 59.01354 | BC5: 332.95154 | BD5: 291.12012 | BE5: 2.52389 | BF5: 1809.62771 | BH5: 1094.72009 | BI5: 0 | BK5: 714.90762 | BL5: -1.79548 | BM5: 0.777 | BN5: 0 | BO5: 0 | BP5: 712.72364 | BR5: 6793.61774 | BX5: 6205.32199 | BZ5: 10887.28237 | CE5: 9.3 | CM5: -12.4168 | CN5: -1982.62184 | CO5: 25.14774 | CP5: 47.23636 | CQ5: 6.3 | CS5: -12.21634 | CT5: -2682.50903 | CU5: 423.64403 | CV5: 63.78657 | CW5: 1071.3
A6: 10 | B6: Alavus | C6: 10933 | D6: 8.61 | G6: 18086.03492 | H6: 44951.00135 | I6: 661.18295 | J6: 15177.96268 | K6: 2552.02798 | L6: 3162.53225 | M6: 20892.52291 | N6: 12378.599 | O6: 58.17233 | P6: 1617.72367 | Q6: 1587.69645 | R6: 140.67608 | S6: 6816.57521 | U6: 7360.66967 | V6: -221.17342 | X6: -765.26788 | Y6: 10 | Z6: 13.1194 | AA6: -13.438 | AB6: 2.98532 | AC6: -778.83996 | AE6: 23125.21512 | AK6: 30138.60622 | AM6: 79302.65598 | AP6: 10780 | AQ6: 9.6 | AT6: 17134.90929 | AU6: 43607.42176 | AV6: 95.14008 | AW6: 17227.63288 | AX6: 2001.51119 | AY6: 3382.98306 | AZ6: 22573.23774 | BA6: 12813.03094 | BB6: 45.81911 | BC6: 1859.23712 | BD6: 1284.46576 | BE6: 294.63056 | BF6: 8185.31348 | BH6: 6806.70056 | BI6: 0 | BK6: 1378.61292 | BL6: 0 | BM6: 11.13602 | BN6: -20.72 | BO6: 11.10548 | BP6: 1363.43039 | BR6: 24599.67746 | BX6: 25707.29834 | BZ6: 75246.87841 | CE6: 9.6 | CM6: -1242.28234 | CN6: -11953.5674 | CO6: 884.25894 | CP6: 2762.90714 | CQ6: 102.04414 | CS6: -329.1736 | CT6: -7594.12391 | CU6: 316.01853 | CV6: 856.53048 | CW6: 129.94927
A7: 16 | B7: Asikkala | C7: 7968 | D7: 8.11 | G7: 8786.03143 | H7: 31668.3443 | I7: 4.28627 | J7: 13354.66186 | K7: 1596.22371 | L7: 3182.32047 | M7: 18133.20604 | N7: 12731.76812 | O7: 243.69968 | P7: 355.02101 | Q7: 106.78177 | R7: 113.0957 | S7: 7824.5951 | U7: 3728.28354 | V7: -2.24735 | X7: 4094.06421 | Y7: -1.04226 | Z7: 0 | AA7: -52.9306 | AB7: 0 | AC7: 4040.09135 | AE7: 27444.24481 | AK7: 2557.03325 | AM7: 14864.74202 | AP7: 7889 | AQ7: 8.1 | AT7: 8829.36466 | AU7: 31785.78685 | AV7: 3.72051 | AW7: 12891.63283 | AX7: 1348.33775 | AY7: 3560.58539 | AZ7: 17755.13328 | BA7: 10340.96656 | BB7: 44.81221 | BC7: 501.58151 | BD7: 97.84354 | BE7: 4.1085 | BF7: 4780.36391 | BH7: 4506.1731 | BI7: -3.0708 | BK7: 272.65541 | BL7: -0.9869 | BM7: 0 | BN7: -27.90105 | BO7: 0 | BP7: 243.76746 | BR7: 27688.01227 | BX7: 2785.24918 | BZ7: 19828.24551 | CE7: 8.1 | CM7: 687.74229 | CN7: -12941.977 | CO7: 480.54324 | CP7: 4725.95398 | CQ7: 0 | CS7: 106.96862 | CT7: -10973.83335 | CU7: 67.79464 | CV7: 159.73737 | CW7: 0
A8: 18 | B8: Askola | C8: 4700 | D8: 8.86 | G8: 8450.64538 | H8: 21191.74986 | I8: -73.28383 | J8: 9421.46738 | K8: 1152.64824 | L8: 1285.20989 | M8: 11859.32551 | N8: 3522.418 | O8: 62.03779 | P8: 599.36077 | Q8: 780.01604 | R8: 449.15625 | S8: 2360.89201 | U8: 1905.62114 | V8: 0 | X8: 455.27087 | Y8: -4.96424 | Z8: 18.41584 | AA8: 0 | AB8: 0 | AC8: 431.89079 | AE8: 13359.79889 | AK8: 8489.0091 | AM8: 22892.62717 | AP8: 4651 | AQ8: 8.9 | AT8: 8646.57405 | AU8: 21763.06362 | AV8: 111.79099 | AW8: 9807.28666 | AX8: 798.07987 | AY8: 1335.62623 | AZ8: 11940.99276 | BA8: 3110.159 | BB8: 17.19843 | BC8: 665.92851 | BD8: 994.27561 | BE8: 292.5149 | BF8: 2099.48381 | BH8: 2509.00245 | BI8: 0 | BK8: -409.51864 | BL8: 0.43931 | BM8: 48.46422 | BN8: 0 | BO8: 0 | BP8: -433.31144 | BR8: 12804.81307 | BX8: 9747.52905 | BZ8: 26861.43582 | CE8: 9.2 | CM8: -56.81885 | CN8: -1236.04994 | CO8: -0.9936 | CP8: 96.3966 | CQ8: 0 | CS8: 18.9572 | CT8: -4905.23439 | CU8: 0 | CV8: 56.1221 | CW8: 0
A9: 19 | B9: Aura | C9: 3961 | D9: 8.86 | G9: 3715.41811 | H9: 14438.43444 | I9: -0.27964 | J9: 7361.41308 | K9: 630.30622 | L9: 913.92157 | M9: 8905.64087 | N9: 3574.93694 | O9: 4.66631 | P9: 128.72055 | Q9: 31.51962 | R9: 17.73625 | S9: 1647.01097 | U9: 1015.92416 | V9: 85.93582 | X9: 717.02263 | Y9: -94.23782 | Z9: 0.02199 | AA9: -21.398 | AB9: -43.0252 | AC9: 558.33962 | AE9: 6345.96926 | AK9: 1156.865 | AM9: 8378.33714 | AP9: 3966 | AQ9: 8.9 | AT9: 3149.63076 | AU9: 13822.19631 | AV9: 0.34555 | AW9: 7387.38332 | AX9: 497.96302 | AY9: 936.02381 | AZ9: 8821.37015 | BA9: 2547.85289 | BB9: 3.27289 | BC9: 177.10189 | BD9: 56.84055 | BE9: 13.12165 | BF9: 566.89293 | BH9: 1166.08202 | BI9: 0.452 | BK9: -582.17147 | BL9: -93.98 | BM9: 0.62546 | BN9: -17.144 | BO9: -32.88979 | BP9: -726.49799 | BR9: 4601.22723 | BX9: 1239.57239 | BZ9: 9289.78922 | CE9: 8.9 | CM9: -94.02279 | CN9: -1332.75368 | CO9: 38.19 | CP9: 567.03695 | CQ9: -0.59325 | CS9: -63.6055 | CT9: -1084.7932 | CU9: 54.615 | CV9: 169.18135 | CW9: 0
A10: 46 | B10: Enonkoski | C10: 1320 | D10: 8.36 | G10: 2025.14524 | H10: 6369.86215 | I10: 0 | J10: 1757.72454 | K10: 549.57831 | L10: 582.96794 | M10: 2890.27079 | N10: 2543.76634 | O10: 112.42671 | P10: 1.49925 | Q10: 140.69376 | R10: 11.34231 | S10: 1313.31872 | U10: 659.04063 | V10: 11.1041 | X10: 665.38219 | Y10: 0 | Z10: 0.43996 | AA10: 13.4792 | AB10: 0 | AC10: 678.42143 | AE10: 10714.96054 | AK10: 6749.12039 | AM10: 90.58827 | AP10: 1288 | AQ10: 8.4 | AT10: 2213.15124 | AU10: 6790.17991 | AV10: 0 | AW10: 1858.91345 | AX10: 472.87673 | AY10: 618.5804 | AZ10: 2934.26801 | BA10: 2589.77547 | BB10: 136.50432 | BC10: 1.83152 | BD10: 233.80093 | BE10: 82.26066 | BF10: 1233.22788 | BH10: 777.6965 | BI10: 0 | BK10: 455.53138 | BL10: -1.01028 | BM10: 2.34828 | BN10: 22.84152 | BO10: 0 | BP10: 476.18848 | BR10: 11191.14901 | BX10: 7589.88405 | BZ10: 63.64853 | CE10: 8.4 | CM10: -17.16032 | CN10: -654.6607 | CO10: 0 | CP10: 14.56395 | CQ10: -64.79291 | CS10: -6.72739 | CT10: -484.30837 | CU10: 0 | CV10: 49.05847 | CW10: 71.79291
A11: 47 | B11: Enontekiö | C11: 1771 | D11: 8.61 | G11: 5092.24692 | H11: 12442.47296 | I11: -3.82343 | J11: 3032.29393 | K11: 592.20651 | L11: 1005.25515 | M11: 4629.75559 | N11: 3700.08894 | O11: 5.75618 | P11: 24.97868 | Q11: 906.80557 | R11: 225.95928 | S11: 1637.41885 | U11: 854.71648 | V11: -0.00955 | X11: 782.69282 | Y11: 0 | Z11: 2.36145 | AA11: 1e-05 | AB11: 0 | AC11: 780.33138 | AE11: 13670.5569 | AK11: 7114.47797 | AM11: 3059.09585 | AP11: 1762 | AQ11: 8.6 | AT11: 4385.69419 | AU11: 12647.16635 | AV11: -9.37448 | AW11: 2946.38842 | AX11: 451.38966 | AY11: 1091.35536 | AZ11: 4489.13344 | BA11: 3438.565 | BB11: 148.09149 | BC11: 94.97276 | BD11: 835.69453 | BE11: 191.01883 | BF11: 354.64623 | BH11: 833.38226 | BI11: 0 | BK11: -478.73603 | BL11: -1.74 | BM11: 17.5825 | BN11: 1e-05 | BO11: 0 | BP11: -489.26727 | BR11: 12891.94227 | BX11: 3650.70758 | BZ11: 5276.03419 | CE11: 8.6 | CM11: -203.93781 | CN11: -1987.10673 | CO11: 258.64133 | CP11: 209.3875 | CQ11: 1.70778 | CS11: -204.29168 | CT11: -11966.89515 | CU11: 5148.94493 | CV11: 152.8168 | CW11: -1.478
A12: 49 | B12: Espoo | C12: 314024 | D12: 5.36 | G12: 800948.2054 | H12: 1579872.61 | I12: 3184.20426 | J12: 615847.3161 | K12: 152479.9431 | L12: 143060.231 | M12: 911387.4903 | N12: 427492.3196 | O12: 16240.95743 | P12: 78310.5905 | Q12: 60207.87991 | R12: 5089.1097 | S12: 556188.7464 | U12: 361111.0272 | V12: 0 | X12: 195077.7192 | Y12: 48.34913 | Z12: -1341.84703 | AA12: 1234.65939 | AB12: 7985.00488 | AC12: 205687.5796 | AE12: 1215298.339 | AK12: 1403823.862 | AM12: 3854006.55 | AP12: 320931 | AQ12: 5.3 | AT12: 762431.8762 | AU12: 1644165.749 | AV12: 2269.90928 | AW12: 526240.0681 | AX12: 140712.7624 | AY12: 162120.6219 | AZ12: 829073.4525 | BA12: 466234.3625 | BB12: 14817.62541 | BC12: 84190.6026 | BD12: 71320.3713 | BE12: 5343.2481 | BF12: 412447.9978 | BH12: 377110.0123 | BI12: 0 | BK12: 35337.98553 | BL12: 24.0948 | BM12: -1463.56158 | BN12: -32.44 | BO12: 8910.41234 | BP12: 44971.83346 | BR12: 1250643.586 | BX12: 1331735.941 | BZ12: 3782563.052 | CE12: 5.3 | CM12: -77803.05813 | CN12: -375188.3392 | CO12: 6333.06183 | CP12: 77793.04982 | CQ12: 2442.98892 | CS12: -11078.78238 | CT12: -418462.2669 | CU12: 9262.54262 | CV12: 10856.24687 | CW12: 5531.5826
A13: 50 | B13: Eura | C13: 11184 | D13: 8.36 | G13: 13423.13444 | H13: 42867.32276 | I13: 0 | J13: 20217.26255 | K13: 2537.26223 | L13: 3388.57848 | M13: 26143.10326 | N13: 10603.65333 | O13: 25.6955 | P13: 1150.3295 | Q13: 298.96709 | R13: 80.49718 | S13: 6396.40418 | U13: 5907.7361 | V13: 0 | X13: 488.66808 | Y13: -32.97673 | Z13: 15.73125 | AA13: 40.35838 | AB13: 11.13193 | AC13: 491.45041 | AE13: 1558.30181 | AK13: 3405.0881 | AM13: 54034.35541 | AP13: 11084 | AQ13: 9 | AT13: 13072.32151 | AU13: 42667.1858 | AV13: 0 | AW13: 21629.16789 | AX13: 2142.01663 | AY13: 3516.92065 | AZ13: 27288.10517 | BA13: 8631.22091 | BB13: 46.93421 | BC13: 1539.9062 | BD13: 185.27059 | BE13: 277.94608 | BF13: 4738.81431 | BH13: 5861.15779 | BI13: 0 | BK13: -1122.34348 | BL13: 124.58333 | BM13: 9.26064 | BN13: 14.41525 | BO13: -14.06851 | BP13: -1002.04373 | BR13: 434.04626 | BX13: 3760.17546 | BZ13: 60958.82026 | CE13: 9.4 | CM13: -55.63132 | CN13: -6485.23019 | CO13: 0 | CP13: 306.72009 | CQ13: 55.94634 | CS13: -304.6143 | CT13: -11030.45729 | CU13: 0 | CV13: 175.67027 | CW13: -104.07135
A14: 51 | B14: Eurajoki | C14: 9143 | D14: 5.36 | G14: 8738.80835 | H14: 37980.67909 | I14: 0 | J14: 11935.33155 | K14: 2894.25564 | L14: 25315.19476 | M14: 40144.78195 | N14: -3955.507 | O14: 67.19309 | P14: 300.62432 | Q14: 627.47304 | R14: 6.10994 | S14: 7335.33608 | U14: 4333.46672 | V14: 0 | X14: 3001.86936 | Y14: 20.30061 | Z14: 0 | AA14: -14.19812 | AB14: 0 | AC14: 3007.97185 | AE14: 81278.18029 | AK14: 23403.89688 | AM14: 9009.26446 | AP14: 9052 | AQ14: 5.4 | AT14: 8125.71312 | AU14: 38128.54211 | AV14: 0 | AW14: 11300.9071 | AX14: 2927.21418 | AY14: 26098.88563 | AZ14: 40327.00691 | BA14: -4672.054 | BB14: 52.34532 | BC14: 333.31551 | BD14: 1476.22753 | BE14: 63.58299 | BF14: 6783.79827 | BH14: 6113.55166 | BI14: 0 | BK14: 670.24661 | BL14: 6.17315 | BM14: 0 | BN14: -6.17315 | BO14: 0 | BP14: 670.24661 | BR14: 81991.62122 | BX14: 22072.6785 | BZ14: 7729.89447 | CE14: 6.4 | CM14: 590.4011 | CN14: -11474.10257 | CO14: 647.0046 | CP14: 436.56251 | CQ14: 0 | CS14: -143.85918 | CT14: -6696.43159 | CU14: 388.3 | CV14: 202.85348 | CW14: 0
A15: 52 | B15: Evijärvi | C15: 2292 | D15: 9.86 | G15: 2734.39614 | H15: 10080.97401 | I15: 0 | J15: 3690.80053 | K15: 692.74707 | L15: 833.69175 | M15: 5217.23935 | N15: 4359.48991 | O15: 69.79239 | P15: 258.09943 | Q15: 444.61143 | R15: 201.98854 | S15: 2284.46724 | U15: 1012.39067 | V15: 0 | X15: 1272.07657 | Y15: -6.72 | Z15: 4.9012 | AA15: 0 | AB15: -0.00815 | AC15: 1260.44722 | AE15: 3175.91472 | AK15: 8163.36049 | AM15: 8848.25318 | AP15: 2272 | AQ15: 9.8 | AT15: 2720.3047 | AU15: 10201.76023 | AV15: 0 | AW15: 4029.0507 | AX15: 610.53413 | AY15: 900.91279 | AZ15: 5540.49762 | BA15: 4102.62201 | BB15: 59.94541 | BC15: 281.99318 | BD15: 164.58034 | BE15: 36.17475 | BF15: 2068.02192 | BH15: 871.48376 | BI15: 0 | BK15: 1196.53816 | BL15: -2.9 | BM15: 4.18494 | BN15: 0 | BO15: 1.22103 | BP15: 1192.76672 | BR15: 4293.48333 | BX15: 8880.2006 | BZ15: 8322.85322 | CE15: 9.8 | CM15: -12.16903 | CN15: -1372.75055 | CO15: 55 | CP15: -3.49787 | CQ15: 49.61545 | CS15: 0 | CT15: -497.13689 | CU15: 55 | CV15: 4.19442 | CW15: 27.75108
A16: 61 | B16: Forssa | C16: 16469 | D16: 7.86 | G16: 30564.3748 | H16: 68946.99745 | I16: 0.01554 | J16: 26143.5602 | K16: 4741.36626 | L16: 5316.26134 | M16: 36201.1878 | N16: 18727.17104 | O16: 85.42439 | P16: 733.93774 | Q16: 163.63027 | R16: 10.29862 | S16: 15599.49082 | U16: 9758.71343 | V16: 0 | X16: 5840.77739 | Y16: 1.7595 | Z16: 46.42236 | AA16: 23.29397 | AB16: 114.33144 | AC16: 5933.73994 | AE16: 31809.52973 | AK16: 22006.92214 | AM16: 67593.53784 | AP16: 16478 | AQ16: 8.2 | AT16: 29686.71038 | AU16: 72283.7352 | AV16: -3.92615 | AW16: 27219.20789 | AX16: 3502.08574 | AY16: 5431.77809 | AZ16: 35695.91773 | BA16: 16167.02073 | BB16: 330.73044 | BC16: 759.76129 | BD16: 179.58638 | BE16: 12.52237 | BF16: 9000.02065 | BH16: 9715.02977 | BI16: 0 | BK16: -715.00912 | BL16: 16.39044 | BM16: 111.96756 | BN16: 12.5578 | BO16: 118.57493 | BP16: -623.46973 | BR16: 31371.46165 | BX16: 26083.61104 | BZ16: 60685.74472 | CE16: 8.5 | CM16: -118.6267 | CN16: -11097.28788 | CO16: 466.14 | CP16: 210.31117 | CQ16: 0 | CS16: -1242.75491 | CT16: -10225.32226 | CU16: 385.19402 | CV16: 14235.98956 | CW16: 0
A17: 69 | B17: Haapajärvi | C17: 6558 | D17: 9.86 | G17: 16008.58544 | H17: 34261.43931 | I17: -21.78301 | J17: 11410.14964 | K17: 1846.40174 | L17: 3029.90008 | M17: 16286.45146 | N17: 6982.895 | O17: 60.33766 | P17: 938.38414 | Q17: 1439.2572 | R17: 1059.28808 | S17: 4337.64437 | U17: 4585.81252 | V17: 0 | X17: -248.16815 | Y17: -330.02266 | Z17: 1.01492 | AA17: 0 | AB17: 147.93082 | AC17: -431.27491 | AE17: 1719.41211 | AK17: 24408.92861 | AM17: 72188.87517 | AP17: 6492 | AQ17: 10.2 | AT17: 17141.8312 | AU17: 33268.21314 | AV17: 0 | AW17: 12124.91684 | AX17: 1943.3704 | AY17: 3724.25146 | AZ17: 17631.94657 | BA17: 5452.707 | BB17: 100.00122 | BC17: 1798.01729 | BD17: 2638.33295 | BE17: 479.80824 | BF17: 7418.78027 | BH17: 4513.03158 | BI17: 0 | BK17: 2905.74869 | BL17: 0 | BM17: 11.83728 | BN17: -84.3397 | BO17: -2.9845 | BP17: 2812.50585 | BR17: 4064.17455 | BX17: 17821.714 | BZ17: 68466.34866 | CE17: 10.2 | CM17: -95.60594 | CN17: -14745.76349 | CO17: 297.18954 | CP17: 275.50479 | CQ17: 507.864 | CS17: -162.84512 | CT17: -10575.06554 | CU17: 23.55235 | CV17: 1384.14531 | CW17: 0
A18: 71 | B18: Haapavesi | C18: 6473 | D18: 9.36 | G18: 12435.01059 | H18: 34721.78865 | I18: 0 | J18: 10323.01848 | K18: 1270.64541 | L18: 1964.38539 | M18: 13558.04928 | N18: 13333.18121 | O18: 170.19067 | P18: 1058.5882 | Q18: 3519.64677 | R18: 2822.74706 | S18: 4378.47985 | U18: 2363.02989 | V18: 0 | X18: 2015.44996 | Y18: 3.54888 | Z18: -14.40766 | AA18: 23.926 | AB18: 23.02875 | AC18: 2080.36125 | AE18: 1281.09414 | AK18: 16023.0914 | AM18: 48216.89909 | AP18: 6365 | AQ18: 9.4 | AT18: 15715.74309 | AU18: 34584.66304 | AV18: 0 | AW18: 10630.98962 | AX18: 1009.49784 | AY18: 2261.37953 | AZ18: 13832.42945 | BA18: 9283.584 | BB18: 282.29284 | BC18: 1068.43708 | BD18: 442.88402 | BE18: 123.03949 | BF18: 3780.79379 | BH18: 2879.04311 | BI18: 0 | BK18: 901.75068 | BL18: 3.02918 | BM18: 93.76574 | BN18: 40.2801 | BO18: 23.78925 | BP18: 921.96634 | BR18: 2203.06049 | BX18: 17444.31061 | BZ18: 50010.52847 | CE18: 9.4 | CM18: 56.5918 | CN18: -2509.98784 | CO18: 51.33552 | CP18: 223.81565 | CQ18: 22.82093 | CS18: 180.0429 | CT18: -2328.39528 | CU18: 104.77007 | CV18: 409.6753 | CW18: -2584.7775
A19: 72 | B19: Hailuoto | C19: 948 | D19: 7.86 | G19: 1937.96019 | H19: 4944.74437 | I19: 0 | J19: 1604.44038 | K19: 118.64877 | L19: 367.75293 | M19: 2090.84208 | N19: 1806.87784 | O19: 9.44819 | P19: 20.30367 | Q19: 12.3952 | R19: 15.82183 | S19: 876.65364 | U19: 846.33663 | V19: 0 | X19: 30.31702 | Y19: 2.35241 | Z19: 0 | AA19: 0 | AB19: 0 | AC19: 32.66943 | AE19: 6545.83257 | AK19: 906.21342 | AM19: 1581.65163 | AP19: 927 | AQ19: 7.9 | AT19: 1911.11276 | AU19: 5135.28039 | AV19: 0 | AW19: 1498.54111 | AX19: 101.11819 | AY19: 403.55599 | AZ19: 2003.10797 | BA19: 1539.19639 | BB19: 11.33907 | BC19: 21.12912 | BD19: 4.59964 | BE19: 3.95856 | BF19: 308.98776 | BH19: 580.05089 | BI19: 0 | BK19: -271.06313 | BL19: -1.5381 | BM19: 0 | BN19: 0 | BO19: 0 | BP19: -272.60123 | BR19: 6268.59923 | BX19: 647.69133 | BZ19: 1330.32584 | CE19: 8.9 | CM19: 0.42598 | CN19: -339.44039 | CO19: 35.37781 | CP19: 0 | CQ19: 0 | CS19: -6.05364 | CT19: -465.78305 | CU19: 27.80869 | CV19: 5.41042 | CW19: 0
A20: 74 | B20: Halsua | C20: 1013 | D20: 10.86 | G20: 3530.62912 | H20: 7033.06414 | I20: 48.65387 | J20: 1842.44411 | K20: 344.60977 | L20: 385.4224 | M20: 2572.47628 | N20: 1902.91042 | O20: 4.00738 | P20: 384.01719 | Q20: 58.80875 | R20: 2.13996 | S20: 698.26453 | U20: 775.14657 | V20: -0.00355 | X20: -76.88559 | Y20: 5.43835 | Z20: 3.62277 | AA20: 3.89313 | AB20: -2.39668 | AC20: -73.57356 | AE20: 2258.52 | AK20: 1189.528 | AM20: 12649.133 | AP20: 985 | AQ20: 10.8 | AT20: 3830.30812 | AU20: 7095.23524 | AV20: 1.6158 | AW20: 1785.68631 | AX20: 292.77029 | AY20: 417.96057 | AZ20: 2496.41717 | BA20: 2019.25785 | BB20: 6.45205 | BC20: 436.05379 | BD20: 384.8362 | BE20: 1.12533 | BF20: 1206.47283 | BH20: 778.75577 | BI20: 0 | BK20: 427.71706 | BL20: 2.68068 | BM20: 7.30732 | BN20: 3.90296 | BO20: -1.44037 | BP20: 429.20667 | BR20: 2692.676 | BX20: 1367.596 | BZ20: 11950.793 | CE20: 10.8 | CM20: -12.773 | CN20: -782.785 | CO20: 0 | CP20: 12.13 | CQ20: 0 | CS20: -282.844 | CT20: -395.196 | CU20: 3.502 | CV20: 414.948 | CW20: 0
A21: 75 | B21: Hamina | C21: 19534 | D21: 8.36 | G21: 79738.75297 | H21: 133704.2006 | I21: 685.24393 | J21: 37420.8245 | K21: 12136.82443 | L21: 7747.06957 | M21: 57304.7185 | N21: 10592.55678 | O21: 696.13935 | P21: 4275.25698 | Q21: 6435.14102 | R21: 212.72848 | S21: 16954.7639 | U21: 17720.73522 | V21: 0 | X21: -765.97132 | Y21: 0 | Z21: 149.32536 | AA21: -343.36776 | AB21: 5.27609 | AC21: -1253.38835 | AE21: 33015.51998 | AK21: 6829.69455 | AM21: 164928.4655 | AP21: 19311 | AQ21: 9.4 | AT21: 74057.07087 | AU21: 97302.54217 | AV21: 4390.42745 | AW21: 40610.97398 | AX21: 6245.36482 | AY21: 7726.28711 | AZ21: 54397.34811 | BA21: 4952.99167 | BB21: 177.90659 | BC21: 3235.04474 | BD21: 2193.78495 | BE21: 229.04313 | BF21: 39402.8996 | BH21: 24787.13595 | BI21: 0 | BK21: 14615.76365 | BL21: 0 | BM21: 0 | BN21: -48.35376 | BO21: 4.81512 | BP21: 14572.22501 | BR21: 47587.74498 | BX21: 10952.89973 | BZ21: 98148.47346 | CE21: 9.4 | CM21: -3559.68598 | CN21: -30486.38669 | CO21: 166.07613 | CP21: 19899.6155 | CQ21: 79.65675 | CS21: -33925.94987 | CT21: -16950.50575 | CU21: 525.33012 | CV21: 28724.42349 | CW21: 50.31227
A22: 77 | B22: Hankasalmi | C22: 4549 | D22: 9.36 | G22: 7974.31233 | H22: 20819.07621 | I22: 0 | J22: 7326.19621 | K22: 944.44017 | L22: 1533.27934 | M22: 9803.91572 | N22: 6453.33945 | O22: 124.12555 | P22: 182.27888 | Q22: 250.90161 | R22: 20.29387 | S22: 3514.68584 | U22: 2264.52092 | V22: 0 | X22: 1250.16492 | Y22: -0.47372 | Z22: 0 | AA22: 42.06119 | AB22: 10.06894 | AC22: 1301.82133 | AE22: 1431.85301 | AK22: 4459.28394 | AM22: 7028.62725 | AP22: 4509 | AQ22: 9.4 | AT22: 8009.03353 | AU22: 20946.86602 | AV22: 0 | AW22: 7489.89145 | AX22: 1060.21701 | AY22: 1633.19148 | AZ22: 10110.92058 | BA22: 5434.80535 | BB22: 115.09932 | BC22: 184.98624 | BD22: 266.49611 | BE22: 39.31009 | BF22: 2765.19254 | BH22: 2436.63459 | BI22: -200.97758 | BK22: 228.06916 | BL22: 0.47301 | BM22: 0 | BN22: 70.99234 | BO22: -6.32451 | BP22: 293.21 | BR22: 1725.06297 | BX22: 4250.92468 | BZ22: 6040.88563 | CE22: 9.4 | CM22: 19.04091 | CN22: -1080.71334 | CO22: 121.4 | CP22: 5.33259 | CQ22: -8.89596 | CS22: 128.6741 | CT22: -1641.72509 | CU22: 12.585 | CV22: 23.25883 | CW22: -0.7
A23: 78 | B23: Hanko | C23: 7721 | D23: 9.11 | G23: 31157.14463 | H23: 42681.58972 | I23: 0 | J23: 17925.27835 | K23: 3710.92307 | L23: 3283.54356 | M23: 24919.74498 | N23: 70.19466 | O23: 346.83603 | P23: 786.84726 | Q23: 103.35803 | R23: 4.68227 | S23: 12951.48502 | U23: 7633.43442 | V23: 0 | X23: 5318.0506 | Y23: 2.85559 | Z23: 102.99525 | AA23: 2.90129 | AB23: 0.63003 | AC23: 5221.44226 | AE23: 37475.42995 | AK23: 13699.78934 | AM23: 54506.84302 | AP23: 7702 | AQ23: 9.1 | AT23: 30677.2519 | AU23: 42138.71095 | AV23: 0 | AW23: 17163.19341 | AX23: 2616.23607 | AY23: 3178.32789 | AZ23: 22787.46164 | BA23: -1541.855 | BB23: 502.31669 | BC23: 953.52973 | BD23: 102.32456 | BE23: 10.55538 | BF23: 9424.70373 | BH23: 7107.96383 | BI23: 0 | BK23: 2316.7399 | BL23: 1.42308 | BM23: 468.05158 | BN23: -39.42654 | BO23: 1.97888 | BP23: 2046.68953 | BR23: 50185.24446 | BX23: 16353.7546 | BZ23: 52996.62393 | CE23: 9.1 | CM23: -789.09707 | CN23: -7187.58389 | CO23: 342.2725 | CP23: 861.42966 | CQ23: -453.28244 | CS23: -898.90998 | CT23: -5317.17002 | CU23: 95.4452 | CV23: 960.97827 | CW23: 15.26718
A24: 79 | B24: Harjavalta | C24: 6703 | D24: 8.86 | G24: 8222.61675 | H24: 28674.89426 | I24: 56.25698 | J24: 13487.8327 | K24: 7341.08296 | L24: 2611.75775 | M24: 23440.67341 | N24: 1529.13074 | O24: 38.93806 | P24: 435.78511 | Q24: 91.77801 | R24: 13.74446 | S24: 4254.97012 | U24: 3487.56648 | V24: -1.58887 | X24: 765.81477 | Y24: 0 | Z24: 15.47603 | AA24: -18.26706 | AB24: -8.99946 | AC24: 723.07222 | AE24: 11561.81034 | AK24: 3904.99492 | AM24: 23118.65778 | AP24: 6647 | AQ24: 8.9 | AT24: 8274.32492 | AU24: 30500.91209 | AV24: 41.98297 | AW24: 12883.44069 | AX24: 6518.3115 | AY24: 3093.16875 | AZ24: 22494.92094 | BA24: 1149.57633 | BB24: 57.64371 | BC24: 745.49403 | BD24: 71.62224 | BE24: 14.82219 | BF24: 828.8428 | BH24: 3596.10715 | BI24: 25.07616 | BK24: -2754.72627 | BL24: 0 | BM24: 31.95232 | BN24: 15.3594 | BO24: -1.53582 | BP24: -2756.87885 | BR24: 8979.72217 | BX24: 5858.02677 | BZ24: 28376.26848 | CE24: 8.9 | CM24: -46.58396 | CN24: -5518.63165 | CO24: 98.4292 | CP24: 525.97982 | CQ24: -0.72353 | CS24: 969.83718 | CT24: -6146.82553 | CU24: 190.372 | CV24: 1138.15026 | CW24: -3.17853
A25: 81 | B25: Hartola | C25: 2531 | D25: 8.86 | G25: 3772.83407 | H25: 9257.10402 | I25: 0 | J25: 3808.46249 | K25: 1121.91945 | L25: 1473.90997 | M25: 6404.29191 | N25: 696.664 | O25: 322.80699 | P25: 569.27227 | Q25: 59.81323 | R25: 0.56227 | S25: 1429.47164 | U25: 1232.90332 | V25: -746.19103 | X25: -549.62271 | Y25: -0.25402 | Z25: 0 | AA25: 0 | AB25: 0.53417 | AC25: -549.34256 | AE25: 1316.04816 | AK25: 1166.84187 | AM25: 18854.93945 | AP25: 2482 | AQ25: 8.9 | AT25: 4175.41834 | AU25: 8459.62312 | AV25: 0 | AW25: 3930.37011 | AX25: 1185.49881 | AY25: 1619.44748 | AZ25: 6696.69927 | BA25: 322.331 | BB25: 58.03376 | BC25: 682.54821 | BD25: 70.55252 | BE25: 9.89677 | BF25: 2170.96679 | BH25: 1742.65294 | BI25: -0.7484 | BK25: 427.93965 | BL25: -0.24053 | BM25: 0 | BN25: 0 | BO25: -0.19876 | BP25: 427.50036 | BR25: 1684.46711 | BX25: 1800.56477 | BZ25: 18832.11287 | CE25: 9.2 | CM25: -5.45784 | CN25: -1167.68835 | CO25: 0.10037 | CP25: 738.61792 | CQ25: 0 | CS25: -531.34089 | CT25: -454.49615 | CU25: 120.95963 | CV25: -43.72329 | CW25: 35.68608
A26: 82 | B26: Hattula | C26: 9371 | D26: 8.11 | G26: 7263.45973 | H26: 33114.9547 | I26: 0 | J26: 18771.23818 | K26: 2650.35494 | L26: 2845.38004 | M26: 24266.97316 | N26: 8634.03587 | O26: 209.66803 | P26: 1216.34503 | Q26: 209.63018 | R26: 90.95065 | S26: 6089.72401 | U26: 2858.2184 | V26: 0 | X26: 3231.50561 | Y26: 0.7875 | Z26: 0.01404 | AA26: 12.33839 | AB26: 0.01179 | AC26: 3244.62925 | AE26: 12626.79636 | AK26: 3211.21881 | AM26: 37783.35614 | AP26: 9361 | AQ26: 8.1 | AT26: 7002.72815 | AU26: 32789.4845 | AV26: 0 | AW26: 18211.0551 | AX26: 2546.3679 | AY26: 3191.802 | AZ26: 23872.35443 | BA26: 7131.23847 | BB26: 221.0688 | BC26: 1227.28959 | BD26: 166.40941 | BE26: 16.04355 | BF26: 4360.98162 | BH26: 2759.3795 | BI26: 0 | BK26: 1601.60212 | BL26: 1.11563 | BM26: 0 | BN26: -1.53045 | BO26: 0.87814 | BP26: 1602.06544 | BR26: 14228.86195 | BX26: 4424.798 | BZ26: 36516.68492 | CE26: 8.4 | CM26: -54.78667 | CN26: -936.03947 | CO26: 55.9 | CP26: 324.36109 | CQ26: 0 | CS26: -211.55597 | CT26: -1914.44631 | CU26: 80 | CV26: 358.6281 | CW26: 0
A27: 86 | B27: Hausjärvi | C27: 7998 | D27: 8.86 | G27: 5920.22289 | H27: 26051.47061 | I27: 0 | J27: 16142.992 | K27: 1156.953 | L27: 1781.628 | M27: 19081.573 | N27: 6254.071 | O27: 3.36941 | P27: 417.47456 | Q27: 27.52366 | R27: 7.03521 | S27: 4810.77958 | U27: 3621.32613 | V27: -556.81011 | X27: 632.64334 | Y27: 0.678 | Z27: 11.17952 | AA27: 0 | AB27: 0.01671 | AC27: 622.15853 | AE27: 11296.00328 | AK27: 4040.59865 | AM27: 26124.005 | AP27: 7901 | AQ27: 8.9 | AT27: 6676.186 | AU27: 25551.9 | AV27: 0 | AW27: 15976.4934 | AX27: 1016.41226 | AY27: 1866.67918 | AZ27: 18859.584 | BA27: 4348.057 | BB27: 24.91451 | BC27: 803.1358 | BD27: 40.41115 | BE27: 3.03751 | BF27: 3591.07935 | BH27: 2806.78565 | BI27: 2603.7715 | BK27: 2086.17945 | BL27: 0.9605 | BM27: 19.22424 | BN27: 0 | BO27: 0.76619 | BP27: 2078.29402 | BR27: 13478.44137 | BX27: 3269.63297 | BZ27: 26644.22459 | CE27: 9.3 | CM27: -209.87275 | CN27: -5802.58666 | CO27: 8.65592 | CP27: 2163.382 | CQ27: 15.36888 | CS27: -189.40864 | CT27: -5903.27545 | CU27: 0 | CV27: 197.54164 | CW27: -4.04951
A28: 111 | B28: Heinola | C28: 17953 | D28: 7.86 | G28: 25741.145 | H28: 65202.108 | I28: 689.432 | J28: 30783.26728 | K28: 3379.17903 | L28: 6698.39417 | M28: 40860.84048 | N28: 11921.143 | O28: 331.639 | P28: 1935.616 | Q28: 7786.911 | R28: 3091.826 | S28: 17101.56 | U28: 11886.612 | V28: -5.41 | X28: 5209.538 | Y28: -14.049 | Z28: 0 | AA28: -95.973 | AB28: 8.516 | AC28: 5108.032 | AE28: 65673.295 | AK28: 109235.496 | AM28: 122445.079 | AP28: 17829 | AQ28: 8.2 | AT28: 20446.06066 | AU28: 65070.36132 | AV28: 75.01329 | AW28: 30081.80288 | AX28: 4263.6326 | AY28: 8178.72128 | AZ28: 42329.77393 | BA28: 15462.65443 | BB28: 282.68762 | BC28: 2488.96787 | BD28: 8920.60072 | BE28: 994.9689 | BF28: 18962.49258 | BH28: 10811.41024 | BI28: -7.3915 | BK28: 8147.38658 | BL28: -2.3755 | BM28: 43.92392 | BN28: -4.68885 | BO28: -12.62465 | BP28: 8105.73562 | BR28: 73778.20752 | BX28: 118039.2973 | BZ28: 117195.8213 | CE28: 8.2 | CM28: -1655.35 | CN28: -14368.964 | CO28: 344.059 | CP28: 5993.928 | CQ28: 21.259 | CS28: -972.26989 | CT28: -7630.30208 | CU28: 10.1473 | CV28: 1373.45134 | CW28: -8.4924
A29: 90 | B29: Heinävesi | C29: 3001 | D29: 8.86 | G29: 5757.58731 | H29: 12322.94198 | I29: 0 | J29: 4465.67644 | K29: 1796.90856 | L29: 1469.44053 | M29: 7732.02553 | N29: 653.779 | O29: 78.36615 | P29: 52.71743 | Q29: 318.74276 | R29: 4.42892 | S29: 2160.41242 | U29: 1517.40744 | V29: 0 | X29: 643.00498 | Y29: -17.71889 | Z29: 0 | AA29: 0 | AB29: 0 | AC29: 625.28609 | AE29: 5247.52246 | AK29: 4055.17309 | AM29: 9680.14765 | AP29: 2929 | AQ29: 8.8 | AT29: 6078.32818 | AU29: 12592.9597 | AV29: 0 | AW29: 4539.43286 | AX29: 1460.21747 | AY29: 1531.78816 | AZ29: 7531.43849 | BA29: 91.94 | BB29: 101.15832 | BC29: 83.87703 | BD29: 322.42794 | BE29: 12.62691 | BF29: 1435.82929 | BH29: 1548.10785 | BI29: 0 | BK29: -112.27856 | BL29: -15.23034 | BM29: 0 | BN29: 0 | BO29: 0 | BP29: -127.5089 | BR29: 5120.01356 | BX29: 4878.1755 | BZ29: 10478.03382 | CE29: 8.8 | CM29: -130.12459 | CN29: -993.84573 | CO29: 145 | CP29: 112.84953 | CQ29: 3.68 | CS29: -735.16696 | CT29: -846.38056 | CU29: 44.1 | CV29: 144.255 | CW29: 0
A30: 91 | B30: Helsinki | C30: 674500 | D30: 5.36 | G30: 4201356.562 | H30: 4973162.752 | I30: -600.68183 | J30: 1191880.655 | K30: 539208.2365 | L30: 307241.2957 | M30: 2038330.187 | N30: 200909.289 | O30: 65556.13613 | P30: 169454.7058 | Q30: 65036.14008 | R30: 14516.40869 | S30: 1395227.975 | U30: 968698.4354 | V30: 278.31525 | X30: 426807.8553 | Y30: -2678.85045 | Z30: 18147.55194 | AA30: 987.33639 | AB30: 4141.4725 | AC30: 411110.2618 | AE30: 7425407.427 | AK30: 1516708.319 | AM30: 7203562.505 | AP30: 684018 | AQ30: 5.3 | AT30: 4018382.83 | AU30: 4717811.01 | AV30: 410.55758 | AW30: 1068865.361 | AX30: 446470.7309 | AY30: 353479.0477 | AZ30: 1845894.029 | BA30: 302967.894 | BB30: 78319.45727 | BC30: 190939.579 | BD30: 37051.61486 | BE30: 9253.87127 | BF30: 1365021.922 | BH30: 947170.6498 | BI30: 700.0526 | BK30: 418201.2983 | BL30: -6652.66621 | BM30: 35280.3029 | BN30: 1665.61025 | BO30: 4355.17721 | BP30: 399929.2681 | BR30: 7829756.267 | BX30: 1310415.398 | BZ30: 8035580.644 | CE30: 5.3 | CM30: -131109.3947 | CN30: -2187098.114 | CO30: 28663.4884 | CP30: 333652.5978 | CQ30: -6507.69629 | CS30: -42546.82314 | CT30: -2419792.657 | CU30: 16684.73944 | CV30: 90874.51723 | CW30: -859.41698
A31: 97 | B31: Hirvensalmi | C31: 2062 | D31: 7.36 | G31: 3177.12982 | H31: 7465.58423 | I31: 0 | J31: 3313.09202 | K31: 777.07663 | L31: 1450.55958 | M31: 5540.72823 | N31: 367.466 | O31: 4.2748 | P31: 90.69835 | Q31: 394.9877 | R31: 99.35846 | S31: 1816.45559 | U31: 706.26612 | V31: 0 | X31: 1110.18947 | Y31: 0 | Z31: 0 | AA31: -0.4 | AB31: 0 | AC31: 1109.78947 | AE31: 7211.54194 | AK31: 12021.03502 | AM31: 3266.40598 | AP31: 2059 | AQ31: 7.4 | AT31: 3221.3562 | AU31: 7877.15603 | AV31: 0 | AW31: 2919.75297 | AX31: 708.04849 | AY31: 1631.81759 | AZ31: 5246.9105 | BA31: 57.007 | BB31: 19.5179 | BC31: 100.79289 | BD31: 582.07132 | BE31: 2.74392 | BF31: 1146.17008 | BH31: 655.72922 | BI31: 0 | BK31: 490.44086 | BL31: 0 | BM31: 0 | BN31: -3.74 | BO31: 0 | BP31: 486.70086 | BR31: 7698.2428 | BX31: 12284.39528 | BZ31: 2932.35293 | CE31: 7.4 | CM31: -1031.03895 | CN31: -400.35356 | CO31: 68.3582 | CP31: 55.68386 | CQ31: 0 | CS31: -310.14682 | CT31: -517.244 | CU31: 77.81378 | CV31: 326 | CW31: 12
A32: 98 | B32: Hollola | C32: 22885 | D32: 8.36 | G32: 21946.86229 | H32: 82611.03132 | I32: 0 | J32: 46408.43671 | K32: 3512.00961 | L32: 6168.00651 | M32: 56088.45283 | N32: 26651.14279 | O32: 64.9191 | P32: 656.37264 | Q32: 529.50943 | R32: -34.21921 | S32: 21753.23682 | U32: 11333.60556 | V32: -5.36993 | X32: 10414.26133 | Y32: -2.49043 | Z32: 1.05426 | AA32: 89.51562 | AB32: -0.02934 | AC32: 10500.20291 | AE32: 66810.52967 | AK32: 32774.01882 | AM32: 35938.2354 | AP32: 22849 | AQ32: 8.3 | AT32: 22737.14522 | AU32: 84735.39162 | AV32: 0 | AW32: 43459.40406 | AX32: 2598.86314 | AY32: 6464.69477 | AZ32: 52217.84769 | BA32: 23532.32172 | BB32: 118.3024 | BC32: 618.35636 | BD32: 867.91043 | BE32: -36.08 | BF32: 14155.85948 | BH32: 9343.25323 | BI32: -7.3375 | BK32: 4808.9375 | BL32: -2.35815 | BM32: 8.01622 | BN32: -20.72153 | BO32: -4.66748 | BP32: 4777.18223 | BR32: 71587.7119 | BX32: 25144.14153 | BZ32: 30783.40549 | CE32: 8.3 | CM32: -630.92632 | CN32: -8741.12627 | CO32: 1.36815 | CP32: 6555.90635 | CQ32: 9.78135 | CS32: -645.5891 | CT32: -17197.98157 | CU32: 378.84458 | CV32: 582.963 | CW32: -135
A33: 102 | B33: Huittinen | C33: 9646 | D33: 8.36 | G33: 11316.38444 | H33: 39664.26509 | I33: 16.35762 | J33: 16093.7379 | K33: 2455.5803 | L33: 2825.03984 | M33: 21374.35804 | N33: 15120.09521 | O33: 9.8366 | P33: 397.15746 | Q33: 162.10782 | R33: 15.60527 | S33: 7922.11191 | U33: 4411.73479 | V33: 6.91354 | X33: 3517.29066 | Y33: -7.06578 | Z33: 0.03659 | AA33: 0 | AB33: 0.3704 | AC33: 3510.55869 | AE33: 14596.04838 | AK33: 7068.89664 | AM33: 32104.76302 | AP33: 9555 | AQ33: 9 | AT33: 11268.15038 | AU33: 40080.16223 | AV33: 68.50652 | AW33: 16759.87987 | AX33: 1932.01825 | AY33: 2858.1378 | AZ33: 21550.03592 | BA33: 12941.29307 | BB33: 68.84753 | BC33: 728.06253 | BD33: 125.08794 | BE33: 12.3957 | BF33: 5201.3009 | BH33: 5176.775 | BI33: 0.75188 | BK33: 24.90184 | BL33: 20.6276 | BM33: 1.04044 | BN33: 0 | BO33: 1.14925 | BP33: 46.15847 | BR33: 14461.95039 | BX33: 7399.60337 | BZ33: 34951.91927 | CE33: 9 | CM33: -144.13098 | CN33: -15510.16817 | CO33: 150 | CP33: 498.54688 | CQ33: -28.76684 | CS33: 148.2308 | CT33: -6250.12527 | CU33: 5 | CV33: 86.59489 | CW33: -3.7992
A34: 103 | B34: Humppila | C34: 2125 | D34: 9.36 | G34: 1936.88615 | H34: 8606.44135 | I34: 0 | J34: 3603.83351 | K34: 416.00859 | L34: 723.04795 | M34: 4742.89005 | N34: 2536.12466 | O34: 24.10213 | P34: 106.84914 | Q34: 14.89173 | R34: 2.45265 | S34: 539.15158 | U34: 641.49547 | V34: 0 | X34: -102.34389 | Y34: 3.698 | Z34: 21.18802 | AA34: 4.4578 | AB34: 0.00297 | AC34: -115.37314 | AE34: 401.95581 | AK34: 752.72533 | AM34: 4481.2869 | AP34: 2094 | AQ34: 9.3 | AT34: 1953.9533 | AU34: 8829.54254 | AV34: 0 | AW34: 3755.36211 | AX34: 316.93471 | AY34: 710.07178 | AZ34: 4782.3686 | BA34: 2085.00522 | BB34: 26.30585 | BC34: 103.59687 | BD34: 21.38523 | BE34: 20.8352 | BF34: -84.95641 | BH34: 607.89191 | BI34: -1514.53668 | BK34: -1450.11666 | BL34: 0.2805 | BM34: 26.28558 | BN34: 2.6356 | BO34: 0.22376 | BP34: -1460.11959 | BR34: -510.33611 | BX34: 988.53331 | BZ34: 4845.21066 | CE34: 9.3 | CM34: -5.06248 | CN34: -481.69955 | CO34: 0 | CP34: 1.85055 | CQ34: 333.07646 | CS34: 745.74244 | CT34: -922.79316 | CU34: 135.75 | CV34: 893.35462 | CW34: 359.13618
A35: 105 | B35: Hyrynsalmi | C35: 2063 | D35: 9.11 | G35: 4837.85748 | H35: 10366.61992 | I35: 0 | J35: 3037.39789 | K35: 702.19535 | L35: 1291.92178 | M35: 5031.51502 | N35: 2476.288 | O35: 10.64832 | P35: 167.75942 | Q35: 1.77409 | R35: 3.60331 | S35: 1757.36025 | U35: 1091.91043 | V35: 0 | X35: 665.44982 | Y35: 2.16445 | Z35: -0.63411 | AA35: 0 | AB35: 0 | AC35: 668.24838 | AE35: 3165.4613 | AK35: 3888.80345 | AM35: 5009.49891 | AP35: 2002 | AQ35: 9 | AT35: 4048.94122 | AU35: 10188.06745 | AV35: 0 | AW35: 3146.62166 | AX35: 563.0369 | AY35: 1971.86426 | AZ35: 5621.28508 | BA35: 2699.915 | BB35: 27.38018 | BC35: 172.16596 | BD35: 3.85215 | BE35: 5.19925 | BF35: 2035.94097 | BH35: 1097.92252 | BI35: 0 | BK35: 938.01845 | BL35: 4.18909 | BM35: -0.00672 | BN35: 0 | BO35: 0 | BP35: 942.2109 | BR35: 4087.41882 | BX35: 3320.01467 | BZ35: 3545.0707 | CE35: 9 | CM35: 1.59092 | CN35: -1052.81903 | CO35: 0 | CP35: 77.34055 | CQ35: 0 | CS35: -35.28325 | CT35: -873.87749 | CU35: 17.62667 | CV35: 56.3931 | CW35: -0.43327
A36: 106 | B36: Hyvinkää | C36: 46901 | D36: 7.61 | G36: 92490.96143 | H36: 174306.9337 | I36: 251.98083 | J36: 95505.56424 | K36: 14506.77246 | L36: 14562.0262 | M36: 124574.3629 | N36: 21067.14348 | O36: 1104.08653 | P36: 6804.39911 | Q36: 220.01812 | R36: 20.50766 | S36: 57400.83222 | U36: 31940.73503 | V36: 0 | X36: 25460.09719 | Y36: 10.66118 | Z36: 523.10342 | AA36: 332.90441 | AB36: -68.08645 | AC36: 25212.47291 | AE36: 96463.67858 | AK36: 41635.19746 | AM36: 251350.168 | AP36: 47031 | AQ36: 7.6 | AT36: 91246.18312 | AU36: 175822.0828 | AV36: 498.60438 | AW36: 91394.06986 | AX36: 9636.4821 | AY36: 15563.99387 | AZ36: 115408.8962 | BA36: 11851.049 | BB36: 1221.24207 | BC36: 7545.68705 | BD36: 210.97007 | BE36: -66.60216 | BF36: 37135.77715 | BH36: 34494.72091 | BI36: 0 | BK36: 2641.05624 | BL36: 5.313 | BM36: 1215.11456 | BN36: 145.22734 | BO36: -46.24737 | BP36: 2137.79193 | BR36: 98601.47053 | BX36: 42371.30516 | BZ36: 241224.777 | CE36: 7.7 | CM36: -3373.75337 | CN36: -43634.74695 | CO36: 1686.547 | CP36: 5352.12414 | CQ36: 76.435 | CS36: -2478.89429 | CT36: -32131.18378 | CU36: 196.011 | CV36: 3030.55104 | CW36: 136.584
A37: 108 | B37: Hämeenkyrö | C37: 10319 | D37: 9.36 | G37: 11441.47396 | H37: 40276.08591 | I37: 3.28448 | J37: 19412.01716 | K37: 2322.70386 | L37: 2386.28951 | M37: 24121.01053 | N37: 13237.7744 | O37: 246.051 | P37: 959.35429 | Q37: 223.31 | R37: 30.78789 | S37: 7940.78526 | U37: 5456.37571 | V37: 0 | X37: 2484.40955 | Y37: 0.1365 | Z37: 23.83362 | AA37: 97.80226 | AB37: 20.9563 | AC37: 2579.47099 | AE37: 10218.47568 | AK37: 11942.98563 | AM37: 46645.06543 | AP37: 10348 | AQ37: 9.4 | AT37: 11648.46211 | AU37: 41852.57491 | AV37: 0.72075 | AW37: 20389.43964 | AX37: 1506.02629 | AY37: 2625.36233 | AZ37: 24440.44385 | BA37: 12706.36117 | BB37: 151.09199 | BC37: 1150.25389 | BD37: 205.00754 | BE37: 34.21592 | BF37: 6115.04269 | BH37: 6442.88912 | BI37: 0 | BK37: -327.84643 | BL37: 0.1365 | BM37: 57.2802 | BN37: 132.45293 | BO37: -12.5246 | BP37: -236.4217 | BR37: 9541.99083 | BX37: 11042.6569 | BZ37: 47927.0809 | CE37: 9.4 | CM37: -265.86214 | CN37: -8242.33769 | CO37: 34.4 | CP37: 701.19793 | CQ37: 0 | CS37: -97.0953 | CT37: -7995.5381 | CU37: 184.14646 | CV37: 435.52034 | CW37: 0
A38: 109 | B38: Hämeenlinna | C38: 68319 | D38: 8.36 | G38: 113984.4538 | H38: 264095.1845 | I38: 1597.76149 | J38: 138242.1957 | K38: 18882.39682 | L38: 30020.7908 | M38: 187145.3833 | N38: 42050.39678 | O38: 1424.45567 | P38: 7570.60977 | Q38: 7213.51101 | R38: 542.41984 | S38: 79218.12594 | U38: 45538.14896 | V38: -2061.84904 | X38: 31618.12794 | Y38: -17216.90364 | Z38: 291.81301 | AA38: -25.63971 | AB38: 47.22724 | AC38: 14130.99882 | AE38: 24451.90532 | AK38: 142328.5228 | AM38: 428377.0674 | AP38: 68433 | AQ38: 8.4 | AT38: 120399.3341 | AU38: 267954.6576 | AV38: 1052.1285 | AW38: 133037.7207 | AX38: 18585.99454 | AY38: 30386.31307 | AZ38: 179891.4598 | BA38: 42892.89896 | BB38: 1857.77778 | BC38: 8129.6575 | BD38: 7627.85313 | BE38: 230.6342 | BF38: 77406.503 | BH38: 49930.17816 | BI38: 0 | BK38: 27476.32483 | BL38: -8227.17825 | BM38: 619.7082 | BN38: -195.8977 | BO38: -273.72764 | BP38: 18469.66714 | BR38: 42762.9953 | BX38: 164604.7783 | BZ38: 461827.7188 | CE38: 8.4 | CM38: -2368.51536 | CN38: -69930.59606 | CO38: 1390.811 | CP38: 3604.66458 | CQ38: 198.05182 | CS38: -9122.50407 | CT38: -116525.5547 | CU38: 1249.773 | CV38: 39167.2895 | CW38: -6.14284
A39: 139 | B39: Ii | C39: 9766 | D39: 8.86 | G39: 22966.57551 | H39: 51194.17654 | I39: 4.33401 | J39: 16664.94365 | K39: 1488.51363 | L39: 4884.33896 | M39: 23037.79624 | N39: 17312.63308 | O39: 515.10892 | P39: 1162.53658 | Q39: 578.23082 | R39: 48.68955 | S39: 12009.27591 | U39: 7552.96408 | V39: 0 | X39: 4456.31183 | Y39: 74.71422 | Z39: 0 | AA39: 59.32954 | AB39: -0.93902 | AC39: 4589.41657 | AE39: 14998.8321 | AK39: 9157.64639 | AM39: 49652.04907 | AP39: 9806 | AQ39: 8.9 | AT39: 18987.72153 | AU39: 51357.16843 | AV39: 13.55225 | AW39: 16556.01514 | AX39: 1159.81901 | AY39: 5064.02407 | AZ39: 22779.85822 | BA39: 16098.24521 | BB39: 80.47977 | BC39: 1369.11064 | BD39: 294.2053 | BE39: 2.77318 | BF39: 5525.01003 | BH39: 6345.74481 | BI39: 0 | BK39: -820.73478 | BL39: 562.15536 | BM39: 0 | BN39: -11.47919 | BO39: -6.85387 | BP39: -276.91248 | BR39: 14716.7238 | BX39: 6714.85972 | BZ39: 52022.51802 | CE39: 8.9 | CM39: -3590.57917 | CN39: -6871.11496 | CO39: 3.88163 | CP39: 11510.36515 | CQ39: 600.4485 | CS39: -235.95528 | CT39: -9305.21583 | CU39: 405.34758 | CV39: 300.12448 | CW39: 520.0785
A40: 140 | B40: Iisalmi | C40: 20618 | D40: 7.86 | G40: 54265.65099 | H40: 118125.5345 | I40: 1.41748 | J40: 33351.32881 | K40: 5653.24757 | L40: 5891.62219 | M40: 44896.19857 | N40: 37937.72323 | O40: 132.0796 | P40: 2247.31122 | Q40: 1838.76735 | R40: 243.90819 | S40: 18959.47987 | U40: 12969.94311 | V40: 163.36933 | X40: 6152.90609 | Y40: 1267.32426 | Z40: 63.00509 | AA40: -106.51706 | AB40: -4.62411 | AC40: 7246.08409 | AE40: 58770.67895 | AK40: 25734.27208 | AM40: 107498.4807 | AP40: 20463 | AQ40: 7.9 | AT40: 54946.73265 | AU40: 113260.8624 | AV40: 389.95443 | AW40: 32259.5859 | AX40: 5118.44945 | AY40: 5997.59109 | AZ40: 42858.5763 | BA40: 36548.09118 | BB40: 282.02911 | BC40: 2508.40376 | BD40: 2162.47793 | BE40: 190.36238 | BF40: 21228.23307 | BH40: 13388.3354 | BI40: 15.09426 | BK40: 7847.4448 | BL40: -2170.2638 | BM40: 218.4646 | BN40: -67.77142 | BO40: -7.1633 | BP40: 5493.01398 | BR40: 64255.67078 | BX40: 28333.15418 | BZ40: 102958.0276 | CE40: 7.9 | CM40: 1463.85805 | CN40: -59495.49792 | CO40: 386.71879 | CP40: 12035.69856 | CQ40: -15.86886 | CS40: -1123.70296 | CT40: -12173.59368 | CU40: 226.80888 | CV40: 267.45462 | CW40: -7.56
A41: 142 | B41: Iitti | C41: 6444 | D41: 8.61 | G41: 7470.069 | H41: 23236.183 | I41: 0 | J41: 11023.38109 | K41: 1138.09492 | L41: 3351.05869 | M41: 15512.5347 | N41: 3999.184 | O41: 243.63 | P41: 173.008 | Q41: 133.704 | R41: 7.256 | S41: 3942.675 | U41: 3411.721 | V41: 0 | X41: 530.954 | Y41: 0 | Z41: 0 | AA41: -23.44 | AB41: 0 | AC41: 507.514 | AE41: 6637.699 | AK41: 10873.698 | AM41: 10777.679 | AP41: 6401 | AQ41: 8.6 | AT41: 7382.878 | AU41: 23700.814 | AV41: 0 | AW41: 10921.95369 | AX41: 890.10425 | AY41: 3488.52521 | AZ41: 15300.583 | BA41: 3886.349 | BB41: 219.362 | BC41: 277.605 | BD41: 234.631 | BE41: 5.65 | BF41: 3039.734 | BH41: 2362.374 | BI41: 0 | BK41: 677.36 | BL41: 0 | BM41: 0 | BN41: 0 | BO41: 0 | BP41: 677.36 | BR41: 7315.053 | BX41: 7580.064 | BZ41: 10411.878 | CE41: 8.6 | CM41: -128.478 | CN41: -3024.064 | CO41: 15 | CP41: 824.901 | CQ41: -301.813 | CS41: -778.4 | CT41: -9556.09 | CU41: 84.05 | CV41: 3141.639 | CW41: 262.274
A42: 143 | B42: Ikaalinen | C42: 6850 | D42: 9.36 | G42: 23002.52915 | H42: 38242.12159 | I42: 6.13722 | J42: 11507.89084 | K42: 1868.36683 | L42: 2867.69101 | M42: 16243.94868 | N42: 3842.757 | O42: 67.47039 | P42: 833.19656 | Q42: 144.06221 | R42: 27.13939 | S42: 4095.33728 | U42: 3065.26419 | V42: 0 | X42: 1030.07309 | Y42: -0.0394 | Z42: 45.79114 | AA42: -47.75671 | AB42: -18.37442 | AC42: 918.11142 | AE42: 7210.32011 | AK42: 6125.35793 | AM42: 38137.76183 | AP42: 6758 | AQ42: 9.4 | AT42: 11536.1704 | AU42: 34097.13162 | AV42: 1.33606 | AW42: 12119.15487 | AX42: 1768.62986 | AY42: 2939.743 | AZ42: 16716.90416 | BA42: 12277.87508 | BB42: 54.35015 | BC42: 1105.98435 | BD42: 132.44733 | BE42: 111.34072 | BF42: 5404.62649 | BH42: 3726.70498 | BI42: 0 | BK42: 1677.92151 | BL42: 0.1106 | BM42: 89.15734 | BN42: 30.66353 | BO42: -25.34521 | BP42: 1638.77176 | BR42: 6933.07981 | BX42: 6608.22267 | BZ42: 33476.19439 | CE42: 9.9 | CM42: -264.8607 | CN42: -4489.24596 | CO42: 0 | CP42: 18.37169 | CQ42: 0 | CS42: 31.47529 | CT42: -2974.34057 | CU42: 48.198 | CV42: 36.35113 | CW42: 0
A43: 145 | B43: Ilmajoki | C43: 12343 | D43: 8.36 | G43: 16977.93366 | H43: 50575.86753 | I43: 0 | J43: 21226.90878 | K43: 1929.13627 | L43: 3009.02715 | M43: 26165.0722 | N43: 15829.194 | O43: 26.56176 | P43: 1595.92957 | Q43: 186.4236 | R43: 100.75417 | S43: 6912.63395 | U43: 6328.9622 | V43: 0 | X43: 583.67175 | Y43: 3.9885 | Z43: 1.97776 | AA43: 0 | AB43: 0.11891 | AC43: 585.8014 | AE43: 2818.79285 | AK43: 4433.62985 | AM43: 78198.85634 | AP43: 12429 | AQ43: 8.4 | AT43: 17845.39454 | AU43: 49376.11813 | AV43: 0 | AW43: 21185.02373 | AX43: 1406.28343 | AY43: 3266.36196 | AZ43: 25857.66912 | BA43: 13766.195 | BB43: 15.52249 | BC43: 1905.74484 | BD43: 255.63984 | BE43: 73.18744 | BF43: 6385.37058 | BH43: 5644.04712 | BI43: 0 | BK43: 741.32346 | BL43: -0.39854 | BM43: -3.95552 | BN43: 0 | BO43: -0.12698 | BP43: 742.7757 | BR43: 3477.64256 | BX43: 3046.89887 | BZ43: 76858.08494 | CE43: 9.2 | CM43: 81.45252 | CN43: -6125.45123 | CO43: 70.32894 | CP43: 182.82371 | CQ43: 75.92285 | CS43: -252.57562 | CT43: -4350.49349 | CU43: 81.85707 | CV43: 401.46865 | CW43: 144.4415
A44: 146 | B44: Ilomantsi | C44: 4406 | D44: 8.36 | G44: 8254.01002 | H44: 19379.99128 | I44: -1.03725 | J44: 6335.32161 | K44: 2605.22912 | L44: 1577.95607 | M44: 10518.5068 | N44: 4989.3 | O44: 51.6034 | P44: 400.8621 | Q44: 619.53203 | R44: 121.62527 | S44: 4529.43635 | U44: 2164.44598 | V44: 4.30535 | X44: 2369.29572 | Y44: -12.53896 | Z44: 119.2278 | AA44: 0 | AB44: -12.33513 | AC44: 2225.19383 | AE44: 3768.24239 | AK44: 12444.50646 | AM44: 14183.71303 | AP44: 4382 | AQ44: 8.4 | AT44: 6666.10009 | AU44: 19424.34198 | AV44: 0.88532 | AW44: 6410.73238 | AX44: 2498.25057 | AY44: 1690.97385 | AZ44: 10599.9568 | BA44: 5902.97318 | BB44: 79.96401 | BC44: 578.49393 | BD44: 480.57205 | BE44: 8.7948 | BF44: 3718.82074 | BH44: 1772.31099 | BI44: 9.11338 | BK44: 1951.06644 | BL44: 1.52895 | BM44: 141.75246 | BN44: -5.89616 | BO44: 35.54785 | BP44: 1911.37085 | BR44: 5715.88725 | BX44: 13761.88897 | BZ44: 12437.00869 | CE44: 8.6 | CM44: -76.27931 | CN44: -1131.24568 | CO44: 0 | CP44: 137.31756 | CQ44: -0.25655 | CS44: 62.51256 | CT44: -963.71688 | CU44: 0.17882 | CV44: 32.82713 | CW44: -7.33
A45: 153 | B45: Imatra | C45: 24919 | D45: 7.36 | G45: 49997.3862 | H45: 112413.3019 | I45: -128.25326 | J45: 42575.79654 | K45: 4054.70603 | L45: 11943.08896 | M45: 58573.59153 | N45: 36119.21504 | O45: 812.56721 | P45: 5210.063 | Q45: 343.93455 | R45: 85.72269 | S45: 28009.35369 | U45: 23266.81927 | V45: 0 | X45: 4742.53442 | Y45: 50.25964 | Z45: 198.37315 | AA45: 53.8026 | AB45: 59.24337 | AC45: 4707.46688 | AE45: 51513.10657 | AK45: 9843.39684 | AM45: 247797.6515 | AP45: 24724 | AQ45: 8.6 | AT45: 48130.77704 | AU45: 113692.1253 | AV45: 387.6176 | AW45: 46726.03365 | AX45: 4386.48117 | AY45: 12276.25261 | AZ45: 63388.76743 | BA45: 30802.97814 | BB45: 958.46663 | BC45: 5488.54487 | BD45: 792.21621 | BE45: 91.59982 | BF45: 25188.55304 | BH45: 19817.2524 | BI45: 0 | BK45: 5371.30064 | BL45: 9.82531 | BM45: 142.2264 | BN45: -84.467 | BO45: 20.92304 | BP45: 5246.46879 | BR45: 56800.02368 | BX45: 8083.45554 | BZ45: 242806.553 | CE45: 8.6 | CM45: 544.07917 | CN45: -31743.87402 | CO45: 5191.73589 | CP45: 643.25427 | CQ45: -18.725 | CS45: -394.87811 | CT45: -31021.80851 | CU45: 2472.84649 | CV45: 1060.07426 | CW45: -1288.54614
A46: 148 | B46: Inari | C46: 7127 | D46: 6.36 | G46: 26947.74997 | H46: 45266.71538 | I46: 7.47903 | J46: 11132.32 | K46: 2391.04642 | L46: 5259.23714 | M46: 18782.60356 | N46: 10145.673 | O46: 201.14867 | P46: 941.17695 | Q46: 177.08661 | R46: 182.81071 | S46: 9580.14955 | U46: 7488.29326 | V46: 0 | X46: 2091.85629 | Y46: 117.50596 | Z46: 190.36417 | AA46: 49 | AB46: -164.38598 | AC46: 1903.6121 | AE46: 35826.60094 | AK46: 13086.81882 | AM46: 36398.26554 | AP46: 7224 | AQ46: 6.4 | AT46: 27775.91107 | AU46: 46545.442 | AV46: 22.95563 | AW46: 10571.10737 | AX46: 1959.63156 | AY46: 5519.31609 | AZ46: 17756.37593 | BA46: 11374.16041 | BB46: 196.8818 | BC46: 1119.64592 | BD46: 304.04896 | BE46: 121.12126 | BF46: 9644.12462 | BH46: 7775.69881 | BI46: 0 | BK46: 1868.42581 | BL46: 2.49771 | BM46: 542.03596 | BN46: -73.02964 | BO46: -161.63315 | BP46: 1365.24275 | BR46: 35660.56642 | BX46: 13187.6933 | BZ46: 34802.89483 | CE46: 6.4 | CM46: -1003.73694 | CN46: -13789.07339 | CO46: 0 | CP46: 5910.42862 | CQ46: 260.12809 | CS46: -561.73682 | CT46: -12411.11205 | CU46: 358.796 | CV46: 3269.75192 | CW46: 0
A47: 149 | B47: Inkoo | C47: 5379 | D47: 8.11 | G47: 4410.48462 | H47: 20229.15078 | I47: 0 | J47: 11997.341 | K47: 1140.16463 | L47: 3169.02709 | M47: 16306.53272 | N47: 2546.16255 | O47: 12.70723 | P47: 752.02065 | Q47: 12.72265 | R47: 3.48147 | S47: 2303.95687 | U47: 2619.85367 | V47: 0 | X47: -315.8968 | Y47: 1.2469 | Z47: 0.00019 | AA47: 0 | AB47: 0 | AC47: -314.65009 | AE47: 14289.78639 | AK47: 1770.8998 | AM47: 30852.56326 | AP47: 5402 | AQ47: 8.1 | AT47: 5565.64882 | AU47: 21438.15387 | AV47: 672.02031 | AW47: 11036.88915 | AX47: 795.68561 | AY47: 3443.18084 | AZ47: 15275.7556 | BA47: 2554.47044 | BB47: 46.1597 | BC47: 1210.29733 | BD47: 24.92259 | BE47: 16.03156 | BF47: 1474.4947 | BH47: 3685.45252 | BI47: 0 | BK47: -2210.95782 | BL47: 0.62139 | BM47: 0 | BN47: 0 | BO47: 0 | BP47: -2210.33643 | BR47: 12079.44995 | BX47: 402.02 | BZ47: 34734.39531 | CE47: 8.1 | CM47: -97.61161 | CN47: -14724.15315 | CO47: 898.5228 | CP47: 107.71857 | CQ47: 6.67939 | CS47: -1477.52861 | CT47: -5658.4362 | CU47: 471.02559 | CV47: -303.01784 | CW47: -69.58221
A48: 151 | B48: Isojoki | C48: 1814 | D48: 9.86 | G48: 2135.24929 | H48: 7395.74769 | I48: 97.02421 | J48: 3042.86854 | K48: 899.54025 | L48: 1149.27432 | M48: 5091.68311 | N48: 1675.54845 | O48: 0 | P48: 17.39011 | Q48: 19.33049 | R48: 17.48758 | S48: 1588.21017 | U48: 1527.34228 | V48: -51.89021 | X48: 8.97768 | Y48: -1.99998 | Z48: 0 | AA48: -0.73183 | AB48: 0 | AC48: 6.24587 | AE48: 3722.88673 | AK48: 3620.08833 | AM48: 752.02323 | AP48: 1794 | AQ48: 9.8 | AT48: 2072.85044 | AU48: 7466.57126 | AV48: 25.86568 | AW48: 3126.93409 | AX48: 992.52145 | AY48: 1433.22261 | AZ48: 5552.67815 | BA48: 1357.26379 | BB48: 59.08298 | BC48: 23.09507 | BD48: 21.10988 | BE48: 19.53877 | BF48: 1579.64582 | BH48: 673.75433 | BI48: 44.3636 | BK48: 928.07329 | BL48: 2.64979 | BM48: 0 | BN48: -0.45734 | BO48: -4.73636 | BP48: 925.52938 | BR48: 4652.28033 | BX48: 5193.50227 | BZ48: 708.03051 | CE48: 9.8 | CM48: 88.43528 | CN48: -870.94956 | CO48: 1.2 | CP48: 581.14293 | CQ48: 18 | CS48: -52.20627 | CT48: -403.76368 | CU48: 34.03961 | CV48: 39.5 | CW48: -17.55
A49: 152 | B49: Isokyrö | C49: 4357 | D49: 8.86 | G49: 5340.41218 | H49: 16254.81374 | I49: 18.46491 | J49: 7504.66858 | K49: 879.41506 | L49: 986.80238 | M49: 9370.88602 | N49: 5187.70103 | O49: 10.35269 | P49: 182.89064 | Q49: 42.01154 | R49: 19.76867 | S49: 3475.70496 | U49: 2318.6609 | V49: 0 | X49: 1157.04406 | Y49: -0.70549 | Z49: 0 | AA49: 0 | AB49: 0 | AC49: 1156.33857 | AE49: 17580.19311 | AK49: 2642.84153 | AM49: 8051.47908 | AP49: 4319 | AQ49: 9.5 | AT49: 5836.04858 | AU49: 16254.40839 | AV49: 19.22905 | AW49: 8048.05754 | AX49: 690.70388 | AY49: 1103.34509 | AZ49: 9802.0582 | BA49: 4615.90931 | BB49: 21.92216 | BC49: 301.72301 | BD49: 65.43488 | BE49: 11.46136 | BF49: 3793.00942 | BH49: 2408.4248 | BI49: -3.3498 | BK49: 1382.90972 | BL49: -0.04364 | BM49: 0 | BN49: 0 | BO49: 0 | BP49: 1382.86608 | BR49: 18958.80574 | BX49: 3525.84257 | BZ49: 8593.5896 | CE49: 9.5 | CM49: -13.881 | CN49: -4732.96716 | CO49: 8.16318 | CP49: 38.57795 | CQ49: 26.98133 | CS49: -7.79263 | CT49: -3432.54557 | CU49: 23.88023 | CV49: 35.32542 | CW49: 35.12937
A50: 165 | B50: Janakkala | C50: 16123 | D50: 8.36 | G50: 21327.92367 | H50: 61683.01396 | I50: 0 | J50: 31662.3035 | K50: 3051.32003 | L50: 4238.06921 | M50: 38951.69274 | N50: 16684.48719 | O50: 104.90289 | P50: 1376.96098 | Q50: 171.53354 | R50: 24.718 | S50: 13911.75469 | U50: 9042.73795 | V50: 0 | X50: 4869.01674 | Y50: 1.44299 | Z50: 9.51475 | AA50: 1.77828 | AB50: 0.96187 | AC50: 4863.68513 | AE50: 13424.48436 | AK50: 15384.81448 | AM50: 66909.72285 | AP50: 16015 | AQ50: 8.4 | AT50: 21960.1345 | AU50: 62922.67957 | AV50: 0 | AW50: 31028.09208 | AX50: 2800.62407 | AY50: 4556.4925 | AZ50: 38133.19085 | BA50: 14343.04066 | BB50: 117.00728 | BC50: 1795.48927 | BD50: 388.68512 | BE50: 2.37715 | BF50: 10221.51242 | BH50: 7517.72828 | BI50: 0 | BK50: 2703.78414 | BL50: 2.04424 | BM50: 28.78074 | BN50: -1.17 | BO50: 9.56309 | BP50: 2699.8311 | BR50: 16089.20348 | BX50: 2513.34359 | BZ50: 62965.11985 | CE50: 8.7 | CM50: -216.68968 | CN50: -12883.89628 | CO50: 1546.6593 | CP50: 334.16442 | CQ50: 0.09616 | CS50: -223.44714 | CT50: -18063.44061 | CU50: 72 | CV50: 361.08057 | CW50: 0
A51: 167 | B51: Joensuu | C51: 78062 | D51: 7.86 | G51: 161265.1415 | H51: 358924.1799 | I51: -367.70987 | J51: 119920.7654 | K51: 27220.88491 | L51: 23596.24901 | M51: 170737.8993 | N51: 114322.0821 | O51: 966.26817 | P51: 8829.95197 | Q51: 9458.46937 | R51: 2770.45215 | S51: 85857.56659 | U51: 56960.22727 | V51: 0 | X51: 28897.33932 | Y51: -926.6792 | Z51: 803.91377 | AA51: -91.23921 | AB51: -225.50896 | AC51: 26849.99818 | AE51: 79333.61134 | AK51: 149795.298 | AM51: 461301.958 | AP51: 78741 | AQ51: 7.9 | AT51: 162814.6775 | AU51: 358479.1846 | AV51: 463.74842 | AW51: 122564.8468 | AX51: 21503.46333 | AY51: 24407.90893 | AZ51: 168476.219 | BA51: 99707.92119 | BB51: 1354.59309 | BC51: 11645.87667 | BD51: 9150.08298 | BE51: 1080.01148 | BF51: 70762.16942 | BH51: 64807.37921 | BI51: 0 | BK51: 5954.79021 | BL51: 13.81881 | BM51: 1595.17614 | BN51: -134.94207 | BO51: -22.18093 | BP51: 5013.89795 | BR51: 84013.9114 | BX51: 163122.0378 | BZ51: 481617.2239 | CE51: 8.1 | CM51: 5013.82934 | CN51: -71846.06678 | CO51: 3417.97124 | CP51: 1578.71016 | CQ51: -6.12815 | CS51: -11770.26084 | CT51: -70030.76617 | CU51: 2601.80001 | CV51: 4287.64502 | CW51: 861.5883
A52: 169 | B52: Jokioinen | C52: 4916 | D52: 8.61 | G52: 5836.60373 | H52: 19044.88732 | I52: 0 | J52: 9360.97092 | K52: 735.73864 | L52: 1266.82275 | M52: 11363.53231 | N52: 4493.53752 | O52: 32.68887 | P52: 334.69228 | Q52: 103.16628 | R52: 28.83572 | S52: 2421.11339 | U52: 2167.99565 | V52: 0 | X52: 253.11774 | Y52: 0.48 | Z52: -1.27738 | AA52: 0 | AB52: 11.49506 | AC52: 266.37018 | AE52: 9014.60014 | AK52: 1325.95752 | AM52: 12354.67546 | AP52: 4848 | AQ52: 8.7 | AT52: 5787.60664 | AU52: 19284.46932 | AV52: 0 | AW52: 8962.68702 | AX52: 543.02497 | AY52: 1311.6766 | AZ52: 10817.38859 | BA52: 4623.88969 | BB52: 62.31337 | BC52: 425.0228 | BD52: 93.87354 | BE52: 5.05818 | BF52: 1670.52153 | BH52: 2100.86146 | BI52: -2945.45028 | BK52: -1903.06507 | BL52: 0.68 | BM52: -15.23202 | BN52: 0 | BO52: 27.29871 | BP52: -1867.47035 | BR52: 8006.07945 | BX52: 1693.25201 | BZ52: 11572.05259 | CE52: 9 | CM52: -24.15907 | CN52: -1334.35533 | CO52: 0 | CP52: 5.72121 | CQ52: 0 | CS52: 1356.54511 | CT52: -3155.07698 | CU52: 10 | CV52: 2817.74633 | CW52: -15
A53: 171 | B53: Joroinen | C53: 4590 | D53: 8.61 | G53: 5486.78038 | H53: 16212.77341 | I53: 8.21745 | J53: 7984.52523 | K53: 1404.50174 | L53: 1227.07286 | M53: 10616.09983 | N53: 2635.019 | O53: 93.0381 | P53: 508.57441 | Q53: 403.84979 | R53: 114.68669 | S53: 2357.67212 | U53: 1353.02971 | V53: 0 | X53: 1004.64241 | Y53: 70.82874 | Z53: 0 | AA53: 0 | AB53: 6.8596 | AC53: 1082.33075 | AE53: 3366.72204 | AK53: 10603.76266 | AM53: 22319.39608 | AP53: 4552 | AQ53: 8.6 | AT53: 5651.50504 | AU53: 16183.52184 | AV53: -4.19415 | AW53: 8049.9442 | AX53: 1235.25358 | AY53: 1311.00807 | AZ53: 10546.74293 | BA53: 2681.931 | BB53: 76.16448 | BC53: 555.41315 | BD53: 466.0455 | BE53: 77.1224 | BF53: 2602.13741 | BH53: 1195.27489 | BI53: 0 | BK53: 1406.86252 | BL53: 25.36399 | BM53: 0 | BN53: 0 | BO53: 16.54752 | BP53: 1448.77403 | BR53: 4021.0588 | BX53: 11289.41699 | BZ53: 21642.40976 | CE53: 8.6 | CM53: 113.50145 | CN53: -1252.62206 | CO53: 119 | CP53: 328.95 | CQ53: -136.21933 | CS53: -116.2814 | CT53: -1209.01707 | CU53: 4.90361 | CV53: 313.74798 | CW53: 49.9
A54: 172 | B54: Joutsa | C54: 4079 | D54: 8.36 | G54: 6830.24502 | H54: 16959.66542 | I54: 19.53854 | J54: 6142.98897 | K54: 1405.33755 | L54: 1862.69987 | M54: 9411.02639 | N54: 3530.59905 | O54: 26.1913 | P54: 602.36713 | Q54: 251.77192 | R54: 12.04453 | S54: 2453.33074 | U54: 2138.82387 | V54: 18.8727 | X54: 333.37957 | Y54: -0.45773 | Z54: 16.66976 | AA54: -13.01541 | AB54: 4.20586 | AC54: 307.44253 | AE54: 2995.58719 | AK54: 2446.96605 | AM54: 22229.17558 | AP54: 4099 | AQ54: 9 | AT54: 7676.17223 | AU54: 17506.50298 | AV54: 16.64555 | AW54: 6364.87909 | AX54: 1133.25442 | AY54: 2131.93562 | AZ54: 9586.64263 | BA54: 4327.05247 | BB54: 16.61066 | BC54: 618.09147 | BD54: 267.42442 | BE54: 64.11157 | BF54: 3701.84194 | BH54: 3368.84816 | BI54: -11.75976 | BK54: 327.1139 | BL54: 0.45703 | BM54: 32.14156 | BN54: -38.85443 | BO54: 13.10652 | BP54: 285.75224 | BR54: 4451.80528 | BX54: 2892.69306 | BZ54: 20279.66031 | CE54: 9 | CM54: -19.35854 | CN54: -876.41204 | CO54: 0 | CP54: 54.48066 | CQ54: 0 | CS54: 44.65483 | CT54: -863.72197 | CU54: 0 | CV54: 12.24964 | CW54: -6.66667
A55: 176 | B55: Juuka | C55: 4259 | D55: 8.11 | G55: 9008.10262 | H55: 17675.43585 | I55: 0 | J55: 5605.34023 | K55: 1552.7474 | L55: 1308.62968 | M55: 8466.71731 | N55: 3248.513 | O55: 240.0277 | P55: 29.66087 | Q55: 407.85023 | R55: 4.74671 | S55: 3661.36743 | U55: 2060.70671 | V55: 0 | X55: 1600.66072 | Y55: -10.38942 | Z55: 0 | AA55: 0 | AB55: 0 | AC55: 1590.2713 | AE55: 13651.18928 | AK55: 8904.18695 | AM55: 8705.31199 | AP55: 4160 | AQ55: 8.5 | AT55: 8955.4938 | AU55: 17539.11126 | AV55: 0 | AW55: 5984.57421 | AX55: 1382.15132 | AY55: 1513.42264 | AZ55: 8880.14817 | BA55: 2086.219 | BB55: 253.53564 | BC55: 41.26508 | BD55: 439.85008 | BE55: 5.1366 | BF55: 3029.73375 | BH55: 1970.29914 | BI55: 0 | BK55: 1059.43461 | BL55: 1.26684 | BM55: 4.57302 | BN55: 0 | BO55: 0 | BP55: 1058.41494 | BR55: 14510.92709 | BX55: 9420.88404 | BZ55: 7381.31599 | CE55: 8.5 | CM55: -220.82057 | CN55: -1258.29287 | CO55: 0 | CP55: 487.09254 | CQ55: -0.21257 | CS55: -35.72599 | CT55: -917.38871 | CU55: 15.14817 | CV55: 41.20554 | CW55: 0
A56: 177 | B56: Juupajoki | C56: 1708 | D56: 8.36 | G56: 2713.96615 | H56: 7171.12287 | I56: -17.27484 | J56: 2695.27113 | K56: 1004.17982 | L56: 581.36109 | M56: 4280.81204 | N56: 870.71 | O56: 58.25138 | P56: 87.62494 | Q56: 57.21139 | R56: 16.85672 | S56: 688.07159 | U56: 672.45179 | V56: 0 | X56: 15.6198 | Y56: 10.60763 | Z56: 0.33244 | AA56: 0 | AB56: 88.64505 | AC56: 114.54004 | AE56: 3572.72515 | AK56: 2692.1139 | AM56: 3108.42604 | AP56: 1668 | AQ56: 8.4 | AT56: 2659.88502 | AU56: 7295.07064 | AV56: 14.11781 | AW56: 2652.69508 | AX56: 1325.707 | AY56: 563.28442 | AZ56: 4541.6865 | BA56: 1124.75 | BB56: 65.85963 | BC56: 83.31089 | BD56: 53.11747 | BE56: 18.12564 | BF56: 1062.90926 | BH56: 935.69839 | BI56: 0 | BK56: 127.21087 | BL56: 0.0364 | BM56: 0.14224 | BN56: 0 | BO56: -2.14752 | BP56: 125.02863 | BR56: 3804.33826 | BX56: 3214.977 | BZ56: 2813.63105 | CE56: 8.4 | CM56: 16.88151 | CN56: -296.58471 | CO56: 0 | CP56: 0.82333 | CQ56: 19 | CS56: -13.65814 | CT56: -455.15813 | CU56: 48 | CV56: 5.29808 | CW56: 17
A57: 178 | B57: Juva | C57: 5734 | D57: 8.11 | G57: 8171.82287 | H57: 22802.3341 | I57: 73.23043 | J57: 8299.72343 | K57: 1993.80199 | L57: 1682.23186 | M57: 11975.75728 | N57: 3901.14042 | O57: 49.0205 | P57: 519.55854 | Q57: 1000.35718 | R57: 25.34186 | S57: 1773.74999 | U57: 2693.94822 | V57: 0 | X57: -920.19823 | Y57: 0 | Z57: 11.26528 | AA57: 21.15269 | AB57: 0.65857 | AC57: -909.65225 | AE57: 2686.67703 | AK57: 1622.61045 | AM57: 23851.49554 | AP57: 5674 | AQ57: 8.1 | AT57: 7982.01283 | AU57: 21821.03101 | AV57: 15.69634 | AW57: 8453.64653 | AX57: 1688.34781 | AY57: 1863.14871 | AZ57: 11954.6974 | BA57: 4140.34749 | BB57: 58.95126 | BC57: 664.08792 | BD57: 1482.57191 | BE57: 28.24182 | BF57: 3120.91648 | BH57: 2681.25906 | BI57: 0 | BK57: 439.65742 | BL57: 0 | BM57: 57.4392 | BN57: 0.15281 | BO57: 0.01342 | BP57: 411.10405 | BR57: 3097.78118 | BX57: 3869.37513 | BZ57: 26199.03666 | CE57: 9.1 | CM57: -144.41159 | CN57: -1796.30939 | CO57: 46.9 | CP57: 216.33983 | CQ57: -437.7 | CS57: -111.27937 | CT57: -3248.63821 | CU57: 47.65962 | CV57: 151.12743 | CW57: 55.5
A58: 179 | B58: Jyväskylä | C58: 147746 | D58: 7.36 | G58: 427935.2248 | H58: 724101.4599 | I58: 2107.96908 | J58: 241856.5213 | K58: 35310.81917 | L58: 57993.30434 | M58: 335160.6448 | N58: 161423.0624 | O58: 2110.67462 | P58: 21593.08605 | Q58: 3585.63199 | R58: 1736.88458 | S58: 180713.1871 | U58: 117234.4978 | V58: 0 | X58: 63478.68928 | Y58: 338.02453 | Z58: 9091.0904 | AA58: -973.57494 | AB58: -397.89598 | AC58: 53354.15249 | AE58: 234403.968 | AK58: 30620.78862 | AM58: 887933.5231 | AP58: 149194 | AQ58: 8 | AT58: 417606.8378 | AU58: 735823.9966 | AV58: 222.53983 | AW58: 256633.193 | AX58: 27703.85075 | AY58: 58798.06151 | AZ58: 338934.2104 | BA58: 138483.5485 | BB58: 3126.05609 | BC58: 25467.9466 | BD58: 3292.23331 | BE58: 160.60166 | BF58: 140212.881 | BH58: 117658.3324 | BI58: 0 | BK58: 22554.54861 | BL58: 35.82553 | BM58: 4415.67242 | BN58: -482.47609 | BO58: -906.27968 | BP58: 18993.78216 | BR58: 253123.4437 | BX58: 33187.17416 | BZ58: 914073.9376 | CE58: 8.1 | CM58: 6909.71977 | CN58: -139557.9853 | CO58: 3223.1482 | CP58: 16285.5432 | CQ58: -13.13511 | CS58: -7320.07902 | CT58: -154264.0725 | CU58: 1506.41214 | CV58: 17678.32503 | CW58: 2.691
A59: 181 | B59: Jämijärvi | C59: 1682 | D59: 9.86 | G59: 878.32807 | H59: 5469.87031 | I59: 0 | J59: 2869.01562 | K59: 320.5266 | L59: 729.41682 | M59: 3918.95904 | N59: 2398.28875 | O59: 0.22082 | P59: 406.51968 | Q59: 37.94284 | R59: 13.27008 | S59: 1340.90475 | U59: 974.22352 | V59: 0 | X59: 366.68123 | Y59: 0 | Z59: 0 | AA59: -0.7 | AB59: -3e-05 | AC59: 365.9812 | AE59: -330.58041 | AK59: 702.11314 | AM59: 11703.26147 | AP59: 1658 | AQ59: 9.9 | AT59: 1482.44408 | AU59: 5602.88784 | AV59: 0 | AW59: 2947.11952 | AX59: 268.98884 | AY59: 816.65328 | AZ59: 4029.53924 | BA59: 1813.63 | BB59: 2.55322 | BC59: 487.1525 | BD59: 38.25614 | BE59: 2.54941 | BF59: 1273.83293 | BH59: 968.39722 | BI59: -1.49826 | BK59: 304.68658 | BL59: 0 | BM59: 0 | BN59: -1.92 | BO59: -0.0209 | BP59: 302.74568 | BR59: -116.2467 | BX59: 786.25295 | BZ59: 10767.67125 | CE59: 10 | CM59: -37.28155 | CN59: -328.6689 | CO59: 0 | CP59: 36.11423 | CQ59: -47.09317 | CS59: -159.17949 | CT59: -336.75099 | CU59: 14.8 | CV59: 167.8 | CW59: -35.09317
A60: 182 | B60: Jämsä | C60: 19182 | D60: 8.36 | G60: 40706.00934 | H60: 95103.01574 | I60: 0 | J60: 32896.44065 | K60: 8163.58251 | L60: 6284.05435 | M60: 47344.07751 | N60: 23026.74867 | O60: 41.44053 | P60: 978.22163 | Q60: 226.91813 | R60: 52.3826 | S60: 15211.57421 | U60: 12200.67902 | V60: 0 | X60: 3010.89519 | Y60: -2.71784 | Z60: 24.69414 | AA60: 0 | AB60: 1.99667 | AC60: 2985.47988 | AE60: 4530.322 | AK60: 12532.46821 | AM60: 37105.61543 | AP60: 19116 | AQ60: 9.4 | AT60: 37109.4771 | AU60: 91708.06848 | AV60: 0 | AW60: 37656.75669 | AX60: 6924.85303 | AY60: 6134.49362 | AZ60: 50716.10334 | BA60: 18828.65026 | BB60: 73.79298 | BC60: 1064.82098 | BD60: 212.88186 | BE60: 525.86932 | BF60: 13642.14676 | BH60: 12395.39677 | BI60: 0 | BK60: 1246.74999 | BL60: 2.71369 | BM60: 222.38674 | BN60: 0 | BO60: -2.53071 | BP60: 1135.7396 | BR60: 5885.45029 | BX60: 16020.17181 | BZ60: 33268.41933 | CE60: 9.4 | CM60: -1563.45225 | CN60: -7759.23605 | CO60: 260.2 | CP60: 3326.23455 | CQ60: 7938.64872 | CS60: 2403.5713 | CT60: -7452.52173 | CU60: 556.649 | CV60: 338.63366 | CW60: 22.31324
A61: 186 | B61: Järvenpää | C61: 46490 | D61: 7.61 | G61: 64412.10698 | H61: 168406.5767 | I61: 10.25303 | J61: 98811.05647 | K61: 6442.47912 | L61: 18599.8182 | M61: 123853.3538 | N61: 34960.94606 | O61: 630.89966 | P61: 11697.43891 | Q61: 875.75767 | R61: -1204.13537 | S61: 44715.84866 | U61: 35159.04686 | V61: 0 | X61: 9556.8018 | Y61: 8.92383 | Z61: 76.69436 | AA61: 48.39534 | AB61: 0 | AC61: 9537.42661 | AE61: 10934.08741 | AK61: 16297.22976 | AM61: 450159.2297 | AP61: 46871 | AQ61: 7.6 | AT61: 65365.74445 | AU61: 168637.3736 | AV61: 574.56589 | AW61: 94717.14792 | AX61: 4876.04006 | AY61: 18863.38155 | AZ61: 117212.5031 | BA61: 29264.97487 | BB61: 1870.2517 | BC61: 14347.55113 | BD61: 385.82658 | BE61: -1115.65052 | BF61: 32804.59238 | BH61: 34462.3177 | BI61: 0 | BK61: -1657.72532 | BL61: 4.42981 | BM61: 14.14884 | BN61: -45.53521 | BO61: 0 | BP61: -1705.90514 | BR61: 9227.68563 | BX61: 17246.91971 | BZ61: 453021.7623 | CE61: 7.6 | CM61: -7538.71695 | CN61: -48427.41089 | CO61: 613.37142 | CP61: 10035.76795 | CQ61: 2.89655 | CS61: -4300.92324 | CT61: -44893.61153 | CU61: 801.5919 | CV61: 8366.32967 | CW61: 54.46651
A62: 202 | B62: Kaarina | C62: 36339 | D62: 7.61 | G62: 33366.21691 | H62: 128760.7412 | I62: -128.73233 | J62: 74901.56224 | K62: 7091.61839 | L62: 8614.7875 | M62: 90607.96813 | N62: 29847.20674 | O62: 1097.7567 | P62: 3988.57039 | Q62: 4940.38747 | R62: 4729.85304 | S62: 22251.63897 | U62: 14319.35335 | V62: 0 | X62: 7932.28562 | Y62: 0 | Z62: -0.86004 | AA62: 4.18677 | AB62: 42.03533 | AC62: 7979.36776 | AE62: 49248.7 | AK62: 35249.43386 | AM62: 147606.1366 | AP62: 36551 | AQ62: 7.6 | AT62: 34529.60075 | AU62: 132030.1477 | AV62: 14.95688 | AW62: 73998.01215 | AX62: 5310.3613 | AY62: 9267.08268 | AZ62: 88575.45613 | BA62: 30848.24251 | BB62: 593.80267 | BC62: 3935.37306 | BD62: 1653.94586 | BE62: 1372.9387 | BF62: 18877.54531 | BH62: 13579.5125 | BI62: 0 | BK62: 5298.03281 | BL62: 0 | BM62: 4.4369 | BN62: 1.37048 | BO62: 38.12444 | BP62: 5335.30928 | BR62: 53768.5385 | BX62: 11307.34666 | BZ62: 155978.8222 | CE62: 7.6 | CM62: -254.29 | CN62: -39296.973 | CO62: 168.75 | CP62: 954.25204 | CQ62: -4055.4084 | CS62: -2392.30547 | CT62: -53313.22092 | CU62: 889.94861 | CV62: 2980.28021 | CW62: 155.4084
A63: 204 | B63: Kaavi | C63: 2628 | D63: 9.36 | G63: 2546.74559 | H63: 9253.47455 | I63: 61.43263 | J63: 3822.87612 | K63: 1184.18379 | L63: 1258.53178 | M63: 6265.59169 | N63: 782.17407 | O63: 5.27543 | P63: 280.69431 | Q63: 184.28586 | R63: 4.27222 | S63: 282.49194 | U63: 855.74715 | V63: 0 | X63: -573.25521 | Y63: 0.43151 | Z63: 0.22936 | AA63: 0 | AB63: 0 | AC63: -573.05306 | AE63: 1103.00183 | AK63: 651.62434 | AM63: 11092.70231 | AP63: 2589 | AQ63: 9.8 | AT63: 2419.14127 | AU63: 8540.86957 | AV63: 7.97551 | AW63: 4377.17689 | AX63: 828.6718 | AY63: 1309.93616 | AZ63: 6491.10241 | BA63: 246.18492 | BB63: 0.49697 | BC63: 360.86303 | BD63: 281.00591 | BE63: 3.89675 | BF63: 540.27764 | BH63: 1145.89665 | BI63: 1.44034 | BK63: -604.89885 | BL63: 2.63136 | BM63: 1.59242 | BN63: 0 | BO63: 0 | BP63: -603.0637 | BR63: 459.18226 | BX63: 1007.86574 | BZ63: 11720.84904 | CE63: 9.9 | CM63: 230.23786 | CN63: -1085.6289 | CO63: 0 | CP63: 200.63727 | CQ63: 7.59144 | CS63: -286.15985 | CT63: -257.99556 | CU63: 5.98406 | CV63: 297.20601 | CW63: 0
A64: 205 | B64: Kajaani | C64: 36513 | D64: 8.36 | G64: 189449.7269 | H64: 275114.2598 | I64: 203.53618 | J64: 64297.28477 | K64: 6335.0097 | L64: 11359.7959 | M64: 81992.09037 | N64: 63096.849 | O64: 1709.61878 | P64: 15891.66952 | Q64: 12895.71084 | R64: 3156.17165 | S64: 53722.83606 | U64: 46239.21143 | V64: 0 | X64: 7483.62463 | Y64: 43.06506 | Z64: 1347.27165 | AA64: -3056.96474 | AB64: 0.20337 | AC64: 3122.65667 | AE64: 122102.2235 | AK64: 221784.3807 | AM64: 577360.2466 | AP64: 36433 | AQ64: 8.4 | AT64: 149930.4937 | AU64: 239920.7643 | AV64: 409.05352 | AW64: 66253.6028 | AX64: 7319.23572 | AY64: 11830.72437 | AZ64: 83892.69557 | BA64: 66883.41246 | BB64: 2710.45724 | BC64: 15463.88386 | BD64: 13015.27991 | BE64: 2553.7989 | BF64: 58902.94534 | BH64: 44936.65792 | BI64: 0 | BK64: 13966.28742 | BL64: 70.41437 | BM64: 364.91916 | BN64: -2824.70436 | BO64: 8.78804 | BP64: 11038.32589 | BR64: 129380.3245 | BX64: 203822.4141 | BZ64: 566590.3172 | CE64: 8.4 | CM64: -1635.30037 | CN64: -47819.36635 | CO64: 1588.83763 | CP64: 453.95209 | CQ64: 56.00506 | CS64: -1337.4413 | CT64: -49956.86358 | CU64: 104.70336 | CV64: 2198.68037 | CW64: 128.77568
A65: 208 | B65: Kalajoki | C65: 12372 | D65: 8.36 | G65: 25236.71766 | H65: 61220.44133 | I65: 95.92418 | J65: 19552.52825 | K65: 2972.04864 | L65: 7611.08659 | M65: 30135.66348 | N65: 19185.56369 | O65: 156.28725 | P65: 1088.19997 | Q65: 1133.8636 | R65: 484.6917 | S65: 15452.22403 | U65: 9484.61071 | V65: -0.00459 | X65: 5967.60873 | Y65: 11.19458 | Z65: -33.09966 | AA65: 3.47267 | AB65: -29.5701 | AC65: 5985.80554 | AE65: 34076.8396 | AK65: 24914.85642 | AM65: 49765.67309 | AP65: 12271 | AQ65: 8.3 | AT65: 27795.98557 | AU65: 61938.44613 | AV65: -48.27795 | AW65: 19317.26043 | AX65: 3178.68271 | AY65: 8218.59246 | AZ65: 33009.28996 | BA65: 17423.57846 | BB65: 372.29415 | BC65: 1563.07557 | BD65: 1919.50806 | BE65: 149.19453 | BF65: 16821.66202 | BH65: 8303.09917 | BI65: 0 | BK65: 8518.56285 | BL65: 7.01902 | BM65: -89.1071 | BN65: -4.81982 | BO65: 14.35989 | BP65: 8579.67549 | BR65: 42656.5151 | BX65: 26593.11583 | BZ65: 49419.26705 | CE65: 8.3 | CM65: -294.80566 | CN65: -8258.81331 | CO65: 989.37471 | CP65: 323.63561 | CQ65: 20.88713 | CS65: -4534.91103 | CT65: -21425.00536 | CU65: 3672.88934 | CV65: 3975.25703 | CW65: 4487.41703
A66: 211 | B66: Kangasala | C66: 33473 | D66: 8.36 | G66: 43709.57081 | H66: 126163.5074 | I66: 20.03058 | J66: 69741.61523 | K66: 5720.35466 | L66: 8594.6803 | M66: 84056.65019 | N66: 23590.26113 | O66: 364.10306 | P66: 2723.5969 | Q66: 14572.36023 | R66: 11357.10917 | S66: 25756.60079 | U66: 21971.55672 | V66: 0 | X66: 3785.04407 | Y66: 0.37982 | Z66: 335.92155 | AA66: 155.18645 | AB66: 12.24141 | AC66: 3616.9302 | AE66: 92530.0566 | AK66: 60685.0406 | AM66: 156812.428 | AP66: 33951 | AQ66: 9.4 | AT66: 44423.70884 | AU66: 125115.7721 | AV66: -38.04106 | AW66: 75495.98207 | AX66: 4055.77268 | AY66: 9442.59344 | AZ66: 88675.94626 | BA66: 19901.17176 | BB66: 256.51956 | BC66: 4541.95615 | BD66: 9791.13532 | BE66: 7624.56474 | BF66: 25728.14769 | BH66: 19597.26337 | BI66: 359.84724 | BK66: 6310.80794 | BL66: 0.37982 | BM66: 585.72258 | BN66: 35.84751 | BO66: 8.95378 | BP66: 6063.12776 | BR66: 98593.18437 | BX66: 63489.64194 | BZ66: 188737.3971 | CE66: 9.4 | CM66: -989.51797 | CN66: -49174.95291 | CO66: 1472.50045 | CP66: 2888.19099 | CQ66: 4.17563 | CS66: -1004.15624 | CT66: -53275.30045 | CU66: 0 | CV66: 2474.30781 | CW66: -54.30862
A67: 213 | B67: Kangasniemi | C67: 5114 | D67: 8.86 | G67: 5005.87251 | H67: 17747.47749 | I67: -0.617 | J67: 8460.86903 | K67: 2341.20391 | L67: 2130.22901 | M67: 12932.30195 | N67: 1977.48723 | O67: 21.7984 | P67: 408.20438 | Q67: 277.46106 | R67: 8.55616 | S67: 2050.06612 | U67: 1502.01271 | V67: 0 | X67: 548.05341 | Y67: -6.11997 | Z67: 0 | AA67: 0 | AB67: 0 | AC67: 541.93344 | AE67: 250.36658 | AK67: 1087.78454 | AM67: 13813.14863 | AP67: 5062 | AQ67: 9.4 | AT67: 5109.72865 | AU67: 17494.38405 | AV67: 25.73209 | AW67: 8614.19997 | AX67: 1998.50196 | AY67: 2392.90841 | AZ67: 13005.61034 | BA67: 1762.61993 | BB67: 4.16948 | BC67: 470.85749 | BD67: 511.53117 | BE67: 3.90821 | BF67: 2450.24191 | BH67: 2101.71202 | BI67: 0 | BK67: 348.52989 | BL67: 6.44325 | BM67: 0 | BN67: 0 | BO67: 0 | BP67: 354.97314 | BR67: 605.32599 | BX67: 809.36221 | BZ67: 11726.99612 | CE67: 9.4 | CM67: -162.4304 | CN67: -902.90262 | CO67: 0 | CP67: 178.96496 | CQ67: 142.16664 | CS67: -40.89407 | CT67: -1296.11565 | CU67: 0 | CV67: 145 | CW67: 18
A68: 214 | B68: Kankaanpää | C68: 12394 | D68: 9.11 | G68: 39883.90991 | H68: 64898.64708 | I68: -334.29399 | J68: 20973.40924 | K68: 3620.81919 | L68: 4466.96132 | M68: 29061.18975 | N68: 10839.329 | O68: 18.14815 | P68: 1181.57865 | Q68: 1117.40513 | R68: 45.94097 | S68: 14435.0057 | U68: 9543.0454 | V68: 0 | X68: 4891.9603 | Y68: 0 | Z68: -0.00042 | AA68: -199.56256 | AB68: 38.90124 | AC68: 4731.2994 | AE68: 23107.33618 | AK68: 6680.91059 | AM68: 76540.61347 | AP68: 12478 | AQ68: 9.1 | AT68: 41763.0195 | AU68: 69657.83586 | AV68: -9.97501 | AW68: 21321.39992 | AX68: 3182.88066 | AY68: 4044.73798 | AZ68: 28523.96409 | BA68: 9297.329 | BB68: 46.91603 | BC68: 1468.91593 | BD68: 1137.80695 | BE68: 374.09623 | BF68: 9258.21254 | BH68: 11505.5832 | BI68: 0 | BK68: -2247.37066 | BL68: 0 | BM68: 9.46622 | BN68: 36.76964 | BO68: 639.99437 | BP68: -1575.33976 | BR68: 21190.35931 | BX68: 7504.53833 | BZ68: 82336.82754 | CE68: 9.1 | CM68: 87.43734 | CN68: -13028.7056 | CO68: 145.78608 | CP68: 256.67416 | CQ68: -2.10096 | CS68: 312.30151 | CT68: -16694.97098 | CU68: 509.09104 | CV68: 1810.73996 | CW68: -9.56473
A69: 216 | B69: Kannonkoski | C69: 1217 | D69: 8.86 | G69: 7282.74798 | H69: 10802.61782 | I69: -0.33565 | J69: 1785.14504 | K69: 553.64365 | L69: 568.74441 | M69: 2907.5331 | N69: 1144.604 | O69: 5.67921 | P69: 305.46437 | Q69: 111.58483 | R69: 9.43956 | S69: 334.29172 | U69: 1516.25605 | V69: -1 | X69: -1182.96433 | Y69: 1.52599 | Z69: 0 | AA69: -2.73773 | AB69: 7.0822 | AC69: -1177.09387 | AE69: 5724.30405 | AK69: 4245.3667 | AM69: 8766.165 | AP69: 1186 | AQ69: 9.2 | AT69: 6963.98362 | AU69: 10471.89063 | AV69: -1.37734 | AW69: 1839.478 | AX69: 487.079 | AY69: 652.715 | AZ69: 2979.272 | BA69: 1351.286 | BB69: 3.77676 | BC69: 208.18636 | BD69: 264.012 | BE69: 7.40564 | BF69: 873.47041 | BH69: 1054.59374 | BI69: 0 | BK69: -181.12333 | BL69: 1.65277 | BM69: 0 | BN69: -2.06395 | BO69: 6.22927 | BP69: -175.30524 | BR69: 5702.55817 | BX69: 4524.59696 | BZ69: 8573.653 | CE69: 9.2 | CM69: -27.3284 | CN69: -402.69168 | CO69: 17.91485 | CP69: 20.25807 | CQ69: 59.59571 | CS69: 0 | CT69: -365.27442 | CU69: 158.96249 | CV69: 22.01702 | CW69: 4.10666
A70: 217 | B70: Kannus | C70: 5246 | D70: 8.86 | G70: 14019.94208 | H70: 30141.12837 | I70: 223.50278 | J70: 8812.97999 | K70: 1010.8601 | L70: 3344.96624 | M70: 13168.80633 | N70: 7187.63948 | O70: 14.53071 | P70: 986.85301 | Q70: 157.82169 | R70: 47.72186 | S70: 3533.32953 | U70: 3218.63118 | V70: 0 | X70: 314.69835 | Y70: 15.98057 | Z70: 1.27024 | AA70: 6.16509 | AB70: 16.31879 | AC70: 351.89256 | AE70: 11669.31592 | AK70: 4428.54826 | AM70: 33500.14663 | AP70: 5264 | AQ70: 8.9 | AT70: 16750.2591 | AU70: 30202.66527 | AV70: 490.27382 | AW70: 8758.52408 | AX70: 891.95582 | AY70: 3704.13842 | AZ70: 13314.57696 | BA70: 4495.394 | BB70: 19.42356 | BC70: 1317.02407 | BD70: 1491.3945 | BE70: 14.16021 | BF70: 5027.47239 | BH70: 3172.03891 | BI70: 0 | BK70: 1855.43348 | BL70: 1057.36683 | BM70: 7.57304 | BN70: -27.44212 | BO70: -7.87712 | BP70: 2873.69455 | BR70: 14517.15308 | BX70: 6760.02104 | BZ70: 40907.91286 | CE70: 9.7 | CM70: -16.58864 | CN70: -9271.5369 | CO70: 0 | CP70: 356.00003 | CQ70: 10.2144 | CS70: -488.31237 | CT70: -9334.37743 | CU70: 10.28972 | CV70: 1221.44652 | CW70: -1040.09482
A71: 218 | B71: Karijoki | C71: 1188 | D71: 9.86 | G71: 1319.96718 | H71: 4431.79092 | I71: -1.96916 | J71: 2034.60993 | K71: 305.66224 | L71: 304.91567 | M71: 2645.18784 | N71: 1461.86448 | O71: 0.00267 | P71: 34.49324 | Q71: 8.89931 | R71: 1.54323 | S71: 966.12493 | U71: 408.39856 | V71: -31.13373 | X71: 526.59264 | Y71: 0 | Z71: 7.84187 | AA71: 1.34862 | AB71: 0.00227 | AC71: 520.10166 | AE71: 3273.38019 | AK71: 2794.24265 | AM71: 1517.89765 | AP71: 1159 | AQ71: 9.8 | AT71: 1448.14283 | AU71: 4732.73633 | AV71: -0.73516 | AW71: 2024.40322 | AX71: 240.19041 | AY71: 330.95601 | AZ71: 2595.54964 | BA71: 1279.78105 | BB71: 0.26655 | BC71: 36.19739 | BD71: 9.05538 | BE71: 2.08615 | BF71: 561.04042 | BH71: 428.67284 | BI71: 26.61818 | BK71: 145.67667 | BL71: 0 | BM71: -1.61556 | BN71: 0.74997 | BO71: 0 | BP71: 147.23442 | BR71: 3421.94427 | BX71: 3048.26242 | BZ71: 1355.98301 | CE71: 9.8 | CM71: 2.51876 | CN71: -625.05378 | CO71: 1.76549 | CP71: 346.95439 | CQ71: 0 | CS71: -0.16666 | CT71: -521.2692 | CU71: 0.9905 | CV71: 86.46835 | CW71: 44.88
A72: 224 | B72: Karkkila | C72: 8581 | D72: 8.61 | G72: 11757.22477 | H72: 29743.73339 | I72: 0 | J72: 15042.98966 | K72: 1173.91488 | L72: 2486.67679 | M72: 18703.58133 | N72: 5647.386 | O72: 245.02639 | P72: 1290.73816 | Q72: 102.77061 | R72: 37.50526 | S72: 5379.09971 | U72: 3059.53217 | V72: 0 | X72: 2319.56754 | Y72: 2.27069 | Z72: 0.0026 | AA72: 0 | AB72: 0 | AC72: 2321.83563 | AE72: 6055.77312 | AK72: 3112.68306 | AM72: 46817.90792 | AP72: 8440 | AQ72: 8.6 | AT72: 10388.00063 | AU72: 30188.01396 | AV72: 0 | AW72: 15533.67875 | AX72: 902.44742 | AY72: 2613.74809 | AZ72: 19044.96781 | BA72: 6214.72 | BB72: 221.08443 | BC72: 1663.93801 | BD72: 87.07018 | BE72: 5.88699 | BF72: 4098.0041 | BH72: 3188.04408 | BI72: 0 | BK72: 909.96002 | BL72: 1.1316 | BM72: 0 | BN72: 0 | BO72: 0 | BP72: 911.09162 | BR72: 7068.39798 | BX72: 2265.8208 | BZ72: 44501.83693 | CE72: 8.9 | CM72: -1715.12601 | CN72: -2677.72174 | CO72: 0 | CP72: 729.43195 | CQ72: 0 | CS72: -475.19367 | CT72: -2737.18451 | CU72: 0 | CV72: 484.49325 | CW72: 0
A73: 226 | B73: Karstula | C73: 3625 | D73: 8.86 | G73: 6446.20825 | H73: 16438.22608 | I73: 0 | J73: 5261.49913 | K73: 1308.17209 | L73: 1709.07955 | M73: 8278.75077 | N73: 5243.8351 | O73: 10.09599 | P73: 540.33985 | Q73: 48.59522 | R73: 5.17155 | S73: 3043.74785 | U73: 2267.26488 | V73: -97.01994 | X73: 679.46303 | Y73: -0.3779 | Z73: 54.49579 | AA73: -6.5666 | AB73: -22.73837 | AC73: 595.28437 | AE73: 3829.71071 | AK73: 8257.77262 | AM73: 17049.11026 | AP73: 3573 | AQ73: 8.8 | AT73: 6730.41809 | AU73: 16738.8348 | AV73: 0 | AW73: 5523.67946 | AX73: 1135.09251 | AY73: 1807.82308 | AZ73: 8466.59505 | BA73: 4476.66899 | BB73: 88.05932 | BC73: 603.84135 | BD73: 51.5634 | BE73: 4.8918 | BF73: 2465.7369 | BH73: 2423.84352 | BI73: 0 | BK73: 41.89338 | BL73: 0.37732 | BM73: 63.55428 | BN73: -4.211 | BO73: 57.47981 | BP73: 63.76237 | BR73: 3861.58236 | BX73: 8546.99273 | BZ73: 17116.75443 | CE73: 9 | CM73: -212.25587 | CN73: -4328.24993 | CO73: 1674.18673 | CP73: 237.22948 | CQ73: 22.43372 | CS73: 13.22236 | CT73: -1970.01126 | CU73: 537.76381 | CV73: 150.2 | CW73: -93.0404
A74: 230 | B74: Karvia | C74: 2216 | D74: 7.86 | G74: 10752.97027 | H74: 14866.55105 | I74: 0 | J74: 2860.36782 | K74: 586.60862 | L74: 737.65147 | M74: 4184.62791 | N74: 2254.58041 | O74: 52.81556 | P74: 205.66665 | Q74: -17.12644 | R74: 7.67352 | S74: 2132.73811 | U74: 2764.91166 | V74: -25.68591 | X74: -657.85946 | Y74: 20.86573 | Z74: 3.47039 | AA74: -75.08398 | AB74: 30.23827 | AC74: -685.30983 | AE74: 14420.15392 | AK74: 2544.72427 | AM74: 8944.76883 | AP74: 2170 | AQ74: 8.9 | AT74: 11255.3468 | AU74: 15377.33118 | AV74: 0 | AW74: 3384.98871 | AX74: 510.12672 | AY74: 975.25075 | AZ74: 4855.0351 | BA74: 2738.19831 | BB74: 71.48355 | BC74: 332.46381 | BD74: 247.11637 | BE74: 11.24379 | BF74: 3446.14135 | BH74: 3077.80676 | BI74: 0 | BK74: 368.33459 | BL74: -6.37206 | BM74: 20.32634 | BN74: 4.46607 | BO74: 262.99611 | BP74: 619.26154 | BR74: 15552.4352 | BX74: 3729.68262 | BZ74: 11736.52164 | CE74: 8.9 | CM74: -169.07607 | CN74: -4303.86506 | CO74: 5.81691 | CP74: 430.91596 | CQ74: -7.38 | CS74: -2.35157 | CT74: -4933.05151 | CU74: 32.70175 | CV74: 8.41935 | CW74: 519.68953
A75: 231 | B75: Kaskinen | C75: 1208 | D75: 10.36 | G75: 5651.48974 | H75: 8980.91483 | I75: 0 | J75: 2513.95601 | K75: 1064.71463 | L75: 907.45802 | M75: 4486.12866 | N75: -924.34615 | O75: 9.58708 | P75: 182.12801 | Q75: 47.43175 | R75: 51.44847 | S75: 55.79977 | U75: 1209.30655 | V75: 0 | X75: -1153.50678 | Y75: -83.91282 | Z75: 41.31972 | AA75: 8.39418 | AB75: 0 | AC75: -1270.34514 | AE75: 2912.19902 | AK75: 720.95969 | AM75: 11399.71231 | AP75: 1241 | AQ75: 10.3 | AT75: 5002.19977 | AU75: 9578.35164 | AV75: 0 | AW75: 2689.16085 | AX75: 974.93422 | AY75: 966.82049 | AZ75: 4630.91556 | BA75: -546.8627 | BB75: 2.78574 | BC75: 344.24141 | BD75: 43.04937 | BE75: 38.2767 | BF75: -828.78201 | BH75: 1130.20017 | BI75: 0 | BK75: -1958.98218 | BL75: 0 | BM75: -54.7761 | BN75: 16.12577 | BO75: 0 | BP75: -1915.46836 | BR75: 871.69687 | BX75: 930.81311 | BZ75: 12599.70832 | CE75: 10.3 | CM75: -61.19882 | CN75: -3944.28716 | CO75: 0.06275 | CP75: 341.42705 | CQ75: 0 | CS75: 363.49879 | CT75: -1799.34048 | CU75: 20.50399 | CV75: 924.23206 | CW75: 0
A76: 232 | B76: Kauhajoki | C76: 12618 | D76: 9.36 | G76: 20484.31705 | H76: 57402.50188 | I76: -28.22789 | J76: 20764.58777 | K76: 4381.95959 | L76: 4095.84529 | M76: 29242.39265 | N76: 16053.38433 | O76: 52.62876 | P76: 2005.02899 | Q76: 5301.51048 | R76: 751.36603 | S76: 10947.10848 | U76: 8067.90336 | V76: 336.51478 | X76: 3215.7199 | Y76: 0 | Z76: 0 | AA76: 107.27186 | AB76: -4.25568 | AC76: 3318.73608 | AE76: 12701.84495 | AK76: 34934.21496 | AM76: 98886.60131 | AP76: 12518 | AQ76: 9.4 | AT76: 21130.86902 | AU76: 58408.07808 | AV76: 83.40865 | AW76: 22090.52279 | AX76: 3781.40836 | AY76: 4105.22194 | AZ76: 29977.15309 | BA76: 16367.88698 | BB76: 67.83415 | BC76: 2098.71133 | BD76: 2263.88428 | BE76: 748.30873 | BF76: 8635.93803 | BH76: 8403.5862 | BI76: 0 | BK76: 232.35183 | BL76: 0 | BM76: 0 | BN76: 170.56058 | BO76: -1.83289 | BP76: 401.07952 | BR76: 13402.79184 | BX76: 31144.71856 | BZ76: 93519.62636 | CE76: 9.6 | CM76: -31.52375 | CN76: -12180.38794 | CO76: 104.72738 | CP76: 3560.26841 | CQ76: -8.4386 | CS76: -143.60613 | CT76: -4350.96445 | CU76: 27.32805 | CV76: 568.04914 | CW76: -190
A77: 233 | B77: Kauhava | C77: 15165 | D77: 9.11 | G77: 30717.9888 | H77: 68217.00344 | I77: -0.72947 | J77: 25715.47801 | K77: 3465.65255 | L77: 3991.00034 | M77: 33172.1309 | N77: 23701.885 | O77: 328.3615 | P77: 3263.3232 | Q77: 197.51527 | R77: 238.9555 | S77: 16397.86986 | U77: 13242.88695 | V77: 536.16492 | X77: 3691.14783 | Y77: 88.63175 | Z77: 200.48149 | AA77: 22.35453 | AB77: -140.51577 | AC77: 3461.13685 | AE77: 35039.91721 | AK77: 33188.4132 | AM77: 137474.4001 | AP77: 15050 | AQ77: 9.1 | AT77: 30954.87669 | AU77: 68313.341 | AV77: 20.84236 | AW77: 26440.88019 | AX77: 2827.10303 | AY77: 4327.36819 | AZ77: 36987.35541 | BA77: 18840.878 | BB77: 462.46164 | BC77: 3919.43695 | BD77: 293.69914 | BE77: 88.29799 | BF77: 15239.0373 | BH77: 11559.72682 | BI77: 1770.602 | BK77: 4564.61148 | BL77: 1008.90221 | BM77: 58.48432 | BN77: 40.56546 | BO77: -241.46162 | BP77: 5343.37537 | BR77: 35042.35143 | BX77: 29274.2413 | BZ77: 144659.2555 | CE77: 9.1 | CM77: -176.95305 | CN77: -21085.48324 | CO77: 146.5054 | CP77: 6005.59276 | CQ77: 2938.98434 | CS77: -75.12997 | CT77: -20531.03889 | CU77: 490.68913 | CV77: 1267.85581 | CW77: 1878.95162
A78: 235 | B78: Kauniainen | C78: 10270 | D78: 4.36 | G78: 25902.25527 | H78: 63044.76311 | I78: 1.95197 | J78: 25326.46328 | K78: 1695.2006 | L78: 4882.26597 | M78: 31903.92985 | N78: 18007.07608 | O78: 685.86371 | P78: 590.91209 | Q78: 178.29691 | R78: 47.94448 | S78: 12995.75411 | U78: 10319.29201 | V78: 0 | X78: 2676.4621 | Y78: -10.95293 | Z78: -1.64121 | AA78: -3.27725 | AB78: -32.69563 | AC78: 2631.1775 | AE78: 66800.54201 | AK78: 24095.77041 | AM78: 18045.58604 | AP78: 10253 | AQ78: 4.4 | AT78: 25393.78359 | AU78: 63997.88051 | AV78: 1.42564 | AW78: 19101.79655 | AX78: 1341.30471 | AY78: 6091.17389 | AZ78: 26534.27515 | BA78: 21541.089 | BB78: 923.5466 | BC78: 629.6261 | BD78: 176.87812 | BE78: 45.62526 | BF78: 9897.86623 | BH78: 10609.30295 | BI78: 0 | BK78: -711.43672 | BL78: 256.60497 | BM78: 6.0389 | BN78: 63.88262 | BO78: -29.5678 | BP78: -423.53638 | BR78: 66140.03064 | BX78: 20174.73209 | BZ78: 17676.66791 | CE78: 4.7 | CM78: -587.10727 | CN78: -10737.50651 | CO78: 177.17241 | CP78: 652.78065 | CQ78: 42 | CS78: -1221.35455 | CT78: -13331.7091 | CU78: 354.38605 | CV78: 1277.98194 | CW78: 119.30286
A79: 236 | B79: Kaustinen | C79: 4137 | D79: 9.36 | G79: 11795.95505 | H79: 24535.10704 | I79: 111.94664 | J79: 6842.01387 | K79: 783.94539 | L79: 1129.688 | M79: 8755.64726 | N79: 8230.88118 | O79: 11.91959 | P79: 1138.58304 | Q79: 126.88655 | R79: 17.55305 | S79: 3203.79078 | U79: 3495.46313 | V79: 0 | X79: -291.67235 | Y79: 10.39233 | Z79: 0 | AA79: 0 | AB79: -6.60393 | AC79: -287.88395 | AE79: 5188.58897 | AK79: 4819.03049 | AM79: 52416.41516 | AP79: 4118 | AQ79: 9.4 | AT79: 11796.49414 | AU79: 24620.89238 | AV79: 3.71776 | AW79: 7316.36352 | AX79: 668.41784 | AY79: 1241.74022 | AZ79: 9089.4248 | BA79: 8310.00742 | BB79: 8.71686 | BC79: 1744.27996 | BD79: 881.96153 | BE79: 23.00867 | BF79: 3702.1415 | BH79: 3497.68235 | BI79: 0 | BK79: 204.45915 | BL79: -30.05943 | BM79: 2.41354 | BN79: 0 | BO79: -3.79556 | BP79: 169.39739 | BR79: 5510.99972 | BX79: 2198.20054 | BZ79: 48736.97841 | CE79: 9.9 | CM79: -7.08161 | CN79: -2664.20377 | CO79: 102.92107 | CP79: 110.57557 | CQ79: -516.549 | CS79: -656.78855 | CT79: -2655.26318 | CU79: 11.52449 | CV79: 892.77833 | CW79: -744.47718
A80: 239 | B80: Keitele | C80: 2035 | D80: 7.86 | G80: 2748.21634 | H80: 8675.05681 | I80: 113.26736 | J80: 2752.08323 | K80: 1486.31652 | L80: 602.74369 | M80: 4841.14344 | N80: 1240.41616 | O80: 7.62107 | P80: 392.66376 | Q80: 270.5964 | R80: 10.90607 | S80: 118.46272 | U80: 974.52397 | V80: 5.90479 | X80: -850.15646 | Y80: 0.34548 | Z80: 0.12327 | AA80: 0 | AB80: 1.70722 | AC80: -848.22703 | AE80: -864.15343 | AK80: 798.36037 | AM80: 10168.95731 | AP80: 1985 | AQ80: 7.9 | AT80: 2663.43172 | AU80: 8284.29597 | AV80: 86.34058 | AW80: 2808.28126 | AX80: 3612.84399 | AY80: 631.44061 | AZ80: 7018.59872 | BA80: 1904.47424 | BB80: 15.82225 | BC80: 398.28342 | BD80: 335.91806 | BE80: 22.82827 | BF80: 3319.17791 | BH80: 1117.58516 | BI80: 0.77412 | BK80: 2201.97981 | BL80: 3.7639 | BM80: 2.34242 | BN80: 0 | BO80: -1.60278 | BP80: 2202.96972 | BR80: 1547.80414 | BX80: 1827.96781 | BZ80: 8876.89856 | CE80: 8.9 | CM80: 145.68827 | CN80: -1387.43295 | CO80: 60.80674 | CP80: 54.26732 | CQ80: 0.14052 | CS80: -38.85129 | CT80: -1092.12834 | CU80: 27.23059 | CV80: 385.69423 | CW80: 6.20082
A81: 240 | B81: Kemi | C81: 19371 | D81: 9.11 | G81: 61207.13469 | H81: 90724.4961 | I81: 64.39326 | J81: 39918.51682 | K81: 4968.627 | L81: 8510.76391 | M81: 53397.90773 | N81: 1601.079 | O81: 71.89252 | P81: 4222.72152 | Q81: 145.16148 | R81: 25.16995 | S81: 20941.47765 | U81: 15662.17436 | V81: -0.14502 | X81: 5279.15827 | Y81: 0 | Z81: 586.22614 | AA81: -360.09385 | AB81: -11.2222 | AC81: 4321.61608 | AE81: -4204.58864 | AK81: 19383.70606 | AM81: 203456.098 | AP81: 19402 | AQ81: 9.6 | AT81: 58973.13038 | AU81: 97099.83326 | AV81: -64.89032 | AW81: 40706.98587 | AX81: 7271.16675 | AY81: 8576.6463 | AZ81: 55686.12008 | BA81: 2335.06685 | BB81: 2084.581 | BC81: 5693.89128 | BD81: 115.85036 | BE81: -15.57723 | BF81: 16351.71104 | BH81: 17155.8384 | BI81: 862.03968 | BK81: -373.10752 | BL81: -23.304 | BM81: 263.05864 | BN81: -169.91539 | BO81: -30.55012 | BP81: -728.40635 | BR81: -2942.21415 | BX81: 23704.76061 | BZ81: 191024.383 | CE81: 9.6 | CM81: -1675.16305 | CN81: -20912.79313 | CO81: 327.17372 | CP81: 3105.4229 | CQ81: 0 | CS81: -61.82086 | CT81: -15556.05358 | CU81: 7563.8688 | CV81: 2654.14676 | CW81: 51.34497
A82: 320 | B82: Kemijärvi | C82: 7030 | D82: 8.86 | G82: 33871.00825 | H82: 47911.42825 | I82: 0 | J82: 12500.94043 | K82: 1393.03807 | L82: 5084.37235 | M82: 18978.35085 | N82: 11162.70134 | O82: 14.50078 | P82: 840.10156 | Q82: 3635.03632 | R82: 628.79048 | S82: 18281.27725 | U82: 7657.21659 | V82: -0.05302 | X82: 10624.00764 | Y82: 0 | Z82: 570.81735 | AA82: 0 | AB82: 660.59821 | AC82: 10713.7885 | AE82: 33802.50863 | AK82: 12306.33121 | AM82: 48588.36634 | AP82: 6954 | AQ82: 8.9 | AT82: - | AU82: - | AV82: - | AW82: 12386.03463 | AX82: 1757.34208 | AY82: 5120.60533 | AZ82: - | BA82: - | BB82: - | BC82: - | BD82: - | BE82: - | BF82: - | BH82: - | BI82: - | BK82: - | BL82: - | BM82: - | BN82: - | BO82: - | BP82: - | BR82: - | BX82: - | BZ82: - | CE82: 8.9 | CM82: 175.46048 | CN82: -9108.47821 | CO82: 757.23724 | CP82: 0 | CQ82: -222.38732 | CS82: - | CU82: - | CV82: - | CW82: -
A83: 241 | B83: Keminmaa | C83: 7691 | D83: 8.61 | G83: 11570.88182 | H83: 30532.18581 | I83: -51.83122 | J83: 16395.94227 | K83: 1409.97791 | L83: 4246.045 | M83: 22051.96518 | N83: 3011.443 | O83: 65.41717 | P83: 424.65272 | Q83: 95.67779 | R83: 2.43173 | S83: 5722.83261 | U83: 3871.99242 | V83: 234.90958 | X83: 2085.74977 | Y83: -76.39949 | Z83: 0 | AA83: 194.9614 | AB83: 0.22086 | AC83: 2204.53254 | AE83: 13807.1848 | AK83: 6542.93583 | AM83: 21517.98818 | AP83: 7604 | AQ83: 8.6 | AT83: 12001.21295 | AU83: 29242.54367 | AV83: -31.84914 | AW83: 15751.11221 | AX83: 1436.85744 | AY83: 4194.18427 | AZ83: 21322.0653 | BA83: 1684.391 | BB83: 78.07047 | BC83: 499.35974 | BD83: 102.00114 | BE83: 2.0727 | BF83: 5411.91561 | BH83: 4118.4462 | BI83: 101.81838 | BK83: 1344.3786 | BL83: -9.99706 | BM83: 0 | BN83: 26.70092 | BO83: 0.01771 | BP83: 1361.10017 | BR83: 14895.4796 | BX83: 6445.43954 | BZ83: 20622.43882 | CE83: 8.6 | CM83: -281.26545 | CN83: -6841.59501 | CO83: 1024.25782 | CP83: 140.49779 | CQ83: -242.33443 | CS83: -24.65666 | CT83: -4375.99303 | CU83: 281.615 | CV83: 40.1782 | CW83: -672.5625
A84: 322 | B84: Kemiönsaari | C84: 6462 | D84: 7.11 | G84: 8033 | H84: 25036 | I84: 0 | J84: 9347.11179 | K84: 1113.51533 | L84: 3691.90798 | M84: 14152.5351 | N84: 9892 | O84: 92 | P84: 420 | Q84: - | R84: - | S84: 6767 | U84: 3911 | V84: 21 | X84: 2877 | Y84: -19 | Z84: 0 | AA84: -15 | AB84: -1 | AC84: 2840 | AE84: 23389 | AK84: 9063 | AM84: 13575 | AP84: 6371 | AQ84: 7.1 | AT84: 8181.37152 | AU84: 26254.31132 | AV84: 0 | AW84: 9184.64439 | AX84: 937.78999 | AY84: 3970.82036 | AZ84: 14093.25474 | BA84: 9334.645 | BB84: 177.70364 | BC84: 437.37474 | BD84: 52.07033 | BE84: 5.87399 | BF84: 5141.48518 | BH84: 4024.1914 | BI84: 0 | BK84: 1117.29378 | BL84: 0 | BM84: -0.08576 | BN84: 4.79108 | BO84: 1.60358 | BP84: 1123.73132 | BR84: 24251.79066 | BX84: 9264.4173 | BZ84: 11718.38286 | CE84: 7.1 | CM84: - | CN84: -3471 | CO84: 203 | CP84: 66 | CQ84: - | CS84: -89.38533 | CT84: -3515.27247 | CU84: 3.84586 | CV84: 406.87859 | CW84: 0
A85: 244 | B85: Kempele | C85: 19514 | D85: 7.86 | G85: 24909.40667 | H85: 81880.26435 | I85: 0 | J85: 37152.38194 | K85: 4361.03781 | L85: 5161.83187 | M85: 46675.25162 | N85: 21510.591 | O85: 68.6423 | P85: 786.72463 | Q85: 94.26337 | R85: 3.26456 | S85: 10571.45378 | U85: 8663.51253 | V85: 0 | X85: 1907.94125 | Y85: 36.44234 | Z85: 0 | AA85: -86.64835 | AB85: 2.09139 | AC85: 1859.82663 | AE85: 26625.41003 | AK85: 9323.7777 | AM85: 82957.71897 | AP85: 19657 | AQ85: 7.9 | AT85: 18639.78075 | AU85: 83261.43265 | AV85: 0 | AW85: 36453.46804 | AX85: 3620.59062 | AY85: 5192.53118 | AZ85: 45179.49892 | BA85: 27744.15988 | BB85: 130.29835 | BC85: 1636.66254 | BD85: 108.60989 | BE85: -34.12388 | BF85: 6938.37648 | BH85: 8619.65863 | BI85: 0 | BK85: -1681.28215 | BL85: -236.50729 | BM85: 0 | BN85: -63.90588 | BO85: -0.9156 | BP85: -1982.61092 | BR85: 24642.79912 | BX85: 8203.3157 | BZ85: 97832.54094 | CE85: 8.9 | CM85: -3163.47746 | CN85: -22236.3553 | CO85: 96 | CP85: 3641.69358 | CQ85: 0 | CS85: -2199.60665 | CT85: -20009.21447 | CU85: 140.39462 | CV85: 2322.15042 | CW85: 0
A86: 245 | B86: Kerava | C86: 38211 | D86: 6.61 | G86: 168957.2055 | H86: 250793.8932 | I86: 49.28785 | J86: 68898.44185 | K86: 8342.41131 | L86: 14520.21983 | M86: 91761.07299 | N86: 36475.78363 | O86: 926.53991 | P86: 4304.46471 | Q86: 2400.94996 | R86: 130.13401 | S86: 44535.77748 | U86: 36179.53692 | V86: 0 | X86: 8356.24056 | Y86: 7.586 | Z86: 302.81523 | AA86: -94.08786 | AB86: 100.96509 | AC86: 8067.88856 | AE86: 131662.0916 | AK86: 23144.64797 | AM86: 233594.7699 | AP86: 38461 | AQ86: 6.9 | AT86: 168812.6434 | AU86: 251359.9296 | AV86: -258.28068 | AW86: 66995.96567 | AX86: 6026.71323 | AY86: 15085.23718 | AZ86: 87280.49086 | BA86: 32871.1216 | BB86: 1120.27156 | BC86: 5873.49875 | BD86: 2477.29334 | BE86: 180.25945 | BF86: 34889.85228 | BH86: 34802.21964 | BI86: 0 | BK86: 87.63264 | BL86: -3.14952 | BM86: 67.64204 | BN86: 26.80581 | BO86: -77.27568 | BP86: 0.19223 | BR86: 131662.2837 | BX86: 21835.67618 | BZ86: 257984.8438 | CE86: 7 | CM86: -1929.51768 | CN86: -54264.10625 | CO86: 268.859 | CP86: 3896.63361 | CQ86: -113.58779 | CS86: -771.67069 | CT86: -69499.62513 | CU86: 806.4531 | CV86: 9541.28633 | CW86: 137.22786
A87: 249 | B87: Keuruu | C87: 9184 | D87: 9.11 | G87: 36170.666 | H87: 56941.58 | I87: 279.261 | J87: 15873.63316 | K87: 2898.92128 | L87: 3035.27704 | M87: 21807.83148 | N87: 10582 | O87: 695.023 | P87: 2192.536 | Q87: 146.399 | R87: 35.279 | S87: 10425.195 | U87: 9944.563 | V87: 0 | X87: 480.632 | Y87: 91.04 | Z87: 611.365 | AA87: -195.911 | AB87: 106.397 | AC87: -129.207 | AE87: 22413.081 | AK87: 8521.934 | AM87: 73413.751 | AP87: 9128 | AQ87: 9.1 | AT87: 33446.16179 | AU87: 56047.62465 | AV87: 188.17054 | AW87: 16176.63796 | AX87: 2557.49769 | AY87: 3025.09012 | AZ87: 21594.02498 | BA87: 10946.58052 | BB87: 338.53835 | BC87: 1817.30573 | BD87: 792.50397 | BE87: 376.53939 | BF87: 9064.51038 | BH87: 9637.73328 | BI87: 0 | BK87: -573.2229 | BL87: 35.27371 | BM87: 189.9716 | BN87: 148.80619 | BO87: 12.70162 | BP87: -471.42718 | BR87: 22208.32192 | BX87: 6889.72916 | BZ87: 71974.57648 | CE87: 9.1 | CM87: -1935.615 | CN87: -5608.322 | CO87: 143.11 | CP87: 358.493 | CQ87: 0 | CS87: -205.68896 | CT87: -6831.05516 | CU87: -27.35422 | CV87: 425.60768 | CW87: 476.15433
A88: 250 | B88: Kihniö | C88: 1749 | D88: 8.86 | G88: 1806.16984 | H88: 7532.10802 | I88: 2.04271 | J88: 2520.59464 | K88: 746.65749 | L88: 562.52672 | M88: 3829.77885 | N88: 1998.25535 | O88: 4.87818 | P88: 167.15854 | Q88: 40.67407 | R88: 2.82496 | S88: -24.688 | U88: 598.88284 | V88: 0 | X88: -623.57084 | Y88: 0.03004 | Z88: 0 | AA88: 6.82007 | AB88: 0.17472 | AC88: -616.54601 | AE88: -141.25905 | AK88: 2147.42728 | AM88: 6157.80857 | AP88: 1703 | AQ88: 8.9 | AT88: 1757.8118 | AU88: 6641.46268 | AV88: 3.93398 | AW88: 2517.54363 | AX88: 643.8628 | AY88: 598.38873 | AZ88: 3755.36532 | BA88: 1955.64213 | BB88: 1.97242 | BC88: 171.74734 | BD88: 51.15636 | BE88: 1.80282 | BF88: 710.86917 | BH88: 639.55718 | BI88: 0 | BK88: 71.31199 | BL88: 0.03004 | BM88: 0.42764 | BN88: 0 | BO88: -0.15575 | BP88: 70.97246 | BR88: -70.28659 | BX88: 1472.77227 | BZ88: 5513.91953 | CE88: 9.4 | CM88: -187.51766 | CN88: -317.52819 | CO88: 70.915 | CP88: 1.35544 | CQ88: 163 | CS88: -5.33748 | CT88: -356.57802 | CU88: 18.9 | CV88: 32.86015 | CW88: 75.85336
A89: 256 | B89: Kinnula | C89: 1523 | D89: 8.86 | G89: 3675.56508 | H89: 8737.81053 | I89: -120.99809 | J89: 1946.05807 | K89: 580.1698 | L89: 468.97578 | M89: 2995.20365 | N89: 2706.94027 | O89: 43.27218 | P89: 284.0041 | Q89: 28.29333 | R89: 1.97514 | S89: 304.48665 | U89: 1379.02109 | V89: 0 | X89: -1074.53444 | Y89: -0.14814 | Z89: 0 | AA89: 0 | AB89: 4.34347 | AC89: -1070.33911 | AE89: 2037.97027 | AK89: 1271.49996 | AM89: 9396.612 | AP89: 1492 | AQ89: 9.5 | AT89: 3121.97054 | AU89: 7575.6276 | AV89: -140.80925 | AW89: 2187.12988 | AX89: 461.25275 | AY89: 924.69738 | AZ89: 3573.08001 | BA89: 2996.20818 | BB89: 35.59528 | BC89: 304.57624 | BD89: 24.90408 | BE89: 27.68528 | BF89: 1703.05972 | BH89: 1217.33125 | BI89: -474.0618 | BK89: 248.69757 | BL89: -2.85209 | BM89: 40.98814 | BN89: 0 | BO89: -19.39336 | BP89: 205.95805 | BR89: 2383.61034 | BX89: 1949.99822 | BZ89: 8661.02 | CE89: 9.5 | CM89: 278.91109 | CN89: -1226.55353 | CO89: 0 | CP89: 28.99008 | CQ89: 0.4776 | CS89: 140.35376 | CT89: -469.6539 | CU89: 67.53995 | CV89: 11.38049 | CW89: -15.315
A90: 257 | B90: Kirkkonummi | C90: 41154 | D90: 7.11 | G90: 69352.25121 | H90: 185436.6568 | I90: 24.26772 | J90: 95855.7628 | K90: 7207.48095 | L90: 13429.13571 | M90: 116492.3795 | N90: 47257.37272 | O90: 452.78216 | P90: 1902.65573 | Q90: 834.34515 | R90: 353.56952 | S90: 46411.72831 | U90: 22775.33957 | V90: 0 | X90: 23636.38874 | Y90: 7.00592 | Z90: 2.28818 | AA90: 107.7908 | AB90: 63.74104 | AC90: 23812.63832 | AE90: 41394.62927 | AK90: 51435.23229 | AM90: 232330.2438 | AP90: 41635 | AQ90: 7.1 | AT90: 72295.9508 | AU90: 193612.9481 | AV90: 4.95063 | AW90: 85411.00678 | AX90: 5684.4152 | AY90: 15138.84811 | AZ90: 105898.1134 | BA90: 46232.78229 | BB90: 1015.81926 | BC90: 2005.25055 | BD90: 906.28439 | BE90: 208.59431 | BF90: 30527.10781 | BH90: 21535.00331 | BI90: 0 | BK90: 8992.1045 | BL90: 3.4914 | BM90: 0 | BN90: 285.96191 | BO90: 64.23872 | BP90: 9345.79653 | BR90: 50740.42581 | BX90: 17836.00708 | BZ90: 217713.4111 | CE90: 7.1 | CM90: -3841.20373 | CN90: -28268.75977 | CO90: 38.62092 | CP90: 3429.25161 | CQ90: 636.11622 | CS90: -843.44599 | CT90: -51465.25833 | CU90: 92.16238 | CV90: 1038.76618 | CW90: 0
A91: 260 | B91: Kitee | C91: 9689 | D91: 8.11 | G91: 13064.17586 | H91: 39683.55348 | I91: 0 | J91: 12864.92473 | K91: 2381.53829 | L91: 2965.30388 | M91: 18211.7669 | N91: 17761.46509 | O91: 529.77443 | P91: 347.61426 | Q91: 458.78799 | R91: 17.65871 | S91: 9839.29136 | U91: 2603.80437 | V91: 10.57274 | X91: 7246.05973 | Y91: -22.34634 | Z91: 0.41891 | AA91: 34.58508 | AB91: -73.80478 | AC91: 7184.07478 | AE91: 40210.85322 | AK91: 23853.24625 | AM91: 13043.29651 | AP91: 9566 | AQ91: 8.1 | AT91: 13663.8004 | AU91: 38731.76936 | AV91: 0 | AW91: 13341.79857 | AX91: 2021.2682 | AY91: 3157.16825 | AZ91: 18371.67428 | BA91: 15657.24518 | BB91: 474.86469 | BC91: 493.68417 | BD91: 529.2119 | BE91: 13.46861 | BF91: 9457.87431 | BH91: 5873.81326 | BI91: 0 | BK91: 3584.06105 | BL91: 2.61547 | BM91: 8.54354 | BN91: 29.34363 | BO91: 253.40338 | BP91: 3865.15176 | BR91: 42146.00972 | BX91: 22211.30106 | BZ91: 12056.39392 | CE91: 8.1 | CM91: 285.72088 | CN91: -12712.25585 | CO91: 284.10155 | CP91: 143.84754 | CQ91: -33.6522 | CS91: -2116.97695 | CT91: -7854.04992 | CU91: 1959.15237 | CV91: 40.80923 | CW91: 24.5545
A92: 261 | B92: Kittilä | C92: 6822 | D92: 7.61 | G92: 50798.44926 | H92: 67396.35959 | I92: 1422.011 | J92: 12278.00655 | K92: 5621.4029 | L92: 8354.15637 | M92: 26253.56582 | N92: 13822.30464 | O92: 83.77951 | P92: 1022.89851 | Q92: 564.58784 | R92: 13.52161 | S92: 24511.91836 | U92: 10280.3522 | V92: 0 | X92: 14231.56616 | Y92: -468.62934 | Z92: 7.65492 | AA92: -717.01046 | AB92: -1410.25666 | AC92: 11628.01478 | AE92: 98894.37019 | AK92: 22901.18806 | AM92: 35465.30249 | AP92: 6837 | AQ92: 7.6 | AT92: 54438.19878 | AU92: 72032.71652 | AV92: 1274.615 | AW92: 11872.44667 | AX92: 5252.50859 | AY92: 8990.70076 | AZ92: 26115.65602 | BA92: 15208.45001 | BB92: 199.45248 | BC92: 1171.35687 | BD92: 337.60094 | BE92: 12.6051 | BF92: 24357.29474 | BH92: 11680.77424 | BI92: 0 | BK92: 12676.5205 | BL92: -510.16991 | BM92: 1134.10766 | BN92: -334.08039 | BO92: -1794.29331 | BP92: 9470.92306 | BR92: 110417.0961 | BX92: 21052.90023 | BZ92: 41222.92545 | CE92: 7.3 | CM92: 2329.03773 | CN92: -22820.08669 | CO92: 563.43113 | CP92: 728.32669 | CQ92: 739.31 | CS92: 1932.684 | CT92: -35772.12007 | CU92: 55.49246 | CV92: 1134.07034 | CW92: -1029.85761
A93: 263 | B93: Kiuruvesi | C93: 7475 | D93: 9.11 | G93: 10882.27047 | H93: 35140.83239 | I93: -66.34344 | J93: 11275.71311 | K93: 1874.83931 | L93: 1608.03804 | M93: 14758.59046 | N93: 14469.00932 | O93: 38.96199 | P93: 891.11662 | Q93: 1559.75363 | R93: 56.75594 | S93: 5447.24156 | U93: 4818.19672 | V93: 55.10585 | X93: 684.15069 | Y93: 0.13193 | Z93: 0.67132 | AA93: -35.06926 | AB93: 2.00172 | AC93: 650.54376 | AE93: 10101.43445 | AK93: 11314.40593 | AM93: 30968.38828 | AP93: 7354 | AQ93: 9.5 | AT93: 10621.95201 | AU93: 34222.50291 | AV93: -27.92389 | AW93: 11805.77747 | AX93: 1602.80476 | AY93: 1849.17863 | AZ93: 15149.66198 | BA93: 13833.56367 | BB93: 46.07719 | BC93: 978.72472 | BD93: 1724.69201 | BE93: 107.24998 | BF93: 6039.54536 | BH93: 5267.77102 | BI93: 4.21574 | BK93: 773.88221 | BL93: 7.43395 | BM93: 18.53396 | BN93: 15.247 | BO93: 1.27085 | BP93: 788.56703 | BR93: 10898.49365 | BX93: 11972.70962 | BZ93: 27451.38499 | CE93: 9.5 | CM93: 573.2755 | CN93: -4068.4019 | CO93: 319.50856 | CP93: 3513.0261 | CQ93: 3.76522 | CS93: -193.20734 | CT93: -1799.3388 | CU93: 137.68348 | CV93: 48.93974 | CW93: 22.41317
A94: 265 | B94: Kivijärvi | C94: 1035 | D94: 9.11 | G94: 1709.83932 | H94: 4542.46607 | I94: 0 | J94: 1257.60181 | K94: 589.08105 | L94: 558.38272 | M94: 2405.06558 | N94: 1924.59089 | O94: 3.32367 | P94: 117.65164 | Q94: 19.75949 | R94: 1.80341 | S94: 1400.65783 | U94: 780.05306 | V94: 0 | X94: 620.60477 | Y94: -0.10552 | Z94: 0 | AA94: 0 | AB94: 0 | AC94: 620.49925 | AE94: 2970.27533 | AK94: 4529.10082 | AM94: 4891.14304 | AP94: 1011 | AQ94: 9.1 | AT94: 1496.18199 | AU94: 4771.81864 | AV94: 0 | AW94: 1420.36469 | AX94: 480.66932 | AY94: 574.52699 | AZ94: 2475.561 | BA94: 2042.78054 | BB94: 5.8823 | BC94: 78.48316 | BD94: 30.13571 | BE94: 4.67348 | BF94: 1195.56626 | BH94: 773.99524 | BI94: 0 | BK94: 421.57102 | BL94: -2.13096 | BM94: 0 | BN94: -1.50328 | BO94: 0 | BP94: 417.93678 | BR94: 3195.81892 | BX94: 2932.73132 | BZ94: 2102.47904 | CE94: 8.9 | CM94: -25 | CN94: -552.37533 | CO94: 154.144 | CP94: 334.451 | CQ94: 0 | CS94: 0 | CT94: -206.95127 | CU94: 12.16187 | CV94: 0 | CW94: -12.47599
A95: 271 | B95: Kokemäki | C95: 6766 | D95: 9.11 | G95: 12067.44851 | H95: 30175.6617 | I95: 1.15453 | J95: 12320.49896 | K95: 1269.82115 | L95: 2466.99083 | M95: 16057.31094 | N95: 8653.00751 | O95: 25.8634 | P95: 677.96167 | Q95: 48.5116 | R95: -62.99966 | S95: 6020.26667 | U95: 3590.51998 | V95: -97.18294 | X95: 2332.56375 | Y95: 0 | Z95: 3.52064 | AA95: 0.692 | AB95: 0.47701 | AC95: 2330.21212 | AE95: 12000.34767 | AK95: 4428.36196 | AM95: 23870.75573 | AP95: 6668 | AQ95: 9.2 | AT95: 11087.25612 | AU95: 29561.25622 | AV95: 0.27629 | AW95: 12177.40149 | AX95: 961.90139 | AY95: 2784.92842 | AZ95: 15888.92547 | BA95: 7634.38737 | BB95: 20.51717 | BC95: 449.0624 | BD95: 27.36475 | BE95: 40.02387 | BF95: 4608.38468 | BH95: 4645.88281 | BI95: -10.96232 | BK95: -42.97929 | BL95: 0 | BM95: 8.60702 | BN95: 0 | BO95: -0.50524 | BP95: -47.78804 | BR95: 11952.5596 | BX95: 2997.43425 | BZ95: 25967.27261 | CE95: 9.2 | CM95: -505.14329 | CN95: -4526.19506 | CO95: 0 | CP95: 996.15171 | CQ95: -4.76494 | CS95: -41.11133 | CT95: -3789.42725 | CU95: 0 | CV95: 57.08441 | CW95: 288.51329
A96: 272 | B96: Kokkola | C96: 48295 | D96: 8.86 | G96: 193053.8776 | H96: 274785.6018 | I96: 345.34644 | J96: 91338.1648 | K96: 17131.8878 | L96: 16321.54717 | M96: 124791.5998 | N96: 32916.977 | O96: 1316.23583 | P96: 8363.75037 | Q96: 1101.47445 | R96: 1673.15691 | S96: 67216.2191 | U96: 60038.18148 | V96: 3.86905 | X96: 7181.90667 | Y96: -65.29 | Z96: 3521.43711 | AA96: -504.998 | AB96: -38.79803 | AC96: 3051.38353 | AE96: 121253.4117 | AK96: 63698.89407 | AM96: 394306.1127 | AP96: 48367 | AQ96: 8.9 | AT96: 195306.5178 | AU96: 288710.9357 | AV96: 515.04497 | AW96: 92102.87039 | AX96: 13780.92106 | AY96: 16800.73046 | AZ96: 121445.5803 | BA96: 26307.538 | BB96: 1562.16407 | BC96: 10376.14885 | BD96: 3345.35882 | BE96: 1441.64955 | BF96: 47953.46984 | BH96: 43528.2278 | BI96: 115.34404 | BK96: 4482.91406 | BL96: 127.5046 | BM96: 1555.24144 | BN96: -1498.92328 | BO96: -94.80235 | BP96: 2239.07231 | BR96: 122917.1628 | BX96: 63117.07235 | BZ96: 441094.5144 | CE96: 9.2 | CM96: -860.04234 | CN96: -61462.22952 | CO96: 39.89685 | CP96: 3445.17302 | CQ96: -329.64019 | CS96: -1551.4161 | CT96: -98294.32847 | CU96: 925.75976 | CV96: 3060.39765 | CW96: -818.957
B97: KOKO MAA (Manner-Suomi) | C97: 5573310 | D97: 7.33 | G97: 16919176.56 | H97: 29260015.11 | I97: 66903.97212 | J97: 10219224.57 | K97: 2052377.409 | L97: 2182937.772 | M97: 14454539.58 | N97: 4916190.831 | O97: 195304.223 | P97: 827885.8903 | Q97: 408926.2933 | R97: 104195.5915 | S97: 6696673.917 | U97: 4586979.275 | V97: -3875.05721 | X97: 2105819.585 | Y97: -36090.31982 | Z97: 107491.2585 | AA97: -38025.8439 | AB97: -12460.72113 | AC97: 1911786.441 | AE97: 19702940.47 | AK97: 8188603.326 | AM97: 38834865.93 | AP97: 5605317 | AQ97: 7.466141249 | AT97: 16601235.46 | AU97: 29026603.9 | AV97: 90620.79527 | AW97: 9883399.386 | AX97: 1755313.462 | AY97: 2329363.822 | AZ97: 13857804.9 | BA97: 4761715.409 | BB97: 261124.4381 | BC97: 993890.558 | BD97: 373451.4365 | BE97: 65995.38445 | BF97: 5859462.59 | BH97: 4622384.996 | BI97: 261761.3807 | BK97: 1367975.077 | BL97: -24637.52629 | BM97: 186496.0189 | BN97: -32300.44856 | BO97: -25863.71638 | BP97: 1191925.376 | BR97: 20814859.09 | BX97: 7947855.589 | BZ97: 40661813.98 | CE97: 7.52942733 | CM97: -380007.7983 | CN97: -7896284.909 | CO97: 161977.6939 | CP97: 1032857.185 | CQ97: 26766.09815 | CS97: -480145.6367 | CT97: -8514544.863 | CU97: 152263.6017 | CV97: 948557.6652 | CW97: 15822.53948
A98: 273 | B98: Kolari | C98: 4011 | D98: 7.86 | G98: 9502.51113 | H98: 20848.62942 | I98: 0 | J98: 6628.98981 | K98: 871.47993 | L98: 4434.42059 | M98: 11934.89033 | N98: 5242.43 | O98: 36.93373 | P98: 489.25194 | Q98: 47.92607 | R98: 0.9615 | S98: 5361.17083 | U98: 2772.50546 | V98: -24.45355 | X98: 2564.21182 | Y98: -86.17429 | Z98: 4.58792 | AA98: 48.46588 | AB98: -0.01449 | AC98: 2521.901 | AE98: 25932.53694 | AK98: 12952.21563 | AM98: 15565.02142 | AP98: 3987 | AQ98: 7.9 | AT98: 9858.29301 | AU98: 21531.54747 | AV98: 0 | AW98: 6327.57575 | AX98: 763.75922 | AY98: 4820.13565 | AZ98: 11844.5167 | BA98: 5115.86196 | BB98: 123.28992 | BC98: 536.37382 | BD98: 80.81318 | BE98: 6.70906 | BF98: 4948.14442 | BH98: 3304.29846 | BI98: -0.584 | BK98: 1643.55396 | BL98: -3.68 | BM98: 26.6135 | BN98: 35.75667 | BO98: -6.60749 | BP98: 1655.71639 | BR98: 27588.2823 | BX98: 15722.33732 | BZ98: 14642.04441 | CE98: 8.4 | CM98: -293.00539 | CN98: -4577.70117 | CO98: 0 | CP98: 523.97267 | CQ98: -156.27155 | CS98: -182.37231 | CT98: -3103.78909 | CU98: 401.43189 | CV98: 484.12564 | CW98: 196.53949
A99: 275 | B99: Konnevesi | C99: 2499 | D99: 9.36 | G99: 3566.62494 | H99: 10082.36367 | I99: 0 | J99: 3827.54998 | K99: 753.5717 | L99: 876.98882 | M99: 5458.1105 | N99: 3439.03583 | O99: 22.14514 | P99: 705.16598 | Q99: 319.53222 | R99: 36.5739 | S99: 1960.91161 | U99: 1300.90523 | V99: 0 | X99: 660.00638 | Y99: -7.75564 | Z99: 15.89729 | AA99: 0 | AB99: -1.05291 | AC99: 635.30054 | AE99: 167.9491 | AK99: 979.37128 | AM99: 22707.52303 | AP99: 2441 | AQ99: 9.8 | AT99: 3859.81823 | AU99: 10282.77898 | AV99: 0.08139 | AW99: 4283.04533 | AX99: 651.3217 | AY99: 934.27151 | AZ99: 5848.29891 | BA99: 3334.86136 | BB99: 20.33292 | BC99: 797.29735 | BD99: 303.65602 | BE99: 31.32452 | BF99: 2255.64798 | BH99: 1368.12751 | BI99: 0 | BK99: 887.52047 | BL99: -2.20982 | BM99: 6.33508 | BN99: -17.1701 | BO99: 0 | BP99: 864.97301 | BR99: 298.70816 | BX99: 3226.14251 | BZ99: 23652.69723 | CE99: 9.8 | CM99: -8.00985 | CN99: -396.02682 | CO99: 4 | CP99: 8.975 | CQ99: 0 | CS99: -1.90999 | CT99: -759.52267 | CU99: 159.78835 | CV99: 1.6 | CW99: 0
A100: 276 | B100: Kontiolahti | C100: 15136 | D100: 7.86 | G100: 15613.71031 | H100: 57428.17063 | I100: 0.31273 | J100: 25983.07208 | K100: 2975.77646 | L100: 3527.24301 | M100: 32486.09155 | N100: 20886.0234 | O100: 124.0155 | P100: 1275.1853 | Q100: 293.75739 | R100: 6.84946 | S100: 10693.70549 | U100: 8808.82932 | V100: 0 | X100: 1884.87617 | Y100: -17.58439 | Z100: 105.91013 | AA100: -1.73984 | AB100: 0.21078 | AC100: 1759.85259 | AE100: 29760.32203 | AK100: 10689.63666 | AM100: 84725.24892 | AP100: 15071 | AQ100: 8.4 | AT100: 16664.52901 | AU100: 57276.48558 | AV100: 26.41304 | AW100: 27287.60143 | AX100: 2329.90032 | AY100: 3664.73195 | AZ100: 33282.2337 | BA100: 18656.60176 | BB100: 208.15116 | BC100: 1732.11972 | BD100: 352.19303 | BE100: -48.38697 | BF100: 10229.90337 | BH100: 8987.19991 | BI100: 0 | BK100: 1242.70346 | BL100: 2.06068 | BM100: 315.52294 | BN100: -3.925 | BO100: -0.11282 | BP100: 1082.96485 | BR100: 30735.15885 | BX100: 9920.17159 | BZ100: 80110.07725 | CE100: 8.8 | CM100: -475.46948 | CN100: -14384.33331 | CO100: 1098.35922 | CP100: 489.00614 | CQ100: -0.23456 | CS100: -2653.28196 | CT100: -3860.96331 | CU100: 123.67449 | CV100: 1136.28594 | CW100: 0
A101: 280 | B101: Korsnäs | C101: 2015 | D101: 9.36 | G101: 3817.03415 | H101: 9101.24456 | I101: 0 | J101: 3150.75064 | K101: 571.32245 | L101: 828.73807 | M101: 4550.81116 | N101: 2774.338 | O101: 17.13088 | P101: 177.28662 | Q101: 6.05625 | R101: 13.04431 | S101: 1873.79495 | U101: 1244.60419 | V101: 0 | X101: 629.19076 | Y101: 0 | Z101: 0 | AA101: 0 | AB101: 0 | AC101: 629.19076 | AE101: 6990.80208 | AK101: 513.50617 | AM101: 5907.72578 | AP101: 1986 | AQ101: 9.3 | AT101: 3783.20979 | AU101: 9228.51913 | AV101: 0 | AW101: 3397.13075 | AX101: 431.70976 | AY101: 874.13573 | AZ101: 4702.97624 | BA101: 2857.447 | BB101: 18.85428 | BC101: 201.09554 | BD101: 16.72188 | BE101: 15.4266 | BF101: 1934.16792 | BH101: 1077.71814 | BI101: 0 | BK101: 856.44978 | BL101: 0 | BM101: 0 | BN101: 0 | BO101: 0 | BP101: 856.44978 | BR101: 7850.55012 | BX101: 911.42462 | BZ101: 5767.5121 | CE101: 9.2 | CM101: 1.74489 | CN101: -1034.93484 | CO101: 0.458 | CP101: -1.73489 | CQ101: -2.55887 | CS101: -0.09529 | CT101: -1248.70354 | CU101: 21.96112 | CV101: 0.09529 | CW101: 0
A102: 284 | B102: Koski tl | C102: 2207 | D102: 7.36 | G102: 5486.76176 | H102: 10045.34808 | I102: 13.51538 | J102: 3296.74393 | K102: 949.98969 | L102: 553.21072 | M102: 4799.94434 | N102: 4333.462 | O102: 5.30819 | P102: 10.26961 | Q102: 11.83822 | R102: 3.90623 | S102: 4591.30597 | U102: 756.96006 | V102: 5.517 | X102: 3839.86291 | Y102: 0 | Z102: 0.0292 | AA102: 0 | AB102: 0 | AC102: 3839.83371 | AE102: 10750.76866 | AK102: 8206.84266 | AM102: 229.13333 | AP102: 2186 | AQ102: 7.4 | AT102: 4658.55584 | AU102: 10960.90681 | AV102: 21.62568 | AW102: 3059.22404 | AX102: 1450.86189 | AY102: 574.09513 | AZ102: 5084.18106 | BA102: 3562.561 | BB102: 136.86434 | BC102: 7.16249 | BD102: 20.66489 | BE102: 1.80733 | BF102: 2514.57618 | BH102: 768.89821 | BI102: 0.6 | BK102: 1745.97797 | BL102: 0 | BM102: 0.83026 | BN102: 0 | BO102: 0 | BP102: 1745.56284 | BR102: 12527.80241 | BX102: 9647.02063 | BZ102: 127.6 | CE102: 7.4 | CM102: -82.59433 | CN102: -601.32988 | CO102: 0 | CP102: 39.31327 | CQ102: 0 | CS102: -98.65064 | CT102: -675.88235 | CU102: 16.2 | CV102: 43.93202 | CW102: 0
A103: 285 | B103: Kotka | C103: 50500 | D103: 9.36 | G103: 294774.9747 | H103: 376367.8904 | I103: 1764.45102 | J103: 112256.9572 | K103: 12290.4861 | L103: 17090.8006 | M103: 141638.2439 | N103: 40428.69094 | O103: 229.04987 | P103: 10157.52309 | Q103: 647.51291 | R103: 97.84073 | S103: 90871.47802 | U103: 58728.97546 | V103: 0 | X103: 32142.50256 | Y103: 0 | Z103: 3480.44166 | AA103: 93.27914 | AB103: -1600.89661 | AC103: 27154.44343 | AE103: 112463.4918 | AK103: 31826.87543 | AM103: 479149.664 | AP103: 50210 | AQ103: 9.4 | AT103: 286224.0866 | AU103: 363306.6707 | AV103: 955.64833 | AW103: 107045.2205 | AX103: 8907.4947 | AY103: 17829.76237 | AZ103: 131597.915 | BA103: 23001.38161 | BB103: 819.971 | BC103: 16460.32745 | BD103: 641.56669 | BE103: 148.63637 | BF103: 63324.93471 | BH103: 54156.22556 | BI103: 0 | BK103: 9168.70915 | BL103: 0 | BM103: 4747.68216 | BN103: -267.14254 | BO103: -2170.14994 | BP103: 4357.57559 | BR103: 117337.9843 | BX103: 20822.34522 | BZ103: 504020.9108 | CE103: 9.4 | CM103: -1838.23981 | CN103: -107090.7996 | CO103: 1578.80722 | CP103: 5400.39843 | CQ103: -150.52298 | CS103: -1323.69488 | CT103: -91149.15131 | CU103: 1803.88787 | CV103: 1097.86284 | CW103: -8.04121
A104: 286 | B104: Kouvola | C104: 78880 | D104: 8.61 | G104: 318815.6164 | H104: 440827.6494 | I104: 8279.17526 | J104: 157373.693 | K104: 24935.05202 | L104: 30264.74749 | M104: 212573.4925 | N104: 20813.18175 | O104: 2044.42247 | P104: 11839.6403 | Q104: 3947.99199 | R104: 1625.53406 | S104: 110682.7128 | U104: 46109.88902 | V104: 0 | X104: 64572.82379 | Y104: -5.04101 | Z104: 8522.32036 | AA104: -884.19774 | AB104: -820.68298 | AC104: 54340.5817 | AE104: 124986.1854 | AK104: 65674.5151 | AM104: 442387.4555 | AP104: 78386 | AQ104: 8.9 | AT104: 288362.3193 | AU104: 411676.6511 | AV104: 7183.31013 | AW104: 156137.0062 | AX104: 20138.10667 | AY104: 30099.0576 | AZ104: 204877.9061 | BA104: -2782.35996 | BB104: 2647.22924 | BC104: 14913.65069 | BD104: 5255.44668 | BE104: 703.87717 | BF104: 78249.67253 | BH104: 48044.77281 | BI104: 0 | BK104: 30204.89972 | BL104: -11.61399 | BM104: 10661.25464 | BN104: -1166.52536 | BO104: -1373.42941 | BP104: 22322.70364 | BR104: 147308.8891 | BX104: 76792.02421 | BZ104: 470164.8404 | CE104: 8.9 | CM104: -9317.72575 | CN104: -74678.46013 | CO104: 462.22091 | CP104: 5847.65464 | CQ104: 4.22024 | CS104: -5351.68365 | CT104: -67208.27361 | CU104: 640.413 | CV104: 2890.6081 | CW104: -91.52351
A105: 287 | B105: Kristiinankaupunki | C105: 6199 | D105: 8.86 | G105: 12483.91371 | H105: 30629.89626 | I105: 0.00654 | J105: 11086.7432 | K105: 1376.21303 | L105: 3191.22775 | M105: 15654.18398 | N105: 8693.077 | O105: 2.19212 | P105: 302.404 | Q105: 149.10372 | R105: 410.63419 | S105: 5639.54262 | U105: 4027.28328 | V105: 0 | X105: 1612.25934 | Y105: 0 | Z105: 0.3757 | AA105: 24.54957 | AB105: 5.65968 | AC105: 1642.09289 | AE105: 9614.19128 | AK105: 2626.05837 | AM105: 38113.29942 | AP105: 6121 | AQ105: 8.9 | AT105: 12223.27026 | AU105: 30952.2109 | AV105: -0.00421 | AW105: 11234.89845 | AX105: 1155.97249 | AY105: 4471.67863 | AZ105: 16862.54957 | BA105: 8585.443 | BB105: 0.24514 | BC105: 754.78549 | BD105: 72.48769 | BE105: 233.61316 | BF105: 5803.3819 | BH105: 4624.28544 | BI105: 0 | BK105: 1179.09646 | BL105: 0 | BM105: 44.16516 | BN105: 41.799 | BO105: 12.22839 | BP105: 1211.04127 | BR105: 11054.27608 | BX105: 5440.08473 | BZ105: 38376.76118 | CE105: 8.9 | CM105: -1162.55919 | CN105: -7998.83558 | CO105: 998.00963 | CP105: 76.09028 | CQ105: 1e-05 | CS105: -173.00649 | CT105: -4755.72639 | CU105: 412.39517 | CV105: 471.95791 | CW105: 179.21946
A106: 288 | B106: Kruunupyy | C106: 6368 | D106: 9.36 | G106: 15839.168 | H106: 31834.752 | I106: 8.455 | J106: 11684.01135 | K106: 2122.91995 | L106: 1837.94058 | M106: 15644.87188 | N106: 6673.345 | O106: 34.304 | P106: 277.324 | Q106: 208.594 | R106: 27.978 | S106: 6268.684 | U106: 2710.151 | V106: 0 | X106: 3558.533 | Y106: 23.904 | Z106: 65.546 | AA106: -6.872 | AB106: -0.261 | AC106: 3509.758 | AE106: 20921.32 | AK106: 6331.19 | AM106: 20841.309 | AP106: 6342 | AQ106: 8.9 | AT106: 15556.695 | AU106: 31828.165 | AV106: 3.838 | AW106: 10874.35363 | AX106: 1851.80444 | AY106: 1997.70826 | AZ106: 14723.866 | BA106: 7517.549 | BB106: 28.417 | BC106: 235.876 | BD106: 251.236 | BE106: 36.695 | BF106: 5980.865 | BH106: 2721.545 | BI106: 0 | BK106: 3259.32 | BL106: 22.979 | BM106: 119.238 | BN106: -8.442 | BO106: -0.15 | BP106: 3214.088 | BR106: 25155.532 | BX106: 5457.33 | BZ106: 16818.673 | CE106: 8.9 | CM106: 147.109 | CN106: -2733.443 | CO106: 53.391 | CP106: 22.523 | CQ106: 0 | CS106: 63.09 | CT106: -3008.79 | CU106: 194.612 | CV106: 87.468 | CW106: -27.281
A107: 290 | B107: Kuhmo | C107: 7582 | D107: 9.36 | G107: 21161.07977 | H107: 40322.90894 | I107: 0 | J107: 12695.47607 | K107: 3455.175 | L107: 2307.03561 | M107: 18457.68668 | N107: 7323.353 | O107: 177.95672 | P107: 722.50579 | Q107: 1655.7664 | R107: 648.85762 | S107: 6917.98101 | U107: 4852.03798 | V107: -115.7393 | X107: 1950.20373 | Y107: 7.23977 | Z107: 109.49753 | AA107: -81.60012 | AB107: -592.653 | AC107: 1173.69285 | AE107: 16111.81463 | AK107: 33827.57421 | AM107: 39142.83019 | AP107: 7483 | AQ107: 9.4 | AT107: 20245.39085 | AU107: 39998.93997 | AV107: 0 | AW107: 12866.66609 | AX107: 3324.36755 | AY107: 2517.3054 | AZ107: 18541.99766 | BA107: 8297.974 | BB107: 123.92974 | BC107: 1346.21099 | BD107: 2312.8349 | BE107: 689.48818 | BF107: 7487.48801 | BH107: 4308.88459 | BI107: 0 | BK107: 3178.60342 | BL107: 14.01193 | BM107: 384.73858 | BN107: -159.34303 | BO107: -202.00137 | BP107: 2638.90166 | BR107: 19302.97157 | BX107: 36360.21642 | BZ107: 37162.25298 | CE107: 9.4 | CM107: 151.87551 | CN107: -8187.75586 | CO107: 599.79864 | CP107: 5402.70117 | CQ107: 0 | CS107: 602.25664 | CT107: -4152.79388 | CU107: 115.0737 | CV107: 251.78478 | CW107: 0
A108: 291 | B108: Kuhmoinen | C108: 2092 | D108: 9.11 | G108: 3661.63983 | H108: 11131.59991 | I108: 0 | J108: 3414.08674 | K108: 932.457 | L108: 1647.62722 | M108: 5994.17096 | N108: 3432.37068 | O108: 77.63307 | P108: 309.14713 | Q108: 17.61213 | R108: -1.37461 | S108: 1723.54942 | U108: 1439.91559 | V108: -0.12888 | X108: 283.50495 | Y108: 0.04426 | Z108: 6.09203 | AA108: 0 | AB108: -6.6903 | AC108: 270.76688 | AE108: 4997.36697 | AK108: 5302.90279 | AM108: 8591.74905 | AP108: 2038 | AQ108: 9.1 | AT108: 4988.52799 | AU108: 11270.76704 | AV108: 0 | AW108: 3476.40207 | AX108: 752.38499 | AY108: 1763.7089 | AZ108: 5971.59626 | BA108: 2539.181 | BB108: 64.6654 | BC108: 323.02587 | BD108: 40.07536 | BE108: 98.75919 | BF108: 1911.49391 | BH108: 1467.32272 | BI108: -0.1761 | BK108: 444.08314 | BL108: 0.04426 | BM108: -3.6914 | BN108: 9 | BO108: 111.6903 | BP108: 566.6634 | BR108: 5785.09362 | BX108: 6440.95101 | BZ108: 8548.78472 | CE108: 9.1 | CM108: -105.08918 | CN108: -1079.25352 | CO108: 0.01484 | CP108: 203.86166 | CQ108: 0 | CS108: -3.79511 | CT108: -1048.12928 | CU108: 0.02733 | CV108: 5.55511 | CW108: 0
A109: 297 | B109: Kuopio | C109: 124021 | D109: 8.11 | G109: 465196.072 | H109: 732385.8708 | I109: 2292.74798 | J109: 227779.4086 | K109: 29844.13848 | L109: 50445.45968 | M109: 308069.0068 | N109: 116889.61 | O109: 4542.25907 | P109: 18653.33544 | Q109: 4134.24502 | R109: 4216.40268 | S109: 145868.332 | U109: 108389.6115 | V109: 0 | X109: 37478.72051 | Y109: 15.22357 | Z109: 2212.99141 | AA109: -3233.90127 | AB109: -1417.16161 | AC109: 30629.88979 | AE109: 142082.0854 | AK109: 157948.8706 | AM109: 924003.9114 | AP109: 125666 | AQ109: 8.1 | AT109: 474027.285 | AU109: 737319.0502 | AV109: 1154.71813 | AW109: 226378.3711 | AX109: 24756.2371 | AY109: 51432.30969 | AZ109: 302566.9179 | BA109: 111935.5564 | BB109: 6364.75307 | BC109: 22763.90146 | BD109: 7281.3441 | BE109: 454.4048 | BF109: 142793.2181 | BH109: 113266.3647 | BI109: 81.49938 | BK109: 29567.60312 | BL109: 148.70856 | BM109: 4598.90236 | BN109: -2458.41729 | BO109: -2014.56067 | BP109: 22943.88254 | BR109: 164916.5148 | BX109: 208156.047 | BZ109: 1012346.042 | CE109: 8.1 | CM109: 811.01502 | CN109: -168650.1038 | CO109: 5819.78487 | CP109: 21151.55007 | CQ109: 61.36663 | CS109: -12444.72768 | CT109: -171473.599 | CU109: 6357.70416 | CV109: 28256.48793 | CW109: 568.96658
A110: 300 | B110: Kuortane | C110: 3381 | D110: 8.36 | G110: 4958.82419 | H110: 16358.97857 | I110: -29.63138 | J110: 5192.39287 | K110: 693.37727 | L110: 1014.12722 | M110: 6899.89736 | N110: 7525.20853 | O110: 54.57466 | P110: 319.17571 | Q110: 89.58925 | R110: 89.441 | S110: 2730.86733 | U110: 1640.74849 | V110: -124.85054 | X110: 965.2683 | Y110: 7.18032 | Z110: 0 | AA110: 15.56725 | AB110: 0 | AC110: 988.01587 | AE110: 9420.66523 | AK110: 2225.20847 | AM110: 11926.72155 | AP110: 3335 | AQ110: 8.4 | AT110: 5080.68088 | AU110: 16550.33182 | AV110: -33.95138 | AW110: 5245.49535 | AX110: 606.44667 | AY110: 1033.18108 | AZ110: 6885.1231 | BA110: 7809.88725 | BB110: 54.79914 | BC110: 345.58507 | BD110: 63.99527 | BE110: 7.80164 | BF110: 2956.81573 | BH110: 1622.85336 | BI110: 0 | BK110: 1333.96237 | BL110: -24.40742 | BM110: 0 | BN110: 16.00956 | BO110: 0 | BP110: 1325.56451 | BR110: 10785.18982 | BX110: 1963.14296 | BZ110: 12199.85075 | CE110: 8.4 | CM110: -24.56113 | CN110: -2033.99706 | CO110: -43.72952 | CP110: 1429.63609 | CQ110: -33.85536 | CS110: 32.26322 | CT110: -2800.99893 | CU110: 25.24596 | CV110: 1.98916 | CW110: -681.73006
A111: 301 | B111: Kurikka | C111: 19759 | D111: 8.36 | G111: 47342.69707 | H111: 101503.7845 | I111: -17.26282 | J111: 30891.36318 | K111: 3989.70682 | L111: 5317.43737 | M111: 40198.50737 | N111: 24592.1662 | O111: 549.17059 | P111: 3165.81883 | Q111: 13305.02681 | R111: 113.67567 | S111: 21187.02626 | U111: 14511.92594 | V111: 0 | X111: 6675.10032 | Y111: 68.4 | Z111: 21.32994 | AA111: -38.04857 | AB111: 6.36381 | AC111: 6690.48562 | AE111: 18362.28075 | AK111: 52170.85728 | AM111: 149252.5659 | AP111: 19509 | AQ111: 8.4 | AT111: 50965.4765 | AU111: 106509.9599 | AV111: -44.94143 | AW111: 31504.5197 | AX111: 3167.26263 | AY111: 6347.42227 | AZ111: 41019.2046 | BA111: 20397.06708 | BB111: 509.37242 | BC111: 3820.89128 | BD111: 13354.96001 | BE111: 248.70984 | BF111: 15621.57813 | BH111: 14449.46393 | BI111: 0 | BK111: 1172.1142 | BL111: 0 | BM111: 35.61024 | BN111: -35.74821 | BO111: -3.67156 | BP111: 1114.88931 | BR111: 22204.16018 | BX111: 55827.07498 | BZ111: 161335.3433 | CE111: 8.4 | CM111: -255.11653 | CN111: -31034.22409 | CO111: 688.75985 | CP111: 140.4539 | CQ111: -53.592 | CS111: 1586.84517 | CT111: -26811.95208 | CU111: 129.76844 | CV111: 1533.76371 | CW111: -112.3
A112: 304 | B112: Kustavi | C112: 949 | D112: 5.36 | G112: 1618.761 | H112: 4319.58 | I112: 0 | J112: 1516.21533 | K112: 250.7673 | L112: 1487.17669 | M112: 3254.15932 | N112: -354.494 | O112: 0 | P112: 54.587 | Q112: 2.33 | R112: 0.877 | S112: 143.192 | U112: 528.233 | V112: 0 | X112: -385.041 | Y112: 39.52 | Z112: 0 | AA112: 0 | AB112: 0 | AC112: -345.521 | AE112: 3462.878 | AK112: 599.418 | AM112: 3965.535 | AP112: 970 | AQ112: 5.3 | AT112: 1887.775 | AU112: 4437.357 | AV112: 0 | AW112: 1224.78803 | AX112: 216.8153 | AY112: 1838.5287 | AZ112: 3277.575 | BA112: -225.67 | BB112: 3.75 | BC112: 97.923 | BD112: 3.868 | BE112: 0.585 | BF112: 411.433 | BH112: 508.718 | BI112: 0 | BK112: -97.285 | BL112: 7.861 | BM112: 0 | BN112: 0 | BO112: 0 | BP112: -89.424 | BR112: 4393.78202 | BX112: 271.246 | BZ112: 5019.5613 | CE112: 5.3 | CM112: -5.109 | CN112: -983.032 | CO112: 34.02 | CP112: 1.145 | CQ112: 0 | CS112: -32.046 | CT112: -2090.813 | CU112: 56.7 | CV112: 123.131 | CW112: 0
A113: 305 | B113: Kuusamo | C113: 15019 | D113: 7.36 | G113: 25738.34537 | H113: 66456.88986 | I113: 78.40017 | J113: 21183.307 | K113: 4716.16249 | L113: 8048.30658 | M113: 33947.77607 | N113: 17208.199 | O113: 43.06152 | P113: 1523.65073 | Q113: 541.71949 | R113: -225.77678 | S113: 9667.59792 | U113: 8035.11638 | V113: 0 | X113: 1632.48154 | Y113: 911.11837 | Z113: 5.13344 | AA113: 13.00712 | AB113: 19.43867 | AC113: 2570.91226 | AE113: 30097.78929 | AK113: 23122.68668 | AM113: 81522.7911 | AP113: 14876 | AQ113: 7.4 | AT113: 27754.86657 | AU113: 67132.21212 | AV113: 49.85207 | AW113: 21530.653 | AX113: 4648.1615 | AY113: 8259.29717 | AZ113: 34297.87504 | BA113: 14827.459 | BB113: 19.27567 | BC113: 2117.64421 | BD113: 776.25443 | BE113: 95.11939 | BF113: 8380.60706 | BH113: 9982.20799 | BI113: 0 | BK113: -1601.60093 | BL113: 764.34062 | BM113: 60.73164 | BN113: 142.056 | BO113: -4.48232 | BP113: -730.05245 | BR113: 28868.8504 | BX113: 26607.24531 | BZ113: 89895.61436 | CE113: 8.6 | CM113: -307.67179 | CN113: -26997.42659 | CO113: 1983.44402 | CP113: 250.89761 | CQ113: 15.62474 | CS113: -1653.35744 | CT113: -23280.14646 | CU113: 4722.45293 | CV113: 10312.61742 | CW113: 0
A114: 312 | B114: Kyyjärvi | C114: 1174 | D114: 9.86 | G114: 1920 | H114: 5401 | I114: 0 | J114: 1972.6933 | K114: 804.22263 | L114: 518.95777 | M114: 3295.8737 | N114: 1086 | O114: 15 | P114: 423 | Q114: 334 | R114: 16 | S114: 785 | U114: 511 | V114: -17 | X114: 257 | Y114: 3 | Z114: 0 | AA114: 0 | AB114: 7 | AC114: 267 | AE114: -2798 | AK114: 7153 | AM114: 12584 | AP114: 1155 | AQ114: 9.9 | AT114: 1863.41555 | AU114: 5485.83123 | AV114: 0 | AW114: 1848.63836 | AX114: 639.78735 | AY114: 945.35203 | AZ114: 3408.10871 | BA114: 719.82112 | BB114: 20.63239 | BC114: 479.44432 | BD114: 1085.74965 | BE114: -9.07948 | BF114: 1141.53135 | BH114: 510.2687 | BI114: 0 | BK114: 631.26265 | BL114: 0.13131 | BM114: 0.037 | BN114: 0 | BO114: 7.15673 | BP114: 638.53219 | BR114: -2159.40877 | BX114: 7713.23013 | BZ114: 11635.24921 | CE114: 9.9 | CM114: -1 | CN114: -316 | CO114: 0 | CP114: 64 | CQ114: 0 | CS114: 296.66781 | CT114: -224.22543 | CU114: 3.35886 | CV114: 141.75419 | CW114: 0
A115: 316 | B115: Kärkölä | C115: 4114 | D115: 9.36 | G115: 3271.23386 | H115: 14037.38103 | I115: -0.64985 | J115: 8035.12074 | K115: 1304.03509 | L115: 1273.54596 | M115: 10612.70179 | N115: 2397.59504 | O115: 7.97456 | P115: 501.35716 | Q115: 85.51269 | R115: -0.1769 | S115: 1819.1277 | U115: 1594.91729 | V115: -0.68889 | X115: 223.52153 | Y115: -0.31949 | Z115: 0 | AA115: 0 | AB115: 9.50185 | AC115: 232.7039 | AE115: 5146.34047 | AK115: 2421.15931 | AM115: 22000.77775 | AP115: 4093 | AQ115: 9.4 | AT115: 3849.31832 | AU115: 14246.59588 | AV115: 1.01754 | AW115: 7761.96663 | AX115: 2055.24054 | AY115: 1325.24943 | AZ115: 11142.4566 | BA115: 2013.70496 | BB115: 21.48229 | BC115: 615.31758 | BD115: 79.28155 | BE115: 2.26503 | BF115: 2243.08277 | BH115: 4225.50069 | BI115: -0.9413 | BK115: -1982.88858 | BL115: -0.30252 | BM115: 0 | BN115: 0 | BO115: -3.77512 | BP115: -1986.96622 | BR115: 3159.37424 | BX115: 1253.8606 | BZ115: 22615.85475 | CE115: 9.4 | CM115: -28.7922 | CN115: -3810.24934 | CO115: 0.0793 | CP115: 1317.79992 | CQ115: 0 | CS115: -50.0347 | CT115: -3272.24267 | CU115: 198.38931 | CV115: 26.024 | CW115: 0
A116: 317 | B116: Kärsämäki | C116: 2440 | D116: 8.86 | G116: 3978.23587 | H116: 12349.76367 | I116: 0 | J116: 2940.01952 | K116: 822.35625 | L116: 668.83642 | M116: 4431.21219 | N116: 5933.76059 | O116: 92.40756 | P116: 566.1659 | Q116: 601.92113 | R116: 108.35108 | S116: 1953.92984 | U116: 1674.30911 | V116: 0 | X116: 279.62073 | Y116: 1.5141 | Z116: 0.28276 | AA116: -0.05982 | AB116: 0 | AC116: 280.79225 | AE116: 9735.95255 | AK116: 1025.47304 | AM116: 18674.20034 | AP116: 2373 | AQ116: 9.5 | AT116: 4049.78527 | AU116: 12331.99176 | AV116: 0 | AW116: 3530.06266 | AX116: 614.60855 | AY116: 761.33977 | AZ116: 4846.88534 | BA116: 5440.70187 | BB116: 45.51597 | BC116: 612.78791 | BD116: 404.1382 | BE116: 4.01934 | BF116: 1838.22764 | BH116: 1615.222 | BI116: 0 | BK116: 223.00564 | BL116: 1.5803 | BM116: 0.73096 | BN116: -0.33898 | BO116: 0 | BP116: 223.88148 | BR116: 10142.48768 | BX116: 1058.98043 | BZ116: 18055.78434 | CE116: 9.5 | CM116: 12.45358 | CN116: -1354.07794 | CO116: 52.1715 | CP116: 284.18019 | CQ116: 1391.16306 | CS116: -33.12401 | CT116: -996.06145 | CU116: 184.91846 | CV116: 42.56985 | CW116: 51.16306
A117: 398 | B117: Lahti | C117: 120693 | D117: 8.11 | G117: 437846.7573 | H117: 678682.7518 | I117: -415.2309 | J117: 225383.3743 | K117: 32652.21939 | L117: 46807.07204 | M117: 304842.6657 | N117: 131527.6345 | O117: 10507.46202 | P117: 23435.57974 | Q117: 5431.28813 | R117: 4694.84297 | S117: 181442.9069 | U117: 115901.1302 | V117: 554.03457 | X117: 66095.81127 | Y117: -276.29477 | Z117: 3288.13106 | AA117: -2046.87066 | AB117: -232.98821 | AC117: 60251.52657 | AE117: 438465.9552 | AK117: 297281.5669 | AM117: 1136756.457 | AP117: 121337 | AQ117: 8.1 | AT117: 431582.6108 | AU117: 676459.3807 | AV117: -415.71306 | AW117: 214003.5051 | AX117: 26539.28481 | AY117: 47728.04107 | AZ117: 286664.4766 | BA117: 118602.7593 | BB117: 12054.81676 | BC117: 26383.57978 | BD117: 4097.09155 | BE117: 448.41675 | BF117: 149294.6647 | BH117: 111521.287 | BI117: 0 | BK117: 37773.37771 | BL117: 67.47616 | BM117: 7503.86182 | BN117: -4264.35385 | BO117: -1187.22972 | BP117: 28637.33939 | BR117: 471994.4605 | BX117: 249464.7065 | BZ117: 1051410.371 | CE117: 8.1 | CM117: -24185.40498 | CN117: -133295.3452 | CO117: 680.30836 | CP117: 29570.90561 | CQ117: 554.47619 | CS117: -8944.81744 | CT117: -153641.5719 | CU117: 1510.5281 | CV117: 51005.33161 | CW117: 522.03918
A118: 399 | B118: Laihia | C118: 7682 | D118: 9.11 | G118: 7242 | H118: 27485 | I118: 0 | J118: 16390.12003 | K118: 1080.31134 | L118: 1441.36994 | M118: 18911.80131 | N118: 5679 | O118: 25 | P118: 923 | Q118: 104.67134 | R118: -5.47629 | S118: 3473 | U118: 3583 | V118: 0 | X118: -110 | Y118: 0 | Z118: 19 | AA118: 24 | AB118: 99 | AC118: 31 | AE118: 702 | AK118: 2520 | AM118: 33343 | AP118: 7656 | AQ118: 9.6 | AT118: 7386.06942 | AU118: 27577.05836 | AV118: 0 | AW118: 16417.97609 | AX118: 979.03591 | AY118: 1508.01683 | AZ118: 18821.20663 | BA118: 4333.862 | BB118: 22.18816 | BC118: 1225.12611 | BD118: 90.86938 | BE118: 8.66698 | BF118: 1843.34414 | BH118: 3058.88994 | BI118: 0 | BK118: -1215.5458 | BL118: 0 | BM118: -8.85346 | BN118: -36.21612 | BO118: -22.96501 | BP118: -1270.3002 | BR118: -887.4892 | BX118: 3079.63121 | BZ118: 35790.1458 | CE118: 9.6 | CM118: 0 | CN118: -2044 | CO118: 51 | CP118: 0 | CQ118: 0 | CS118: 0 | CT118: -2431.02791 | CU118: 0 | CV118: 0 | CW118: 0
A119: 400 | B119: Laitila | C119: 8441 | D119: 8.11 | G119: 13896.76806 | H119: 36760.65642 | I119: -17.1581 | J119: 13923.69715 | K119: 2367.09942 | L119: 2125.68092 | M119: 18416.47749 | N119: 12853.475 | O119: 18.26441 | P119: 833.09064 | Q119: 176.51966 | R119: 25.89556 | S119: 7724.70389 | U119: 4487.535 | V119: -5.48633 | X119: 3231.68257 | Y119: 0 | Z119: 0 | AA119: -14.30917 | AB119: 17.22295 | AC119: 3234.59634 | AE119: 13318.32074 | AK119: 2886.91818 | AM119: 36651.19072 | AP119: 8479 | AQ119: 8.1 | AT119: 14457.07656 | AU119: 36245.64746 | AV119: 335.09265 | AW119: 13879.3146 | AX119: 1852.60265 | AY119: 2384.61692 | AZ119: 18116.53417 | BA119: 12396.982 | BB119: 42.06712 | BC119: 933.42311 | BD119: 98.83322 | BE119: 16.14476 | BF119: 8251.37039 | BH119: 4900.53094 | BI119: -1852.11828 | BK119: 2424.7803 | BL119: 0 | BM119: 8.01988 | BN119: 9.16536 | BO119: 18.15838 | BP119: 2448.0941 | BR119: 15756.90041 | BX119: 3963.67595 | BZ119: 34908.59397 | CE119: 8.4 | CM119: 56.53302 | CN119: -7363.21764 | CO119: 0 | CP119: 41.8624 | CQ119: 21.77391 | CS119: 577.35669 | CT119: -4615.18078 | CU119: 0 | CV119: 126.26567 | CW119: 10.37064
A120: 407 | B120: Lapinjärvi | C120: 2449 | D120: 8.86 | G120: 3579.80701 | H120: 11009.98881 | I120: 0 | J120: 4156.13794 | K120: 528.67007 | L120: 652.70066 | M120: 5337.50867 | N120: 2735.275 | O120: 48.59743 | P120: 233.74322 | Q120: 287.59639 | R120: -501.14136 | S120: 1202.84218 | U120: 1210.02263 | V120: 0 | X120: -7.18045 | Y120: 0.54091 | Z120: 0.03006 | AA120: 0 | AB120: 0 | AC120: -6.6696 | AE120: 3649.22133 | AK120: 1702.79285 | AM120: 8098.02946 | AP120: 2429 | AQ120: 8.9 | AT120: 3182.94934 | AU120: 10503.3159 | AV120: 0 | AW120: 4358.90641 | AX120: 398.13682 | AY120: 776.02911 | AZ120: 5492.32385 | BA120: 2665.676 | BB120: 47.94241 | BC120: 251.08459 | BD120: 1406.86069 | BE120: 25.73208 | BF120: 2015.61972 | BH120: 1176.17868 | BI120: 0 | BK120: 839.44104 | BL120: 0.26956 | BM120: 0 | BN120: 0 | BO120: 0 | BP120: 839.7106 | BR120: 4729.66169 | BX120: 2123.26547 | BZ120: 7003.07519 | CE120: 8.9 | CM120: 63.64391 | CN120: -654.81141 | CO120: 0 | CP120: 64.94762 | CQ120: 0 | CS120: -0.36372 | CT120: -625.4491 | CU120: 20 | CV120: 0.405 | CW120: 0
A121: 402 | B121: Lapinlahti | C121: 8975 | D121: 8.61 | G121: 18859.13441 | H121: 41277.29696 | I121: 983.96629 | J121: 14000.09166 | K121: 1738.18444 | L121: 2309.0546 | M121: 18047.3307 | N121: 11225.07194 | O121: 18.49801 | P121: 1169.50857 | Q121: 1293.09222 | R121: 384.73565 | S121: 7497.40532 | U121: 5584.68638 | V121: 35.41296 | X121: 1948.1319 | Y121: 0.11823 | Z121: 0.64828 | AA121: 24.16493 | AB121: 42.65147 | AC121: 2014.41825 | AE121: 375.02291 | AK121: 4205.03377 | AM121: 47019.58237 | AP121: 8865 | AQ121: 9.4 | AT121: 15366.51249 | AU121: 36589.46621 | AV121: 165.7781 | AW121: 15404.41671 | AX121: 1536.81016 | AY121: 2805.41801 | AZ121: 19605.39816 | BA121: 8460.0225 | BB121: 30.80178 | BC121: 1318.54419 | BD121: 1522.88199 | BE121: 6.62046 | BF121: 7236.76416 | BH121: 5754.12921 | BI121: 3.77928 | BK121: 1484.52459 | BL121: 9.73785 | BM121: 46.64606 | BN121: 13.83046 | BO121: 3.84721 | BP121: 1488.61708 | BR121: 1829.45073 | BX121: 7321.46728 | BZ121: 47232.20515 | CE121: 9.4 | CM121: -1189.15556 | CN121: -3609.63583 | CO121: 140.84995 | CP121: 356.49558 | CQ121: 0.68573 | CS121: -212.3855 | CT121: -3219.0122 | CU121: 50.57977 | CV121: 147.91388 | CW121: 0
A122: 403 | B122: Lappajärvi | C122: 2789 | D122: 9.36 | G122: 6483.23003 | H122: 13888.91689 | I122: 54.27763 | J122: 4326.43699 | K122: 591.8956 | L122: 1086.26622 | M122: 6004.59881 | N122: 3817.411 | O122: 41.1853 | P122: 356.98497 | Q122: 23.30272 | R122: 162.91453 | S122: 2015.1891 | U122: 1695.99351 | V122: 0 | X122: 319.19559 | Y122: 0 | Z122: 7.32578 | AA122: 0 | AB122: 30.63218 | AC122: 342.50199 | AE122: 2982.89561 | AK122: 3948.21785 | AM122: 14559.84067 | AP122: 2758 | AQ122: 9.4 | AT122: 4770.65431 | AU122: 13585.32408 | AV122: 91.31438 | AW122: 4434.75495 | AX122: 456.55885 | AY122: 1203.80619 | AZ122: 6095.11999 | BA122: 5208.09662 | BB122: 43.73686 | BC122: 530.5415 | BD122: 47.27646 | BE122: 2.7421 | BF122: 2137.59094 | BH122: 1557.33159 | BI122: 0 | BK122: 580.25935 | BL122: 0 | BM122: 15.45542 | BN122: 0 | BO122: 11.09273 | BP122: 583.62437 | BR122: 3566.51438 | BX122: 3552.24621 | BZ122: 13955.06706 | CE122: 9.4 | CM122: 235.36062 | CN122: -1080.9329 | CO122: 123.2588 | CP122: 238.01631 | CQ122: 0 | CS122: -253.98831 | CT122: -1391.0454 | CU122: -3.88402 | CV122: 356.50205 | CW122: 160
A123: 405 | B123: Lappeenranta | C123: 72988 | D123: 8.36 | G123: 222283.1565 | H123: 354186.2995 | I123: 180.90646 | J123: 136900.5143 | K123: 25181.26494 | L123: 27396.17539 | M123: 189477.9546 | N123: 42610.6561 | O123: 2719.9008 | P123: 9871.8296 | Q123: 1079.76336 | R123: 351.54456 | S123: 91661.00134 | U123: 62806.22557 | V123: 0 | X123: 28854.77577 | Y123: 69.2991 | Z123: 251.01497 | AA123: -1091.69 | AB123: 236.84072 | AC123: 27818.21062 | AE123: 206220.1189 | AK123: 78906.54611 | AM123: 422068.6295 | AP123: 73327 | AQ123: 8.3 | AT123: 232406.831 | AU123: 357679.5344 | AV123: -415.06516 | AW123: 131737.258 | AX123: 26184.16861 | AY123: 28111.40078 | AZ123: 183723.9388 | BA123: 39427.18666 | BB123: 3226.21985 | BC123: 11403.15219 | BD123: 1710.64138 | BE123: 611.116 | BF123: 90385.94984 | BH123: 50694.41173 | BI123: 0 | BK123: 39691.53811 | BL123: 20.76248 | BM123: 4853.97326 | BN123: 922.62052 | BO123: -988.7431 | BP123: 37219.19138 | BR123: 244695.7989 | BX123: 68240.8832 | BZ123: 419035.7991 | CE123: 8.3 | CM123: -732.92553 | CN123: -62381.87067 | CO123: 444.24382 | CP123: 4908.02161 | CQ123: 334.21909 | CS123: -644.41621 | CT123: -95249.93915 | CU123: 1523.67742 | CV123: 902.03701 | CW123: 271.42275
A124: 408 | B124: Lapua | C124: 14024 | D124: 8.86 | G124: 27004.57522 | H124: 58653.03529 | I124: -4.27606 | J124: 25330.66319 | K124: 2984.37212 | L124: 3270.26485 | M124: 31585.30016 | N124: 15933.67 | O124: 16.70443 | P124: 1533.8218 | Q124: 673.6612 | R124: 827.86648 | S124: 14194.91138 | U124: 9545.35541 | V124: 0 | X124: 4649.55597 | Y124: 0 | Z124: 26.11189 | AA124: -39.60724 | AB124: -24.71676 | AC124: 4559.12008 | AE124: 30289.21732 | AK124: 8310.20141 | AM124: 99042.67753 | AP124: 14028 | AQ124: 8.9 | AT124: 27646.59227 | AU124: 60660.20294 | AV124: 32.74495 | AW124: 25363.1032 | AX124: 2510.91866 | AY124: 3340.09632 | AZ124: 31214.11818 | BA124: 13891.193 | BB124: 8.36197 | BC124: 2889.00864 | BD124: 645.93745 | BE124: 102.00267 | BF124: 9787.73357 | BH124: 9287.41136 | BI124: 0 | BK124: 500.32221 | BL124: 0 | BM124: 167.83116 | BN124: 11.08918 | BO124: -40.07968 | BP124: 387.41613 | BR124: 30394.93874 | BX124: 7149.53992 | BZ124: 100620.8091 | CE124: 8.9 | CM124: -90.60213 | CN124: -10716.07677 | CO124: 77.16585 | CP124: 279.9477 | CQ124: 457.5 | CS124: -136.56928 | CT124: -11792.45178 | CU124: 191.60964 | CV124: 188.87836 | CW124: 0
A125: 410 | B125: Laukaa | C125: 18762 | D125: 8.86 | G125: 22626.3258 | H125: 79637.344 | I125: 0 | J125: 34960.56225 | K125: 2803.96771 | L125: 6562.65944 | M125: 44327.1894 | N125: 28575.25609 | O125: 29.26015 | P125: 2361.8209 | Q125: 388.36163 | R125: 36.80813 | S125: 13910.42004 | U125: 9653.44357 | V125: 0 | X125: 4256.97647 | Y125: -2.11622 | Z125: 1.29951 | AA125: -58.82565 | AB125: 0 | AC125: 4194.73509 | AE125: -4202.55252 | AK125: 4898.92988 | AM125: 138897.0301 | AP125: 18878 | AQ125: 9.9 | AT125: 22291.8585 | AU125: 81145.11931 | AV125: 0 | AW125: 37837.6697 | AX125: 2198.75902 | AY125: 6730.20321 | AZ125: 46766.63193 | BA125: 23871.73441 | BB125: 87.75845 | BC125: 3394.62156 | BD125: 444.26875 | BE125: 217.40149 | BF125: 8705.10968 | BH125: 10150.99545 | BI125: 0 | BK125: -1445.88577 | BL125: 2.11299 | BM125: 0 | BN125: -12.51444 | BO125: 0 | BP125: -1456.28722 | BR125: -5661.95413 | BX125: 5665.48271 | BZ125: 134931.0501 | CE125: 9.9 | CM125: -536.31094 | CN125: -6462.4039 | CO125: 125.6 | CP125: 623.1902 | CQ125: 799.35295 | CS125: -299.56609 | CT125: -6351.6795 | CU125: 108.25852 | CV125: 430.10802 | CW125: 888.20649
A126: 416 | B126: Lemi | C126: 2862 | D126: 9.36 | G126: 2710.05881 | H126: 9548.8179 | I126: -24.92851 | J126: 5332.87984 | K126: 360.97572 | L126: 984.19031 | M126: 6678.04587 | N126: 2302.12936 | O126: 0.00431 | P126: 169.93801 | Q126: 30.0627 | R126: 10.06804 | S126: 1928.8464 | U126: 854.21109 | V126: 0 | X126: 1074.63531 | Y126: 2.56963 | Z126: 0.0665 | AA126: -20.393 | AB126: 0 | AC126: 1056.74544 | AE126: 548.85533 | AK126: 942.10125 | AM126: 8623.6807 | AP126: 2849 | AQ126: 9.9 | AT126: 2452.96739 | AU126: 9429.63458 | AV126: -2.69642 | AW126: 5744.53248 | AX126: 308.49219 | AY126: 1197.93778 | AZ126: 7207.02582 | BA126: 1699.78834 | BB126: 0.28496 | BC126: 205.97423 | BD126: 32.09605 | BE126: 14.22746 | BF126: 1739.62987 | BH126: 851.38911 | BI126: 0 | BK126: 888.24076 | BL126: 0.76988 | BM126: 5.96552 | BN126: -0.47397 | BO126: 0 | BP126: 885.55391 | BR126: 1349.11566 | BX126: 1452.21103 | BZ126: 7565.67773 | CE126: 9.9 | CM126: 12.37987 | CN126: -245.2812 | CO126: 17.84236 | CP126: 17.38928 | CQ126: 5 | CS126: 63.37554 | CT126: -210.1011 | CU126: 15.14791 | CV126: 3.69077 | CW126: -0.46
A127: 418 | B127: Lempäälä | C127: 24711 | D127: 7.86 | G127: 39479.33704 | H127: 101850.4415 | I127: -34.32869 | J127: 51653.21411 | K127: 5359.74321 | L127: 6854.60768 | M127: 63867.565 | N127: 22291.481 | O127: 79.25545 | P127: 3599.41069 | Q127: 704.28303 | R127: -88.65172 | S127: 20772.75461 | U127: 16226.31572 | V127: 0 | X127: 4546.43889 | Y127: 0.23977 | Z127: 3.77446 | AA127: -24.294 | AB127: 24.34384 | AC127: 4542.95404 | AE127: 27966.10109 | AK127: 12429.40741 | AM127: 160063.5405 | AP127: 24855 | AQ127: 8.4 | AT127: 39495.40757 | AU127: 101890.062 | AV127: -4.04773 | AW127: 51669.90137 | AX127: 4060.30447 | AY127: 7535.78182 | AZ127: 62906.30686 | BA127: 19398.848 | BB127: 220.66735 | BC127: 4532.39614 | BD127: 629.35012 | BE127: 70.47975 | BF127: 16153.59428 | BH127: 17794.63511 | BI127: 0 | BK127: -1641.04083 | BL127: 0.23977 | BM127: 28.50184 | BN127: 46.6 | BO127: 247.71996 | BP127: -1360.73202 | BR127: 26606.80666 | BX127: 6214.95051 | BZ127: 192409.6345 | CE127: 8.4 | CM127: -467.85179 | CN127: -32403.92569 | CO127: 404.99205 | CP127: 1538.07118 | CQ127: -480.10494 | CS127: -445.14505 | CT127: -78975.34611 | CU127: 1211.55164 | CV127: 24441.20006 | CW127: 365.47667
A128: 420 | B128: Leppävirta | C128: 9049 | D128: 8.36 | G128: 14043.9418 | H128: 33870.40052 | I128: 5.07414 | J128: 15756.42993 | K128: 2630.54324 | L128: 2935.6815 | M128: 21322.65467 | N128: 6258.73295 | O128: 77.69007 | P128: 425.32457 | Q128: 1157.66678 | R128: 45.81081 | S128: 8369.39414 | U128: 4505.55387 | V128: 0 | X128: 3863.84027 | Y128: 1.75911 | Z128: 2.35307 | AA128: -21.44125 | AB128: 0 | AC128: 3841.80506 | AE128: 6691.07787 | AK128: 12133.95629 | AM128: 15746.41742 | AP128: 8971 | AQ128: 8.4 | AT128: 14478.14256 | AU128: 34769.44591 | AV128: 5.84293 | AW128: 15579.69276 | AX128: 2129.53423 | AY128: 3127.4166 | AZ128: 20694.75591 | BA128: 5407.51864 | BB128: 172.02707 | BC128: 479.39628 | BD128: 1609.28918 | BE128: 42.41388 | BF128: 7076.32022 | BH128: 4735.37935 | BI128: 0 | BK128: 2340.94087 | BL128: 11.01531 | BM128: 2.4529 | BN128: -39.18131 | BO128: 0 | BP128: 2311.54842 | BR128: 8995.20205 | BX128: 13147.47325 | BZ128: 18587.23078 | CE128: 8.4 | CM128: -1112.05993 | CN128: -2046.45343 | CO128: 0 | CP128: 269.84344 | CQ128: -705.90332 | CS128: -1084.81327 | CT128: -8832.48688 | CU128: 301.5339 | CV128: 152.33009 | CW128: 104
A129: 421 | B129: Lestijärvi | C129: 682 | D129: 8.36 | G129: 4142.71158 | H129: 7122.56769 | I129: 20.56505 | J129: 880.11967 | K129: 381.53002 | L129: 417.22403 | M129: 1678.87372 | N129: 1190.69371 | O129: 1.59639 | P129: 196.8024 | Q129: 16.15392 | R129: 4.8941 | S129: -273.66982 | U129: 768.15355 | V129: -0.00119 | X129: -1041.82456 | Y129: 0 | Z129: 6.00633 | AA129: -1.82635 | AB129: -0.67387 | AC129: -1050.33111 | AE129: -2253.73964 | AK129: 1744.241 | AM129: 12623.869 | AP129: 665 | AQ129: 9.4 | AT129: 4608.60702 | AU129: 7349.796 | AV129: 23.064 | AW129: 1081.60401 | AX129: 308.04004 | AY129: 690.79859 | AZ129: 2076.14766 | BA129: 1758.13729 | BB129: 87.57661 | BC129: 350.57952 | BD129: 104.05953 | BE129: 2.51937 | BF129: 954.69722 | BH129: 685.95686 | BI129: 3.99126 | BK129: 270.73599 | BL129: 0.90025 | BM129: 0 | BN129: 0 | BO129: -5.93021 | BP129: 265.70603 | BR129: -2015.632 | BX129: 1989.168 | BZ129: 11091.711 | CE129: 9.4 | CM129: 0.75844 | CN129: -271.5853 | CO129: 30.75846 | CP129: 0.24687 | CQ129: 0 | CS129: -21.985 | CT129: -198.448 | CU129: 1.176 | CV129: 46.539 | CW129: 0
A130: 422 | B130: Lieksa | C130: 10228 | D130: 8.36 | G130: 16100.49483 | H130: 43848.97429 | I130: -40.4587 | J130: 15958.48214 | K130: 3939.80255 | L130: 3603.24654 | M130: 23501.53123 | N130: 14731.16535 | O130: 251.27203 | P130: 375.54706 | Q130: 717.6828 | R130: -57.12554 | S130: 10915.62445 | U130: 5446.63766 | V130: 0 | X130: 5468.98679 | Y130: -29.79495 | Z130: 0 | AA130: 0 | AB130: 0 | AC130: 5439.19184 | AE130: 49889.32419 | AK130: 12891.07142 | AM130: 15753.24854 | AP130: 10049 | AQ130: 8.4 | AT130: 15673.72691 | AU130: 43616.75764 | AV130: -57.38262 | AW130: 15428.72121 | AX130: 4268.70107 | AY130: 3917.19967 | AZ130: 23434.75013 | BA130: 12053.83189 | BB130: 332.36701 | BC130: 411.23651 | BD130: 862.20298 | BE130: 2167.5049 | BF130: 6103.99725 | BH130: 5510.07584 | BI130: 0 | BK130: 593.92141 | BL130: 3.70556 | BM130: 15.45368 | BN130: 0 | BO130: 0 | BP130: 589.90013 | BR130: 50431.456 | BX130: 12688.13596 | BZ130: 11778.19144 | CE130: 8.4 | CM130: -272.67003 | CN130: -5747.40523 | CO130: 452.76 | CP130: 549.6618 | CQ130: -6.83834 | CS130: 146.88517 | CT130: -5650.08713 | CU130: 522.0107 | CV130: 112.43947 | CW130: 0
A131: 423 | B131: Lieto | C131: 20637 | D131: 6.86 | G131: 24108.90507 | H131: 72372.87102 | I131: -78.75625 | J131: 37578.67795 | K131: 4678.6913 | L131: 4778.27084 | M131: 47035.64009 | N131: 18024.64948 | O131: 137.75402 | P131: 1096.55269 | Q131: 309.77745 | R131: 27.29389 | S131: 16041.25226 | U131: 9551.62922 | V131: 0 | X131: 6489.62304 | Y131: 0 | Z131: 0 | AA131: -8 | AB131: 0 | AC131: 6481.62304 | AE131: 26637.06824 | AK131: 6293 | AM131: 67357.06793 | AP131: 20666 | AQ131: 6.9 | AT131: 24113.00541 | AU131: 73500.45494 | AV131: 10.41928 | AW131: 35912.22927 | AX131: 3721.56878 | AY131: 5603.42551 | AZ131: 45237.22356 | BA131: 17726.74221 | BB131: 88.22645 | BC131: 1722.73558 | BD131: 693.1496 | BE131: 7.30744 | BF131: 12638.26855 | BH131: 10518.13917 | BI131: 0 | BK131: 2120.12938 | BL131: 0 | BM131: 12.25544 | BN131: -198.49364 | BO131: 0 | BP131: 1915.50802 | BR131: 28359.39586 | BX131: 4969.8705 | BZ131: 83730.71572 | CE131: 7.1 | CM131: -2022.31561 | CN131: -13392.8716 | CO131: 1218.61644 | CP131: 2591.79479 | CQ131: 1.97374 | CS131: 0 | CT131: -29664.7945 | CU131: 222.65898 | CV131: 1214.11365 | CW131: 493.63401
A132: 425 | B132: Liminka | C132: 10256 | D132: 8.86 | G132: 9648.73608 | H132: 49633.09249 | I132: 42.92161 | J132: 19099.84647 | K132: 1051.90426 | L132: 1791.50257 | M132: 21943.2533 | N132: 23617.44625 | O132: 54.43362 | P132: 1051.1601 | Q132: 51.58678 | R132: 9.06475 | S132: 4577.39265 | U132: 5927.57827 | V132: 0 | X132: -1350.18562 | Y132: 20.13004 | Z132: 0.60738 | AA132: -9.42987 | AB132: 18.9459 | AC132: -1321.14693 | AE132: 32489.62929 | AK132: 3843.76682 | AM132: 42475.25007 | AP132: 10190 | AQ132: 8.9 | AT132: 10112.11452 | AU132: 49708.79087 | AV132: 91.35204 | AW132: 18099.86179 | AX132: 906.58634 | AY132: 2107.26499 | AZ132: 21011.326 | BA132: 24219.91295 | BB132: 58.36072 | BC132: 1456.69772 | BD132: 60.86106 | BE132: 7.12913 | BF132: 4381.30957 | BH132: 5793.78609 | BI132: 0 | BK132: -1412.47652 | BL132: -16.62915 | BM132: 7.48274 | BN132: 9.8679 | BO132: 12.72804 | BP132: -1410.2511 | BR132: 30956.80304 | BX132: 5241.6492 | BZ132: 45646.27475 | CE132: 9.4 | CM132: -154.36459 | CN132: -6477.95025 | CO132: 496.35 | CP132: 391.14024 | CQ132: 411.94725 | CS132: -232.59988 | CT132: -5321.57102 | CU132: 432.95761 | CV132: 179.02749 | CW132: 43.66357
A133: 426 | B133: Liperi | C133: 11969 | D133: 8.86 | G133: 14860.07258 | H133: 46145.55672 | I133: -48.23839 | J133: 20562.26962 | K133: 1680.26987 | L133: 3071.58372 | M133: 25314.12321 | N133: 13256.42072 | O133: 29.29854 | P133: 661.92957 | Q133: 413.08414 | R133: 7.20374 | S133: 7010.07077 | U133: 4880.41736 | V133: 0 | X133: 2129.65341 | Y133: -21.77832 | Z133: 29.09752 | AA133: 0 | AB133: 47.61368 | AC133: 2126.39125 | AE133: 8819.0447 | AK133: 3269.00167 | AM133: 54110.97912 | AP133: 11913 | AQ133: 8.9 | AT133: 15116.80729 | AU133: 45930.64836 | AV133: -26.08779 | AW133: 21246.94349 | AX133: 1358.94821 | AY133: 3207.9465 | AZ133: 25813.8382 | BA133: 10291.53259 | BB133: 49.90573 | BC133: 1167.87907 | BD133: 449.56419 | BE133: 1.55172 | BF133: 4595.48106 | BH133: 5356.53992 | BI133: 0 | BK133: -761.05886 | BL133: -45.99729 | BM133: 28.6968 | BN133: 0 | BO133: 33.20236 | BP133: -788.20219 | BR133: 8004.56089 | BX133: 5131.32178 | BZ133: 59442.35727 | CE133: 9.5 | CM133: -1573.13338 | CN133: -3595.11765 | CO133: 527.14106 | CP133: 141.88177 | CQ133: -10.67354 | CS133: -243.99223 | CT133: -5789.77636 | CU133: 712.20215 | CV133: 60.88897 | CW133: -32.66682
A134: 444 | B134: Lohja | C134: 45645 | D134: 7.86 | G134: 80271.54908 | H134: 187109.3373 | I134: 0 | J134: 90052.24766 | K134: 9866.37431 | L134: 14884.73198 | M134: 114803.354 | N134: 32760.13188 | O134: 952.1059 | P134: 3640.01572 | Q134: 510.02888 | R134: 131.3251 | S134: 38416.49152 | U134: 21414.46102 | V134: 0 | X134: 17002.0305 | Y134: -585.36856 | Z134: 377.17425 | AA134: 0 | AB134: 0 | AC134: 16039.48769 | AE134: 73709.99733 | AK134: 23938.94498 | AM134: 229840.9146 | AP134: 45687 | AQ134: 7.9 | AT134: 64218.46399 | AU134: 187972.6503 | AV134: 76.299 | AW134: 85625.96539 | AX134: 8530.06191 | AY134: 15815.70988 | AZ134: 109971.7372 | BA134: 42028.6695 | BB134: 916.97715 | BC134: 3753.50829 | BD134: 325.06345 | BE134: 466.21348 | BF134: 25344.83824 | BH134: 25290.06628 | BI134: 0 | BK134: 54.77196 | BL134: 0 | BM134: 0.46002 | BN134: 0 | BO134: 15.2156 | BP134: 69.75755 | BR134: 60290.1284 | BX134: 17744.95581 | BZ134: 221191.4294 | CE134: 7.9 | CM134: 1235.70878 | CN134: -38233.57988 | CO134: 638.9 | CP134: 596.3777 | CQ134: 0 | CS134: 761.68426 | CT134: -33314.07708 | CU134: 1107 | CV134: 1233.60049 | CW134: 181.09497
A135: 430 | B135: Loimaa | C135: 15420 | D135: 8.36 | G135: 19629.95458 | H135: 61797.26765 | I135: 0 | J135: 25117.43558 | K135: 4047.02038 | L135: 4433.92956 | M135: 33598.38552 | N135: 19908.05214 | O135: 139.40133 | P135: 662.50982 | Q135: 61.89177 | R135: 54.38111 | S135: 10823.52676 | U135: 6637.87066 | V135: 82.95733 | X135: 4268.61343 | Y135: 0 | Z135: 18.39412 | AA135: 37.6768 | AB135: -159.70646 | AC135: 4128.18965 | AE135: 25369.70236 | AK135: 11314.70548 | AM135: 27329.76809 | AP135: 15295 | AQ135: 8.4 | AT135: 20985.47933 | AU135: 63207.83357 | AV135: 0 | AW135: 25406.38255 | AX135: 3236.5172 | AY135: 4943.49966 | AZ135: 33586.39941 | BA135: 19259.12105 | BB135: 178.22207 | BC135: 754.33149 | BD135: 129.0378 | BE135: 9.68755 | BF135: 10166.40705 | BH135: 6983.44584 | BI135: 0 | BK135: 3182.96121 | BL135: 0 | BM135: 32.39822 | BN135: -35.27568 | BO135: -54.01777 | BP135: 3077.46865 | BR135: 29927.05847 | BX135: 12613.52342 | BZ135: 24871.00047 | CE135: 8.4 | CM135: -60.72506 | CN135: -7260.29846 | CO135: 0 | CP135: 96.34358 | CQ135: -257.96343 | CS135: -124.06066 | CT135: -5581.42718 | CU135: 0 | CV135: 476.64095 | CW135: 866.49869
A136: 433 | B136: Loppi | C136: 7692 | D136: 8.86 | G136: 6798.86536 | H136: 27588.5108 | I136: 0.69932 | J136: 14529.67578 | K136: 1830.33991 | L136: 2203.18465 | M136: 18563.20034 | N136: 6308.571 | O136: 85.91546 | P136: 637.51058 | Q136: 30.15136 | R136: 3.66704 | S136: 3557.71442 | U136: 2663.74487 | V136: -388.31043 | X136: 505.65912 | Y136: 12.0346 | Z136: 0 | AA136: 5.7096 | AB136: 0.04791 | AC136: 523.45123 | AE136: 17450.75509 | AK136: 3205.3845 | AM136: 22353.09712 | AP136: 7657 | AQ136: 8.9 | AT136: 6164.4977 | AU136: 25629.61552 | AV136: -2.86742 | AW136: 14349.593 | AX136: 1419.26546 | AY136: 2394.23089 | AZ136: 18163.08935 | BA136: 4816.24 | BB136: 43.12998 | BC136: 763.41817 | BD136: 48.53016 | BE136: 3.60148 | BF136: 2835.9846 | BH136: 2921.93664 | BI136: 536.94638 | BK136: 182.52115 | BL136: 0.82875 | BM136: -0.00174 | BN136: 4.82 | BO136: 0.67869 | BP136: 188.84946 | BR136: 17636.71184 | BX136: 2769.41074 | BZ136: 21368.036 | CE136: 8.9 | CM136: -147.61112 | CN136: -6645.61074 | CO136: 437.8355 | CP136: 1079.70731 | CQ136: 0 | CS136: 104.70108 | CT136: -1445.92843 | CU136: 43.9645 | CV136: 55.308 | CW136: 0
A137: 434 | B137: Loviisa | C137: 14458 | D137: 7.61 | G137: 22063.61848 | H137: 63646.35879 | I137: 5125.87182 | J137: 25567.33228 | K137: 6944.39397 | L137: 9100.35309 | M137: 41612.07934 | N137: 11119.394 | O137: -21.60553 | P137: 1761.38322 | Q137: 247.88335 | R137: 26.33383 | S137: 14713.16562 | U137: 8247.65959 | V137: -111.4095 | X137: 6354.09653 | Y137: 2.82452 | Z137: 4.45781 | AA137: 0 | AB137: -2.23763 | AC137: 6350.22561 | AE137: 24515.03555 | AK137: 10095.97853 | AM137: 83205.95621 | AP137: 14352 | AQ137: 7.6 | AT137: 20067.22416 | AU137: 61039.46543 | AV137: 6175.74632 | AW137: 24172.40386 | AX137: 9329.0261 | AY137: 9540.00367 | AZ137: 43041.43363 | BA137: 8795.125 | BB137: 6.27842 | BC137: 2096.14286 | BD137: 65.70309 | BE137: 29.9718 | BF137: 14985.93053 | BH137: 8848.19818 | BI137: 323.64746 | BK137: 6299.55608 | BL137: 1.4076 | BM137: -19.61438 | BN137: 0 | BO137: -19.5876 | BP137: 6291.18327 | BR137: 30806.21883 | BX137: 19306.50039 | BZ137: 86359.6191 | CE137: 7.6 | CM137: -3868.10706 | CN137: -9099.62441 | CO137: 0 | CP137: 2237.76502 | CQ137: -5.4 | CS137: -4553.49533 | CT137: -10089.39731 | CU137: 13.59769 | CV137: 213.48077 | CW137: -14.4
A138: 435 | B138: Luhanka | C138: 702 | D138: 5.86 | G138: 1060.73323 | H138: 3584.80119 | I138: 0 | J138: 912.80749 | K138: 259.59325 | L138: 647.11197 | M138: 1819.3385 | N138: 677.218 | O138: 2.51103 | P138: 65.46966 | Q138: -3.80462 | R138: 3.38712 | S138: -100.76921 | U138: 252.25673 | V138: 23.72013 | X138: -329.30581 | Y138: -0.06621 | Z138: 0.07188 | AA138: 0 | AB138: 15.14116 | AC138: -314.30274 | AE138: 1342.91481 | AK138: 1675.96014 | AM138: 2412.92506 | AP138: 711 | AQ138: 6.4 | AT138: 1165.16286 | AU138: 3217.18784 | AV138: 0 | AW138: 979.82807 | AX138: 212.06777 | AY138: 671.4308 | AZ138: 1859.64626 | BA138: 806.729 | BB138: 3.29012 | BC138: 66.7526 | BD138: 35.19353 | BE138: 1.81488 | BF138: 584.26645 | BH138: 360.22659 | BI138: 24.3492 | BK138: 236.21446 | BL138: -11.64389 | BM138: 0 | BN138: 0 | BO138: 14.42866 | BP138: 238.99923 | BR138: 1571.63136 | BX138: 1978.60106 | BZ138: 2208.42105 | CE138: 6.4 | CM138: -16.74131 | CN138: -68.25154 | CO138: 0 | CP138: 38.1 | CQ138: 203.43951 | CS138: -0.63204 | CT138: -7.78513 | CU138: 0 | CV138: 0.62678 | CW138: 204.43951
A139: 436 | B139: Lumijoki | C139: 2033 | D139: 8.36 | G139: 2285.77688 | H139: 9118.29967 | I139: 8.31106 | J139: 3045.33628 | K139: 194.52495 | L139: 322.943 | M139: 3562.80423 | N139: 5150.36954 | O139: 18.20853 | P139: 311.30618 | Q139: 3.52422 | R139: 1.98899 | S139: 1597.39962 | U139: 1026.64798 | V139: 0 | X139: 570.75164 | Y139: 4.52335 | Z139: 8.88439 | AA139: -2.80329 | AB139: -10.23095 | AC139: 553.35636 | AE139: 1682.77591 | AK139: 1534.79958 | AM139: 10093.36207 | AP139: 2008 | AQ139: 8.9 | AT139: 2504.39189 | AU139: 8600.14407 | AV139: 4.16143 | AW139: 3307.9646 | AX139: 153.83198 | AY139: 340.77762 | AZ139: 3787.88269 | BA139: 3924.5168 | BB139: 13.94306 | BC139: 308.6914 | BD139: 9.36746 | BE139: 2.00245 | BF139: 1333.42541 | BH139: 1012.21313 | BI139: 0 | BK139: 321.21228 | BL139: -3.52152 | BM139: 14.49788 | BN139: 0.63268 | BO139: -4.32162 | BP139: 306.75288 | BR139: 1989.52879 | BX139: 2135.04909 | BZ139: 11093.41096 | CE139: 8.9 | CM139: -14.39291 | CN139: -1874.76281 | CO139: 0 | CP139: 8.52 | CQ139: 0 | CS139: -70.57826 | CT139: -1930.12575 | CU139: 24.46886 | CV139: 80.96011 | CW139: 0
A140: 440 | B140: Luoto | C140: 5843 | D140: 7.36 | G140: 8597.48964 | H140: 24735.41488 | I140: 0 | J140: 8251.36153 | K140: 483.07544 | L140: 1559.13986 | M140: 10293.57683 | N140: 9918.57 | O140: 85.51101 | P140: 1426.06061 | Q140: 424.096 | R140: 318.92161 | S140: 2838.84655 | U140: 2625.75455 | V140: 0 | X140: 213.092 | Y140: 2.49647 | Z140: 1.35334 | AA140: 0 | AB140: 0 | AC140: 214.23513 | AE140: 21400.07695 | AK140: 11552.489 | AM140: 48749.09354 | AP140: 5884 | AQ140: 8.3 | AT140: 9905.66075 | AU140: 25698.66557 | AV140: 0 | AW140: 9213.65474 | AX140: 430.37247 | AY140: 1823.45991 | AZ140: 11467.487 | BA140: 10272.327 | BB140: 47.83128 | BC140: 1998.24003 | BD140: 514.37029 | BE140: 461.12342 | BF140: 4049.6473 | BH140: 3768.01311 | BI140: 0 | BK140: 281.63419 | BL140: 2.97156 | BM140: 0 | BN140: 0 | BO140: 0 | BP140: 284.60575 | BR140: 22149.53466 | BX140: 11448.478 | BZ140: 51280.04161 | CE140: 8.3 | CM140: -56.719 | CN140: -12865.728 | CO140: 478.068 | CP140: 91.233 | CQ140: 0 | CS140: -1244.881 | CT140: -10242.32 | CU140: 4755.657 | CV140: 343.56 | CW140: 0
A141: 441 | B141: Luumäki | C141: 4396 | D141: 8.36 | G141: 5883.1145 | H141: 15639.47563 | I141: -31.39989 | J141: 7044.36345 | K141: 1534.27204 | L141: 1711.91365 | M141: 10290.54914 | N141: 1176.55668 | O141: 349.42763 | P141: 382.86006 | Q141: 283.88277 | R141: 81.71515 | S141: 1848.07999 | U141: 2631.15817 | V141: 0 | X141: -783.07818 | Y141: 4.81975 | Z141: 12.59369 | AA141: 0.421 | AB141: 47.48284 | AC141: -742.94828 | AE141: 11989.781 | AK141: 11273.02 | AM141: 15277.182 | AP141: 4358 | AQ141: 8.8 | AT141: 6608.17061 | AU141: 16515.35319 | AV141: -37.43561 | AW141: 7511.57865 | AX141: 1261.26936 | AY141: 1879.22081 | AZ141: 10652.06882 | BA141: 1196.46418 | BB141: 238.03544 | BC141: 462.359 | BD141: 802.28675 | BE141: 158.27123 | BF141: 2323.60677 | BH141: 2562.35233 | BI141: 0 | BK141: -238.74556 | BL141: 1.44403 | BM141: 4.31308 | BN141: 13.60172 | BO141: 58.41921 | BP141: -167.43714 | BR141: 11697.16563 | BX141: 12145.32716 | BZ141: 15365.50719 | CE141: 8.8 | CM141: -133.46429 | CN141: -2569.91308 | CO141: 38.3 | CP141: 240.11056 | CQ141: 19.004 | CS141: -558.54463 | CT141: -2116.2317 | CU141: 175.19898 | CV141: 695.28001 | CW141: 0
A142: 475 | B142: Maalahti | C142: 5456 | D142: 8.86 | G142: 10354.52338 | H142: 24956.90804 | I142: 0 | J142: 9951.54943 | K142: 1359.93236 | L142: 2489.08102 | M142: 13800.56281 | N142: 5635.962 | O142: 1.68669 | P142: 586.95495 | Q142: 47.92684 | R142: 4.74909 | S142: 4255.52122 | U142: 2773.36516 | V142: 0 | X142: 1482.15606 | Y142: 1.93123 | Z142: 22.00951 | AA142: 12.88 | AB142: 1.98646 | AC142: 1476.94424 | AE142: 8256.58478 | AK142: 2277.74751 | AM142: 30521.44476 | AP142: 5415 | AQ142: 8.9 | AT142: 9727.61803 | AU142: 24743.10038 | AV142: 0 | AW142: 10041.38125 | AX142: 1117.60093 | AY142: 2595.48366 | AZ142: 13719.07684 | BA142: 5598.324 | BB142: 2.93916 | BC142: 926.36917 | BD142: 78.23093 | BE142: 5.7956 | BF142: 3450.92381 | BH142: 3064.75727 | BI142: 0 | BK142: 386.16654 | BL142: 1.93123 | BM142: 1.68056 | BN142: -5.34 | BO142: -0.91047 | BP142: 381.00702 | BR142: 9500.96327 | BX142: 817.45655 | BZ142: 29480.02324 | CE142: 8.9 | CM142: -49.44178 | CN142: -2339.08254 | CO142: 177.59945 | CP142: 114.22482 | CQ142: 0 | CS142: -101.7792 | CT142: -3887.08847 | CU142: 87.00135 | CV142: 77.90242 | CW142: 0
A143: 480 | B143: Marttila | C143: 1930 | D143: 8.11 | G143: 1634.95117 | H143: 6373.62266 | I143: 0 | J143: 2801.67848 | K143: 305.83149 | L143: 543.26339 | M143: 3650.77336 | N143: 1767.333 | O143: 24.35128 | P143: 37.45378 | Q143: 10.43457 | R143: 1.09283 | S143: 675.67411 | U143: 564.57573 | V143: 1.3827 | X143: 112.48108 | Y143: 23.00004 | Z143: 0.00732 | AA143: -10.543 | AB143: 0 | AC143: 124.9308 | AE143: 4820.6193 | AK143: 1833.55492 | AM143: 1623.3988 | AP143: 1910 | AQ143: 8.5 | AT143: 1640.34257 | AU143: 6796.4487 | AV143: 0 | AW143: 3166.69984 | AX143: 236.63192 | AY143: 590.13132 | AZ143: 3993.46308 | BA143: 1666.463 | BB143: 30.72452 | BC143: 48.87859 | BD143: 19.16602 | BE143: 0.23718 | BF143: 504.59472 | BH143: 576.93378 | BI143: 0.15038 | BK143: -72.26387 | BL143: 31.33332 | BM143: 0.2081 | BN143: 1.073 | BO143: 0 | BP143: -39.9616 | BR143: 4791.6096 | BX143: 1265.49747 | BZ143: 1289.40763 | CE143: 8.5 | CM143: -61.69216 | CN143: -693.57845 | CO143: 72.24 | CP143: 65.14 | CQ143: 16.75787 | CS143: 0 | CT143: -904.46805 | CU143: 138.37612 | CV143: 0 | CW143: 16.95524
A144: 481 | B144: Masku | C144: 9619 | D144: 8.11 | G144: 7051.1576 | H144: 33578.05319 | I144: 0 | J144: 20257.36487 | K144: 1847.93515 | L144: 2235.76422 | M144: 24341.06424 | N144: 6350.08329 | O144: 29.56851 | P144: 1059.17668 | Q144: 29.57503 | R144: 13.45977 | S144: 3150.75903 | U144: 4012.59643 | V144: 50 | X144: -811.8374 | Y144: 0 | Z144: 0 | AA144: 0 | AB144: 0 | AC144: -811.8374 | AE144: 4493.57557 | AK144: 5449.40004 | AM144: 38331.53073 | AP144: 9592 | AQ144: 8.1 | AT144: 8715.50936 | AU144: 32847.19665 | AV144: 0 | AW144: 20182.31479 | AX144: 1374.3594 | AY144: 2467.18267 | AZ144: 24023.85686 | BA144: 5292.20007 | BB144: 20.95067 | BC144: 1212.80467 | BD144: 193.91994 | BE144: 14.72358 | BF144: 4171.712 | BH144: 4722.96098 | BI144: 143.8 | BK144: -479.34898 | BL144: 0 | BM144: 3.59928 | BN144: 0 | BO144: 0 | BP144: -481.14862 | BR144: 4012.42694 | BX144: 2689.23078 | BZ144: 35490.91979 | CE144: 8.1 | CM144: -106.23026 | CN144: -3946.22029 | CO144: 5 | CP144: 1595.90699 | CQ144: 160.93787 | CS144: -184.46691 | CT144: -2636.91388 | CU144: 10.9025 | CV144: 377.34535 | CW144: 215.87637
A145: 483 | B145: Merijärvi | C145: 1055 | D145: 9.86 | G145: 1876 | H145: 6099 | I145: 26 | J145: 1358.27902 | K145: 135.50117 | L145: 340.8175 | M145: 1834.59769 | N145: 2068 | O145: 1 | P145: 121 | Q145: 123 | R145: 7 | S145: -299 | U145: 354 | V145: 0 | X145: -653 | Y145: 0 | Z145: 0 | AA145: 0 | AB145: 0 | AC145: -653 | AE145: 289 | AK145: 2920 | AM145: 4267 | AP145: 1059 | AQ145: 10 | AT145: 1913 | AU145: 6063 | AV145: 14 | AW145: 1523.13779 | AX145: 118.11403 | AY145: 378.80467 | AZ145: 2019 | BA145: 1719 | BB145: 3 | BC145: 159 | BD145: 145 | BE145: 32 | BF145: -441 | BH145: 334 | BI145: 0 | BK145: -775 | BL145: 0 | BM145: 0 | BN145: 0 | BO145: 0 | BP145: -775 | BR145: -486 | BX145: 3119 | BZ145: 5223 | CE145: 10 | CM145: 7 | CN145: -112 | CO145: 23 | CP145: 238 | CQ145: 2 | CS145: -15 | CT145: -125 | CU145: 16 | CV145: 0 | CW145: 2
A146: 484 | B146: Merikarvia | C146: 2966 | D146: 7.86 | G146: 4525.43293 | H146: 13933.50785 | I146: 0.246 | J146: 3968.72871 | K146: 1457.53898 | L146: 1274.17691 | M146: 6700.4446 | N146: 2047.54125 | O146: 113.07758 | P146: 41.02216 | Q146: 54.70745 | R146: 1.32011 | S146: -534.40031 | U146: 1557.59596 | V146: 0 | X146: -2091.99627 | Y146: 1e-05 | Z146: 0 | AA146: -11.22 | AB146: 0 | AC146: -2103.21626 | AE146: 3440.63974 | AK146: 1841.61604 | AM146: 3409.23322 | AP146: 2904 | AQ146: 7.9 | AT146: 4405.88886 | AU146: 13477.70942 | AV146: 1.07357 | AW146: 4466.82406 | AX146: 2351.15633 | AY146: 1397.24092 | AZ146: 8215.22131 | BA146: 3049.95416 | BB146: 87.5663 | BC146: 96.75488 | BD146: 50.19794 | BE146: 10.67821 | BF146: 2224.75963 | BH146: 1589.61487 | BI146: 0 | BK146: 635.14476 | BL146: 0 | BM146: 0 | BN146: -4.26 | BO146: 0 | BP146: 630.88476 | BR146: 4068.23229 | BX146: 2020.00968 | BZ146: 4206.94888 | CE146: 8.9 | CM146: 1.43333 | CN146: -2640.60318 | CO146: 14.99922 | CP146: 2.96481 | CQ146: 4.05266 | CS146: 0.39364 | CT146: -2114.5249 | CU146: 0 | CV146: -0.39365 | CW146: 100.11442
A147: 489 | B147: Miehikkälä | C147: 1752 | D147: 8.86 | G147: 3482.23032 | H147: 8452.63949 | I147: -2.11297 | J147: 2758.66892 | K147: 555.76407 | L147: 541.86027 | M147: 3856.29326 | N147: 2084.02553 | O147: 26.8994 | P147: 268.86913 | Q147: 52.05442 | R147: -12.64625 | S147: 790.52759 | U147: 1305.57725 | V147: 0 | X147: -515.04966 | Y147: 0 | Z147: 0 | AA147: -18.81 | AB147: 26.64618 | AC147: -507.21348 | AE147: 4580.59106 | AK147: 1487.21482 | AM147: 9033.64858 | AP147: 1703 | AQ147: 8.9 | AT147: 3234.06462 | AU147: 7810.13005 | AV147: 0.00823 | AW147: 2517.48855 | AX147: 466.96058 | AY147: 570.92508 | AZ147: 3555.37421 | BA147: 1983.23989 | BB147: 26.69164 | BC147: 357.35393 | BD147: 41.1433 | BE147: 172.10528 | BF147: 500.93263 | BH147: 1392.05268 | BI147: 0 | BK147: -891.12005 | BL147: 0 | BM147: 0 | BN147: -14.518 | BO147: 23.57271 | BP147: -882.06534 | BR147: 3698.52573 | BX147: 2420.40557 | BZ147: 9463.46455 | CE147: 9.5 | CM147: -9.56495 | CN147: -2475.23364 | CO147: 9 | CP147: 39.97262 | CQ147: -27.05 | CS147: -0.00823 | CT147: -226.12177 | CU147: 21.60401 | CV147: 0 | CW147: 0
A148: 491 | B148: Mikkeli | C148: 51919 | D148: 9.36 | G148: 165723.5444 | H148: 276171.0161 | I148: 1749.69684 | J148: 109719.0106 | K148: 14575.81345 | L148: 21898.91016 | M148: 146193.7343 | N148: 41016.615 | O148: 819.756 | P148: 12208.74317 | Q148: 6937.11658 | R148: 369.60377 | S148: 71103.46483 | U148: 52235.41155 | V148: 4302.92684 | X148: 23170.98012 | Y148: 0 | Z148: 1718.77715 | AA148: -1141.62461 | AB148: -106.40611 | AC148: 20204.17225 | AE148: 55357.10008 | AK148: 28708.91012 | AM148: 501609.3665 | AP148: 51890 | AQ148: 9.4 | AT148: 161902.208 | AU148: 275558.2069 | AV148: 848.19175 | AW148: 103399.9018 | AX148: 13201.89885 | AY148: 23278.18577 | AZ148: 137280.2293 | BA148: 37560.838 | BB148: 4588.84319 | BC148: 16277.2799 | BD148: 3817.7611 | BE148: 3228.07339 | BF148: 50934.51124 | BH148: 61195.4025 | BI148: 264570.8206 | BK148: 122024.5191 | BL148: 0 | BM148: 2092.51256 | BN148: 479.25493 | BO148: -434.1964 | BP148: 121023.3213 | BR148: 143715.4165 | BX148: 112621.7016 | BZ148: 493032.189 | CE148: 9.4 | CM148: -14434.28511 | CN148: -55884.0558 | CO148: 3704.67282 | CP148: 2502.61354 | CQ148: 7713.07244 | CS148: -136528.8229 | CT148: -50674.71146 | CU148: 2322.24337 | CV148: 141370.9106 | CW148: 105.72473
A149: 494 | B149: Muhos | C149: 8827 | D149: 9.36 | G149: 28333.24644 | H149: 53510.71098 | I149: 32.30892 | J149: 15898.1431 | K149: 981.04541 | L149: 4386.05857 | M149: 21265.24708 | N149: 11831.377 | O149: 18.49421 | P149: 634.59973 | Q149: 23.20143 | R149: 5.19656 | S149: 7353.36781 | U149: 4590.70689 | V149: 0 | X149: 2762.66091 | Y149: 20.6168 | Z149: 9.48314 | AA149: -0.05 | AB149: -18.56191 | AC149: 2755.18266 | AE149: 2005.07202 | AK149: 4644.90809 | AM149: 53124.92737 | AP149: 8749 | AQ149: 9.4 | AT149: 26493.87883 | AU149: 53910.77474 | AV149: 30.46108 | AW149: 15791.64739 | AX149: 747.3029 | AY149: 4551.79766 | AZ149: 21084.03866 | BA149: 13042.37142 | BB149: 39.74872 | BC149: 775.76761 | BD149: 67.04197 | BE149: 2.66519 | BF149: 6068.33314 | BH149: 4803.18392 | BI149: 0 | BK149: 1265.14922 | BL149: -158.54536 | BM149: 9.4494 | BN149: 0 | BO149: -9.10295 | BP149: 1092.77621 | BR149: 3097.84822 | BX149: 3988.12806 | BZ149: 50829.43484 | CE149: 9.4 | CM149: -164.21787 | CN149: -6802.98144 | CO149: 494.675 | CP149: 141.82161 | CQ149: 3.3 | CS149: 70.30759 | CT149: -4836.14479 | CU149: 0 | CV149: 387.25787 | CW149: -21.92819
A150: 495 | B150: Multia | C150: 1430 | D150: 9.36 | G150: 2958.99116 | H150: 7313.82982 | I150: 0.10234 | J150: 2211.19129 | K150: 965.88996 | L150: 514.08645 | M150: 3691.1677 | N150: 914.443 | O150: 3.34163 | P150: 89.64067 | Q150: 16.27084 | R150: 45.07974 | S150: 135.76644 | U150: 674.69986 | V150: 0 | X150: -538.93342 | Y150: 0.50143 | Z150: 0 | AA150: 2.83252 | AB150: -22.85544 | AC150: -558.45491 | AE150: -72.14348 | AK150: 617.60305 | AM150: 3176.43611 | AP150: 1393 | AQ150: 9.8 | AT150: 2780.1648 | AU150: 6734.19852 | AV150: 0.02136 | AW150: 2220.07911 | AX150: 915.77886 | AY150: 560.96337 | AZ150: 3696.82134 | BA150: 1016.04 | BB150: 3.31559 | BC150: 92.58505 | BD150: 11.51631 | BE150: 35.75123 | BF150: 645.3446 | BH150: 669.39892 | BI150: 0 | BK150: -24.05432 | BL150: -0.2343 | BM150: 0 | BN150: 0 | BO150: -15.52307 | BP150: -39.81169 | BR150: -62.45146 | BX150: 793.52322 | BZ150: 3070.50138 | CE150: 9.8 | CM150: -449.05318 | CN150: -543.30118 | CO150: 35.96272 | CP150: 133.29869 | CQ150: -10.66243 | CS150: 0.15586 | CT150: -477.82945 | CU150: 45.74095 | CV150: 0.27232 | CW150: 2.22861
A151: 498 | B151: Muonio | C151: 2325 | D151: 8.86 | G151: 5766.43675 | H151: 13803.13612 | I151: 0 | J151: 4260.30107 | K151: 1008.50836 | L151: 1236.88903 | M151: 6505.69846 | N151: 3800.756 | O151: 14.60366 | P151: 126.15972 | Q151: 14.29522 | R151: 4.04373 | S151: 2168.45052 | U151: 1079.89729 | V151: -0.01427 | X151: 1088.53896 | Y151: -485.27305 | Z151: 0 | AA151: 10.97306 | AB151: 0.1621 | AC151: 614.40107 | AE151: 5375.01156 | AK151: 1023.443 | AM151: 4919.2484 | AP151: 2313 | AQ151: 8.9 | AT151: 5160.69159 | AU151: 14430.5692 | AV151: 3.52013 | AW151: 4319.47654 | AX151: 704.62427 | AY151: 1137.60328 | AZ151: 6154.81969 | BA151: 4538.59997 | BB151: 17.04295 | BC151: 155.14855 | BD151: 11.26459 | BE151: 3.95791 | BF151: 1296.26326 | BH151: 995.75967 | BI151: 40.16624 | BK151: 320.58671 | BL151: -2.01067 | BM151: 41.97656 | BN151: -2.86195 | BO151: -2.96943 | BP151: 291.75638 | BR151: 5537.00433 | BX151: 1236.88624 | BZ151: 4713.96044 | CE151: 8.9 | CM151: -62.064 | CN151: -728.77711 | CO151: 4.36654 | CP151: 66.53929 | CQ151: 0 | CS151: -3.52013 | CT151: -1615.02281 | CU151: 16.2044 | CV151: 23.51613 | CW151: 0
A152: 499 | B152: Mustasaari | C152: 19763 | D152: 8.11 | G152: 26917.59865 | H152: 83719.00466 | I152: 41.438 | J152: 39599.35977 | K152: 3219.9208 | L152: 5730.07853 | M152: 48549.3591 | N152: 24687.812 | O152: 76.05652 | P152: 1487.79274 | Q152: 130.94159 | R152: 13.4336 | S152: 15134.08815 | U152: 10297.65816 | V152: 0 | X152: 4836.42998 | Y152: 0 | Z152: 0 | AA152: 2.7209 | AB152: 17.90744 | AC152: 4857.05812 | AE152: 21593.58397 | AK152: 2944.03776 | AM152: 104480.373 | AP152: 19738 | AQ152: 8.4 | AT152: 27939.90904 | AU152: 86372.4274 | AV152: 100.05924 | AW152: 39129.94108 | AX152: 2601.22609 | AY152: 6373.13573 | AZ152: 48049.16414 | BA152: 21196.212 | BB152: 218.37061 | BC152: 2482.90067 | BD152: 143.62272 | BE152: 35.76405 | BF152: 8756.24563 | BH152: 10673.91489 | BI152: 0 | BK152: -1917.66926 | BL152: 0 | BM152: 0 | BN152: 33.5071 | BO152: 39.09337 | BP152: -1845.06879 | BR152: 19683.23575 | BX152: 2686.78536 | BZ152: 121623.311 | CE152: 8.9 | CM152: -182.14094 | CN152: -22408.54491 | CO152: 718.16786 | CP152: 153.6675 | CQ152: -2942.46396 | CS152: -420.7494 | CT152: -24022.62518 | CU152: 468.25181 | CV152: 500.51957 | CW152: -1965
A153: 500 | B153: Muurame | C153: 10551 | D153: 6.86 | G153: 12265.475 | H153: 43445.7246 | I153: -178.6387 | J153: 18329.32771 | K153: 2739.32762 | L153: 2766.26925 | M153: 23834.92458 | N153: 16208.52677 | O153: 16.36288 | P153: 1089.11034 | Q153: 112.63211 | R153: 20.13723 | S153: 7704.31047 | U153: 6372.32378 | V153: -12.6 | X153: 1319.38669 | Y153: -1.21049 | Z153: 2.8271 | AA153: -84.30217 | AB153: 1.23442 | AC153: 1232.28135 | AE153: 12698.73612 | AK153: 3809.81312 | AM153: 40192.89455 | AP153: 10614 | AQ153: 6.9 | AT153: 12446.12324 | AU153: 43478.57691 | AV153: 19.05299 | AW153: 17647.10043 | AX153: 2485.30197 | AY153: 2764.38617 | AZ153: 22896.78857 | BA153: 15801.56704 | BB153: 32.8006 | BC153: 1319.69779 | BD153: 118.81354 | BE153: 35.17971 | BF153: 6481.69157 | BH153: 6900.64464 | BI153: 0 | BK153: -418.95307 | BL153: 1.20864 | BM153: 19.03384 | BN153: -152.15023 | BO153: 0 | BP153: -579.41158 | BR153: 11547.59766 | BX153: 4261.81529 | BZ153: 50267.11922 | CE153: 6.9 | CM153: -1507.88202 | CN153: -18182.29858 | CO153: 726.941 | CP153: 1368.0008 | CQ153: 0 | CS153: -1122.68908 | CT153: -13253.09927 | CU153: 160 | CV153: 1091.89868 | CW153: 0
A154: 503 | B154: Mynämäki | C154: 7515 | D154: 8.61 | G154: 7940.42923 | H154: 25974.01561 | I154: 0.13539 | J154: 13935.41469 | K154: 1186.92674 | L154: 1953.01877 | M154: 17075.3602 | N154: 4102.394 | O154: 48.31362 | P154: 1113.63446 | Q154: 142.54243 | R154: 22.15963 | S154: 2199.36517 | U154: 2973.94405 | V154: 22.98 | X154: -751.59888 | Y154: 0.15466 | Z154: 0 | AA154: 0 | AB154: -6.49054 | AC154: -757.93476 | AE154: -5900.94703 | AK154: 2803.52113 | AM154: 42750.75802 | AP154: 7477 | AQ154: 9.1 | AT154: 7731.5404 | AU154: 26332.444 | AV154: -22.16054 | AW154: 14443.50712 | AX154: 1033.33038 | AY154: 2094.62294 | AZ154: 17571.46044 | BA154: 4281.022 | BB154: 44.32924 | BC154: 1342.58367 | BD154: 128.19066 | BE154: 39.09371 | BF154: 2020.26082 | BH154: 3150.42433 | BI154: 0 | BK154: -1130.16351 | BL154: -1.06069 | BM154: 0 | BN154: -0.726 | BO154: 15.12853 | BP154: -1116.82167 | BR154: -4984.88651 | BX154: 3382.31639 | BZ154: 45840.48141 | CE154: 9.1 | CM154: 52.76201 | CN154: -5193.27956 | CO154: 0 | CP154: 1106.74613 | CQ154: 0 | CS154: 156.16996 | CT154: -3851.37536 | CU154: 41.653 | CV154: -152.84418 | CW154: 0
A155: 504 | B155: Myrskylä | C155: 1715 | D155: 8.86 | G155: 2356.65274 | H155: 7080.12984 | I155: -4.93802 | J155: 3145.07566 | K155: 416.63266 | L155: 428.18146 | M155: 3989.88978 | N155: 1106.739 | O155: 100.38864 | P155: 276.39551 | Q155: 115.8091 | R155: 1.85676 | S155: 306.15913 | U155: 817.77624 | V155: 0 | X155: -511.61711 | Y155: 0.36879 | Z155: -1.67161 | AA155: 0 | AB155: 0 | AC155: -509.57671 | AE155: 1162.82065 | AK155: 581.51773 | AM155: 13097.039 | AP155: 1677 | AQ155: 9.9 | AT155: 2588.26174 | AU155: 7339.9983 | AV155: -6.4245 | AW155: 3242.90407 | AX155: 354.54213 | AY155: 559.77876 | AZ155: 4157.22496 | BA155: 627.255 | BB155: 1.97801 | BC155: 453.35545 | BD155: 368.4041 | BE155: 34.59621 | BF155: -91.25065 | BH155: 1095.50988 | BI155: 0 | BK155: -1186.76053 | BL155: 0.18379 | BM155: 0 | BN155: 0 | BO155: 0 | BP155: -1186.57674 | BR155: -23.7561 | BX155: 372.41052 | BZ155: 13739.624 | CE155: 9.9 | CM155: 9.2613 | CN155: -3629.44211 | CO155: 114.26449 | CP155: 166.07546 | CQ155: -155.7489 | CS155: 8.13836 | CT155: -747.76475 | CU155: 107 | CV155: -1.58636 | CW155: 0
A156: 505 | B156: Mäntsälä | C156: 20957 | D156: 8.36 | G156: 40811.01017 | H156: 89635.29806 | I156: 0 | J156: 41631.46492 | K156: 3998.66468 | L156: 9035.63438 | M156: 54665.76398 | N156: 18980.39958 | O156: 216.14381 | P156: 1640.78541 | Q156: 212.15568 | R156: -0.74796 | S156: 23331.26991 | U156: 15715.81017 | V156: 0 | X156: 7615.45974 | Y156: 4.01525 | Z156: 306.49195 | AA156: 56.52843 | AB156: 70.91391 | AC156: 7440.42538 | AE156: 40860.21457 | AK156: 15318.91368 | AM156: 166033.9532 | AP156: 20934 | AQ156: 8.3 | AT156: 44041.04916 | AU156: 89629.21339 | AV156: 0 | AW156: 40930.40302 | AX156: 3240.65937 | AY156: 9544.68434 | AZ156: 53508.4702 | BA156: 18593.81056 | BB156: 409.06959 | BC156: 2068.94563 | BD156: 602.66475 | BE156: -92.11832 | BF156: 25549.02356 | BH156: 16408.94293 | BI156: 0 | BK156: 9140.08063 | BL156: 2.001 | BM156: 882.42022 | BN156: 14.36431 | BO156: -21.28925 | BP156: 8693.94658 | BR156: 49315.29137 | BX156: 20279.51791 | BZ156: 153604.8899 | CE156: 8.3 | CM156: -1343.93009 | CN156: -15402.35041 | CO156: 180 | CP156: 4073.96344 | CQ156: -644.89369 | CS156: -2859.25297 | CT156: -14740.29134 | CU156: 100 | CV156: 4069.05064 | CW156: -131.85009
A157: 508 | B157: Mänttä-Vilppula | C157: 9271 | D157: 9.86 | G157: 17207.87887 | H157: 42188.81989 | I157: 74.17837 | J157: 19171.84186 | K157: 3486.52009 | L157: 3249.71634 | M157: 25908.07829 | N157: 7274.86806 | O157: 30.76208 | P157: 686.30123 | Q157: 296.60696 | R157: 23.60449 | S157: 7893.64702 | U157: 5759.83839 | V157: 0 | X157: 2133.80863 | Y157: 0.2114 | Z157: 49.32149 | AA157: 1.22392 | AB157: -39.42154 | AC157: 2046.50092 | AE157: -2520.77383 | AK157: 6605.60176 | AM157: 39813.52793 | AP157: 9270 | AQ157: 9.9 | AT157: 17749.32483 | AU157: 42201.49793 | AV157: 71.92602 | AW157: 18767.37883 | AX157: 5092.96507 | AY157: 3078.4555 | AZ157: 26938.7994 | BA157: 6865.69417 | BB157: 52.4242 | BC157: 590.21761 | BD157: 248.98132 | BE157: 15.0253 | BF157: 9120.4091 | BH157: 6221.51858 | BI157: 0 | BK157: 2898.89052 | BL157: 0.2114 | BM157: 48.40932 | BN157: 2.12041 | BO157: -31.8182 | BP157: 2845.19947 | BR157: 518.86226 | BX157: 6912.37129 | BZ157: 34285.67698 | CE157: 9.9 | CM157: -744.84757 | CN157: -9397.73325 | CO157: 72.42 | CP157: 93.68905 | CQ157: 178.61678 | CS157: 639.22875 | CT157: -2354.81574 | CU157: 410.47024 | CV157: 477.60146 | CW157: -6.65299
A158: 507 | B158: Mäntyharju | C158: 5522 | D158: 8.11 | G158: 6826.79476 | H158: 19981.52519 | I158: 0 | J158: 8701.6943 | K158: 2209.23101 | L158: 3043.72402 | M158: 13954.64933 | N158: 1872.986 | O158: 17.32971 | P158: 191.33624 | Q158: 412.63744 | R158: 24.8167 | S158: 2820.36827 | U158: 2381.43501 | V158: 34.55458 | X158: 473.48784 | Y158: 0 | Z158: 0 | AA158: -41.124 | AB158: 0 | AC158: 432.36384 | AE158: 8373.88059 | AK158: 6201.83002 | AM158: 22206.75586 | AP158: 5532 | AQ158: 8.1 | AT158: 7018.10562 | AU158: 19734.04701 | AV158: 0 | AW158: 8529.55098 | AX158: 1927.01541 | AY158: 3196.34305 | AZ158: 13586.47767 | BA158: 1036.814 | BB158: 39.7055 | BC158: 199.43956 | BD158: 822.60241 | BE158: 9.5712 | BF158: 2560.64743 | BH158: 2039.75072 | BI158: 299.90582 | BK158: 670.84962 | BL158: 0 | BM158: 0 | BN158: 22.70733 | BO158: 0 | BP158: 693.55695 | BR158: 9067.43755 | BX158: 5203.43169 | BZ158: 20247.52737 | CE158: 8.5 | CM158: 470.74155 | CN158: -1333.36188 | CO158: 0 | CP158: 90.48609 | CQ158: -14.3416 | CS158: -0.10707 | CT158: -1747.37719 | CU158: 21.6 | CV158: 103.1358 | CW158: 13.987
A159: 529 | B159: Naantali | C159: 19999 | D159: 6.36 | G159: 54719.4998 | H159: 87707.9612 | I159: 6.14714 | J159: 37322.37952 | K159: 8315.81292 | L159: 7658.10973 | M159: 53296.30217 | N159: 8914.743 | O159: 592.52879 | P159: 1560.41018 | Q159: 833.16313 | R159: 2.93246 | S159: 29091.08019 | U159: 19256.24312 | V159: 0 | X159: 9834.83707 | Y159: 0 | Z159: 202.95912 | AA159: -192.56471 | AB159: 2.07767 | AC159: 9441.39091 | AE159: 96769.18521 | AK159: 16481.8585 | AM159: 68414.3678 | AP159: 20129 | AQ159: 6.4 | AT159: 56125.91609 | AU159: 88565.48855 | AV159: 7.11645 | AW159: 34907.36439 | AX159: 6440.20792 | AY159: 7521.37833 | AZ159: 48868.95064 | BA159: 9726.075 | BB159: 495.33886 | BC159: 1963.82338 | BD159: 470.47058 | BE159: 21.97777 | BF159: 25142.57792 | BH159: 20683.65134 | BI159: 0 | BK159: 4458.92658 | BL159: 0 | BM159: 814.68852 | BN159: -93.21572 | BO159: 0.87189 | BP159: 3959.23849 | BR159: 102182.5565 | BX159: 14915.19727 | BZ159: 68907.90343 | CE159: 6.4 | CM159: -1337.74759 | CN159: -30823.34841 | CO159: 51.60427 | CP159: 2387.62087 | CQ159: 0 | CS159: -618.72768 | CT159: -26519.08703 | CU159: 272.76535 | CV159: 1732.90555 | CW159: 0
A160: 531 | B160: Nakkila | C160: 4966 | D160: 9.11 | G160: 4814.34194 | H160: 18698.41629 | I160: 0 | J160: 9937.73746 | K160: 701.79596 | L160: 1659.12922 | M160: 12298.66264 | N160: 4758.81717 | O160: 160.01128 | P160: 152.55205 | Q160: 136.79157 | R160: 10.70907 | S160: 3306.94719 | U160: 1796.32632 | V160: 0 | X160: 1510.62087 | Y160: 0 | Z160: 12.23702 | AA160: 10.60779 | AB160: 2.87655 | AC160: 1511.86819 | AE160: 6353.7097 | AK160: 6829.17967 | AM160: 5862.69961 | AP160: 4939 | AQ160: 9.1 | AT160: 5073.31952 | AU160: 19351.18507 | AV160: -0.66987 | AW160: 9604.80912 | AX160: 667.95974 | AY160: 1698.9794 | AZ160: 11971.74826 | BA160: 3494.47445 | BB160: 131.31933 | BC160: 106.17022 | BD160: 60.78862 | BE160: 6.6098 | BF160: 1267.01522 | BH160: 1662.77099 | BI160: 0 | BK160: -395.75577 | BL160: 20.01999 | BM160: -3.72184 | BN160: -6.78914 | BO160: -0.49075 | BP160: -381.15475 | BR160: 6140.27784 | BX160: 5243.1204 | BZ160: 4877.80622 | CE160: 9.1 | CM160: 118.25695 | CN160: -1390.533 | CO160: 22.5 | CP160: 1308.85912 | CQ160: 0 | CS160: 2.67706 | CT160: -1709.00199 | CU160: 0 | CV160: 4.528 | CW160: 0
A161: 535 | B161: Nivala | C161: 10454 | D161: 9.36 | G161: 19450.90211 | H161: 52915.87188 | I161: 3.32086 | J161: 16812.58986 | K161: 1608.61452 | L161: 2754.22073 | M161: 21175.42511 | N161: 21359.52568 | O161: 273.33701 | P161: 2371.15283 | Q161: 1165.31049 | R161: -382.72908 | S161: 8194.93777 | U161: 8245.32728 | V161: 0 | X161: -50.38951 | Y161: 4.77581 | Z161: 3.54898 | AA161: 39.17838 | AB161: 1.78453 | AC161: -8.19977 | AE161: 24204.05909 | AK161: 29868.04177 | AM161: 128523.0516 | AP161: 10378 | AQ161: 9.9 | AT161: 22118.49 | AU161: 55285.981 | AV161: -68.739 | AW161: 17944.80503 | AX161: 1480.15925 | AY161: 2767.54885 | AZ161: 21856.33 | BA161: 20737.395 | BB161: 409.615 | BC161: 3736.275 | BD161: 3101.356 | BE161: 1111.136 | BF161: 8021.055 | BH161: 8313.823 | BI161: 0 | BK161: -292.767 | BL161: 4.07 | BM161: 296.024 | BN161: 207.485 | BO161: -1.841 | BP161: -231.065 | BR161: 23969.293 | BX161: 9933.702 | BZ161: 136761.84 | CE161: 9.9 | CM161: -40.42039 | CN161: -23699.20264 | CO161: 278.91341 | CP161: 67.26864 | CQ161: 0 | CS161: 347.339 | CT161: -14044.325 | CU161: 498.351 | CV161: 12.15 | CW161: 0
A162: 536 | B162: Nokia | C162: 35647 | D162: 8.36 | G162: 39819.27909 | H162: 120412.225 | I162: -40.47366 | J162: 74334.89178 | K162: 6861.40234 | L162: 10525.23727 | M162: 91721.53139 | N162: 19453.826 | O162: 311.08277 | P162: 1552.93498 | Q162: 1523.26803 | R162: 314.74832 | S162: 30250.32544 | U162: 19367.57849 | V162: 0 | X162: 10882.74695 | Y162: 0.42408 | Z162: 265.62626 | AA162: 31.8 | AB162: 0.83977 | AC162: 10650.18454 | AE162: 45344.81442 | AK162: 20988.90784 | AM162: 133426.7704 | AP162: 36176 | AQ162: 8.4 | AT162: 41122.05075 | AU162: 125362.8323 | AV162: -18.41912 | AW162: 71305.50672 | AX162: 5297.58658 | AY162: 11331.03189 | AZ162: 87670.81514 | BA162: 19016.425 | BB162: 274.65947 | BC162: 2046.34188 | BD162: 969.04737 | BE162: 58.07871 | BF162: 21567.32576 | BH162: 20577.66821 | BI162: 0 | BK162: 989.65755 | BL162: 0.42408 | BM162: 547.29354 | BN162: 75.03318 | BO162: -1.07689 | BP162: 790.39115 | BR162: 46135.20559 | BX162: 15996.07688 | BZ162: 149240.1041 | CE162: 8.4 | CM162: -3672.33855 | CN162: -35111.4326 | CO162: 932.58361 | CP162: 3750.35785 | CQ162: -17.95 | CS162: -2842.29369 | CT162: -53223.32524 | CU162: 447.30915 | CV162: 9999.89513 | CW162: 0
A163: 538 | B163: Nousiainen | C163: 4695 | D163: 8.86 | G163: 4539.70612 | H163: 19067.9977 | I163: 0 | J163: 9289.49566 | K163: 360.99196 | L163: 916.89092 | M163: 10567.37854 | N163: 5672.449 | O163: 22.84449 | P163: 329.25121 | Q163: 16.12533 | R163: 54.52476 | S163: 1366.72981 | U163: 2343.02513 | V163: 0 | X163: -976.29532 | Y163: 0 | Z163: 0 | AA163: 0 | AB163: 0 | AC163: -976.29532 | AE163: 965.06371 | AK163: 11042.98311 | AM163: 29754.70167 | AP163: 4659 | AQ163: 9.1 | AT163: 4617.43226 | AU163: 18950.08573 | AV163: 0.58567 | AW163: 9807.28649 | AX163: 279.62341 | AY163: 1135.39522 | AZ163: 11222.30512 | BA163: 6099.927 | BB163: 21.95498 | BC163: 563.01452 | BD163: 38.19176 | BE163: 19.11642 | BF163: 2468.18012 | BH163: 2028.57589 | BI163: 172.8 | BK163: 526.00423 | BL163: 0 | BM163: 0 | BN163: 0 | BO163: 0 | BP163: 526.00423 | BR163: 1491.06795 | BX163: 3424.99653 | BZ163: 23153.09766 | CE163: 9.1 | CM163: -35.05274 | CN163: -3325.899 | CO163: 0 | CP163: 890.03365 | CQ163: 0 | CS163: -79.96049 | CT163: -3925.71847 | CU163: 139.23 | CV163: 89.978 | CW163: 0
A164: 541 | B164: Nurmes | C164: 9130 | D164: 8.36 | G164: 21729.52039 | H164: 44637.02346 | I164: 0 | J164: 13034.50296 | K164: 3021.56075 | L164: 2249.78791 | M164: 18305.85162 | N164: 13534.293 | O164: 248.19467 | P164: 463.82642 | Q164: 641.27619 | R164: 28.05198 | S164: 9276.45215 | U164: 8167.28633 | V164: 0 | X164: 1109.16582 | Y164: -56.89826 | Z164: 68.09529 | AA164: 0 | AB164: 21.91195 | AC164: 1006.08422 | AE164: 28842.55617 | AK164: 8961.65099 | AM164: 24225.0101 | AP164: 8980 | AQ164: 8.9 | AT164: 18672.83962 | AU164: 45307.43605 | AV164: 0 | AW164: 14196.99945 | AX164: 2837.97651 | AY164: 2307.36064 | AZ164: 19257.21846 | BA164: 15212.53353 | BB164: 357.75478 | BC164: 834.35666 | BD164: 750.2745 | BE164: 19.27778 | BF164: 8089.5504 | BH164: 7372.5374 | BI164: 0 | BK164: 717.013 | BL164: -33.42406 | BM164: 127.48274 | BN164: 0 | BO164: 50.2514 | BP164: 670.09897 | BR164: 31188.57894 | BX164: 10295.10232 | BZ164: 28722.13964 | CE164: 8.9 | CM164: -567.29452 | CN164: -6229.67885 | CO164: 9.8 | CP164: 685.39409 | CQ164: -21.00912 | CS164: -1732.79602 | CT164: -10149.98021 | CU164: 20.40169 | CV164: 89.97893 | CW164: 8.59557
A165: 543 | B165: Nurmijärvi | C165: 44785 | D165: 7.11 | G165: 97890.31955 | H165: 180173.2033 | I165: 0 | J165: 92194.75237 | K165: 9382.32468 | L165: 13630.50123 | M165: 115207.5783 | N165: 35501.53423 | O165: 158.62057 | P165: 5145.36502 | Q165: 1520.1008 | R165: 272.09159 | S165: 64687.49354 | U165: 46504.75561 | V165: -225.44319 | X165: 17957.29474 | Y165: 7.75647 | Z165: 2394.12941 | AA165: -5.68946 | AB165: 0.5572 | AC165: 15565.78954 | AE165: 112778.3451 | AK165: 42044.91095 | AM165: 292798.2623 | AP165: 45048 | AQ165: 7.5 | AT165: 82122.4973 | AU165: 180928.193 | AV165: 0 | AW165: 89018.18563 | AX165: 7170.31232 | AY165: 14292.73175 | AZ165: 110481.2297 | BA165: 34908.96511 | BB165: 398.55073 | BC165: 5595.80899 | BD165: 981.24159 | BE165: 245.35359 | BF165: 42123.12885 | BH165: 35631.34264 | BI165: 0 | BK165: 6491.78621 | BL165: 3.86544 | BM165: 1832.34268 | BN165: -211.41621 | BO165: 0 | BP165: 5368.0641 | BR165: 130588.5705 | BX165: 44713.69373 | BZ165: 292538.2229 | CE165: 7.5 | CM165: -16907.54777 | CN165: -60502.41821 | CO165: 1023.0981 | CP165: 26021.22312 | CQ165: 2.52 | CS165: -4905.69158 | CT165: -43867.73676 | CU165: 1023.60896 | CV165: 6210.34408 | CW165: -344.23795
A166: 545 | B166: Närpiö | C166: 9621 | D166: 8.36 | G166: 26919.717 | H166: 52741.153 | I166: 0 | J166: 15162.13609 | K166: 3152.71733 | L166: 4615.46779 | M166: 22930.32121 | N166: 16113.304 | O166: 327.937 | P166: 1390.815 | Q166: 536.919 | R166: 5.746 | S166: 12690.484 | U166: 6845.918 | V166: 0 | X166: 5844.566 | Y166: -3000 | Z166: 42.37 | AA166: -3.382 | AB166: 1.436 | AC166: 2800.25 | AE166: 42252.76008 | AK166: 30587.506 | AM166: 74766.62135 | AP166: 9554 | AQ166: 8.4 | AT166: 18306.625 | AU166: 45453.945 | AV166: 0 | AW166: 15150.99473 | AX166: 2584.28876 | AY166: 6350.75488 | AZ166: 24086.038 | BA166: 16923.831 | BB166: 329.802 | BC166: 1799.236 | BD166: 513.364 | BE166: 327.982 | BF166: 12578.497 | BH166: 7343.726 | BI166: 0 | BK166: 5234.771 | BL166: 0 | BM166: 236.702 | BN166: -0.215 | BO166: 0.376 | BP166: 5116.581 | BR166: 46893.56153 | BX166: 29303.392 | BZ166: 70586.60218 | CE166: 8.4 | CM166: -231.943 | CN166: -12873.111 | CO166: 294.599 | CP166: 244.727 | CQ166: 33.995 | CS166: -26.203 | CT166: -9725.207 | CU166: 33.128 | CV166: 32.062 | CW166: -0.063
A167: 560 | B167: Orimattila | C167: 15669 | D167: 8.61 | G167: 16650.62493 | H167: 58124.68943 | I167: -13.59012 | J167: 28015.62663 | K167: 2853.40953 | L167: 4694.66019 | M167: 35563.69635 | N167: 17951.34271 | O167: 382.52086 | P167: 1005.2392 | Q167: 764.59041 | R167: -29.98558 | S167: 12007.4533 | U167: 11945.62132 | V167: -3.95828 | X167: 57.8737 | Y167: -1.83574 | Z167: -7.94503 | AA167: 67.5716 | AB167: -79.71484 | AC167: 51.83974 | AE167: 23659.82813 | AK167: 9163.11477 | AM167: 74760.39911 | AP167: 15651 | AQ167: 8.7 | AT167: 18390.2265 | AU167: 57730.79157 | AV167: -15.03851 | AW167: 27342.78001 | AX167: 2292.99108 | AY167: 4748.39687 | AZ167: 34180.47222 | BA167: 15998.28205 | BB167: 329.38798 | BC167: 1265.58409 | BD167: 2071.66955 | BE167: 4.3847 | BF167: 11954.23943 | BH167: 11193.95806 | BI167: -5.4086 | BK167: 757.57707 | BL167: -1.73823 | BM167: 333.36698 | BN167: -83.75787 | BO167: -20.47883 | BP167: 484.91863 | BR167: 24001.07702 | BX167: 11007.2663 | BZ167: 71972.76253 | CE167: 8.7 | CM167: -135.68237 | CN167: -19156.20085 | CO167: 264.56565 | CP167: 11855.72866 | CQ167: -233.64528 | CS167: -490.35106 | CT167: -7562.49918 | CU167: 179.91552 | CV167: 1960.75941 | CW167: -118.52568
A168: 561 | B168: Oripää | C168: 1315 | D168: 8.36 | G168: 1237.94486 | H168: 5783.72503 | I168: 0 | J168: 2060.80044 | K168: 535.27705 | L168: 378.58326 | M168: 2974.66075 | N168: 2287.81163 | O168: 4.21114 | P168: 105.7912 | Q168: 0.95976 | R168: 9.65121 | S168: 606.4207 | U168: 518.33236 | V168: 354.14805 | X168: 442.23639 | Y168: 15.13692 | Z168: 0.02195 | AA168: 0 | AB168: 0 | AC168: 457.35136 | AE168: 1746.7636 | AK168: 327.66032 | AM168: 2808.85612 | AP168: 1304 | AQ168: 8.4 | AT168: 1400.88521 | AU168: 5986.79291 | AV168: 0 | AW168: 2085.66638 | AX168: 380.71695 | AY168: 566.64164 | AZ168: 3033.02497 | BA168: 2286.3321 | BB168: 5.00713 | BC168: 112.71483 | BD168: 5.26107 | BE168: 9.60855 | BF168: 621.39419 | BH168: 455.26247 | BI168: 0.45112 | BK168: 166.35728 | BL168: 14.82479 | BM168: 0 | BN168: 0 | BO168: 0 | BP168: 181.18207 | BR168: 1772.3933 | BX168: 709.13838 | BZ168: 2632.566 | CE168: 8.4 | CM168: 0.33673 | CN168: -533.20148 | CO168: 0 | CP168: 0.6 | CQ168: -0.592 | CS168: -0.31213 | CT168: -560.93808 | CU168: 0 | CV168: 0 | CW168: 0
A169: 562 | B169: Orivesi | C169: 8839 | D169: 9.36 | G169: 8011.7132 | H169: 30205.34495 | I169: 113.81834 | J169: 16796.60455 | K169: 1902.19278 | L169: 3167.32323 | M169: 21866.12056 | N169: 5528.757 | O169: 197.00811 | P169: 517.22148 | Q169: 163.26758 | R169: 131.01281 | S169: 4936.17117 | U169: 3640.53284 | V169: 0 | X169: 1295.63833 | Y169: 0.1309 | Z169: 10.75149 | AA169: 17.12044 | AB169: 2.85578 | AC169: 1304.99396 | AE169: 6695.26716 | AK169: 4259.16792 | AM169: 24834.65779 | AP169: 8869 | AQ169: 9.4 | AT169: 8300.36444 | AU169: 31861.4071 | AV169: 30.34838 | AW169: 16886.24413 | AX169: 1512.60724 | AY169: 3371.61817 | AZ169: 21678.64728 | BA169: 5599.071 | BB169: 132.50148 | BC169: 859.2774 | BD169: 155.27143 | BE169: 137.76533 | BF169: 3037.75418 | BH169: 3919.53372 | BI169: 0 | BK169: -881.77954 | BL169: 0.1309 | BM169: 22.9729 | BN169: 117.3814 | BO169: 3.30928 | BP169: -772.44441 | BR169: 5919.76549 | BX169: 5346.35779 | BZ169: 26634.20529 | CE169: 9.4 | CM169: -86.27919 | CN169: -5588.66005 | CO169: 62.37835 | CP169: 102.07918 | CQ169: -1005.38867 | CS169: 20.17413 | CT169: -3736.20231 | CU169: 65 | CV169: 66.3038 | CW169: -279.21517
A170: 563 | B170: Oulainen | C170: 6978 | D170: 9.36 | G170: 13651.70626 | H170: 33498.9287 | I170: 0 | J170: 12499.18717 | K170: 1673.35153 | L170: 2235.4278 | M170: 16407.9665 | N170: 7550.381 | O170: 109.85444 | P170: 1387.02133 | Q170: 1544.8605 | R170: 728.09455 | S170: 3650.72412 | U170: 3911.38792 | V170: 0 | X170: -260.6638 | Y170: 3.94057 | Z170: 0 | AA170: -8.31412 | AB170: 0 | AC170: -265.03735 | AE170: 2619.37971 | AK170: 22378.41307 | AM170: 61652.05759 | AP170: 6912 | AQ170: 10 | AT170: 14650.64891 | AU170: 31631.89261 | AV170: 0 | AW170: 12918.22044 | AX170: 1581.77757 | AY170: 2587.88444 | AZ170: 17087.88245 | BA170: 5605.711 | BB170: 124.24389 | BC170: 2522.28204 | BD170: 2861.54895 | BE170: 673.81838 | BF170: 5502.04217 | BH170: 4662.14187 | BI170: -1323.64716 | BK170: 178.07672 | BL170: 3.36351 | BM170: 58.24782 | BN170: 0 | BO170: 0 | BP170: 152.31632 | BR170: 2737.44542 | BX170: 25401.20075 | BZ170: 67712.51389 | CE170: 10 | CM170: 9.34257 | CN170: -15114.42535 | CO170: 140.37907 | CP170: 11.97531 | CQ170: 0 | CS170: 1142.19818 | CT170: -16553.39848 | CU170: 65.19 | CV170: 70.1602 | CW170: 0
A171: 564 | B171: Oulu | C171: 214633 | D171: 7.86 | G171: 576599.6161 | H171: 1044591.37 | I171: -1140.41771 | J171: 404010.1147 | K171: 52067.90366 | L171: 68247.57109 | M171: 524325.5894 | N171: 178659.9547 | O171: 6053.89752 | P171: 18909.41159 | Q171: 26370.56742 | R171: 3126.5232 | S171: 241622.7558 | U171: 155439.1377 | V171: 0 | X171: 86183.61813 | Y171: 16.43791 | Z171: 849.15903 | AA171: -11018.85967 | AB171: 131.66881 | AC171: 74463.70615 | AE171: 1114719.923 | AK171: 352242.9981 | AM171: 924874.4076 | AP171: 216152 | AQ171: 7.9 | AT171: 596607.9057 | AU171: 1041312.564 | AV171: 4753.16575 | AW171: 391826.4137 | AX171: 42726.51887 | AY171: 71237.30401 | AZ171: 503051.216 | BA171: 179421.4447 | BB171: 14011.65245 | BC171: 19714.975 | BD171: 10288.9266 | BE171: 1073.05862 | BF171: 246033.7133 | BH171: 156485.6068 | BI171: 0 | BK171: 89548.10654 | BL171: -356.1683 | BM171: 3427.97118 | BN171: -11034.73823 | BO171: -264.51161 | BP171: 76178.70281 | BR171: 1202188.439 | BX171: 273046.2462 | BZ171: 904187.7007 | CE171: 8.1 | CM171: 15930.05196 | CN171: -281387.0013 | CO171: 5544.78183 | CP171: 9920.26923 | CQ171: 35.38769 | CS171: -14617.56581 | CT171: -320570.2894 | CU171: 3355.37839 | CV171: 11889.79803 | CW171: -77.89472
A172: 309 | B172: Outokumpu | C172: 6409 | D172: 8.86 | G172: 10755.46566 | H172: 26552.65873 | I172: -132.36426 | J172: 10044.13649 | K172: 1073.29493 | L172: 1666.14076 | M172: 12783.57218 | N172: 6741.48285 | O172: 326.58449 | P172: 707.80532 | Q172: 4277.56197 | R172: 2613.20144 | S172: 4878.6374 | U172: 3219.43305 | V172: 0 | X172: 1659.20435 | Y172: -43.30048 | Z172: 0 | AA172: -3.49812 | AB172: -6.31846 | AC172: 1606.08729 | AE172: 19935.25784 | AK172: 61933.59574 | AM172: 27745.48348 | AP172: 6444 | AQ172: 8.9 | AT172: 10529.63019 | AU172: 25906.54528 | AV172: -522.10302 | AW172: 9896.92781 | AX172: 976.61276 | AY172: 1708.39834 | AZ172: 12581.93891 | BA172: 5218.36359 | BB172: 364.91776 | BC172: 1054.84626 | BD172: 3592.85512 | BE172: 555.41093 | BF172: 4248.80008 | BH172: 3355.73256 | BI172: 0 | BK172: 893.06752 | BL172: -12.06556 | BM172: 5.99224 | BN172: -4.325 | BO172: -9.48932 | BP172: 864.19152 | BR172: 20875.77688 | BX172: 64125.51069 | BZ172: 35074.90179 | CE172: 8.9 | CM172: -1286.11519 | CN172: -8011.16422 | CO172: 247.37657 | CP172: 76.39737 | CQ172: 88.72146 | CS172: 805.58642 | CT172: -8645.10018 | CU172: 3.79415 | CV172: 1666.55719 | CW172: 10.88177
A173: 576 | B173: Padasjoki | C173: 2726 | D173: 8.36 | G173: 3620.4227 | H173: 11272.38643 | I173: 0 | J173: 3674.57519 | K173: 993.56796 | L173: 1590.32367 | M173: 6258.46682 | N173: 2911.62754 | O173: 110.9469 | P173: 137.14149 | Q173: 123.43177 | R173: 31.00958 | S173: 1578.61073 | U173: 1346.55888 | V173: -0.83005 | X173: 231.22179 | Y173: -0.38496 | Z173: 4.8657 | AA173: 0 | AB173: 0.9999 | AC173: 226.97103 | AE173: 15750.75278 | AK173: 8157.40657 | AM173: 5943.3886 | AP173: 2676 | AQ173: 8.4 | AT173: 4160.65755 | AU173: 11230.66316 | AV173: 0 | AW173: 4150.99766 | AX173: 803.31956 | AY173: 1774.98435 | AZ173: 6723.38396 | BA173: 2595.34393 | BB173: 96.51236 | BC173: 137.59672 | BD173: 163.35325 | BE173: 42.95269 | BF173: 2328.03848 | BH173: 1520.96193 | BI173: -1.13418 | BK173: 806.50945 | BL173: -0.36451 | BM173: 20.80706 | BN173: 0 | BO173: 20.21424 | BP173: 815.95565 | BR173: 16567.12093 | BX173: 8780.00129 | BZ173: 5969.95931 | CE173: 8.4 | CM173: -12.60662 | CN173: -2428.43228 | CO173: 15.09555 | CP173: 503.12668 | CQ173: 155.6 | CS173: -18.6556 | CT173: -1814.97381 | CU173: 180.17605 | CV173: 207.17818 | CW173: -16.95
A174: 577 | B174: Paimio | C174: 11236 | D174: 8.11 | G174: 14442.863 | H174: 48295.913 | I174: 0 | J174: 21881.36677 | K174: 2272.68788 | L174: 2480.64036 | M174: 26634.69501 | N174: 16082.573 | O174: 284.093 | P174: 1369.888 | Q174: 99.924 | R174: 11.342 | S174: 7867.005 | U174: 5008.88148 | V174: -156.93822 | X174: 2701.1853 | Y174: 0 | Z174: 87.016 | AA174: -43.532 | AB174: 1.096 | AC174: 2571.7333 | AE174: 4376.676 | AK174: 9345.609 | AM174: 57314.014 | AP174: 11221 | AQ174: 8.2 | AT174: 14130.29 | AU174: 51031.317 | AV174: 0 | AW174: 21544.77013 | AX174: 1334.0182 | AY174: 2658.58779 | AZ174: 25537.376 | BA174: 16166.217 | BB174: 96.119 | BC174: 1184.597 | BD174: 429.578 | BE174: 4.842 | BF174: 4138.825 | BH174: 5144.55 | BI174: 0 | BK174: -1005.725 | BL174: -0.019 | BM174: 18.336 | BN174: -47.083 | BO174: 0 | BP174: -1061.995 | BR174: 1456.673 | BX174: 7043.845 | BZ174: 65147.572 | CE174: 8.2 | CM174: 112.79 | CN174: -8328.602 | CO174: 427 | CP174: 1716.061 | CQ174: 1574.588 | CS174: -342.794 | CT174: -14944.67 | CU174: 478.55 | CV174: 533.517 | CW174: 0
A175: 578 | B175: Paltamo | C175: 3037 | D175: 9.36 | G175: 5476.00836 | H175: 13352.66435 | I175: 2.16651 | J175: 4897.11231 | K175: 567.958 | L175: 1411.44634 | M175: 6876.51665 | N175: 2215.63 | O175: 21.04375 | P175: 213.22432 | Q175: 119.45015 | R175: 6.44163 | S175: 1097.16694 | U175: 1621.80619 | V175: 0 | X175: -524.63925 | Y175: 2.67662 | Z175: 0 | AA175: -23.3994 | AB175: 0 | AC175: -545.36203 | AE175: -638.26674 | AK175: 6302.51294 | AM175: 20101.0715 | AP175: 2990 | AQ175: 9.4 | AT175: 5532.48852 | AU175: 13043.87132 | AV175: 6.24487 | AW175: 5150.01306 | AX175: 429.41535 | AY175: 1468.50377 | AZ175: 7006.70094 | BA175: 2101.444 | BB175: 21.33452 | BC175: 241.52733 | BD175: 646.02605 | BE175: 37.43048 | BF175: 1991.40977 | BH175: 1883.04657 | BI175: 0 | BK175: 108.3632 | BL175: 5.18035 | BM175: 0 | BN175: -29.1186 | BO175: 0 | BP175: 84.42495 | BR175: -578.88771 | BX175: 6673.88349 | BZ175: 19065.87526 | CE175: 9.4 | CM175: 2.32932 | CN175: -712.28737 | CO175: 0 | CP175: 83.48581 | CQ175: 0 | CS175: -13.32613 | CT175: -478.88461 | CU175: 85.29579 | CV175: 45.0793 | CW175: -5.60066
A176: 445 | B176: Parainen | C176: 14999 | D176: 7.86 | G176: 21077.39961 | H176: 64426.71766 | I176: -3.52337 | J176: 30541.31767 | K176: 2627.62246 | L176: 10310.44218 | M176: 43479.38231 | N176: 10717.475 | O176: 19.98664 | P176: 913.85838 | Q176: 1102.78219 | R176: 57.86927 | S176: 10995.05707 | U176: 8059.26921 | V176: 0 | X176: 2935.78786 | Y176: 0 | Z176: 80.73764 | AA176: -0.1806 | AB176: 7.86717 | AC176: 2862.73679 | AE176: 16855.60686 | AK176: 3947.35856 | AM176: 47713.58399 | AP176: 14868 | AQ176: 7.9 | AT176: 26497.45359 | AU176: 61593.85964 | AV176: 30.50665 | AW176: 29194.0021 | AX176: 2192.84895 | AY176: 10530.65103 | AZ176: 41917.50208 | BA176: 8337.061 | BB176: 369.25483 | BC176: 1149.75064 | BD176: 236.46261 | BE176: 59.9343 | BF176: 14584.69618 | BH176: 5700.25859 | BI176: 0 | BK176: 8884.43759 | BL176: 0 | BM176: 0 | BN176: 0 | BO176: 22.36668 | BP176: 8906.80427 | BR176: 25766.60365 | BX176: 13876.5681 | BZ176: 51339.63105 | CE176: 7.9 | CM176: 45.76609 | CN176: -13211.54206 | CO176: 75.81658 | CP176: 306.61001 | CQ176: -31.78988 | CS176: -9573.47637 | CT176: -7609.26774 | CU176: 140.7216 | CV176: 11124.42776 | CW176: 69.28988
A177: 580 | B177: Parikkala | C177: 4366 | D177: 8.86 | G177: 5431.41678 | H177: 16447.76152 | I177: -0.66518 | J177: 7051.42162 | K177: 1086.9561 | L177: 1379.05498 | M177: 9517.4327 | N177: 3417.62301 | O177: 8.99749 | P177: 164.096 | Q177: 76.47661 | R177: 6.06512 | S177: 1829.22683 | U177: 2004.18731 | V177: 4.22911 | X177: -170.73137 | Y177: 0.68698 | Z177: 0.46014 | AA177: 0 | AB177: 0.78167 | AC177: -169.72286 | AE177: 16293.40894 | AK177: 4476.44672 | AM177: 17038.1844 | AP177: 4300 | AQ177: 9.5 | AT177: 5568.30747 | AU177: 16183.35748 | AV177: -4.77919 | AW177: 7308.26157 | AX177: 983.24302 | AY177: 1586.0924 | AZ177: 9873.03448 | BA177: 2915.54501 | BB177: 9.73446 | BC177: 306.07375 | BD177: 101.40723 | BE177: 6.43537 | BF177: 1967.38286 | BH177: 2685.22317 | BI177: 0 | BK177: -717.84031 | BL177: -6.03911 | BM177: 1.49666 | BN177: 0 | BO177: 0.24528 | BP177: -724.38247 | BR177: 15576.93433 | BX177: 4535.30743 | BZ177: 16150.71114 | CE177: 9.5 | CM177: -141.94872 | CN177: -9178.43773 | CO177: 1547.385 | CP177: 252.70684 | CQ177: 0 | CS177: 24.69675 | CT177: -1116.18673 | CU177: 319.00583 | CV177: 0.1735 | CW177: -0.95
A178: 581 | B178: Parkano | C178: 6123 | D178: 9.36 | G178: 10478.36224 | H178: 24316.33916 | I178: 166.37349 | J178: 10446.52675 | K178: 2341.64508 | L178: 2129.52965 | M178: 14917.70148 | N178: 5295.689 | O178: 44.72 | P178: 448.17305 | Q178: 102.89009 | R178: 624.18269 | S178: 5570.89681 | U178: 3915.59209 | V178: 0 | X178: 1655.30472 | Y178: 0.1099 | Z178: 10.83785 | AA178: 0 | AB178: -30.94002 | AC178: 1613.63676 | AE178: 11254.40462 | AK178: 3361.55298 | AM178: 21051.93415 | AP178: 6069 | AQ178: 9.4 | AT178: 7985.46967 | AU178: 23665.30316 | AV178: 82.95662 | AW178: 10504.65148 | AX178: 1991.12738 | AY178: 2168.2522 | AZ178: 14617.94053 | BA178: 5508.83621 | BB178: 61.63674 | BC178: 484.88934 | BD178: 88.63603 | BE178: 620.99191 | BF178: 3574.29139 | BH178: 2781.32622 | BI178: 0 | BK178: 792.96517 | BL178: 0.1099 | BM178: 17.91898 | BN178: 5.50452 | BO178: -1.58688 | BP178: 788.03322 | BR178: 12042.43783 | BX178: 5448.75533 | BZ178: 20814.23043 | CE178: 9.4 | CM178: -127.24573 | CN178: -2696.19336 | CO178: 0 | CP178: 233.68184 | CQ178: -1e-05 | CS178: -751.9289 | CT178: -1803.80143 | CU178: 0 | CV178: 998.79299 | CW178: 0
A179: 599 | B179: Pedersören kunta | C179: 11225 | D179: 8.36 | G179: 24599.08516 | H179: 56432.67665 | I179: -4.56546 | J179: 18412.35793 | K179: 3048.85034 | L179: 2581.76947 | M179: 24042.97774 | N179: 15287.4 | O179: 246.98912 | P179: 998.68037 | Q179: 408.62085 | R179: 380.44387 | S179: 6768.70678 | U179: 4474.636 | V179: 12.56859 | X179: 2306.63937 | Y179: 71.733 | Z179: 16.657 | AA179: 6.523 | AB179: -0.54255 | AC179: 2367.69582 | AE179: 21423.64703 | AK179: 8668.426 | AM179: 59464.45754 | AP179: 11226 | AQ179: 9 | AT179: 26154.763 | AU179: 57945.197 | AV179: 5.534 | AW179: 19218.17254 | AX179: 2432.1585 | AY179: 2897.61269 | AZ179: 24547.944 | BA179: 15405.065 | BB179: 552.534 | BC179: 1664.072 | BD179: 778.751 | BE179: 531.612 | BF179: 7303.71 | BH179: 4933.241 | BI179: 59.442 | BK179: 2400.19 | BL179: -75.922 | BM179: 121.076 | BN179: -41.933 | BO179: 0.006 | BP179: 2221.803 | BR179: 23684.303 | BX179: 9372.298 | BZ179: 64933.194 | CE179: 9.3 | CM179: 71.556 | CN179: -17190.197 | CO179: 437.311 | CP179: 199.427 | CQ179: 81.543 | CS179: 19.007 | CT179: -12092.013 | CU179: 174.187 | CV179: 149.702 | CW179: 69.023
A180: 583 | B180: Pelkosenniemi | C180: 912 | D180: 9.36 | G180: 2476.50688 | H180: 5570.76231 | I180: 56.41412 | J180: 1729.16013 | K180: 282.50885 | L180: 2155.64846 | M180: 4167.31744 | N180: 172.985 | O180: 20.99128 | P180: 157.6488 | Q180: 30.14524 | R180: 3.87426 | S180: 1172.1849 | U180: 682.02244 | V180: -0.00516 | X180: 490.1573 | Y180: -2.063 | Z180: 1.19054 | AA180: -2.3578 | AB180: 2.85657 | AC180: 487.40253 | AE180: 5910.05979 | AK180: 2147.32383 | AM180: 8119.21569 | AP180: 910 | AQ180: 9.1 | AT180: 2379.97431 | AU180: 6023.35539 | AV180: 37.17676 | AW180: 1600.99185 | AX180: 246.68236 | AY180: 2235.38604 | AZ180: 4049.31232 | BA180: 627.092 | BB180: 26.41715 | BC180: 273.43103 | BD180: 52.2296 | BE180: -30.33459 | BF180: 905.75032 | BH180: 724.57606 | BI180: 0 | BK180: 181.17426 | BL180: 0 | BM180: -0.61046 | BN180: 2.196 | BO180: -29.59736 | BP180: 154.07813 | BR180: 6049.36216 | BX180: 1069.44869 | BZ180: 8745.2211 | CE180: 9.1 | CM180: -171.25074 | CN180: -1233.99642 | CO180: 442.01367 | CP180: 289.60138 | CQ180: 227.57736 | CS180: -32.56042 | CT180: -2901.30751 | CU180: 0 | CV180: -157.95568 | CW180: -30.05825
A181: 854 | B181: Pello | C181: 3253 | D181: 8.61 | G181: 7273.281 | H181: 15876.484 | I181: 0 | J181: 5345.87517 | K181: 854.65507 | L181: 1029.13801 | M181: 7229.66825 | N181: 3560.792 | O181: 18.81 | P181: 209.943 | Q181: 372.82 | R181: 7.835 | S181: 2361.109 | U181: 1615.904 | V181: -6.445 | X181: 738.76 | Y181: 3.432 | Z181: 0 | AA181: 0 | AB181: 0 | AC181: 742.192 | AE181: 2914.505 | AK181: 1765.328 | AM181: 5961.387 | AP181: 3191 | AQ181: 9 | AT181: 5757.01962 | AU181: 15998.77942 | AV181: 0 | AW181: 5406.43308 | AX181: 893.85003 | AY181: 1211.09652 | AZ181: 7489.00383 | BA181: 3791.58036 | BB181: 27.81963 | BC181: 236.60825 | BD181: 430.78648 | BE181: 4.77127 | BF181: 1256.05098 | BH181: 1648.23919 | BI181: 76.69284 | BK181: -353.84179 | BL181: 4.14108 | BM181: -25.14344 | BN181: 0 | BO181: 10.04729 | BP181: -327.0817 | BR181: 2483.02601 | BX181: 2283.49089 | BZ181: 5352.10143 | CE181: 9 | CM181: -58.417 | CN181: -800.223 | CO181: 59.048 | CP181: 67.078 | CQ181: 150.171 | CS181: -0.06994 | CT181: -601.45744 | CU181: 29.98 | CV181: 1.83994 | CW181: 70
A182: 584 | B182: Perho | C182: 2578 | D182: 8.86 | G182: 3526.71189 | H182: 14212.09401 | I182: 6.09287 | J182: 3432.85733 | K182: 664.82074 | L182: 929.03193 | M182: 5026.71 | N182: 7090.24793 | O182: 163.02767 | P182: 340.70924 | Q182: 493.14043 | R182: 139.39966 | S182: 1590.14357 | U182: 1758.77725 | V182: 0 | X182: -168.63368 | Y182: 9.97541 | Z182: 0.40138 | AA182: 0 | AB182: 5.76651 | AC182: -153.29314 | AE182: 5458.08069 | AK182: 9410.23565 | AM182: 20839.17545 | AP182: 2594 | AQ182: 9.3 | AT182: 3260.13484 | AU182: 13595.4088 | AV182: 9.99099 | AW182: 3686.14641 | AX182: 621.35985 | AY182: 1062.55778 | AZ182: 5340.02412 | BA182: 6800.74021 | BB182: 893.94864 | BC182: 518.72943 | BD182: 19.12681 | BE182: 76.67618 | BF182: 2133.1512 | BH182: 1675.49889 | BI182: 0 | BK182: 457.65231 | BL182: 4.9176 | BM182: 1.3453 | BN182: 0 | BO182: -2.11564 | BP182: 459.78162 | BR182: 5929.68964 | BX182: 10347.31781 | BZ182: 22267.85871 | CE182: 9.3 | CM182: -13.58368 | CN182: -2721.23773 | CO182: 230.80803 | CP182: 11.26894 | CQ182: 3.5 | CS182: -12.05332 | CT182: -2974.49118 | CU182: 381.42373 | CV182: 5.4125 | CW182: 1.75
A183: 588 | B183: Pertunmaa | C183: 1577 | D183: 8.86 | G183: 2894.11888 | H183: 6664.89359 | I183: 0 | J183: 2518.74289 | K183: 659.63386 | L183: 988.40862 | M183: 4166.78537 | N183: -141.58 | O183: 10.432 | P183: 281.77378 | Q183: 92.61357 | R183: 0.7981 | S183: 66.92796 | U183: 488.35091 | V183: 973.02018 | X183: 551.59723 | Y183: 0 | Z183: -1.11065 | AA183: -0.83 | AB183: 0.26089 | AC183: 552.13877 | AE183: -2873.54405 | AK183: 1496.32836 | AM183: 8400.04591 | AP183: 1525 | AQ183: 8.9 | AT183: 2696.46964 | AU183: 6307.27194 | AV183: 0 | AW183: 2362.51802 | AX183: 580.24062 | AY183: 1059.46984 | AZ183: 3994.09118 | BA183: -549.762 | BB183: 12.29843 | BC183: 323.44099 | BD183: 167.02366 | BE183: 0.3583 | BF183: -310.95032 | BH183: 454.93211 | BI183: -0.24908 | BK183: -766.00697 | BL183: 0 | BM183: 0 | BN183: -2.787 | BO183: 0.52122 | BP183: -768.27275 | BR183: -3641.81681 | BX183: 553.21224 | BZ183: 7998.23041 | CE183: - | CM183: -1019.89411 | CN183: -36.0229 | CO183: 0.02098 | CP183: 1011.18393 | CQ183: 0 | CS183: -14.15087 | CT183: -48.43412 | CU183: 0.03866 | CV183: 19.53582 | CW183: -4.323
A184: 592 | B184: Petäjävesi | C184: 3596 | D184: 9.11 | G184: 4516.76518 | H184: 16760.00565 | I184: 0 | J184: 6495.49071 | K184: 916.11176 | L184: 1144.09225 | M184: 8555.69472 | N184: 5970.08156 | O184: 9.09746 | P184: 730.94647 | Q184: 550.77864 | R184: 187.99936 | S184: 1923.46608 | U184: 1576.22789 | V184: 0 | X184: 347.23819 | Y184: 10.7214 | Z184: 0 | AA184: -143.8557 | AB184: 0 | AC184: 214.10389 | AE184: 3111.37635 | AK184: 6376.15729 | AM184: 22543.46671 | AP184: 3552 | AQ184: 9.9 | AT184: 4013.2099 | AU184: 15999.30536 | AV184: 0 | AW184: 6432.65833 | AX184: 344.246 | AY184: 1669.19259 | AZ184: 8446.09692 | BA184: 4589.72145 | BB184: 9.38762 | BC184: 804.22397 | BD184: 341.64617 | BE184: 26.09905 | BF184: 570.43368 | BH184: 1519.3785 | BI184: 0 | BK184: -948.94482 | BL184: 7.36401 | BM184: 0 | BN184: -29.1724 | BO184: 0 | BP184: -970.75321 | BR184: 2195.94592 | BX184: 6334.74721 | BZ184: 23023.39617 | CE184: 9.9 | CM184: -102.54425 | CN184: -1211.81426 | CO184: 49.31873 | CP184: 164.73022 | CQ184: -89.64 | CS184: 6.5351 | CT184: -667.1541 | CU184: 111.99997 | CV184: 4.39711 | CW184: 9.96
A185: 593 | B185: Pieksämäki | C185: 17050 | D185: 9.36 | G185: 29975.21549 | H185: 63513.56111 | I185: 76.7394 | J185: 31387.67839 | K185: 4174.03984 | L185: 5055.30763 | M185: 40617.02586 | N185: 5584.99571 | O185: 198.10671 | P185: 1803.34849 | Q185: 1017.77024 | R185: 87.58924 | S185: 11789.59506 | U185: 8535.38437 | V185: 0 | X185: 3254.21069 | Y185: -55 | Z185: 27.03174 | AA185: 118.21024 | AB185: 132.91725 | AC185: 3423.30645 | AE185: 6078.93254 | AK185: 9379.52967 | AM185: 98104.51319 | AP185: 17178 | AQ185: 9.4 | AT185: 31955.76803 | AU185: 62578.67055 | AV185: -39.07226 | AW185: 32077.47099 | AX185: 3299.603 | AY185: 5196.8292 | AZ185: 40259.6601 | BA185: 2674.92834 | BB185: 306.32321 | BC185: 2080.61076 | BD185: 1882.25781 | BE185: 16.73139 | BF185: 12363.85253 | BH185: 8440.97054 | BI185: 0 | BK185: 3922.88199 | BL185: -55 | BM185: 1.84804 | BN185: 61.9622 | BO185: 577.01839 | BP185: 4505.93857 | BR185: 10584.8711 | BX185: 11381.87687 | BZ185: 95465.53977 | CE185: 9.4 | CM185: 2049.48095 | CN185: -8481.32701 | CO185: 321.08617 | CP185: 390.64966 | CQ185: 5 | CS185: -874.9822 | CT185: -8333.12251 | CU185: 373.13355 | CV185: 330.74434 | CW185: 0
A186: 595 | B186: Pielavesi | C186: 4073 | D186: 9.11 | G186: 5618.80953 | H186: 19031.56592 | I186: 0 | J186: 5457.35165 | K186: 1443.48614 | L186: 1226.77774 | M186: 8127.61553 | N186: 7102.28178 | O186: 205.43835 | P186: 293.79014 | Q186: 767.35538 | R186: 1.55206 | S186: 2465.53645 | U186: 1739.0601 | V186: 25.58364 | X186: 752.05999 | Y186: 49.97335 | Z186: 0.08883 | AA186: 0 | AB186: 0 | AC186: 801.94451 | AE186: 6765.65938 | AK186: 11222.8853 | AM186: 11668.52987 | AP186: 3980 | AQ186: 9.1 | AT186: 5669.86 | AU186: 18213.22252 | AV186: 0 | AW186: 5732.21332 | AX186: 1227.76388 | AY186: 1354.42646 | AZ186: 8285.30949 | BA186: 7229.49907 | BB186: 260.56042 | BC186: 315.10343 | BD186: 934.90767 | BE186: 1.17719 | BF186: 3850.63351 | BH186: 2648.17485 | BI186: 0.55786 | BK186: 1202.73759 | BL186: 3.70354 | BM186: 7.05752 | BN186: 0 | BO186: 0 | BP186: 1202.91237 | BR186: 7966.07199 | BX186: 12585.53283 | BZ186: 11036.01392 | CE186: 9.1 | CM186: 564.32284 | CN186: -944.38613 | CO186: 11.49537 | CP186: 110.84313 | CQ186: 0.10126 | CS186: -166.52714 | CT186: -1713.74194 | CU186: 51.37809 | CV186: 44.50927 | CW186: 8.5
A187: 598 | B187: Pietarsaari | C187: 19475 | D187: 8.61 | G187: 65168.019 | H187: 108414.409 | I187: 8215.389 | J187: 37568.32558 | K187: 8236.6881 | L187: 7589.28667 | M187: 53394.30035 | N187: 8796.04 | O187: 0 | P187: 0 | Q187: 2168.04 | R187: 6983.307 | S187: 22344.072 | U187: 12108.88 | V187: 0 | X187: 10235.192 | Y187: 60.705 | Z187: 222.01 | AA187: -11.38 | AB187: -97.251 | AC187: 9965.256 | AE187: 120254.803 | AK187: 9857 | AM187: 158960.589 | AP187: 19576 | AQ187: 9 | AT187: 67119.20917 | AU187: 107927.6157 | AV187: 2714.54607 | AW187: 38282.56934 | AX187: 7652.39546 | AY187: 7851.39104 | AZ187: 53786.35584 | BA187: 5543.46163 | BB187: 0 | BC187: 4061.74619 | BD187: 1470.69677 | BE187: 2230.23468 | BF187: 16414.6729 | BH187: 12355.26915 | BI187: 0 | BK187: 4059.40375 | BL187: 16.36298 | BM187: 433.50822 | BN187: -299.13233 | BO187: -205.20186 | BP187: 3354.67843 | BR187: 123768.5428 | BX187: 11789.267 | BZ187: 163830.5438 | CE187: 9 | CM187: -9192.959 | CN187: -9086.164 | CO187: 411.375 | CP187: 229.453 | CQ187: -3627.092 | CS187: -3187.549 | CT187: -13765.153 | CU187: 740.713 | CV187: 619.234 | CW187: 0
A188: 601 | B188: Pihtipudas | C188: 3739 | D188: 8.36 | G188: 7887.99003 | H188: 19630.6715 | I188: 0 | J188: 5214.039 | K188: 1988.143 | L188: 1189.082 | M188: 8391.264 | N188: 7430.66217 | O188: 59.46009 | P188: 624.38196 | Q188: 54.35698 | R188: 62.78991 | S188: 3467.72682 | U188: 2357.53781 | V188: 0 | X188: 1110.18901 | Y188: 46.55929 | Z188: 0 | AA188: 0 | AB188: 0 | AC188: 1156.7483 | AE188: 10457.57031 | AK188: 9129.52459 | AM188: 20351.153 | AP188: 3692 | AQ188: 8.4 | AT188: 7457.24597 | AU188: 19449.28248 | AV188: 0 | AW188: 5337.465 | AX188: 1738.284 | AY188: 1290.636 | AZ188: 8327.12744 | BA188: 6571.05427 | BB188: 265.23839 | BC188: 670.5711 | BD188: 67.01809 | BE188: 13.38849 | BF188: 2554.44209 | BH188: 2427.82508 | BI188: -8.24984 | BK188: 122.49209 | BL188: 53.39743 | BM188: 0 | BN188: 0 | BO188: 0 | BP188: 175.88952 | BR188: 10485.04322 | BX188: 8132.50271 | BZ188: 18702.947 | CE188: 8.9 | CM188: -4.86566 | CN188: -2334.20021 | CO188: 131.9402 | CP188: 258.63117 | CQ188: 0 | CS188: -6.17904 | CT188: -1780.65025 | CU188: 76.03621 | CV188: 6.7476 | CW188: 0
A189: 604 | B189: Pirkkala | C189: 20763 | D189: 7.86 | G189: 13015.53083 | H189: 71962.3289 | I189: 0 | J189: 48351.16438 | K189: 6620.9989 | L189: 6930.93958 | M189: 61903.10286 | N189: 16175.627 | O189: 13.50622 | P189: 1510.66691 | Q189: 438.38664 | R189: 12.84364 | S189: 18042.76694 | U189: 10623.3924 | V189: 0 | X189: 7419.37454 | Y189: 0.1995 | Z189: 0 | AA189: 0 | AB189: 85.56773 | AC189: 7505.14177 | AE189: 63459.24163 | AK189: 4288.56461 | AM189: 65425.00002 | AP189: 21042 | AQ189: 7.9 | AT189: 13920.36708 | AU189: 76446.33827 | AV189: 0 | AW189: 45629.17869 | AX189: 5614.595 | AY189: 7247.42733 | AZ189: 58483.72993 | BA189: 15533.565 | BB189: 1.95439 | BC189: 881.40993 | BD189: 349.9048 | BE189: 22.77875 | BF189: 10938.99425 | BH189: 11623.66919 | BI189: 0 | BK189: -684.67494 | BL189: 0.1995 | BM189: 0 | BN189: 0 | BO189: 91.91196 | BP189: -592.56348 | BR189: 62855.14381 | BX189: 9088.57413 | BZ189: 82175.00002 | CE189: 7.9 | CM189: -5 | CN189: -17425.43609 | CO189: 0 | CP189: 16.04 | CQ189: 0 | CS189: -773.88852 | CT189: -23214.36888 | CU189: 858.421 | CV189: 894.2035 | CW189: 0
A190: 607 | B190: Polvijärvi | C190: 4064 | D190: 7.61 | G190: 5971.965 | H190: 16090.206 | I190: 0 | J190: 4532.39342 | K190: 1318.46026 | L190: 938.85615 | M190: 6789.70983 | N190: 3628.433 | O190: 20.39 | P190: 161.499 | Q190: 278.458 | R190: 12.735 | S190: 424.516 | U190: 1799.817 | V190: 0 | X190: -1375.301 | Y190: 672.32 | Z190: 0 | AA190: 0 | AB190: 0 | AC190: -702.981 | AE190: 11105.475 | AK190: 1965.642 | AM190: 10007.798 | AP190: 3999 | AQ190: 8.5 | AT190: 5868.469 | AU190: 15912.167 | AV190: 0 | AW190: 5516.65754 | AX190: 1001.59736 | AY190: 1020.01886 | AZ190: 7538.274 | BA190: 2728.435 | BB190: 24.281 | BC190: 400.418 | BD190: 311.17 | BE190: 24.637 | BF190: 133.407 | BH190: 2020.308 | BI190: 0 | BK190: -1886.901 | BL190: 535.324 | BM190: 0 | BN190: 0 | BO190: 0 | BP190: -1351.577 | BR190: 9154.772 | BX190: 4903.575 | BZ190: 16449.892 | CE190: 9 | CM190: -1211.821 | CN190: -9048.386 | CO190: 2743.035 | CP190: 46.473 | CQ190: 0 | CS190: -5.356 | CT190: -4109.649 | CU190: 659.916 | CV190: 85.479 | CW190: 0
A191: 608 | B191: Pomarkku | C191: 1943 | D191: 8.86 | G191: 2045.23259 | H191: 8187.98187 | I191: -20.10661 | J191: 3185.48105 | K191: 539.15467 | L191: 547.41957 | M191: 4272.05529 | N191: 2724.35889 | O191: 1.01413 | P191: 86.20877 | Q191: 16.61408 | R191: 8.32487 | S191: 745.69333 | U191: 708.32021 | V191: 0 | X191: 37.37312 | Y191: 0 | Z191: 0 | AA191: 2.4438 | AB191: 0.41741 | AC191: 40.23433 | AE191: 3393.00131 | AK191: 991.69037 | AM191: 7033.73596 | AP191: 1931 | AQ191: 9.9 | AT191: 1835.87315 | AU191: 8233.62751 | AV191: 1.66436 | AW191: 3383.32915 | AX191: 403.48257 | AY191: 604.52341 | AZ191: 4380.28863 | BA191: 2193.28182 | BB191: 2.08802 | BC191: 146.68184 | BD191: 42.4983 | BE191: 8.32374 | BF191: 67.06119 | BH191: 778.19489 | BI191: 0 | BK191: -711.1337 | BL191: 0 | BM191: 0 | BN191: -2.067 | BO191: 2.7157 | BP191: -710.485 | BR191: 2682.51631 | BX191: 978.10823 | BZ191: 7404.50518 | CE191: 10.9 | CM191: -25.14548 | CN191: -2144.22646 | CO191: 0 | CP191: 70.3189 | CQ191: -13.84159 | CS191: -3.82884 | CT191: -232.82006 | CU191: 0 | CV191: 36.47414 | CW191: -0.16034
A192: 609 | B192: Pori | C192: 83106 | D192: 8.36 | G192: 257663.4314 | H192: 465407.7448 | I192: 1098.38845 | J192: 154748.1067 | K192: 18852.85548 | L192: 27101.56931 | M192: 200702.5315 | N192: 106884.7662 | O192: 1999.8339 | P192: 16508.79935 | Q192: 3623.98953 | R192: 41.14066 | S192: 87413.38747 | U192: 64076.71559 | V192: -1710.548 | X192: 21626.12388 | Y192: 197.60577 | Z192: 2819.24415 | AA192: -1535.78797 | AB192: 60.72365 | AC192: 17529.42118 | AE192: 110323.9036 | AK192: 41558.43011 | AM192: 548867.0735 | AP192: 83305 | AQ192: 8.4 | AT192: 263496.0367 | AU192: 479624.98 | AV192: 3899.3291 | AW192: 151261.5915 | AX192: 16740.71503 | AY192: 28426.75009 | AZ192: 193737.7792 | BA192: 99525.28305 | BB192: 1394.70102 | BC192: 16214.33605 | BD192: 4397.99892 | BE192: 335.55598 | BF192: 70276.25596 | BH192: 64820.06424 | BI192: 0 | BK192: 5456.19172 | BL192: -27.21707 | BM192: 5263.9714 | BN192: -386.94712 | BO192: -3661.90831 | BP192: -1251.86648 | BR192: 89164.82331 | BX192: 24179.23347 | BZ192: 536097.8533 | CE192: 8.7 | CM192: -1627.71293 | CN192: -100841.5877 | CO192: 2777.65906 | CP192: 10031.67251 | CQ192: -0.12239 | CS192: -4641.91698 | CT192: -81255.93918 | CU192: 1283.09535 | CV192: 5788.40645 | CW192: -0.12239
A193: 611 | B193: Pornainen | C193: 4973 | D193: 7.86 | G193: 3337.49926 | H193: 17771.119 | I193: 0 | J193: 10148.44789 | K193: 535.07206 | L193: 1293.46422 | M193: 11976.98417 | N193: 5426.16371 | O193: 0.13205 | P193: 135.02546 | Q193: 27.66908 | R193: 36.98324 | S193: 2825.32057 | U193: 1920.1497 | V193: -46.17723 | X193: 858.99364 | Y193: 3.09045 | Z193: 0 | AA193: 0 | AB193: 0 | AC193: 862.08409 | AE193: 12671.01303 | AK193: 1487.0109 | AM193: 5136.374 | AP193: 4961 | AQ193: 7.9 | AT193: 3350.47225 | AU193: 17889.45206 | AV193: 0 | AW193: 9569.55044 | AX193: 433.6569 | AY193: 1417.9293 | AZ193: 11421.13664 | BA193: 4668.77784 | BB193: 0.26493 | BC193: 207.11875 | BD193: 28.17262 | BE193: 33.7568 | BF193: 1338.49667 | BH193: 2091.5742 | BI193: 37.9669 | BK193: -734.09408 | BL193: 0.47897 | BM193: 0 | BN193: 0 | BO193: 0 | BP193: -733.61511 | BR193: 11916.24792 | BX193: 1720.11731 | BZ193: 6381.825 | CE193: 7.9 | CM193: 227.18432 | CN193: -2034.53702 | CO193: 0 | CP193: 152.55245 | CQ193: 0.88201 | CS193: -23.76441 | CT193: -2635.05552 | CU193: 0.44101 | CV193: 62.73 | CW193: 0.84098
A194: 638 | B194: Porvoo | C194: 51289 | D194: 7.11 | G194: 192350.4753 | H194: 306649.0115 | I194: 56.48054 | J194: 101297.853 | K194: 32268.83397 | L194: 19030.68911 | M194: 152597.376 | N194: 47344.763 | O194: 1160.24468 | P194: 5962.70472 | Q194: 1343.02229 | R194: 676.07574 | S194: 81564.56985 | U194: 46811.6988 | V194: 0 | X194: 34752.87105 | Y194: -2161.67489 | Z194: 0 | AA194: -2713.44833 | AB194: -515.36579 | AC194: 29362.38204 | AE194: 200210.6932 | AK194: 121551.2516 | AM194: 229974.5427 | AP194: 51737 | AQ194: 7.1 | AT194: 199786.7691 | AU194: 312513.8685 | AV194: -276.3619 | AW194: 95859.65483 | AX194: 30398.75755 | AY194: 19307.53973 | AZ194: 145565.9521 | BA194: 46299.787 | BB194: 2467.76617 | BC194: 4396.75753 | BD194: 3226.77804 | BE194: 1260.4455 | BF194: 78899.61898 | BH194: 49375.86268 | BI194: 0 | BK194: 29523.7563 | BL194: 15.61809 | BM194: 2260.09458 | BN194: -1892.60518 | BO194: -462.26603 | BP194: 26054.45589 | BR194: 226210.4531 | BX194: 120927.7601 | BZ194: 212363.3442 | CE194: 7.1 | CM194: 3568.0959 | CN194: -87520.06395 | CO194: 0 | CP194: 23364.91904 | CQ194: 103.62236 | CS194: -3601.76207 | CT194: -62197.39409 | CU194: 0 | CV194: 6215.55699 | CW194: 15.25205
A195: 614 | B195: Posio | C195: 2923 | D195: 9.11 | G195: 5881.10682 | H195: 13916.45824 | I195: 0 | J195: 4532.25283 | K195: 735.30291 | L195: 1543.05732 | M195: 6810.61306 | N195: 3627.705 | O195: 57.16317 | P195: 483.19119 | Q195: 131.47852 | R195: 453.63198 | S195: 1654.78516 | U195: 1665.24269 | V195: 205.39647 | X195: 194.93894 | Y195: 0 | Z195: 39.17402 | AA195: 0 | AB195: 0 | AC195: 155.76492 | AE195: 3768.17612 | AK195: 7042.25532 | AM195: 12285.95654 | AP195: 2878 | AQ195: 9.1 | AT195: 6023.89169 | AU195: 14336.08444 | AV195: 0 | AW195: 4518.2726 | AX195: 618.19601 | AY195: 2482.38113 | AZ195: 7606.17701 | BA195: 3451.761 | BB195: 19.46938 | BC195: 409.2924 | BD195: 145.73312 | BE195: 48.4778 | BF195: 2453.17756 | BH195: 1692.10595 | BI195: 0 | BK195: 761.07161 | BL195: -3.56 | BM195: 36.44804 | BN195: 0 | BO195: 0.72737 | BP195: 740.01496 | BR195: 4291.12461 | BX195: 7691.038 | BZ195: 11568.75386 | CE195: 9.1 | CM195: -33.19289 | CN195: -1112.85769 | CO195: 47.5 | CP195: 60 | CQ195: 8.3 | CS195: 118.52728 | CT195: -1450.9583 | CU195: 46.3922 | CV195: 0 | CW195: -17.50111
A196: 615 | B196: Pudasjärvi | C196: 7479 | D196: 8.36 | G196: 14574.68013 | H196: 42597.91974 | I196: 5.34293 | J196: 9793.70566 | K196: 2630.5071 | L196: 2767.41143 | M196: 15191.62419 | N196: 15240.769 | O196: 41.2069 | P196: 1644.27268 | Q196: 1120.13694 | R196: 580.14296 | S196: 1351.42471 | U196: 6452.11934 | V196: 0 | X196: -5100.69463 | Y196: 570.53704 | Z196: 0 | AA196: 0 | AB196: 110.72318 | AC196: -4419.43441 | AE196: -988.92007 | AK196: 15660.35021 | AM196: 69040.6343 | AP196: 7304 | AQ196: 9 | AT196: 15408.25927 | AU196: 39809.44798 | AV196: 15.68166 | AW196: 10496.85155 | AX196: 2250.43983 | AY196: 2958.98517 | AZ196: 15706.27655 | BA196: 15378.413 | BB196: 31.02242 | BC196: 1916.50205 | BD196: 1178.15268 | BE196: 436.82109 | BF196: 5555.03446 | BH196: 6745.06435 | BI196: 0 | BK196: -1190.02989 | BL196: 295.54121 | BM196: 0 | BN196: 0 | BO196: -42.79877 | BP196: -937.28745 | BR196: -1692.89019 | BX196: 15171.45989 | BZ196: 66467.96496 | CE196: 9.5 | CM196: -56.82266 | CN196: -9192.03395 | CO196: 1784.84749 | CP196: 454.28801 | CQ196: 0 | CS196: -437.21833 | CT196: -6572.94871 | CU196: 253.288 | CV196: 653.18846 | CW196: 0
A197: 616 | B197: Pukkila | C197: 1781 | D197: 8.86 | G197: 1464.9846 | H197: 6793.79247 | I197: 0 | J197: 3367.24182 | K197: 251.50668 | L197: 476.95472 | M197: 4095.70322 | N197: 1291.769 | O197: 85.93454 | P197: 136.66161 | Q197: 68.04651 | R197: 1.14811 | S197: 74.83568 | U197: 388.10572 | V197: 0 | X197: -313.27004 | Y197: 0.35999 | Z197: -0.4407 | AA197: 0 | AB197: 0 | AC197: -312.46935 | AE197: 178.77814 | AK197: 1358.23081 | AM197: 5860.00252 | AP197: 1743 | AQ197: 8.9 | AT197: 1294.77498 | AU197: 7114.41239 | AV197: 0 | AW197: 3231.6468 | AX197: 206.82828 | AY197: 554.10211 | AZ197: 3992.57719 | BA197: 663.323 | BB197: 88.15149 | BC197: 158.27799 | BD197: 184.26932 | BE197: 3.5368 | BF197: -1053.1312 | BH197: 398.47537 | BI197: 0 | BK197: -1451.60657 | BL197: 0.1794 | BM197: 0 | BN197: 0 | BO197: 0 | BP197: -1451.42717 | BR197: -1273.17287 | BX197: 1317.81382 | BZ197: 7426.84494 | CE197: 9.9 | CM197: 20.73787 | CN197: -191.88303 | CO197: 0 | CP197: 29.25911 | CQ197: 0.1827 | CS197: 30.14182 | CT197: -931.547 | CU197: 190.8314 | CV197: 30.3302 | CW197: 0.0498
A198: 619 | B198: Punkalaidun | C198: 2650 | D198: 9.36 | G198: 2554.87778 | H198: 10255.43083 | I198: 0.40936 | J198: 4509.10685 | K198: 576.05947 | L198: 669.25924 | M198: 5754.42556 | N198: 4126.88687 | O198: 79.11762 | P198: 183.4187 | Q198: 11.01675 | R198: 1.95271 | S198: 2085.93214 | U198: 1406.11828 | V198: 0 | X198: 679.81386 | Y198: 0 | Z198: 0 | AA198: 0 | AB198: 0.16913 | AC198: 679.98299 | AE198: 5841.29727 | AK198: 3469.47319 | AM198: 7161.58597 | AP198: 2607 | AQ198: 9 | AT198: 2734.12118 | AU198: 10304.76072 | AV198: 0.08209 | AW198: 3950.47314 | AX198: 446.87204 | AY198: 726.16581 | AZ198: 5123.51099 | BA198: 3955.36933 | BB198: 79.42317 | BC198: 191.572 | BD198: 10.24956 | BE198: 6.96185 | BF198: 1399.46175 | BH198: 1442.36563 | BI198: 0 | BK198: -42.90388 | BL198: 0 | BM198: 0 | BN198: 0 | BO198: -0.15011 | BP198: -43.05399 | BR198: 5784.26669 | BX198: 3904.26099 | BZ198: 6680.73869 | CE198: 9.4 | CM198: -0.99478 | CN198: -615.01112 | CO198: 0 | CP198: 71.22542 | CQ198: 0 | CS198: 0.59911 | CT198: -486.51397 | CU198: 0 | CV198: 0.82897 | CW198: 0
A199: 620 | B199: Puolanka | C199: 2359 | D199: 8.86 | G199: 4111.31495 | H199: 11924.30179 | I199: 0 | J199: 3146.05389 | K199: 1161.73066 | L199: 815.54514 | M199: 5123.32969 | N199: 4000.922 | O199: 9.03016 | P199: 116.88264 | Q199: 1.63978 | R199: 14.07962 | S199: 1163.60996 | U199: 1123.54902 | V199: 0 | X199: 40.06094 | Y199: 2.34417 | Z199: 1.86594 | AA199: 17.87552 | AB199: 0 | AC199: 58.4147 | AE199: 5011.81157 | AK199: 4122.75357 | AM199: 7521.23916 | AP199: 2345 | AQ199: 8.9 | AT199: 4678.83859 | AU199: 12000.0969 | AV199: 0 | AW199: 3444.6103 | AX199: 898.69007 | AY199: 932.2657 | AZ199: 5248.06687 | BA199: 3778.959 | BB199: 59.52347 | BC199: 174.03947 | BD199: 0.14312 | BE199: 13.86079 | BF199: 1577.53389 | BH199: 1217.70488 | BI199: 0 | BK199: 359.82901 | BL199: 4.53693 | BM199: 0 | BN199: 4.9381 | BO199: 0 | BP199: 369.30404 | BR199: 5359.18048 | BX199: 2164.43481 | BZ199: 7823.35072 | CE199: 8.9 | CM199: -9.39206 | CN199: -568.20782 | CO199: 906.02817 | CP199: 12.95859 | CQ199: 0 | CS199: 0.80084 | CT199: -4050.42899 | CU199: 2392.22042 | CV199: 1 | CW199: 0
A200: 623 | B200: Puumala | C200: 2108 | D200: 6.86 | G200: 2866.22846 | H200: 8299.68248 | I200: 0 | J200: 3317.8324 | K200: 1211.49183 | L200: 1909.68555 | M200: 6439.00978 | N200: 1412.257 | O200: 95.427 | P200: 50.00609 | Q200: 69.2857 | R200: 1.76439 | S200: 2530.75498 | U200: 927.91329 | V200: 0 | X200: 1602.84169 | Y200: 0 | Z200: 0 | AA200: 0 | AB200: 4.04533 | AC200: 1606.88702 | AE200: 12593.12025 | AK200: 8543.37657 | AM200: 1336.58416 | AP200: 2101 | AQ200: 6.6 | AT200: 3022.99576 | AU200: 8620.08692 | AV200: 0 | AW200: 2818.69172 | AX200: 1038.31314 | AY200: 2162.49931 | AZ200: 6005.70997 | BA200: 1304.059 | BB200: 149.90302 | BC200: 49.22464 | BD200: 110.0556 | BE200: 0.29282 | BF200: 1923.11897 | BH200: 970.97219 | BI200: 0 | BK200: 952.14678 | BL200: 8.8 | BM200: 0 | BN200: 0 | BO200: -5.40603 | BP200: 955.54075 | BR200: 13546.99984 | BX200: 10153.69774 | BZ200: 1223.579 | CE200: 6.6 | CM200: -367.97166 | CN200: -1782.62693 | CO200: 124.01629 | CP200: 148.6 | CQ200: 0 | CS200: 0 | CT200: -775.35139 | CU200: 209.26718 | CV200: 0 | CW200: 0
... 96 more rows

Sheet väestöennuste
A1: Väestöennuste 2024 (Tilastokeskus) kunnittain 2024-2034
A2: TK, 9/2024
A3: 2024 kuntajako | B3: 2 | C3: 3 | D3: 4 | E3: 5 | F3: 6 | G3: 7 | H3: 8 | I3: 9 | J3: 10 | K3: 11 | L3: 12 | M3: 13 | N3: 14
B5: 2022 | C5: 2023 | D5: 2024 | E5: 2025 | F5: 2026 | G5: 2027 | H5: 2028 | I5: 2029 | J5: 2030 | K5: 2031 | L5: 2032 | M5: 2033 | N5: 2034
A7: Akaa | B7: =pohjatiedot!AP3 -> 16387 | C7: 16353 | D7: 16387 | E7: 16348.96751 | F7: 16312.93673 | G7: 16281.91022 | H7: 16254.88713 | I7: 16235.87088 | J7: 16219.8572 | K7: 16208.8478 | L7: 16205.84523 | M7: 16208.8478 | N7: 16218.85635
A8: Alajärvi | B8: =pohjatiedot!AP4 -> 9078 | C8: 9472 | D8: 9078 | E8: 8965.129663 | F8: 8849.236012 | G8: 8731.326821 | H8: 8620.472025 | I8: 8513.648313 | J8: 8414.886767 | K8: 8319.148535 | L8: 8234.495782 | M8: 8152.866341 | N8: 8076.275755
A9: Alavieska | B9: =pohjatiedot!AP5 -> 2410 | C9: 2496 | D9: 2410 | E9: 2380.951787 | F9: 2352.905237 | G9: 2328.865337 | H9: 2303.823774 | I9: 2282.788861 | J9: 2261.753948 | K9: 2242.722361 | L9: 2224.692436 | M9: 2208.665835 | N9: 2193.640898
A10: Alavus | B10: =pohjatiedot!AP6 -> 10780 | C10: 11253 | D10: 10780 | E10: 10649.2668 | F10: 10523.52342 | G10: 10399.77597 | H10: 10281.01833 | I10: 10168.24847 | J10: 10059.47047 | K10: 9954.684318 | L10: 9852.892057 | M10: 9757.087576 | N10: 9664.276986
A11: Asikkala | B11: =pohjatiedot!AP7 -> 7889 | C11: 8032 | D11: 7889 | E11: 7850.260262 | F11: 7807.547217 | G11: 7763.840846 | H11: 7725.101108 | I11: 7690.334676 | J11: 7656.561571 | K11: 7627.755099 | L11: 7599.941954 | M11: 7574.115462 | N11: 7547.295643
A12: Askola | B12: =pohjatiedot!AP8 -> 4651 | C12: 4947 | D12: 4651 | E12: 4616.060099 | F12: 4583.116763 | G12: 4552.169994 | H12: 4518.228375 | I12: 4484.286757 | J12: 4453.339987 | K12: 4426.386349 | L12: 4403.425842 | M12: 4385.45675 | N12: 4369.484224
A13: Aura | B13: =pohjatiedot!AP9 -> 3966 | C13: 3973 | D13: 3966 | E13: 3967.001768 | F13: 3966 | G13: 3967.001768 | H13: 3969.005304 | I13: 3973.012377 | J13: 3975.015913 | K13: 3978.021217 | L13: 3986.035362 | M13: 3993.047739 | N13: 4000.060116
A14: Enonkoski | B14: =pohjatiedot!AP10 -> 1288 | C14: 1369 | D14: 1288 | E14: 1276.201527 | F14: 1266.369466 | G14: 1258.503817 | H14: 1245.722137 | I14: 1235.890076 | J14: 1224.091603 | K14: 1215.242748 | L14: 1203.444275 | M14: 1193.612214 | N14: 1186.729771
A15: Enontekiö | B15: =pohjatiedot!AP11 -> 1762 | C15: 1849 | D15: 1762 | E15: 1743.907587 | F15: 1728.830576 | G15: 1714.758699 | H15: 1699.681689 | I15: 1687.62008 | J15: 1678.573873 | K15: 1667.517399 | L15: 1659.476326 | M15: 1653.445522 | N15: 1648.419852
A16: Espoo | B16: =pohjatiedot!AP12 -> 320931 | C16: 292052 | D16: 320931 | E16: 327961.85 | F16: 334243.3804 | G16: 340365.4811 | H16: 346327.1556 | I16: 352120.4325 | J16: 357734.351 | K16: 363176.8826 | L16: 368450.0201 | M16: 373575.6851 | N16: 378557.8634
A17: Eura | B17: =pohjatiedot!AP13 -> 11084 | C17: 11504 | D17: 11084 | E17: 10973.86089 | F17: 10864.72304 | G17: 10765.59783 | H17: 10670.47769 | I17: 10577.36007 | J17: 10487.24625 | K17: 10401.13749 | L17: 10320.03505 | M17: 10240.93514 | N17: 10165.84029
A18: Eurajoki | B18: =pohjatiedot!AP14 -> 9052 | C18: 9505 | D18: 9052 | E18: 8985.199251 | F18: 8916.40445 | G18: 8849.603701 | H18: 8787.788082 | I18: 8725.972464 | J18: 8669.141976 | K18: 8612.311488 | L18: 8562.460183 | M18: 8518.591034 | N18: 8475.718912
A19: Evijärvi | B19: =pohjatiedot!AP15 -> 2272 | C19: 2385 | D19: 2272 | E19: 2237.864781 | F19: 2206.741494 | G19: 2173.610252 | H19: 2140.47901 | I19: 2111.363677 | J19: 2080.240389 | K19: 2051.125055 | L19: 2023.013699 | M19: 1999.922227 | N19: 1977.834733
A20: Forssa | B20: =pohjatiedot!AP16 -> 16478 | C20: 16759 | D20: 16478 | E20: 16340.77583 | F20: 16206.57865 | G20: 16083.4805 | H20: 15973.49936 | I20: 15873.60823 | J20: 15787.84312 | K20: 15709.14102 | L20: 15633.46592 | M20: 15565.86284 | N20: 15502.29576
A21: Haapajärvi | B21: =pohjatiedot!AP17 -> 6492 | C21: 6937 | D21: 6492 | E21: 6390.483976 | F21: 6292.988388 | G21: 6200.518346 | H21: 6109.053414 | I21: 6023.619136 | J21: 5942.205295 | K21: 5867.827218 | L21: 5795.459359 | M21: 5727.111937 | N21: 5663.79006
A22: Haapavesi | B22: =pohjatiedot!AP18 -> 6365 | C22: 6691 | D22: 6365 | E22: 6298.49111 | F22: 6233.967561 | G22: 6168.451341 | H22: 6107.898472 | I22: 6049.330942 | J22: 5990.763412 | K22: 5935.173893 | L22: 5882.562383 | M22: 5831.936213 | N22: 5786.273394
A23: Hailuoto | B23: =pohjatiedot!AP19 -> 927 | C23: 974 | D23: 927 | E23: 923.0761905 | F23: 918.1714286 | G23: 912.2857143 | H23: 907.3809524 | I23: 901.4952381 | J23: 898.552381 | K23: 892.6666667 | L23: 887.7619048 | M23: 883.8380952 | N23: 877.952381
A24: Halsua | B24: =pohjatiedot!AP20 -> 985 | C24: 1125 | D24: 985 | E24: 963.0889788 | F24: 939.1860465 | G24: 919.2669363 | H24: 902.3356926 | I24: 883.4125379 | J24: 864.4893832 | K24: 848.554095 | L24: 832.6188069 | M24: 818.6754297 | N24: 803.7360971
A25: Hamina | B25: =pohjatiedot!AP21 -> 19311 | C25: 19907 | D25: 19311 | E25: 19139.49734 | F25: 18966.00046 | G25: 18791.50648 | H25: 18622.99515 | I25: 18459.46936 | J25: 18297.93778 | K25: 18144.38307 | L25: 17994.8168 | M25: 17851.23318 | N25: 17714.62932
A26: Hankasalmi | B26: =pohjatiedot!AP22 -> 4509 | C26: 4760 | D26: 4509 | E26: 4439.460215 | F26: 4365.889137 | G26: 4295.341529 | H26: 4229.833035 | I26: 4166.340188 | J26: 4105.870809 | K26: 4050.440545 | L26: 3997.025928 | M26: 3949.658248 | N26: 3906.32186
A27: Hanko | B27: =pohjatiedot!AP23 -> 7702 | C27: 8056 | D27: 7702 | E27: 7592.636866 | F27: 7485.298974 | G27: 7386.062056 | H27: 7290.875625 | I27: 7203.790166 | J27: 7122.780436 | K27: 7053.922167 | L27: 6989.114383 | M27: 6932.407573 | N27: 6880.763871
A28: Harjavalta | B28: =pohjatiedot!AP24 -> 6647 | C28: 6881 | D28: 6647 | E28: 6583.89557 | F28: 6521.792797 | G28: 6466.701627 | H28: 6412.612116 | I28: 6356.519289 | J28: 6303.431435 | K28: 6250.34358 | L28: 6196.254069 | M28: 6146.171187 | N28: 6099.093279
A29: Hartola | B29: =pohjatiedot!AP25 -> 2482 | C29: 2658 | D29: 2482 | E29: 2444.137294 | F29: 2408.267363 | G29: 2376.382979 | H29: 2347.487756 | I29: 2316.599759 | J29: 2290.693697 | K29: 2264.787635 | L29: 2239.877961 | M29: 2217.957447 | N29: 2197.03332
A30: Hattula | B30: =pohjatiedot!AP26 -> 9361 | C30: 9369 | D30: 9361 | E30: 9339.993268 | F30: 9319.986856 | G30: 9294.978842 | H30: 9271.971468 | I30: 9244.962813 | J30: 9219.954798 | K30: 9197.947745 | L30: 9180.942295 | M30: 9161.936204 | N30: 9145.931075
A31: Hausjärvi | B31: =pohjatiedot!AP27 -> 7901 | C31: 8248 | D31: 7901 | E31: 7829.118271 | F31: 7765.223402 | G31: 7707.318676 | H31: 7657.400809 | I31: 7612.474728 | J31: 7572.540435 | K31: 7534.602856 | L31: 7505.650493 | M31: 7481.689917 | N31: 7461.72277
A32: Heinola | B32: =pohjatiedot!AP28 -> 17829 | C32: 18423 | D32: 17829 | E32: 17665.6243 | F32: 17505.25551 | G32: 17358.91899 | H32: 17222.60552 | I32: 17094.31049 | J32: 16973.03159 | K32: 16862.77805 | L32: 16759.54065 | M32: 16659.31015 | N32: 16568.1004
A33: Heinävesi | B33: =pohjatiedot!AP29 -> 2929 | C33: 3198 | D33: 2929 | E33: 2872.15526 | F33: 2816.307797 | G33: 2762.454886 | H33: 2715.582908 | I33: 2671.702758 | J33: 2631.811713 | K33: 2595.909772 | L33: 2562.002383 | M33: 2532.084099 | N33: 2504.160368
A34: Helsinki | B34: =pohjatiedot!AP30 -> 684018 | C34: 662389 | D34: 684018 | E34: 694418.3121 | F34: 703530.663 | G34: 712457.7387 | H34: 721194.5587 | I34: 729744.1113 | J34: 738090.4589 | K34: 746208.6989 | L34: 754079.9054 | M34: 761705.0744 | N34: 769073.2487
A35: Hirvensalmi | B35: =pohjatiedot!AP31 -> 2059 | C35: 2068 | D35: 2059 | E35: 2051.989786 | F35: 2042.976654 | G35: 2034.964981 | H35: 2028.956226 | I35: 2021.946012 | J35: 2014.935798 | K35: 2006.924125 | L35: 2000.91537 | M35: 1992.903696 | N35: 1984.892023
A36: Hollola | B36: =pohjatiedot!AP32 -> 22849 | C36: 23388 | D36: 22849 | E36: 22753.78748 | F36: 22650.55707 | G36: 22555.34455 | H36: 22465.14321 | I36: 22374.94188 | J36: 22285.74278 | K36: 22197.54593 | L36: 22109.34907 | M36: 22029.1701 | N36: 21957.00904
A37: Huittinen | B37: =pohjatiedot!AP33 -> 9555 | C37: 9898 | D37: 9555 | E37: 9458.93968 | F37: 9371.885014 | G37: 9289.83349 | H37: 9214.786365 | I37: 9145.74301 | J37: 9076.699654 | K37: 9013.660069 | L37: 8953.622369 | M37: 8897.587182 | N37: 8843.553252
A38: Humppila | B38: =pohjatiedot!AP34 -> 2094 | C38: 2143 | D38: 2094 | E38: 2079.106686 | F38: 2064.213371 | G38: 2051.305832 | H38: 2040.384068 | I38: 2028.469417 | J38: 2016.554765 | K38: 2007.618777 | L38: 2001.661451 | M38: 1993.71835 | N38: 1988.753912
A39: Hyrynsalmi | B39: =pohjatiedot!AP35 -> 2002 | C39: 2177 | D39: 2002 | E39: 1967.380435 | F39: 1932.76087 | G39: 1898.141304 | H39: 1864.51087 | I39: 1833.847826 | J39: 1802.195652 | K39: 1771.532609 | L39: 1742.847826 | M39: 1715.152174 | N39: 1688.445652
A40: Hyvinkää | B40: =pohjatiedot!AP36 -> 47031 | C40: 46414 | D40: 47031 | E40: 47167.8923 | F40: 47283.80112 | G40: 47404.706 | H40: 47535.60302 | I40: 47676.49218 | J40: 47826.37427 | K40: 47984.25006 | L40: 48151.11879 | M40: 48326.98043 | N40: 48508.83736
A41: Hämeenkyrö | B41: =pohjatiedot!AP37 -> 10348 | C41: 10421 | D41: 10348 | E41: 10324.86811 | F41: 10305.75916 | G41: 10292.68461 | H41: 10280.6158 | I41: 10269.55273 | J41: 10259.49538 | K41: 10248.43231 | L41: 10238.37496 | M41: 10230.32909 | N41: 10226.30615
A42: Hämeenlinna | B42: =pohjatiedot!AP38 -> 68433 | C42: 67210 | D42: 68433 | E42: 68640.54205 | F42: 68800.18978 | G42: 68954.84852 | H42: 69107.51166 | I42: 69255.18582 | J42: 69401.86217 | K42: 69545.54513 | L42: 69680.2479 | M42: 69814.95067 | N42: 69943.66666
A43: Ii | B43: =pohjatiedot!AP39 -> 9806 | C43: 9768 | D43: 9806 | E43: 9792.940068 | F43: 9771.843254 | G43: 9749.74183 | H43: 9725.631185 | I43: 9703.529761 | J43: 9685.446778 | K43: 9667.363795 | L43: 9650.285422 | M43: 9633.207048 | N43: 9621.151726
A44: Iisalmi | B44: =pohjatiedot!AP40 -> 20463 | C44: 21103 | D44: 20463 | E44: 20297.90318 | F44: 20125.80226 | G44: 19957.70368 | H44: 19798.61039 | I44: 19638.5165 | J44: 19482.42497 | K44: 19330.33578 | L44: 19183.24952 | M44: 19037.16386 | N44: 18896.08112
A45: Iitti | B45: =pohjatiedot!AP41 -> 6401 | C45: 6658 | D45: 6401 | E45: 6348.943072 | F45: 6301.891617 | G45: 6253.839068 | H45: 6209.790898 | I45: 6167.744917 | J45: 6126.700031 | K45: 6086.65624 | L45: 6047.613544 | M45: 6008.570848 | N45: 5971.530341
A46: Ikaalinen | B46: =pohjatiedot!AP42 -> 6758 | C46: 6853 | D46: 6758 | E46: 6728.281442 | F46: 6701.534741 | G46: 6676.769276 | H46: 6652.003811 | I46: 6630.210202 | J46: 6610.397831 | K46: 6591.576077 | L46: 6574.735561 | M46: 6559.876283 | N46: 6547.98886
A47: Ilmajoki | B47: =pohjatiedot!AP43 -> 12429 | C47: 12227 | D47: 12429 | E47: 12469.11619 | F47: 12499.20334 | G47: 12527.28468 | H47: 12552.3573 | I47: 12577.42992 | J47: 12601.49964 | K47: 12626.57226 | L47: 12649.63907 | M47: 12672.70588 | N47: 12694.76979
A48: Ilomantsi | B48: =pohjatiedot!AP44 -> 4382 | C48: 4729 | D48: 4382 | E48: 4286.36313 | F48: 4196.830741 | G48: 4111.368006 | H48: 4029.974925 | I48: 3952.651498 | J48: 3881.432552 | K48: 3812.248433 | L48: 3747.133968 | M48: 3684.05433 | N48: 3624.026933
A49: Imatra | B49: =pohjatiedot!AP45 -> 24724 | C49: 26329 | D49: 24724 | E49: 24343.30539 | F49: 23961.60365 | G49: 23605.08013 | H49: 23278.77046 | I49: 22969.58198 | J49: 22670.46478 | K49: 22387.46165 | L49: 22117.55118 | M49: 21865.76903 | N49: 21626.07243
A50: Inari | B50: =pohjatiedot!AP46 -> 7224 | C50: 6988 | D50: 7224 | E50: 7275.283964 | F50: 7319.528953 | G50: 7363.773942 | H50: 7407.013363 | I50: 7447.23608 | J50: 7485.447661 | K50: 7521.648107 | L50: 7558.85412 | M50: 7596.060134 | N50: 7632.260579
A51: Inkoo | B51: =pohjatiedot!AP47 -> 5402 | C51: 5332 | D51: 5402 | E51: 5405.011708 | F51: 5407.019513 | G51: 5410.031221 | H51: 5415.050734 | I51: 5422.078052 | J51: 5429.105371 | K51: 5439.144397 | L51: 5450.187326 | M51: 5468.257573 | N51: 5486.32782
A52: Isojoki | B52: =pohjatiedot!AP48 -> 1794 | C52: 1880 | D52: 1794 | E52: 1764.804714 | F52: 1735.609428 | G52: 1710.441077 | H52: 1687.286195 | I52: 1662.117845 | J52: 1639.969697 | K52: 1618.828283 | L52: 1599.700337 | M52: 1581.579125 | N52: 1564.464646
A53: Isokyrö | B53: =pohjatiedot!AP49 -> 4319 | C53: 4487 | D53: 4319 | E53: 4278.972196 | F53: 4242.947173 | G53: 4205.921455 | H53: 4174.899907 | I53: 4144.879055 | J53: 4116.859592 | K53: 4087.839435 | L53: 4061.821362 | M53: 4036.803985 | N53: 4016.790083
A54: Janakkala | B54: =pohjatiedot!AP50 -> 16015 | C54: 16272 | D54: 16015 | E54: 15940.14023 | F54: 15867.27672 | G54: 15799.40386 | H54: 15732.52914 | I54: 15675.63571 | J54: 15624.73107 | K54: 15583.80773 | L54: 15546.87691 | M54: 15511.94235 | N54: 15481.99844
A55: Joensuu | B55: =pohjatiedot!AP51 -> 78741 | C55: 77152 | D55: 78741 | E55: 79173.79699 | F55: 79538.46852 | G55: 79899.13268 | H55: 80246.77285 | I55: 80585.39642 | J55: 80902.98125 | K55: 81193.51626 | L55: 81455.99962 | M55: 81687.42579 | N55: 81873.76893
A56: Jokioinen | B56: =pohjatiedot!AP52 -> 4848 | C56: 5045 | D56: 4848 | E56: 4796.042869 | F56: 4748.08244 | G56: 4710.113768 | H56: 4673.14427 | I56: 4641.170651 | J56: 4612.194559 | K56: 4587.215169 | L56: 4564.23413 | M56: 4545.249794 | N56: 4528.263809
A57: Joroinen | B57: =pohjatiedot!AP53 -> 4552 | C57: 4671 | D57: 4552 | E57: 4510.027662 | F57: 4467.055982 | G57: 4425.083644 | H57: 4383.111306 | I57: 4344.136992 | J57: 4307.161361 | K57: 4273.183754 | L57: 4239.206147 | M57: 4209.225906 | N57: 4180.245005
A58: Joutsa | B58: =pohjatiedot!AP54 -> 4099 | C58: 4313 | D58: 4099 | E58: 4022.162959 | F58: 3945.325919 | G58: 3875.660335 | H58: 3810.092727 | I58: 3748.623094 | J58: 3692.275931 | K58: 3635.928768 | L58: 3586.753062 | M58: 3539.626343 | N58: 3495.573107
A59: Juuka | B59: =pohjatiedot!AP55 -> 4160 | C59: 4514 | D59: 4160 | E59: 4073.166987 | F59: 3990.326296 | G59: 3912.476008 | H59: 3839.616123 | I59: 3771.746641 | J59: 3708.867562 | K59: 3650.978887 | L59: 3596.084453 | M59: 3545.182342 | N59: 3497.274472
A60: Juupajoki | B60: =pohjatiedot!AP56 -> 1668 | C60: 1825 | D60: 1668 | E60: 1638.107527 | F60: 1611.204301 | G60: 1586.293907 | H60: 1560.387097 | I60: 1538.46595 | J60: 1516.544803 | K60: 1498.609319 | L60: 1480.673835 | M60: 1466.724014 | N60: 1453.770609
A61: Juva | B61: =pohjatiedot!AP57 -> 5674 | C61: 6034 | D61: 5674 | E61: 5587.604108 | F61: 5505.226629 | G61: 5424.858357 | H61: 5347.503895 | I61: 5274.167847 | J61: 5202.841006 | K61: 5133.523371 | L61: 5065.21034 | M61: 5000.915722 | N61: 4938.630312
A62: Jyväskylä | B62: =pohjatiedot!AP58 -> 149194 | C62: 143423 | D62: 149194 | E62: 150652.1918 | F62: 151963.5657 | G62: 153235.988 | H62: 154469.4585 | I62: 155656.9859 | J62: 156789.5815 | K62: 157856.2588 | L62: 158853.0228 | M62: 159772.8822 | N62: 160607.8469
A63: Jämijärvi | B63: =pohjatiedot!AP59 -> 1658 | C63: 1746 | D63: 1658 | E63: 1633.015069 | F63: 1612.027728 | G63: 1591.040386 | H63: 1571.052441 | I63: 1550.065099 | J63: 1533.075347 | K63: 1514.086799 | L63: 1496.097649 | M63: 1475.110307 | N63: 1459.119952
A64: Jämsä | B64: =pohjatiedot!AP60 -> 19116 | C64: 19947 | D64: 19116 | E64: 18840.90598 | F64: 18570.86884 | G64: 18312.9682 | H64: 18068.21544 | I64: 17828.51955 | J64: 17599.94879 | K64: 17383.51452 | L64: 17181.23951 | M64: 16991.101 | N64: 16812.08761
A65: Järvenpää | B65: =pohjatiedot!AP61 -> 46871 | C65: 44418 | D65: 46871 | E65: 47503.93536 | F65: 48101.10044 | G65: 48672.43142 | H65: 49219.91554 | I65: 49749.51452 | J65: 50262.22197 | K65: 50757.04428 | L65: 51236.96231 | M65: 51704.9569 | N65: 52157.05359
A66: Kaarina | B66: =pohjatiedot!AP62 -> 36551 | C66: 34004 | D66: 36551 | E66: 37107.99589 | F66: 37629.37569 | G66: 38128.99012 | H66: 38603.87116 | I66: 39055.99748 | J66: 39494.27311 | K66: 39919.68737 | L66: 40341.1443 | M66: 40754.68653 | N66: 41157.34608
A67: Kaavi | B67: =pohjatiedot!AP63 -> 2589 | C67: 2873 | D67: 2589 | E67: 2532.387739 | F67: 2477.797345 | G67: 2428.261617 | H67: 2381.758688 | I67: 2337.277626 | J67: 2297.85123 | K67: 2259.435767 | L67: 2226.074971 | M67: 2195.746974 | N67: 2165.418977
A68: Kajaani | B68: =pohjatiedot!AP64 -> 36433 | C68: 36481 | D68: 36433 | E68: 36368.14064 | F68: 36259.37648 | G68: 36146.62097 | H68: 36032.86763 | I68: 35919.11429 | J68: 35808.35446 | K68: 35695.59895 | L68: 35578.8521 | M68: 35461.10742 | N68: 35343.36273
A69: Kalajoki | B69: =pohjatiedot!AP65 -> 12271 | C69: 12239 | D69: 12271 | E69: 12263.06915 | F69: 12245.22475 | G69: 12224.40629 | H69: 12202.59646 | I69: 12182.76935 | J69: 12159.96817 | K69: 12135.18428 | L69: 12111.39174 | M69: 12089.58192 | N69: 12069.75481
A70: Kangasala | B70: =pohjatiedot!AP66 -> 33951 | C70: 32119 | D70: 33951 | E70: 34319.88007 | F70: 34666.70753 | G70: 34998.49911 | H70: 35323.27396 | I70: 35644.03924 | J70: 35961.79734 | K70: 36277.55066 | L70: 36588.29203 | M70: 36899.03339 | N70: 37205.76519
A71: Kangasniemi | B71: =pohjatiedot!AP67 -> 5062 | C71: 5300 | D71: 5062 | E71: 5001.928797 | F71: 4944.861155 | G71: 4885.791139 | H71: 4830.72587 | I71: 4776.661788 | J71: 4725.601266 | K71: 4677.544304 | L71: 4631.489715 | M71: 4584.43394 | N71: 4541.382911
A72: Kankaanpää | B72: =pohjatiedot!AP68 -> 12478 | C72: 11241 | D72: 12478 | E72: 12359.11352 | F72: 12240.22704 | G72: 12127.4373 | H72: 12021.76042 | I72: 11921.16417 | J72: 11822.60016 | K72: 11727.08453 | L72: 11632.58502 | M72: 11540.11775 | N72: 11452.73111
A73: Kannonkoski | B73: =pohjatiedot!AP69 -> 1186 | C73: 1305 | D73: 1186 | E73: 1161.042088 | F73: 1139.079125 | G73: 1120.111111 | H73: 1102.141414 | I73: 1084.171717 | J73: 1070.195286 | K73: 1054.222222 | L73: 1042.242424 | M73: 1033.257576 | N73: 1023.274411
A74: Kannus | B74: =pohjatiedot!AP70 -> 5264 | C74: 5402 | D74: 5264 | E74: 5223.562128 | F74: 5185.146149 | G74: 5149.763011 | H74: 5112.35798 | I74: 5074.952948 | J74: 5037.547916 | K74: 4999.131938 | L74: 4960.715959 | M74: 4923.310928 | N74: 4887.92779
A75: Karijoki | B75: =pohjatiedot!AP71 -> 1159 | C75: 1199 | D75: 1159 | E75: 1143.136869 | F75: 1129.25663 | G75: 1115.37639 | H75: 1102.487596 | I75: 1092.573139 | J75: 1081.667237 | K75: 1071.75278 | L75: 1059.855432 | M75: 1049.940975 | N75: 1040.026518
A76: Karkkila | B76: =pohjatiedot!AP72 -> 8440 | C76: 8639 | D76: 8440 | E76: 8406.405994 | F76: 8371.823929 | G76: 8345.146336 | H76: 8325.385156 | I76: 8313.528448 | J76: 8307.600094 | K76: 8304.635917 | L76: 8307.600094 | M76: 8315.504566 | N76: 8330.325451
A77: Karstula | B77: =pohjatiedot!AP73 -> 3573 | C77: 3901 | D77: 3573 | E77: 3503.552958 | F77: 3434.105915 | G77: 3368.684789 | H77: 3306.283099 | I77: 3247.907324 | J77: 3191.544507 | K77: 3140.214085 | L77: 3090.89662 | M77: 3043.592113 | N77: 2999.307042
A78: Karvia | B78: =pohjatiedot!AP74 -> 2170 | C78: 2339 | D78: 2170 | E78: 2138.190563 | F78: 2109.363262 | G78: 2081.530005 | H78: 2054.690792 | I78: 2029.83967 | J78: 2004.988548 | K78: 1981.13147 | L78: 1959.262483 | M78: 1938.38754 | N78: 1917.512597
A79: Kaskinen | B79: =pohjatiedot!AP75 -> 1241 | C79: 1232 | D79: 1241 | E79: 1234.820747 | F79: 1228.641494 | G79: 1223.492116 | H79: 1216.282988 | I79: 1210.103734 | J79: 1201.86473 | K79: 1195.685477 | L79: 1188.476349 | M79: 1181.26722 | N79: 1174.058091
A80: Kauhajoki | B80: =pohjatiedot!AP76 -> 12518 | C80: 13049 | D80: 12518 | E80: 12385.59808 | F80: 12251.19006 | G80: 12119.79119 | H80: 11988.39231 | I80: 11862.00865 | J80: 11735.625 | K80: 11617.26571 | L80: 11506.93077 | M80: 11397.59888 | N80: 11289.27003
A81: Kauhava | B81: =pohjatiedot!AP77 -> 15050 | C81: 15581 | D81: 15050 | E81: 14876.34229 | F81: 14702.68459 | G81: 14539.0649 | H81: 14380.46422 | I81: 14228.89015 | J81: 14085.3465 | K81: 13950.83706 | L81: 13826.36564 | M81: 13708.92083 | N81: 13597.49883
A82: Kauniainen | B82: =pohjatiedot!AP78 -> 10253 | C82: 9781 | D82: 10253 | E82: 10398.20995 | F82: 10525.75923 | G82: 10653.30852 | H82: 10782.8201 | I82: 10913.31282 | J82: 11042.8244 | K82: 11171.35483 | L82: 11295.96067 | M82: 11419.58536 | N82: 11540.2666
A83: Kaustinen | B83: =pohjatiedot!AP79 -> 4118 | C83: 4247 | D83: 4118 | E83: 4090.954026 | F83: 4062.906349 | G83: 4035.860375 | H83: 4009.816103 | I83: 3984.773534 | J83: 3956.725857 | K83: 3928.67818 | L83: 3900.630504 | M83: 3875.587935 | N83: 3854.552177
A84: Keitele | B84: =pohjatiedot!AP80 -> 1985 | C84: 2177 | D84: 1985 | E84: 1949.252126 | F84: 1916.483242 | G84: 1882.721361 | H84: 1852.931466 | I84: 1823.141571 | J84: 1794.344672 | K84: 1767.533767 | L84: 1742.708854 | M84: 1717.883942 | N84: 1694.052026
A85: Kemi | B85: =pohjatiedot!AP81 -> 19402 | C85: 20505 | D85: 19402 | E85: 19160.79252 | F85: 18915.53113 | G85: 18679.39104 | H85: 18462.507 | I85: 18258.79816 | J85: 18064.21061 | K85: 17882.79827 | L85: 17711.52069 | M85: 17550.37787 | N85: 17399.36983
A86: Kemijärvi | B86: =pohjatiedot!AP82 -> 6954 | C86: 7105 | D86: 6954 | E86: 6876.977848 | F86: 6799.955696 | G86: 6724.93412 | H86: 6658.915132 | I86: 6591.895857 | J86: 6532.878884 | K86: 6472.861623 | L86: 6418.846087 | M86: 6365.83084 | N86: 6317.817031
A87: Keminmaa | B87: =pohjatiedot!AP83 -> 7604 | C87: 7952 | D87: 7604 | E87: 7528.019984 | F87: 7458.038391 | G87: 7390.056271 | H87: 7325.073363 | I87: 7262.089929 | J87: 7200.106232 | K87: 7142.121483 | L87: 7086.136208 | M87: 7035.149619 | N87: 6985.162766
A88: Kemiönsaari | B88: =pohjatiedot!AP84 -> 6371 | C88: 6606 | D88: 6371 | E88: 6315.305963 | F88: 6260.606463 | G88: 6212.868717 | H88: 6171.098189 | I88: 6130.322198 | J88: 6091.535279 | K88: 6059.710116 | L88: 6030.868561 | M88: 6005.010615 | N88: 5983.130815
A89: Kempele | B89: =pohjatiedot!AP85 -> 19657 | C89: 18380 | D89: 19657 | E89: 19972.65985 | F89: 20264.571 | G89: 20539.66016 | H89: 20789.02155 | I89: 21021.56094 | J89: 21241.23645 | K89: 21452.00619 | L89: 21659.80735 | M89: 21860.6818 | N89: 22056.60861
A90: Kerava | B90: =pohjatiedot!AP86 -> 38461 | C90: 36622 | D90: 38461 | E90: 38943.20117 | F90: 39374.80098 | G90: 39786.55711 | H90: 40184.42269 | I90: 40569.38987 | J90: 40946.41959 | K90: 41317.49621 | L90: 41680.63536 | M90: 42034.84486 | N90: 42378.14034
A91: Keuruu | B91: =pohjatiedot!AP87 -> 9128 | C91: 9524 | D91: 9128 | E91: 9008.172973 | F91: 8892.373745 | G91: 8783.623166 | H91: 8673.865637 | I91: 8570.149807 | J91: 8466.433977 | K91: 8367.752896 | L91: 8274.106564 | M91: 8185.494981 | N91: 8099.904247
A92: Kihniö | B92: =pohjatiedot!AP88 -> 1703 | C92: 1836 | D92: 1703 | E92: 1676.282394 | F92: 1651.54387 | G92: 1627.794887 | H92: 1603.056363 | I92: 1577.328298 | J92: 1552.589773 | K92: 1529.830331 | L92: 1507.070889 | M92: 1488.269611 | N92: 1469.468332
A93: Kinnula | B93: =pohjatiedot!AP89 -> 1492 | C93: 1561 | D93: 1492 | E93: 1475.202649 | F93: 1459.393377 | G93: 1442.596026 | H93: 1427.774834 | I93: 1411.965563 | J93: 1398.13245 | K93: 1384.299338 | L93: 1369.478146 | M93: 1354.656954 | N93: 1342.8
A94: Kirkkonummi | B94: =pohjatiedot!AP90 -> 41635 | C94: 39560 | D94: 41635 | E94: 42092.59335 | F94: 42496.23464 | G94: 42893.88126 | H94: 43289.52966 | I94: 43685.17806 | J94: 44080.82645 | K94: 44476.47485 | L94: 44880.11615 | M94: 45282.75833 | N94: 45691.39518
A95: Kitee | B95: =pohjatiedot!AP91 -> 9566 | C95: 10012 | D95: 9566 | E95: 9435.972815 | F95: 9300.944584 | G95: 9172.917817 | H95: 9049.892095 | I95: 8930.86721 | J95: 8810.842116 | K95: 8694.817859 | L95: 8583.794647 | M95: 8476.772271 | N95: 8376.751359
A96: Kittilä | B96: =pohjatiedot!AP92 -> 6837 | C96: 6393 | D96: 6837 | E96: 6882.759057 | F96: 6924.539066 | G96: 6964.32955 | H96: 7007.104321 | I96: 7047.889568 | J96: 7089.669577 | K96: 7131.449585 | L96: 7171.24007 | M96: 7213.020079 | N96: 7249.826277
A97: Kiuruvesi | B97: =pohjatiedot!AP93 -> 7354 | C97: 7854 | D97: 7354 | E97: 7221.784255 | F97: 7097.581585 | G97: 6978.387088 | H97: 6866.204032 | I97: 6757.025879 | J97: 6655.860801 | K97: 6555.697358 | L97: 6460.542087 | M97: 6371.396622 | N97: 6285.256061
A98: Kivijärvi | B98: =pohjatiedot!AP94 -> 1011 | C98: 1034 | D98: 1011 | E98: 1002.140214 | F98: 990.3271665 | G98: 981.4673807 | H98: 972.6075949 | I98: 965.7166504 | J98: 957.8412853 | K98: 952.9191821 | L98: 945.0438169 | M98: 940.1217137 | N98: 934.2151899
A99: Kokemäki | B99: =pohjatiedot!AP95 -> 6668 | C99: 7023 | D99: 6668 | E99: 6594.309438 | F99: 6522.610514 | G99: 6458.878136 | H99: 6399.129032 | I99: 6345.354839 | J99: 6296.559737 | K99: 6249.756272 | L99: 6204.944444 | M99: 6162.124253 | N99: 6123.287336
A100: Kokkola | B100: =pohjatiedot!AP96 -> 48367 | C100: 47729 | D100: 48367 | E100: 48495.69401 | F100: 48578.49713 | G100: 48655.31449 | H100: 48718.16505 | I100: 48773.03459 | J100: 48812.93971 | K100: 48844.86381 | L100: 48861.82348 | M100: 48867.80925 | N100: 48865.81399
A101: KOKO MAA (Manner-Suomi) | B101: =pohjatiedot!AP97 -> 5605317 | C101: 5500619 | D101: 5605317 | E101: 5634755.099 | F101: 5659124.582 | G101: 5683205.115 | H101: 5706993.65 | I101: 5730436.021 | J101: 5753520.828 | K101: 5776185.37 | L101: 5798417.936 | M101: 5820261.765 | N101: 5841671.38
A102: Kolari | B102: =pohjatiedot!AP98 -> 3987 | C102: 3788 | D102: 3987 | E102: 3999.874069 | F102: 4008.786885 | G102: 4015.719076 | H102: 4021.660954 | I102: 4029.583458 | J102: 4033.544709 | K102: 4037.505961 | L102: 4045.428465 | M102: 4050.38003 | N102: 4057.312221
A103: Konnevesi | B103: =pohjatiedot!AP99 -> 2441 | C103: 2634 | D103: 2441 | E103: 2402.285482 | F103: 2363.570964 | G103: 2328.827166 | H103: 2292.098007 | I103: 2259.339569 | J103: 2228.56649 | K103: 2200.771452 | L103: 2174.961773 | M103: 2150.144774 | N103: 2126.320455
A104: Kontiolahti | B104: =pohjatiedot!AP100 -> 15071 | C104: 14980 | D104: 15071 | E104: 15129.4416 | F104: 15173.02517 | G104: 15204.72231 | H104: 15225.52356 | I104: 15243.3532 | J104: 15255.23963 | K104: 15262.17338 | L104: 15267.12606 | M104: 15272.07874 | N104: 15282.97463
A105: Korsnäs | B105: =pohjatiedot!AP101 -> 1986 | C105: 2084 | D105: 1986 | E105: 1973.116766 | F105: 1959.242515 | G105: 1945.368263 | H105: 1932.48503 | I105: 1920.592814 | J105: 1906.718563 | K105: 1896.808383 | L105: 1886.898204 | M105: 1875.997006 | N105: 1864.10479
A106: Koski | B106: =pohjatiedot!AP102 -> 2186 | C106: 2297 | D106: 2186 | E106: 2164.971141 | F106: 2142.940907 | G106: 2120.910673 | H106: 2101.884563 | I106: 2082.858452 | J106: 2064.833715 | K106: 2047.810353 | L106: 2034.792487 | M106: 2020.773248 | N106: 2007.755383
A107: Kotka | B107: =pohjatiedot!AP103 -> 50210 | C107: 51999 | D107: 50210 | E107: 49722.2612 | F107: 49220.47231 | G107: 48751.80148 | H107: 48309.22368 | I107: 47889.72817 | J107: 47488.29706 | K107: 47110.95181 | L107: 46745.6495 | M107: 46394.39727 | N107: 46062.21303
A108: Kouvola | B108: =pohjatiedot!AP104 -> 78386 | C108: 81521 | D108: 78386 | E108: 77589.98394 | F108: 76792.96408 | G108: 76030.07353 | H108: 75318.37695 | I108: 74627.76025 | J108: 73962.23863 | K108: 73320.80828 | L108: 72707.48443 | M108: 72111.22524 | N108: 71536.04592
A109: Kristiinankaupunki | B109: =pohjatiedot!AP105 -> 6121 | C109: 6422 | D109: 6121 | E109: 6054.239948 | F109: 5975.522872 | G109: 5902.784307 | H109: 5833.034999 | I109: 5763.285691 | J109: 5702.504151 | K109: 5647.701123 | L109: 5592.898095 | M109: 5542.080742 | N109: 5495.249064
A110: Kruunupyy | B110: =pohjatiedot!AP106 -> 6342 | C110: 6427 | D110: 6342 | E110: 6318.007566 | F110: 6291.016078 | G110: 6265.024275 | H110: 6239.032472 | I110: 6213.040668 | J110: 6188.04855 | K110: 6168.054855 | L110: 6150.06053 | M110: 6133.065889 | N110: 6117.070933
A111: Kuhmo | B111: =pohjatiedot!AP107 -> 7483 | C111: 8028 | D111: 7483 | E111: 7337.063887 | F111: 7193.140686 | G111: 7054.249765 | H111: 6918.378211 | I111: 6790.558305 | J111: 6670.790047 | K111: 6556.054069 | L111: 6446.35037 | M111: 6344.698319 | N111: 6249.085003
A112: Kuhmoinen | B112: =pohjatiedot!AP108 -> 2038 | C112: 2169 | D112: 2038 | E112: 2007.331068 | F112: 1978.640777 | G112: 1954.897087 | H112: 1930.164078 | I112: 1907.409709 | J112: 1889.601942 | K112: 1869.815534 | L112: 1852.997087 | M112: 1837.167961 | N112: 1820.349515
A113: Kuopio | B113: =pohjatiedot!AP109 -> 125666 | C113: 119490 | D113: 125666 | E113: 127141.2583 | F113: 128502.4966 | G113: 129826.7284 | H113: 131110.9532 | I113: 132350.1702 | J113: 133540.3785 | K113: 134671.5766 | L113: 135744.7645 | M113: 136756.9417 | N113: 137707.108
A114: Kuortane | B114: =pohjatiedot!AP110 -> 3335 | C114: 3478 | D114: 3335 | E114: 3297.124925 | F114: 3258.253138 | G114: 3219.381351 | H114: 3188.483264 | I114: 3157.585176 | J114: 3129.677227 | K114: 3102.765989 | L114: 3076.851464 | M114: 3054.92379 | N114: 3032.996115
A115: Kurikka | B115: =pohjatiedot!AP111 -> 19509 | C115: 20393 | D115: 19509 | E115: 19255.97406 | F115: 19005.94843 | G115: 18759.92321 | H115: 18519.8986 | I115: 18277.87379 | J115: 18044.8499 | K115: 17816.82652 | L115: 17596.80397 | M115: 17384.78223 | N115: 17181.76142
A116: Kustavi | B116: =pohjatiedot!AP112 -> 970 | C116: 944 | D116: 970 | E116: 980.1041667 | F116: 990.2083333 | G116: 999.3020833 | H116: 1008.395833 | I116: 1020.520833 | J116: 1027.59375 | K116: 1036.6875 | L116: 1045.78125 | M116: 1051.84375 | N116: 1058.916667
A117: Kuusamo | B117: =pohjatiedot!AP113 -> 14876 | C117: 14841 | D117: 14876 | E117: 14817.38222 | F117: 14746.84218 | G117: 14675.30862 | H117: 14602.78154 | I117: 14530.25446 | J117: 14462.69498 | K117: 14396.12903 | L117: 14334.53069 | M117: 14277.89995 | N117: 14227.23035
A118: Kyyjärvi | B118: =pohjatiedot!AP114 -> 1155 | C118: 1304 | D118: 1155 | E118: 1124.711538 | F118: 1094.423077 | G118: 1065.144231 | H118: 1035.865385 | I118: 1006.586538 | J118: 980.3365385 | K118: 955.0961538 | L118: 930.8653846 | M118: 909.6634615 | N118: 889.4711538
A119: Kärkölä | B119: =pohjatiedot!AP115 -> 4093 | C119: 4334 | D119: 4093 | E119: 4032.362963 | F119: 3976.779012 | G119: 3927.258765 | H119: 3881.780988 | I119: 3839.335062 | J119: 3801.942222 | K119: 3765.56 | L119: 3734.230864 | M119: 3704.922963 | N119: 3678.646914
A120: Kärsämäki | B120: =pohjatiedot!AP116 -> 2373 | C120: 2557 | D120: 2373 | E120: 2346.370324 | F120: 2317.76808 | G120: 2291.138404 | H120: 2264.508728 | I120: 2239.851621 | J120: 2219.139651 | K120: 2198.427681 | L120: 2179.688279 | M120: 2160.948878 | N120: 2148.127182
A121: Lahti | B121: =pohjatiedot!AP117 -> 121337 | C121: 120250 | D121: 121337 | E121: 121709.3652 | F121: 121963.6145 | G121: 122184.8315 | H121: 122388.0308 | I121: 122568.2075 | J121: 122732.3685 | K121: 122873.5069 | L121: 122998.6296 | M121: 123113.7425 | N121: 123206.8338
A122: Laihia | B122: =pohjatiedot!AP118 -> 7656 | C122: 8089 | D122: 7656 | E122: 7592.718971 | F122: 7524.415639 | G122: 7459.125689 | H122: 7390.822356 | I122: 7318.501181 | J122: 7250.197848 | K122: 7183.903437 | L122: 7120.622409 | M122: 7060.354763 | N122: 7007.118342
A123: Laitila | B123: =pohjatiedot!AP119 -> 8479 | C123: 8663 | D123: 8479 | E123: 8438.676614 | F123: 8391.296635 | G123: 8348.95708 | H123: 8307.625609 | I123: 8266.294139 | J123: 8227.986922 | K123: 8193.712044 | L123: 8161.453335 | M123: 8133.226965 | N123: 8112.057187
A124: Lapinjärvi | B124: =pohjatiedot!AP120 -> 2429 | C124: 2606 | D124: 2429 | E124: 2394.703488 | F124: 2361.415698 | G124: 2333.171512 | H124: 2312.997093 | I124: 2294.840116 | J124: 2279.709302 | K124: 2268.613372 | L124: 2258.526163 | M124: 2247.430233 | N124: 2238.351744
A125: Lapinlahti | B125: =pohjatiedot!AP121 -> 8865 | C125: 9404 | D125: 8865 | E125: 8742.90359 | F125: 8623.809551 | G125: 8508.718672 | H125: 8391.626214 | I125: 8282.540077 | J125: 8177.457101 | K125: 8080.380447 | L125: 7987.306954 | M125: 7902.239783 | N125: 7822.176564
A126: Lappajärvi | B126: =pohjatiedot!AP122 -> 2758 | C126: 2970 | D126: 2758 | E126: 2708.732045 | F126: 2659.46409 | G126: 2611.201604 | H126: 2564.950055 | I126: 2524.731316 | J126: 2484.512577 | K126: 2444.293839 | L126: 2406.086037 | M126: 2369.889172 | N126: 2337.714182
A127: Lappeenranta | B127: =pohjatiedot!AP123 -> 73327 | C127: 72466 | D127: 73327 | E127: 73525.96744 | F127: 73621.95173 | G127: 73706.93782 | H127: 73786.92473 | I127: 73862.9123 | J127: 73923.90232 | K127: 73976.89364 | L127: 74011.88792 | M127: 74040.88317 | N127: 74049.8817
A128: Lapua | B128: =pohjatiedot!AP124 -> 14028 | C128: 14296 | D128: 14028 | E128: 13939.42541 | F128: 13855.88348 | G128: 13770.32848 | H128: 13689.80613 | I128: 13610.29031 | J128: 13528.76143 | K128: 13447.23255 | L128: 13369.72978 | M128: 13301.28579 | N128: 13232.84179
A129: Laukaa | B129: =pohjatiedot!AP125 -> 18878 | C129: 18985 | D129: 18878 | E129: 18856.8589 | F129: 18827.66404 | G129: 18795.44902 | H129: 18757.19369 | I129: 18709.87788 | J129: 18654.50832 | K129: 18596.1186 | L129: 18535.71544 | M129: 18478.33244 | N129: 18435.04352
A130: Lemi | B130: =pohjatiedot!AP126 -> 2849 | C130: 3010 | D130: 2849 | E130: 2821.828329 | F130: 2795.663017 | G130: 2768.491346 | H130: 2741.319675 | I130: 2712.135288 | J130: 2685.969975 | K130: 2660.811021 | L130: 2638.671141 | M130: 2615.524903 | N130: 2595.397739
A131: Lempäälä | B131: =pohjatiedot!AP127 -> 24855 | C131: 23574 | D131: 24855 | E131: 25121.43494 | F131: 25367.98668 | G131: 25604.59682 | H131: 25832.25951 | I131: 26047.99228 | J131: 26263.72505 | K131: 26476.47534 | L131: 26685.24899 | M131: 26897.99928 | N131: 27117.70869
A132: Leppävirta | B132: =pohjatiedot!AP128 -> 8971 | C132: 9446 | D132: 8971 | E132: 8863.652986 | F132: 8754.299486 | G132: 8652.97193 | H132: 8551.644375 | I132: 8455.333035 | J132: 8366.044397 | K132: 8282.775218 | L132: 8205.525498 | M132: 8134.295236 | N132: 8068.08119
A133: Lestijärvi | B133: =pohjatiedot!AP129 -> 665 | C133: 700 | D133: 665 | E133: 655.1188707 | F133: 648.2020802 | G133: 641.2852897 | H133: 634.3684993 | I133: 627.4517088 | J133: 620.5349183 | K133: 614.6062407 | L133: 606.7013373 | M133: 599.7845468 | N133: 593.8558692
A134: Lieksa | B134: =pohjatiedot!AP130 -> 10049 | C134: 10633 | D134: 10049 | E134: 9888.463286 | F134: 9720.946716 | G134: 9563.401369 | H134: 9410.841635 | I134: 9266.258881 | J134: 9128.655983 | K134: 8992.050208 | L134: 8863.421413 | M134: 8738.781107 | N134: 8618.129292
A135: Lieto | B135: =pohjatiedot!AP131 -> 20666 | C135: 20011 | D135: 20666 | E135: 20820.995 | F135: 20974.99644 | G135: 21122.04298 | H135: 21264.12173 | I135: 21400.23913 | J135: 21529.40163 | K135: 21658.56413 | L135: 21788.72019 | M135: 21916.88913 | N135: 22047.04519
A136: Liminka | B136: =pohjatiedot!AP132 -> 10190 | C136: 10386 | D136: 10190 | E136: 10216.72462 | F136: 10236.52064 | G136: 10251.36765 | H136: 10260.27586 | I136: 10268.19427 | J136: 10281.06168 | K136: 10295.90869 | L136: 10313.72511 | M136: 10339.45993 | N136: 10371.13356
A137: Liperi | B137: =pohjatiedot!AP133 -> 11913 | C137: 12017 | D137: 11913 | E137: 11889.0703 | F137: 11860.15526 | G137: 11824.26071 | H137: 11786.37203 | I137: 11743.49799 | J137: 11701.62102 | K137: 11659.74406 | L137: 11620.8583 | M137: 11585.96083 | N137: 11550.06629
A138: Lohja | B138: =pohjatiedot!AP134 -> 45687 | C138: 45614 | D138: 45687 | E138: 45599.76897 | F138: 45502.51139 | G138: 45418.28833 | H138: 45352.11307 | I138: 45297.96967 | J138: 45254.85548 | K138: 45226.78113 | L138: 45216.75458 | M138: 45225.77848 | N138: 45248.83955
A139: Loimaa | B139: =pohjatiedot!AP135 -> 15295 | C139: 15721 | D139: 15295 | E139: 15170.94322 | F139: 15049.88782 | G139: 14937.83654 | H139: 14833.78892 | I139: 14737.74496 | J139: 14644.70238 | K139: 14559.66346 | L139: 14478.62637 | M139: 14403.59203 | N139: 14334.56044
A140: Loppi | B140: =pohjatiedot!AP136 -> 7657 | C140: 7713 | D140: 7657 | E140: 7626.024272 | F140: 7595.048545 | G140: 7562.074383 | H140: 7530.099439 | I140: 7500.122928 | J140: 7473.144069 | K140: 7448.163643 | L140: 7426.180869 | M140: 7405.197312 | N140: 7391.208274
A141: Loviisa | B141: =pohjatiedot!AP137 -> 14352 | C141: 14590 | D141: 14352 | E141: 14263.04958 | F141: 14182.09471 | G141: 14113.13315 | H141: 14052.16713 | I141: 14000.1961 | J141: 13953.22228 | K141: 13914.24401 | L141: 13882.26184 | M141: 13857.27577 | N141: 13842.28412
A142: Luhanka | B142: =pohjatiedot!AP138 -> 711 | C142: 696 | D142: 711 | E142: 709.9886202 | F142: 712.0113798 | G142: 713.0227596 | H142: 713.0227596 | I142: 715.0455192 | J142: 715.0455192 | K142: 713.0227596 | L142: 713.0227596 | M142: 713.0227596 | N142: 715.0455192
A143: Lumijoki | B143: =pohjatiedot!AP139 -> 2008 | C143: 2032 | D143: 2008 | E143: 1999.079961 | F143: 1987.186575 | G143: 1977.27542 | H143: 1968.35538 | I143: 1958.444225 | J143: 1951.506417 | K143: 1944.568608 | L143: 1939.613031 | M143: 1934.657453 | N143: 1930.692991
A144: Luoto | B144: =pohjatiedot!AP140 -> 5884 | C144: 5448 | D144: 5884 | E144: 5996.433121 | F144: 6102.948709 | G144: 6208.478042 | H144: 6310.062353 | I144: 6411.646664 | J144: 6511.258465 | K144: 6608.897754 | L144: 6705.550788 | M144: 6800.231311 | N144: 6897.8706
A145: Luumäki | B145: =pohjatiedot!AP141 -> 4358 | C145: 4530 | D145: 4358 | E145: 4310.859379 | F145: 4266.727733 | G145: 4222.596087 | H145: 4183.479402 | I145: 4147.371692 | J145: 4111.263982 | K145: 4079.168239 | L145: 4049.078481 | M145: 4021.997699 | N145: 3995.919908
A146: Maalahti | B146: =pohjatiedot!AP142 -> 5415 | C146: 5428 | D146: 5415 | E146: 5415 | F146: 5414.00806 | G146: 5406.072541 | H146: 5395.161202 | I146: 5385.241803 | J146: 5379.290163 | K146: 5370.362704 | L146: 5369.370764 | M146: 5365.403004 | N146: 5362.427184
A147: Marttila | B147: =pohjatiedot!AP143 -> 1910 | C147: 2008 | D147: 1910 | E147: 1895.046973 | F147: 1881.090814 | G147: 1867.134656 | H147: 1851.18476 | I147: 1838.22547 | J147: 1825.26618 | K147: 1813.303758 | L147: 1803.335073 | M147: 1797.353862 | N147: 1792.36952
A148: Masku | B148: =pohjatiedot!AP144 -> 9592 | C148: 9462 | D148: 9592 | E148: 9604.937954 | F148: 9619.866362 | G148: 9641.761361 | H148: 9657.684997 | I148: 9675.599087 | J148: 9696.498859 | K148: 9718.393858 | L148: 9743.274538 | M148: 9769.150446 | N148: 9796.021581
A149: Merijärvi | B149: =pohjatiedot!AP145 -> 1059 | C149: 1065 | D149: 1059 | E149: 1050.916031 | F149: 1043.842557 | G149: 1038.790076 | H149: 1034.748092 | I149: 1028.685115 | J149: 1022.622137 | K149: 1015.548664 | L149: 1007.464695 | M149: 998.370229 | N149: 990.2862595
A150: Merikarvia | B150: =pohjatiedot!AP146 -> 2904 | C150: 3064 | D150: 2904 | E150: 2876.352261 | F150: 2848.704522 | G150: 2823.031622 | H150: 2799.33356 | I150: 2773.66066 | J150: 2748.975179 | K150: 2722.314859 | L150: 2695.654539 | M150: 2667.019381 | N150: 2641.346481
A151: Miehikkälä | B151: =pohjatiedot!AP147 -> 1703 | C151: 1867 | D151: 1703 | E151: 1672.19895 | F151: 1643.385064 | G151: 1616.558343 | H151: 1590.725204 | I151: 1568.866394 | J151: 1547.007585 | K151: 1527.135939 | L151: 1509.251459 | M151: 1493.354142 | N151: 1477.456826
A152: Mikkeli | B152: =pohjatiedot!AP148 -> 51890 | C152: 53316 | D152: 51890 | E152: 51684.52085 | F152: 51440.95289 | G152: 51197.38492 | H152: 50952.81462 | I152: 50716.26301 | J152: 50481.71608 | K152: 50246.16682 | L152: 50010.61755 | M152: 49775.06828 | N152: 49540.52135
A153: Muhos | B153: =pohjatiedot!AP149 -> 8749 | C153: 8971 | D153: 8749 | E153: 8719.194186 | F153: 8684.420736 | G153: 8650.640813 | H153: 8614.873836 | I153: 8581.093913 | J153: 8546.320463 | K153: 8514.527595 | L153: 8484.721781 | M153: 8457.896548 | N153: 8436.038951
A154: Multia | B154: =pohjatiedot!AP150 -> 1393 | C154: 1514 | D154: 1393 | E154: 1369.221906 | F154: 1344.453058 | G154: 1321.665718 | H154: 1299.869132 | I154: 1278.072546 | J154: 1259.248222 | K154: 1243.396159 | L154: 1227.544097 | M154: 1213.673542 | N154: 1201.784495
A155: Muonio | B155: =pohjatiedot!AP151 -> 2313 | C155: 2259 | D155: 2313 | E155: 2315.976834 | F155: 2316.969112 | G155: 2318.953668 | H155: 2320.938224 | I155: 2320.938224 | J155: 2322.92278 | K155: 2322.92278 | L155: 2326.891892 | M155: 2331.853282 | N155: 2337.80695
A156: Mustasaari | B156: =pohjatiedot!AP152 -> 19738 | C156: 19521 | D156: 19738 | E156: 19850.10263 | F156: 19945.34027 | G156: 20040.57791 | H156: 20131.84731 | I156: 20214.18818 | J156: 20286.60846 | K156: 20360.02081 | L156: 20431.44903 | M156: 20501.8852 | N156: 20576.28961
A157: Muurame | B157: =pohjatiedot!AP153 -> 10614 | C157: 10356 | D157: 10614 | E157: 10711.55881 | F157: 10799.16263 | G157: 10874.82048 | H157: 10943.50985 | I157: 11005.23073 | J157: 11056.99662 | K157: 11103.78503 | L157: 11142.60945 | M157: 11179.44288 | N157: 11219.2628
A158: Mynämäki | B158: =pohjatiedot!AP154 -> 7477 | C158: 7661 | D158: 7477 | E158: 7428.935717 | F158: 7384.876791 | G158: 7347.82724 | H158: 7313.781706 | I158: 7285.744208 | J158: 7261.712066 | K158: 7241.685282 | L158: 7225.663854 | M158: 7210.643766 | N158: 7198.627695
A159: Myrskylä | B159: =pohjatiedot!AP155 -> 1677 | C159: 1898 | D159: 1677 | E159: 1644.039309 | F159: 1618.07028 | G159: 1597.095295 | H159: 1577.119119 | I159: 1559.14056 | J159: 1544.158428 | K159: 1530.175104 | L159: 1520.187016 | M159: 1511.197737 | N159: 1504.206075
A160: Mäntsälä | B160: =pohjatiedot!AP156 -> 20934 | C160: 20618 | D160: 20934 | E160: 20973.87998 | F160: 21023.72996 | G160: 21080.55894 | H160: 21144.36691 | I160: 21212.16288 | J160: 21287.93485 | K160: 21367.69481 | L160: 21457.42477 | M160: 21554.13373 | N160: 21655.82769
A161: Mänttä-Vilppula | B161: =pohjatiedot!AP157 -> 9270 | C161: 9628 | D161: 9270 | E161: 9142.305674 | F161: 9012.584454 | G161: 8889.957363 | H161: 8775.437848 | I161: 8666.999016 | J161: 8566.66776 | K161: 8466.336504 | L161: 8375.126271 | M161: 8288.983273 | N161: 8206.894064
A162: Mäntyharju | B162: =pohjatiedot!AP158 -> 5532 | C162: 5761 | D162: 5532 | E162: 5460.959824 | F162: 5391.949367 | G162: 5328.013209 | H162: 5264.07705 | I162: 5199.126032 | J162: 5142.293891 | K162: 5087.491469 | L162: 5034.718767 | M162: 4981.946065 | N162: 4929.173363
A163: Naantali | B163: =pohjatiedot!AP159 -> 20129 | C163: 19381 | D163: 20129 | E163: 20314.31872 | F163: 20485.68871 | G163: 20648.09167 | H163: 20810.49463 | I163: 20968.91224 | J163: 21128.32619 | K163: 21290.72915 | L163: 21449.14676 | M163: 21602.58269 | N163: 21755.02227
A164: Nakkila | B164: =pohjatiedot!AP160 -> 4939 | C164: 5335 | D164: 4939 | E164: 4865.40396 | F164: 4790.799755 | G164: 4720.22821 | H164: 4650.66483 | I164: 4585.134109 | J164: 4524.644213 | K164: 4463.146152 | L164: 4408.705246 | M164: 4354.26434 | N164: 4305.872423
A165: Nivala | B165: =pohjatiedot!AP161 -> 10378 | C165: 10584 | D165: 10378 | E165: 10327.12745 | F165: 10270.2699 | G165: 10211.41734 | H165: 10151.56728 | I165: 10090.71972 | J165: 10029.87216 | K165: 9970.022107 | L165: 9914.162053 | M165: 9859.2995 | N165: 9813.414456
A166: Nokia | B166: =pohjatiedot!AP162 -> 36176 | C166: 33763 | D166: 36176 | E166: 36578.06696 | F166: 36957.07273 | G166: 37318.0306 | H166: 37668.96186 | I166: 38014.87982 | J166: 38358.79246 | K166: 38698.69446 | L166: 39034.58581 | M166: 39370.47716 | N166: 39710.37916
A167: Nousiainen | B167: =pohjatiedot!AP163 -> 4659 | C167: 4662 | D167: 4659 | E167: 4654.036224 | F167: 4646.094183 | G167: 4636.166631 | H167: 4630.2101 | I167: 4621.275304 | J167: 4613.333262 | K167: 4605.391221 | L167: 4600.427445 | M167: 4599.43469 | N167: 4599.43469
A168: Nurmes | B168: =pohjatiedot!AP164 -> 8980 | C168: 9475 | D168: 8980 | E168: 8854.335851 | F168: 8733.658374 | G168: 8617.96757 | H168: 8506.266104 | I168: 8400.548645 | J168: 8298.820524 | K168: 8203.07641 | L168: 8110.3243 | M168: 8018.569525 | N168: 7933.796091
A169: Nurmijärvi | B169: =pohjatiedot!AP165 -> 45048 | C169: 43080 | D169: 45048 | E169: 45519.41521 | F169: 45964.9722 | G169: 46412.51829 | H169: 46852.108 | I169: 47287.71953 | J169: 47720.34741 | K169: 48151.98075 | L169: 48582.61954 | M169: 49011.26924 | N169: 49440.91348
A170: Närpiö | B170: =pohjatiedot!AP166 -> 9554 | C170: 9481 | D170: 9554 | E170: 9615.936818 | F170: 9656.244906 | G170: 9698.519243 | H170: 9734.894834 | I170: 9772.25355 | J170: 9806.662894 | K170: 9841.072237 | L170: 9876.464705 | M170: 9905.958428 | N170: 9931.519654
A171: Orimattila | B171: =pohjatiedot!AP167 -> 15651 | C171: 15944 | D171: 15651 | E171: 15584.82665 | F171: 15520.65855 | G171: 15458.49571 | H171: 15398.33812 | I171: 15336.17527 | J171: 15283.03607 | K171: 15230.89949 | L171: 15182.77341 | M171: 15140.6631 | N171: 15102.56329
A172: Oripää | B172: =pohjatiedot!AP168 -> 1304 | C172: 1335 | D172: 1304 | E172: 1297.021407 | F172: 1287.051988 | G172: 1281.070336 | H172: 1274.091743 | I172: 1267.11315 | J172: 1264.122324 | K172: 1258.140673 | L172: 1255.149847 | M172: 1252.159021 | N172: 1250.165138
A173: Orivesi | B173: =pohjatiedot!AP169 -> 8869 | C173: 9034 | D173: 8869 | E173: 8792.010394 | F173: 8722.111936 | G173: 8658.291605 | H173: 8601.562421 | I173: 8551.924386 | J173: 8506.338435 | K173: 8467.843632 | L173: 8433.400914 | M173: 8403.01028 | N173: 8379.710794
A174: Oulainen | B174: =pohjatiedot!AP170 -> 6912 | C174: 7265 | D174: 6912 | E174: 6842.020249 | F174: 6773.040208 | G174: 6705.059879 | H174: 6642.078102 | I174: 6584.09488 | J174: 6528.111079 | K174: 6475.12641 | L174: 6424.141163 | M174: 6374.155626 | N174: 6331.168065
A175: Oulu | B175: =pohjatiedot!AP171 -> 216152 | C175: 206723 | D175: 216152 | E175: 218640.4597 | F175: 220918.1509 | G175: 223145.1383 | H175: 225325.3988 | I175: 227444.0195 | J175: 229501.0003 | K175: 231473.4749 | L175: 233364.4259 | M175: 235175.8416 | N175: 236883.8614
A176: Outokumpu | B176: =pohjatiedot!AP172 -> 6444 | C176: 6602 | D176: 6444 | E176: 6375.986767 | F176: 6306.958412 | G176: 6238.94518 | H176: 6171.94707 | I176: 6109.009452 | J176: 6045.056711 | K176: 5982.119093 | L176: 5923.241966 | M176: 5863.349716 | N176: 5809.548204
A177: Padasjoki | B177: =pohjatiedot!AP173 -> 2676 | C177: 2843 | D177: 2676 | E177: 2636.059701 | F177: 2598.116418 | G177: 2561.171642 | H177: 2527.222388 | I177: 2496.268657 | J177: 2466.313433 | K177: 2440.352239 | L177: 2417.386567 | M177: 2395.419403 | N177: 2375.449254
A178: Paimio | B178: =pohjatiedot!AP174 -> 11221 | C178: 10882 | D178: 11221 | E178: 11307.18584 | F178: 11384.4559 | G178: 11462.71661 | H178: 11534.04282 | I178: 11605.36903 | J178: 11673.72332 | K178: 11740.09632 | L178: 11808.4506 | M178: 11871.85168 | N178: 11935.25276
A179: Paltamo | B179: =pohjatiedot!AP175 -> 2990 | C179: 3231 | D179: 2990 | E179: 2933.774345 | F179: 2875.540631 | G179: 2820.319006 | H179: 2768.109469 | I179: 2718.912021 | J179: 2673.730692 | K179: 2630.557421 | L179: 2591.400269 | M179: 2553.247146 | N179: 2519.110141
A180: Parainen | B180: =pohjatiedot!AP176 -> 14868 | C180: 15041 | D180: 14868 | E180: 14828.25927 | F180: 14785.53799 | G180: 14748.77781 | H180: 14717.97875 | I180: 14684.19913 | J180: 14653.40007 | K180: 14623.59452 | L180: 14600.7436 | M180: 14580.87324 | N180: 14568.95102
A181: Parikkala | B181: =pohjatiedot!AP177 -> 4300 | C181: 4601 | D181: 4300 | E181: 4219.701214 | F181: 4137.394958 | G181: 4059.103641 | H181: 3981.81606 | I181: 3907.539683 | J181: 3836.27451 | K181: 3765.009337 | L181: 3696.755369 | M181: 3634.52381 | N181: 3576.30719
A182: Parkano | B182: =pohjatiedot!AP178 -> 6069 | C182: 6312 | D182: 6069 | E182: 6003.828184 | F182: 5940.661655 | G182: 5879.500413 | H182: 5820.344457 | I182: 5766.201718 | J182: 5717.072196 | K182: 5668.945316 | L182: 5623.826367 | M182: 5580.712704 | N182: 5539.604328
